Workbook

Sheet week1
B1: *** Weekly Hot Lap Competition Results
B3: Start Time: 2014-11-29 16:11:10
B4: End Time: 2014-12-06 16:11:10
B6: * Results for pu_Purcelona, AntiSlider: | G6: * Results for pu_Purcelona, EasySlider: | L6: * Results for pu_Purcelona, Spinner: | Q6: * Results for pu_Purcelona, Slider: | V6: * Results for pu_Purcelona, Speeder: | AC6: Pts | AD6: Max | AE6: Av | AF6: Anti | AG6: Easy | AH6: Spin | AI6: Slide | AJ6: Speed | AK6: Ant | AL6: Eas | AM6: Spn | AN6: Sld | AO6: Spd | AP6: 1 | AQ6: 2 | AR6: 3 | AS6: 4 | AT6: 5 | AU6: 6 | AV6: 7 | AW6: 8 | AX6: 9 | AY6: 10 | AZ6: 11 | BA6: 12 | BB6: 13 | BC6: 14 | BD6: 15 | BE6: 16 | BF6: 17 | BG6: 18 | BH6: 19 | BI6: 20 | BK6: Overall Results:
B7: 1. [x] Mike Nike 30.514 (1000 pts) | C7: =LEFT(RIGHT(B7,LEN(B7)-4),LEN(RIGHT(B7,LEN(B7)-4))-19) -> [x] Mike Nike | D7: =VALUE(LEFT(RIGHT(B7,19+0),6))/1000 -> 30.514 | E7: 100 | G7: 1. [+] Tinjovic 31.970 (1000 pts) | H7: =LEFT(RIGHT(G7,LEN(G7)-4),LEN(RIGHT(G7,LEN(G7)-4))-19) -> [+] Tinjovic | I7: =VALUE(LEFT(RIGHT(G7,19+0),6))/1000 -> 31.97 | J7: 100 | L7: 1. [+] Tinjovic 31.780 (1000 pts) | M7: =LEFT(RIGHT(L7,LEN(L7)-4),LEN(RIGHT(L7,LEN(L7)-4))-19) -> [+] Tinjovic | N7: =VALUE(LEFT(RIGHT(L7,19+0),6))/1000 -> 31.78 | O7: 100 | Q7: 1. [x] Mike Nike 31.861 (1000 pts) | R7: =LEFT(RIGHT(Q7,LEN(Q7)-4),LEN(RIGHT(Q7,LEN(Q7)-4))-19) -> [x] Mike Nike | S7: =VALUE(LEFT(RIGHT(Q7,19+0),6))/1000 -> 31.861 | T7: 100 | V7: 1. [+] Tinjovic 29.965 (1000 pts) | W7: =LEFT(RIGHT(V7,LEN(V7)-4),LEN(RIGHT(V7,LEN(V7)-4))-19) -> [+] Tinjovic | X7: =VALUE(LEFT(RIGHT(V7,19+0),6))/1000 -> 29.965 | Y7: 100 | AA7: 1 | AB7: =BL7 -> [+] Tinjovic | AC7: =BP7 -> 990 | AD7: =MAX(AF7:AJ7) -> 100 | AE7: =SUM(AF7:AJ7)/COUNT(AF7:AJ7) -> 99.94247932 | AF7: =IF(SUMIF(C$7:C$998,$AB7,E$7:E$998)=0,"",VLOOKUP($AB7,C$7:E$998,3,FALSE)) -> 99.87874418 | AG7: =IF(SUMIF(H$7:H$998,$AB7,J$7:J$998)=0,"",VLOOKUP($AB7,H$7:J$998,3,FALSE)) -> 100 | AH7: =IF(SUMIF(M$7:M$998,$AB7,O$7:O$998)=0,"",VLOOKUP($AB7,M$7:O$998,3,FALSE)) -> 100 | AI7: =IF(SUMIF(R$7:R$998,$AB7,T$7:T$998)=0,"",VLOOKUP($AB7,R$7:T$998,3,FALSE)) -> 99.83365243 | AJ7: =IF(SUMIF(W$7:W$998,$AB7,Y$7:Y$998)=0,"",VLOOKUP($AB7,W$7:Y$998,3,FALSE)) -> 100 | AK7: =IF(AF7="","",RANK(AF7,AF$7:AF$999,0)) -> 2 | AL7: =IF(AG7="","",RANK(AG7,AG$7:AG$999,0)) -> 1 | AM7: 1 | AN7: 3 | AO7: 1 | AP7: =IF(SUMIF($AK7:$AO7,AP$6)/AP$6=0,"",SUMIF($AK7:$AO7,AP$6)/AP$6) -> 3 | AQ7: 1 | AR7: 1 | AZ7: =IF(SUMIF($AK7:$AO7,AZ$6)/AZ$6=0,"",SUMIF($AK7:$AO7,AZ$6)/AZ$6) ->  | BK7: 1. [+] Tinjovic (990 pts) | BL7: =CONCATENATE(LEFT(RIGHT(BK7,LEN(BK7)-4),LEN(RIGHT(BK7,LEN(BK7)-4))-9)," ") -> [+] Tinjovic | BM7: =RIGHT(BK7,10) -> (990 pts) | BN7: =LEFT(BM7,5) -> (990 | BO7: =REPLACE(BN7,SEARCH("(",BN7),1,"") -> 990 | BP7: =TRIM(BO7) -> 990
B8: 2. [+] Tinjovic 30.551 (980 pts) | C8: [+] Tinjovic | D8: 30.551 | E8: =100-(D8-D$7)/D$7*100 -> 99.87874418 | G8: 2. [x] Mike Nike 32.041 (965 pts) | H8: [x] Mike Nike | I8: 32.041 | J8: =100-(I8-I$7)/I$7*100 -> 99.7779168 | L8: 2. [x] Mike Nike 31.852 (964 pts) | M8: [x] Mike Nike | N8: =VALUE(LEFT(RIGHT(L8,19+0),6))/1000 -> 31.852 | O8: =100-(N8-N$7)/N$7*100 -> 99.77344242 | Q8: 2. [fS]Palo 31.888 (986 pts) | R8: [fS]Palo | S8: 31.888 | T8: =100-(S8-S$7)/S$7*100 -> 99.9152569 | V8: 2. [x] Mike Nike 29.978 (993 pts) | W8: [x] Mike Nike | X8: 29.978 | Y8: =100-(X8-X$7)/X$7*100 -> 99.95661605 | AA8: 2 | AB8: =BL8 -> [x] Mike Nike | AC8: =BP8 -> 984 | AD8: 100 | AE8: =SUM(AF8:AJ8)/COUNT(AF8:AJ8) -> 99.90159505 | AF8: =IF(SUMIF(C$7:C$998,$AB8,E$7:E$998)=0,"",VLOOKUP($AB8,C$7:E$998,3,FALSE)) -> 100 | AG8: 99.7779168 | AH8: 99.77344242 | AI8: 100 | AJ8: =IF(SUMIF(W$7:W$998,$AB8,Y$7:Y$998)=0,"",VLOOKUP($AB8,W$7:Y$998,3,FALSE)) -> 99.95661605 | AK8: =IF(AF8="","",RANK(AF8,AF$7:AF$999,0)) -> 1 | AL8: =IF(AG8="","",RANK(AG8,AG$7:AG$999,0)) -> 2 | AM8: =IF(AH8="","",RANK(AH8,AH$7:AH$999,0)) -> 2 | AN8: =IF(AI8="","",RANK(AI8,AI$7:AI$999,0)) -> 1 | AO8: =IF(AJ8="","",RANK(AJ8,AJ$7:AJ$999,0)) -> 2 | AP8: 2 | AQ8: 3 | BK8: 2. [x] Mike Nike (984 pts) | BL8: =CONCATENATE(LEFT(RIGHT(BK8,LEN(BK8)-4),LEN(RIGHT(BK8,LEN(BK8)-4))-9)," ") -> [x] Mike Nike | BM8: =RIGHT(BK8,10) -> (984 pts) | BN8: =LEFT(BM8,5) -> (984 | BO8: =REPLACE(BN8,SEARCH("(",BN8),1,"") -> 984 | BP8: =TRIM(BO8) -> 984
B9: 3. [fS]Palo 30.563 (974 pts) | C9: [fS]Palo | D9: 30.563 | E9: =100-(D9-D$7)/D$7*100 -> 99.83941797 | G9: 3. [fS]Palo 32.233 (877 pts) | H9: [fS]Palo | I9: 32.233 | J9: =100-(I9-I$7)/I$7*100 -> 99.17735377 | L9: 3. [fS]Palo 31.905 (939 pts) | M9: [fS]Palo | N9: 31.905 | O9: =100-(N9-N$7)/N$7*100 -> 99.60667086 | Q9: 3. [+] Tinjovic 31.914 (973 pts) | R9: [+] Tinjovic | S9: 31.914 | T9: =100-(S9-S$7)/S$7*100 -> 99.83365243 | V9: 3. [+] Iziwýn 30.277 (847 pts) | W9: [+] Iziwýn | X9: 30.277 | Y9: =100-(X9-X$7)/X$7*100 -> 98.95878525 | AA9: 3 | AB9: [fS]Palo | AC9: 924 | AD9: 99.9152569 | AE9: 99.4928225 | AF9: 99.83941797 | AG9: 99.17735377 | AH9: 99.60667086 | AI9: 99.9152569 | AJ9: 98.92541298 | AK9: 3 | AL9: 3 | AM9: 3 | AN9: 2 | AO9: 4 | AQ9: 1 | AR9: 3 | AS9: 1 | BK9: 3. [fS]Palo (924 pts) | BL9: [fS]Palo | BM9: (924 pts) | BN9: (924 | BO9: 924 | BP9: 924
B10: 4. [PahaJori] Ender 30.617 (947 pts) | C10: [PahaJori] Ender | D10: 30.617 | E10: 99.66245002 | G10: 4. Janneosaursrex 32.294 (851 pts) | H10: Janneosaursrex | I10: 32.294 | J10: 98.98654989 | L10: 4. [fS]Hevonen 32.283 (777 pts) | M10: [fS]Hevonen | N10: 32.283 | O10: 98.41724355 | Q10: 4. [fS]Hevonen 32.042 (913 pts) | R10: [fS]Hevonen | S10: 32.042 | T10: 99.43190735 | V10: 4. [fS]Palo 30.287 (842 pts) | W10: [fS]Palo | X10: 30.287 | Y10: 98.92541298 | AA10: 4 | AB10: [x] Whiplash | AC10: 793 | AD10: 99.51825392 | AE10: 98.52482144 | AF10: 99.51825392 | AG10: 98.32655615 | AH10: 98.40780365 | AI10: 98.32710838 | AJ10: 98.04438512 | AK10: 5 | AL10: 5 | AM10: 5 | AN10: 7 | AO10: 5 | AT10: 4 | AV10: 1 | BK10: 4. [x] Whiplash (793 pts) | BL10: [x] Whiplash | BM10: (793 pts) | BN10: (793 | BO10: 793 | BP10: 793
B11: 5. [x] Whiplash 30.661 (925 pts) | C11: [x] Whiplash | D11: 30.661 | E11: 99.51825392 | G11: 5. [x] Whiplash 32.505 (766 pts) | H11: [x] Whiplash | I11: 32.505 | J11: 98.32655615 | L11: 5. [x] Whiplash 32.286 (776 pts) | M11: [x] Whiplash | N11: 32.286 | O11: 98.40780365 | Q11: 5. Kyna_Musti 32.059 (905 pts) | R11: Kyna_Musti | S11: 32.059 | T11: 99.37855058 | V11: 5. [x] Whiplash 30.551 (733 pts) | W11: [x] Whiplash | X11: 30.551 | Y11: 98.04438512 | AA11: 5 | AB11: [fS]Hevonen | AC11: 769 | AD11: 99.43190735 | AE11: 98.27645455 | AF11: 99.11843744 | AG11: 97.48827025 | AH11: 98.41724355 | AI11: 99.43190735 | AJ11: 96.92641415 | AK11: 8 | AL11: 6 | AM11: 4 | AN11: 4 | AO11: 6 | AS11: 2 | AU11: 2 | AW11: 1 | BK11: 5. [fS]Hevonen (769 pts) | BL11: [fS]Hevonen | BM11: (769 pts) | BN11: (769 | BO11: 769 | BP11: 769
B12: 6. Double O Seven 30.661 (925 pts) | C12: Double O Seven | D12: 30.661 | E12: 99.51825392 | G12: 6. [fS]Hevonen 32.773 (672 pts) | H12: [fS]Hevonen | I12: 32.773 | J12: 97.48827025 | L12: 6. mc65532 32.700 (633 pts) | M12: mc65532 | N12: 32.7 | O12: 97.10509755 | Q12: 6. [x] Whiplash 32.394 (766 pts) | R12: [x] Whiplash | S12: 32.394 | T12: 98.32710838 | V12: 6. [fS]Hevonen 30.886 (616 pts) | W12: [fS]Hevonen | X12: 30.886 | Y12: 96.92641415 | AA12: 6 | AB12: Kyna_Musti | AC12: 587 | AD12: 99.37855058 | AE12: 97.96634587 | AF12: 98.44333748 | AG12: 97.15045355 | AI12: 99.37855058 | AJ12: 96.89304188 | AK12: 11 | AL12: 7 | AN12: 5 | AO12: 7 | AT12: 1 | AV12: 2 | AZ12: 1 | BK12: 6. Kyna_Musti (587 pts) | BL12: Kyna_Musti | BM12: (587 pts) | BN12: (587 | BO12: 587 | BP12: 587
B13: 7. [+] Badeend 30.693 (910 pts) | C13: [+] Badeend | D13: 30.693 | E13: 99.41338402 | G13: 7. Kyna_Musti 32.881 (637 pts) | H13: Kyna_Musti | I13: 32.881 | J13: 97.15045355 | L13: 7. [+] Iziwýn 32.903 (573 pts) | M13: [+] Iziwýn | N13: 32.903 | O13: 96.46633103 | Q13: 7. Chukie 32.446 (747 pts) | R13: Chukie | S13: 32.446 | T13: 98.16389944 | V13: 7. Kyna_Musti 30.896 (612 pts) | W13: Kyna_Musti | X13: 30.896 | Y13: 96.89304188 | AA13: 7 | AB13: [+] Iziwýn | AC13: 504 | AD13: 98.95878525 | AE13: 96.83215527 | AG13: 94.15076634 | AH13: 96.46633103 | AI13: 97.75273846 | AJ13: 98.95878525 | AL13: 18 | AM13: 7 | AN13: 10 | AO13: 3 | AR13: 1 | AV13: 1 | AY13: 1 | BG13: 1 | BK13: 7. [+] Iziwýn (504 pts) | BL13: [+] Iziwýn | BM13: (504 pts) | BN13: (504 | BO13: 504 | BP13: 504
B14: 8. [fS]Hevonen 30.783 (868 pts) | C14: [fS]Hevonen | D14: 30.783 | E14: 99.11843744 | G14: 8. [+] Badeend 32.974 (609 pts) | H14: [+] Badeend | I14: 32.974 | J14: 96.85955583 | L14: 8. KyNa 33.084 (525 pts) | M14: KyNa | N14: 33.084 | O14: 95.89679043 | Q14: 8. [+] Iziwýn 32.577 (700 pts) | R14: [+] Iziwýn | S14: 32.577 | T14: 97.75273846 | V14: 8. [+] Badeend 30.906 (609 pts) | W14: [+] Badeend | X14: 30.906 | Y14: 96.85966961 | AA14: 8 | AB14: mc65532 | AC14: 477 | AD14: 97.10509755 | AE14: 94.85777412 | AF14: 96.56551091 | AG14: 96.40913356 | AH14: 97.10509755 | AI14: 93.39317661 | AJ14: 90.81595194 | AK14: 23 | AL14: 10 | AM14: 6 | AN14: 20 | AO14: 15 | AU14: 1 | AY14: 1 | BD14: 1 | BI14: 1 | BK14: 8. mc65532 (477 pts) | BL14: mc65532 | BM14: (477 pts) | BN14: (477 | BO14: 477 | BP14: 477
B15: 9. Testaaja 30.907 (814 pts) | C15: Testaaja | D15: 30.907 | E15: 98.71206659 | G15: 9. mc65532 33.118 (568 pts) | H15: mc65532 | I15: 33.118 | J15: 96.40913356 | L15: 9. laf 33.724 (386 pts) | M15: laf | N15: 33.724 | O15: 93.88294525 | Q15: 9. chill 32.607 (690 pts) | R15: chill | S15: 32.607 | T15: 97.65857945 | V15: 9. [+] Eddie 31.687 (409 pts) | W15: [+] Eddie | X15: 31.687 | Y15: 94.25329551 | AA15: 9 | AB15: [+] Badeend | AC15: 426 | AD15: 99.41338402 | AE15: 97.71086982 | AF15: 99.41338402 | AG15: 96.85955583 | AJ15: 96.85966961 | AK15: 7 | AL15: 9 | AO15: 9 | AV15: 1 | AX15: 2 | BK15: 9. [+] Badeend (426 pts) | BL15: [+] Badeend | BM15: (426 pts) | BN15: (426 | BO15: 426 | BP15: 426
B16: 10. Diego Armando 30.970 (788 pts) | C16: Diego Armando | D16: 30.97 | E16: 98.50560399 | G16: 10. Jurgen-NL 33.181 (551 pts) | H16: Jurgen-NL | I16: 33.181 | J16: 96.21207382 | L16: 10. stoner 34.417 (279 pts) | M16: stoner | N16: 34.417 | O16: 91.70232851 | Q16: 10. Chukie 32.623 (685 pts) | R16: Chukie | S16: 32.623 | T16: 97.60836132 | V16: 10. AnnicK 31.758 (394 pts) | W16: AnnicK | X16: 31.758 | Y16: 94.01635241 | AA16: 10 | AB16: Poisonous | AC16: 399 | AD16: 97.47329095 | AE16: 95.41294182 | AF16: 97.47329095 | AG16: 94.49796684 | AI16: 95.68751765 | AJ16: 93.99299182 | AK16: 16 | AL16: 17 | AN16: 17 | AO16: 12 | BA16: 1 | BE16: 1 | BF16: 2 | BK16: 10. Poisonous (399 pts) | BL16: Poisonous | BM16: (399 pts) | BN16: (399 | BO16: 399 | BP16: 399
B17: 11. Kyna_Musti 30.989 (781 pts) | C17: Kyna_Musti | D17: 30.989 | E17: 98.44333748 | G17: 11. Chukie 33.229 (539 pts) | H17: Chukie | I17: 33.229 | J17: 96.06193306 | L17: 11. REIROM 34.473 (272 pts) | M17: REIROM | N17: 34.473 | O17: 91.52611705 | Q17: 11. Kyna_Musti 32.687 (663 pts) | R17: Kyna_Musti | S17: 32.687 | T17: 97.40748878 | V17: 11. Poisonous 31.765 (393 pts) | W17: Poisonous | X17: 31.765 | Y17: 93.99299182 | AA17: 11 | AB17: Chukie | AC17: 315 | AD17: 98.16389944 | AE17: 95.82057474 | AF17: 93.23589172 | AG17: 96.06193306 | AI17: 98.16389944 | AK17: 39 | AL17: 12 | AN17: 8 | AP17: =IF(SUMIF($AK17:$AO17,AP$6)/AP$6=0,"",SUMIF($AK17:$AO17,AP$6)/AP$6) ->  | AW17: 1 | AZ17: =IF(SUMIF($AK17:$AO17,AZ$6)/AZ$6=0,"",SUMIF($AK17:$AO17,AZ$6)/AZ$6) ->  | BA17: 1 | BK17: 11. Chukie (315 pts) | BL17: Chukie | BM17: (315 pts) | BN17: (315 | BO17: 315 | BP17: 315
B18: 12. [FN] Pornfest 30.997 (777 pts) | C18: [FN] Pornfest | D18: 30.997 | E18: 98.41712001 | G18: 12. lds 33.288 (523 pts) | H18: lds | I18: 33.288 | J18: 95.87738505 | L18: 12. Lavon 34.934 (220 pts) | M18: Lavon | N18: 34.934 | O18: 90.07551919 | Q18: 12. AnnicK 32.711 (656 pts) | R18: AnnicK | S18: 32.711 | T18: 97.33216158 | V18: 12. Jurgen-NL 31.939 (360 pts) | W18: Jurgen-NL | X18: 31.939 | Y18: 93.41231437 | AA18: 12 | AB18: Jurgen-NL | AC18: 310 | AD18: 97.20128466 | AE18: 95.60855761 | AF18: 97.20128466 | AG18: 96.21207382 | AJ18: 93.41231437 | AK18: 21 | AL18: 11 | AO18: 13 | AZ18: 1 | BB18: 1 | BK18: 12. Jurgen-NL (310 pts) | BL18: Jurgen-NL | BM18: (310 pts) | BN18: (310 | BO18: 310 | BP18: 310
B19: 13. Kyna_Musti 31.104 (736 pts) | C19: Kyna_Musti | D19: 31.104 | E19: 98.0664613 | G19: 13. [FN] Pornfest 33.658 (439 pts) | H19: [FN] Pornfest | I19: 33.658 | J19: 94.72005005 | L19: 13. [FUN] GR8 Arjen! 36.047 (133 pts) | M19: [FUN] GR8 Arjen! | N19: 36.047 | O19: 86.57331655 | Q19: 13. Guillo 32.966 (579 pts) | R19: Guillo | S19: 32.966 | T19: 96.53181005 | V19: 13. KyNa 32.045 (341 pts) | W19: KyNa | X19: 32.045 | Y19: 93.05856833 | AA19: 13 | AB19: KyNa | AC19: 294 | AD19: 96.81457692 | AE19: 95.25664523 | AF19: 96.81457692 | AH19: 95.89679043 | AJ19: 93.05856833 | AK19: 22 | AM19: 8 | AO19: 14 | AW19: 1 | BC19: 1 | BK19: 13. KyNa (294 pts) | BL19: KyNa | BM19: (294 pts) | BN19: (294 | BO19: 294 | BP19: 294
B20: 14. Matic 31.188 (704 pts) | C20: Matic | D20: 31.188 | E20: 97.79117782 | G20: 14. Poisonous 33.729 (424 pts) | H20: Poisonous | I20: 33.729 | J20: 94.49796684 | L20: 14. suzuck 36.415 (113 pts) | M20: suzuck | N20: 36.415 | O20: 85.41535557 | Q20: 14. Augusto 33.112 (539 pts) | R20: Augusto | S20: 33.112 | T20: 96.07356957 | V20: 14. mc65532 32.717 (245 pts) | W20: mc65532 | X20: 32.717 | Y20: 90.81595194 | AA20: 14 | AB20: Kyna_Musti | AC20: 280 | AD20: 99.37855058 | AE20: 97.96634587 | AF20: 98.44333748 | AG20: 97.15045355 | AI20: 99.37855058 | AJ20: 96.89304188 | AK20: 11 | AL20: 7 | AN20: 5 | AO20: 7 | AT20: 1 | AV20: 2 | AZ20: 1 | BK20: 14. Kyna_Musti (280 pts) | BL20: Kyna_Musti | BM20: (280 pts) | BN20: (280 | BO20: 280 | BP20: 280
B21: 15. R.E.I.R.O.M 31.217 (694 pts) | C21: R.E.I.R.O.M | D21: 31.217 | E21: 97.69613948 | G21: 15. lds 33.833 (404 pts) | H21: lds | I21: 33.833 | J21: 94.17266187 | L21: 15. Iron Man 37.237 (79 pts) | M21: Iron Man | N21: 37.237 | O21: 82.82882316 | Q21: 15. Ande 33.153 (529 pts) | R21: Ande | S21: 33.153 | T21: 95.9448856 | V21: 15. Ande 33.112 (202 pts) | W21: Ande | X21: 33.112 | Y21: 89.49774737 | AA21: 15 | AB21: fatty | AC21: 248 | AD21: 97.41102445 | AE21: 90.36269404 | AF21: 97.41102445 | AG21: 92.29590241 | AI21: 82.27613697 | AJ21: 89.46771233 | AK21: 17 | AL21: 20 | AN21: 27 | AO21: 17 | BF21: 2 | BI21: 1 | BK21: 15. fatty (248 pts) | BL21: fatty | BM21: (248 pts) | BN21: (248 | BO21: 248 | BP21: 248
B22: 16. Poisonous 31.285 (670 pts) | C22: Poisonous | D22: 31.285 | E22: 97.47329095 | G22: 16. [+] Iziwýn 33.840 (402 pts) | H22: [+] Iziwýn | I22: 33.84 | J22: 94.15076634 | L22: 16. Augusto 46.622 (2 pts) | M22: Augusto | N22: 46.622 | O22: 53.29767149 | Q22: 16. Poisonous 33.235 (508 pts) | R22: Poisonous | S22: 33.235 | T22: 95.68751765 | V22: 16. fatty 33.121 (201 pts) | W22: fatty | X22: 33.121 | Y22: 89.46771233 | AA22: 16 | AB22: AnnicK | AC22: 247 | AD22: 97.33216158 | AE22: 93.45774132 | AF22: 89.02470997 | AI22: 97.33216158 | AJ22: 94.01635241 | AK22: 43 | AN22: 12 | AO22: 11 | AZ22: 1 | BA22: 1 | BK22: 16. AnnicK (247 pts) | BL22: AnnicK | BM22: (247 pts) | BN22: (247 | BO22: 247 | BP22: 247
B23: 17. fatty 31.304 (664 pts) | C23: fatty | D23: 31.304 | E23: 97.41102445 | G23: 17. Rubao 34.279 (327 pts) | H23: Rubao | I23: 34.279 | J23: 92.777604 | Q23: 17. Sharp 33.590 (429 pts) | R23: Sharp | S23: 33.59 | T23: 94.57330278 | V23: 17. Gol_v8 33.233 (190 pts) | W23: Gol_v8 | X23: 33.233 | Y23: 89.09394293 | AA23: 17 | AB23: [FN] Pornfest | AC23: 243 | AD23: 98.41712001 | AE23: 96.56858503 | AF23: 98.41712001 | AG23: 94.72005005 | AK23: 13 | AL23: 16 | BB23: 1 | BE23: 1 | BK23: 17. [FN] Pornfest (243 pts) | BL23: [FN] Pornfest | BM23: (243 pts) | BN23: (243 | BO23: 243 | BP23: 243
B24: 18. [FUN] GR8 Arjen! 31.347 (649 pts) | C24: [FUN] GR8 Arjen! | D24: 31.347 | E24: 97.27010553 | G24: 18. fatty 34.433 (304 pts) | H24: fatty | I24: 34.433 | J24: 92.29590241 | Q24: 18. Scud 33.602 (426 pts) | R24: Scud | S24: 33.602 | T24: 94.53563918 | V24: 18. [+] xzeal 33.282 (186 pts) | W24: [+] xzeal | X24: 33.282 | Y24: 88.93041882 | AA24: 18 | AB24: Double O Seven | AC24: 241 | AD24: 99.51825392 | AE24: 95.61774441 | AF24: 99.51825392 | AG24: 91.71723491 | AK24: 5 | AL24: 21 | AT24: 1 | BK24: 18. Double O Seven (241 pts) | BL24: Double O Seven | BM24: (241 pts) | BN24: (241 | BO24: 241 | BP24: 241
B25: 19. Augusto 31.367 (643 pts) | C25: Augusto | D25: 31.367 | E25: 97.20456184 | G25: 19. Double O Seven 34.618 (279 pts) | H25: Double O Seven | I25: 34.618 | J25: 91.71723491 | Q25: 19. mc65532 33.966 (359 pts) | R25: mc65532 | S25: 33.966 | T25: 93.39317661 | V25: 19. laf 33.705 (152 pts) | W25: laf | X25: 33.705 | Y25: 87.5187719 | AA25: 19 | AB25: chill | AC25: 231 | AD25: 97.65857945 | AE25: 96.3812331 | AF25: 95.10388674 | AI25: 97.65857945 | AK25: 33 | AN25: 11 | AZ25: 1 | BK25: 19. chill (231 pts) | BL25: chill | BM25: (231 pts) | BN25: (231 | BO25: 231 | BP25: 231
B26: 20. Jurgen-NL 31.368 (642 pts) | C26: Jurgen-NL | D26: 31.368 | E26: 97.20128466 | G26: 20. Brian 35.124 (221 pts) | H26: Brian | I26: 35.124 | J26: 90.13450109 | Q26: 20. #5 Burnout 34.633 (263 pts) | R26: #5 Burnout | S26: 34.633 | T26: 91.29970811 | V26: 20. Fama 33.744 (149 pts) | W26: Fama | X26: 33.744 | Y26: 87.38862006 | AA26: 20 | AB26: Guillo | AC26: 224 | AD26: 96.53181005 | AE26: 96.33400491 | AF26: 96.13619978 | AI26: 96.53181005 | AK26: 28 | AN26: 13 | BB26: 1 | BK26: 20. Guillo (224 pts) | BL26: Guillo | BM26: (224 pts) | BN26: (224 | BO26: 224 | BP26: 224
B27: 21. KyNa 31.486 (605 pts) | C27: KyNa | D27: 31.486 | E27: 96.81457692 | G27: 21. Diego Armando 35.305 (204 pts) | H27: Diego Armando | I27: 35.305 | J27: 89.56834532 | Q27: 21. Serif 34.801 (243 pts) | R27: Serif | S27: 34.801 | T27: 90.77241769 | V27: 21. Kiki 34.106 (126 pts) | W27: Kiki | X27: 34.106 | Y27: 86.18054397 | AA27: 21 | AB27: Ande | AC27: 221 | AD27: 95.9448856 | AE27: 93.04905401 | AF27: 93.70452907 | AI27: 95.9448856 | AJ27: 89.49774737 | AK27: 37 | AN27: 16 | AO27: 16 | AP27: =IF(SUMIF($AK27:$AO27,AP$6)/AP$6=0,"",SUMIF($AK27:$AO27,AP$6)/AP$6) ->  | AZ27: =IF(SUMIF($AK27:$AO27,AZ$6)/AZ$6=0,"",SUMIF($AK27:$AO27,AZ$6)/AZ$6) ->  | BE27: 2 | BK27: 21. Ande (221 pts) | BL27: Ande | BM27: (221 pts) | BN27: (221 | BO27: 221 | BP27: 221
B28: 22. mc65532 31.562 (582 pts) | C28: mc65532 | D28: 31.562 | E28: 96.56551091 | G28: 22. R.E.I.R.O.M 36.151 (139 pts) | H28: R.E.I.R.O.M | I28: 36.151 | J28: 86.92211448 | Q28: 22. Reinikainen 34.883 (234 pts) | R28: Reinikainen | S28: 34.883 | T28: 90.51504975 | V28: 22. suzuck 35.360 (70 pts) | W28: suzuck | X28: 35.36 | Y28: 81.99566161 | AA28: 22 | AB28: Scud | AC28: 200 | AD28: 96.48685849 | AE28: 95.51124884 | AF28: 96.48685849 | AI28: 94.53563918 | AK28: 24 | AN28: 19 | BH28: 1 | BK28: 22. Scud (200 pts) | BL28: Scud | BM28: (200 pts) | BN28: (200 | BO28: 200 | BP28: 200
B29: 23. Scud 31.586 (575 pts) | C29: Scud | D29: 31.586 | E29: 96.48685849 | G29: 23. Rahim 36.457 (122 pts) | H29: Rahim | I29: 36.457 | J29: 85.96496716 | Q29: 23. Reiska 35.492 (177 pts) | R29: Reiska | S29: 35.492 | T29: 88.60362198 | V29: 23. Sig 35.466 (67 pts) | W29: Sig | X29: 35.466 | Y29: 81.64191557 | AA29: 23 | AB29: Diego Armando | AC29: 198 | AD29: 98.50560399 | AE29: 94.03697465 | AF29: 98.50560399 | AG29: 89.56834532 | AK29: 10 | AL29: 23 | AY29: 1 | BK29: 23. Diego Armando (198 pts) | BL29: Diego Armando | BM29: (198 pts) | BN29: (198 | BO29: 198 | BP29: 198
B30: 24. lds 31.627 (563 pts) | C30: lds | D30: 31.627 | E30: 96.35249394 | G30: 24. Niksi 36.472 (121 pts) | H30: Niksi | I30: 36.472 | J30: 85.91804817 | Q30: 24. DustyBadSkillz 35.666 (164 pts) | R30: DustyBadSkillz | S30: 35.666 | T30: 88.05749976 | V30: 24. JJN 36.708 (38 pts) | W30: JJN | X30: 36.708 | Y30: 77.49707993 | AA30: 24 | AB30: lds | AC30: 193 | AD30: 96.35249394 | AE30: 96.11493949 | AF30: 96.35249394 | AG30: 95.87738505 | AK30: 25 | AL30: 14 | BC30: 1 | BK30: 24. lds (193 pts) | BL30: lds | BM30: (193 pts) | BN30: (193 | BO30: 193 | BP30: 193
B31: 25. [+] xzeal 31.641 (559 pts) | C31: [+] xzeal | D31: 31.641 | E31: 96.30661336 | G31: 25. NBA 36.491 (120 pts) | H31: NBA | I31: 36.491 | J31: 85.85861745 | Q31: 25. Niksi 36.717 (103 pts) | R31: Niksi | S31: 36.717 | T31: 84.75879602 | V31: 25. kikiriki 38.999 (14 pts) | W31: kikiriki | X31: 38.999 | Y31: 69.85149341 | AA31: 25 | AB31: [PahaJori] Ender | AC31: 189 | AD31: 99.66245002 | AE31: 99.66245002 | AF31: 99.66245002 | AK31: 4 | AS31: 1 | BK31: 25. [PahaJori] Ender (189 pts) | BL31: [PahaJori] Ender | BM31: (189 pts) | BN31: (189 | BO31: 189 | BP31: 189
B32: 26. Guillo 31.693 (545 pts) | C32: Guillo | D32: 31.693 | E32: 96.13619978 | G32: 26. REIROM 37.159 (90 pts) | H32: REIROM | I32: 37.159 | J32: 83.76915859 | Q32: 26. fatty 37.508 (73 pts) | R32: fatty | S32: 37.508 | T32: 82.27613697 | V32: 26. Iron Man 44.024 (2 pts) | W32: Iron Man | X32: 44.024 | Y32: 53.08192892 | AA32: 26 | AB32: laf | AC32: 179 | AD32: 93.88294525 | AE32: 91.59721218 | AF32: 93.38991938 | AH32: 93.88294525 | AJ32: 87.5187719 | AK32: 38 | AM32: 9 | AO32: 20 | AX32: 1 | BI32: 1 | BK32: 26. laf (179 pts) | BL32: laf | BM32: (179 pts) | BN32: (179 | BO32: 179 | BP32: 179
B33: 27. Pro08 31.767 (525 pts) | C33: Pro08 | D33: 31.767 | E33: 95.89368814 | G33: 27. Jim 37.459 (79 pts) | H33: Jim | I33: 37.459 | J33: 82.83077886 | Q33: 27. Waenoo 37.894 (62 pts) | R33: Waenoo | S33: 37.894 | T33: 81.06462446 | AA33: 27 | AB33: REIROM | AC33: 171 | AD33: 95.51025759 | AE33: 90.26851108 | AF33: 95.51025759 | AG33: 83.76915859 | AH33: 91.52611705 | AK33: 30 | AL33: 28 | AM33: 11 | AZ33: 1 | BK33: 27. REIROM (171 pts) | BL33: REIROM | BM33: (171 pts) | BN33: (171 | BO33: 171 | BP33: 171
B34: 28. REIROM 31.884 (495 pts) | C34: REIROM | D34: 31.884 | E34: 95.51025759 | G34: 28. Jukra 38.217 (57 pts) | H34: Jukra | I34: 38.217 | J34: 80.45980607 | Q34: 28. Brian 39.005 (39 pts) | R34: Brian | S34: 39.005 | T34: 77.57760271 | AA34: 28 | AB34: Janneosaursrex | AC34: 170 | AD34: 98.98654989 | AE34: 98.98654989 | AG34: 98.98654989 | AL34: 4 | AS34: 1 | BK34: 28. Janneosaursrex (170 pts) | BL34: Janneosaursrex | BM34: (170 pts) | BN34: (170 | BO34: 170 | BP34: 170
B35: 29. NBA 31.890 (493 pts) | C35: NBA | D35: 31.89 | E35: 95.49059448 | G35: 29. RiantHoff 39.828 (29 pts) | H35: RiantHoff | I35: 39.828 | J35: 75.42070691 | Q35: 29. shamino 49.535 (0 pts) | R35: shamino | S35: 49.535 | T35: 44.5277926 | AA35: 29 | AB35: R.E.I.R.O.M | AC35: 166 | AD35: 97.69613948 | AE35: 92.30912698 | AF35: 97.69613948 | AG35: 86.92211448 | AK35: 15 | AL35: 24 | BD35: 1 | BK35: 29. R.E.I.R.O.M (166 pts) | BL35: R.E.I.R.O.M | BM35: (166 pts) | BN35: (166 | BO35: 166 | BP35: 166
B36: 30. stoner 31.927 (484 pts) | C36: stoner | D36: 31.927 | E36: 95.36933866 | G36: 30. shamino 52.368 (0 pts) | H36: shamino | I36: 52.368 | J36: 36.19643416 | AA36: 30 | AB36: Testaaja | AC36: 162 | AD36: 98.71206659 | AE36: 98.71206659 | AF36: 98.71206659 | AK36: 9 | AX36: 1 | BK36: 30. Testaaja (162 pts) | BL36: Testaaja | BM36: (162 pts) | BN36: (162 | BO36: 162 | BP36: 162
B37: 31. chill 32.008 (465 pts) | C37: chill | D37: 32.008 | E37: 95.10388674 | G37: 31. rard 1:29.685 (0 pts) | H37: {l}rard{l} | I37: 89.685 | J37: -80.52862058 | AA37: 31 | AB37: [FUN] GR8 Arjen! | AC37: 156 | AD37: 97.27010553 | AE37: 91.92171104 | AF37: 97.27010553 | AH37: 86.57331655 | AK37: 18 | AM37: 13 | AP37: =IF(SUMIF($AK37:$AO37,AP$6)/AP$6=0,"",SUMIF($AK37:$AO37,AP$6)/AP$6) ->  | AZ37: =IF(SUMIF($AK37:$AO37,AZ$6)/AZ$6=0,"",SUMIF($AK37:$AO37,AZ$6)/AZ$6) ->  | BB37: 1 | BG37: 1 | BK37: 31. [FUN] GR8 Arjen! (156 pts) | BL37: [FUN] GR8 Arjen! | BM37: (156 pts) | BN37: (156 | BO37: 156 | BP37: 156
B38: 32. RiantHoff 32.084 (448 pts) | C38: RiantHoff | D38: 32.084 | E38: 94.85482074 | AA38: 32 | AB38: stoner | AC38: 152 | AD38: 95.36933866 | AE38: 93.53583359 | AF38: 95.36933866 | AH38: 91.70232851 | AK38: 32 | AM38: 10 | AY38: 1 | BK38: 32. stoner (152 pts) | BL38: stoner | BM38: (152 pts) | BN38: (152 | BO38: 152 | BP38: 152
B39: 33. Serif 32.128 (438 pts) | C39: Serif | D39: 32.128 | E39: 94.71062463 | AA39: 33 | AB39: Chukie | AC39: 149 | AD39: =MAX(AF39:AJ39) -> 98.16389944 | AE39: =SUM(AF39:AJ39)/COUNT(AF39:AJ39) -> 95.82057474 | AF39: =IF(SUMIF(C$7:C$998,$AB39,E$7:E$998)=0,"",VLOOKUP($AB39,C$7:E$998,3,FALSE)) -> 93.23589172 | AG39: =IF(SUMIF(H$7:H$998,$AB39,J$7:J$998)=0,"",VLOOKUP($AB39,H$7:J$998,3,FALSE)) -> 96.06193306 | AH39: =IF(SUMIF(M$7:M$998,$AB39,O$7:O$998)=0,"",VLOOKUP($AB39,M$7:O$998,3,FALSE)) ->  | AI39: =IF(SUMIF(R$7:R$998,$AB39,T$7:T$998)=0,"",VLOOKUP($AB39,R$7:T$998,3,FALSE)) -> 98.16389944 | AJ39: =IF(SUMIF(W$7:W$998,$AB39,Y$7:Y$998)=0,"",VLOOKUP($AB39,W$7:Y$998,3,FALSE)) ->  | AK39: 39 | AL39: 12 | AN39: 8 | AW39: 1 | BA39: 1 | BK39: 33. Chukie (149 pts) | BL39: Chukie | BM39: (149 pts) | BN39: (149 | BO39: 149 | BP39: 149
B40: 34. CrazybikE 32.154 (432 pts) | C40: CrazybikE | D40: 32.154 | E40: 94.62541784 | AA40: 34 | AB40: [+] xzeal | AC40: 149 | AD40: 96.30661336 | AE40: 92.61851609 | AF40: 96.30661336 | AJ40: 88.93041882 | AK40: 27 | AO40: 19 | BH40: 1 | BK40: 34. [+] xzeal (149 pts) | BL40: [+] xzeal | BM40: (149 pts) | BN40: (149 | BO40: 149 | BP40: 149
B41: 35. Ande 32.435 (376 pts) | C41: Ande | D41: 32.435 | E41: 93.70452907 | AA41: 35 | AB41: Matic | AC41: 140 | AD41: 97.79117782 | AE41: 97.79117782 | AF41: 97.79117782 | AK41: 14 | BC41: 1 | BK41: 35. Matic (140 pts) | BL41: Matic | BM41: (140 pts) | BN41: (140 | BO41: 140 | BP41: 140
B42: 36. laf 32.531 (359 pts) | C42: laf | D42: 32.531 | E42: 93.38991938 | AA42: 36 | AB42: Serif | AC42: 136 | AD42: 94.71062463 | AE42: 92.74152116 | AF42: 94.71062463 | AI42: 90.77241769 | AK42: 35 | AN42: 22 | BK42: 36. Serif (136 pts) | BL42: Serif | BM42: (136 pts) | BN42: (136 | BO42: 136 | BP42: 136
B43: 37. Chukie 32.578 (350 pts) | C43: Chukie | D43: 32.578 | E43: 93.23589172 | AA43: 37 | AB43: Augusto | AC43: 129 | AD43: 97.20456184 | AE43: 82.1919343 | AF43: 97.20456184 | AH43: 53.29767149 | AI43: 96.07356957 | AK43: 19 | AM43: 16 | AN43: 14 | BC43: 1 | BE43: 1 | BH43: 1 | BK43: 37. Augusto (129 pts) | BL43: Augusto | BM43: (129 pts) | BN43: (129 | BO43: 129 | BP43: 129
B44: 38. Fama 33.301 (246 pts) | C44: Fama | D44: 33.301 | E44: 90.86648751 | AA44: 38 | AB44: NBA | AC44: 122 | AD44: 95.49059448 | AE44: 90.67460597 | AF44: 95.49059448 | AG44: 85.85861745 | AK44: 31 | AL44: 27 | BK44: 38. NBA (122 pts) | BL44: NBA | BM44: (122 pts) | BN44: (122 | BO44: 122 | BP44: 122
B45: 39. Jim 33.671 (206 pts) | C45: Jim | D45: 33.671 | E45: 89.65392934 | AA45: 39 | AB45: Augusto | AC45: 107 | AD45: 97.20456184 | AE45: 82.1919343 | AF45: 97.20456184 | AH45: 53.29767149 | AI45: 96.07356957 | AK45: 19 | AM45: 16 | AN45: 14 | BC45: 1 | BE45: 1 | BH45: 1 | BK45: 39. Augusto (107 pts) | BL45: Augusto | BM45: (107 pts) | BN45: (107 | BO45: 107 | BP45: 107
B46: 40. AnnicK 33.863 (188 pts) | C46: AnnicK | D46: 33.863 | E46: 89.02470997 | AA46: 40 | AB46: Pro08 | AC46: 105 | AD46: 95.89368814 | AE46: 95.89368814 | AF46: 95.89368814 | AK46: 29 | BK46: 40. Pro08 (105 pts) | BL46: Pro08 | BM46: (105 pts) | BN46: (105 | BO46: 105 | BP46: 105
B47: 41. BIXOMAU 33.889 (186 pts) | C47: BIXOMAU | D47: 33.889 | E47: 88.93950318 | AA47: 41 | AB47: lds | AC47: 104 | AD47: 96.35249394 | AE47: 96.11493949 | AF47: 96.35249394 | AG47: 95.87738505 | AK47: 25 | AL47: 14 | AP47: =IF(SUMIF($AK47:$AO47,AP$6)/AP$6=0,"",SUMIF($AK47:$AO47,AP$6)/AP$6) ->  | AZ47: =IF(SUMIF($AK47:$AO47,AZ$6)/AZ$6=0,"",SUMIF($AK47:$AO47,AZ$6)/AZ$6) ->  | BC47: 1 | BK47: 41. lds (104 pts) | BL47: lds | BM47: (104 pts) | BN47: (104 | BO47: 104 | BP47: 104
B48: 42. suzuck 35.794 (77 pts) | C48: suzuck | D48: 35.794 | E48: 82.6964672 | AA48: 42 | AB48: RiantHoff | AC48: 95 | AD48: 94.85482074 | AE48: 85.13776383 | AF48: 94.85482074 | AG48: 75.42070691 | AK48: 34 | AL48: 31 | BK48: 42. RiantHoff (95 pts) | BL48: RiantHoff | BM48: (95 pts) | BN48: (95 | BO48: 95 | BP48: 95
B49: 43. Storm 37.496 (37 pts) | C49: Storm | D49: 37.496 | E49: 77.11869961 | AA49: 43 | AB49: CrazybikE | AC49: 86 | AD49: 94.62541784 | AE49: 94.62541784 | AF49: 94.62541784 | AK49: 36 | BK49: 43. CrazybikE (86 pts) | BL49: CrazybikE | BM49: (86 pts) | BN49: (86 | BO49: 86 | BP49: 86
B50: 44. Iron Man 39.195 (18 pts) | C50: Iron Man | D50: 39.195 | E50: 71.55076358 | AA50: 44 | AB50: Sharp | AC50: 85 | AD50: 94.57330278 | AE50: 94.57330278 | AI50: 94.57330278 | AN50: 18 | BG50: 1 | BK50: 44. Sharp (85 pts) | BL50: Sharp | BM50: (85 pts) | BN50: (85 | BO50: 85 | BP50: 85
B51: 45. {l}rard{l} 41.038 (8 pts) | C51: {l}rard{l} | D51: 41.038 | E51: 65.51091302 | AA51: 45 | AB51: [+] Eddie | AC51: 81 | AD51: 94.25329551 | AE51: 94.25329551 | AJ51: 94.25329551 | AO51: 10 | AY51: 1 | BK51: 45. [+] Eddie (81 pts) | BL51: [+] Eddie | BM51: (81 pts) | BN51: (81 | BO51: 81 | BP51: 81
AA52: 46 | AB52: Fama | AC52: 79 | AD52: 90.86648751 | AE52: 89.12755379 | AF52: 90.86648751 | AJ52: 87.38862006 | AK52: 41 | AO52: 21 | BK52: 46. Fama (79 pts) | BL52: Fama | BM52: (79 pts) | BN52: (79 | BO52: 79 | BP52: 79
AA53: 47 | AB53: Rubao | AC53: 65 | AD53: 92.777604 | AE53: 92.777604 | AG53: 92.777604 | AL53: 19 | BH53: 1 | BK53: 47. Rubao (65 pts) | BL53: Rubao | BM53: (65 pts) | BN53: (65 | BO53: 65 | BP53: 65
AA54: 48 | AB54: Jim | AC54: 57 | AD54: 89.65392934 | AE54: 86.2423541 | AF54: 89.65392934 | AG54: 82.83077886 | AK54: 42 | AL54: 29 | BK54: 48. Jim (57 pts) | BL54: Jim | BM54: (57 pts) | BN54: (57 | BO54: 57 | BP54: 57
AA55: 49 | AB55: #5 Burnout | AC55: 52 | AD55: 91.29970811 | AE55: 91.29970811 | AI55: 91.29970811 | AN55: 21 | BK55: 49. #5 Burnout (52 pts) | BL55: #5 Burnout | BM55: (52 pts) | BN55: (52 | BO55: 52 | BP55: 52
AA56: 50 | AB56: suzuck | AC56: 52 | AD56: 85.41535557 | AE56: 83.36916146 | AF56: 82.6964672 | AH56: 85.41535557 | AJ56: 81.99566161 | AK56: 45 | AM56: 14 | AO56: 23 | BC56: 1 | BK56: 50. suzuck (52 pts) | BL56: suzuck | BM56: (52 pts) | BN56: (52 | BO56: 52 | BP56: 52
AA57: 51 | AB57: Brian | AC57: 52 | AD57: 90.13450109 | AE57: 83.8560519 | AG57: 90.13450109 | AI57: 77.57760271 | AL57: 22 | AN57: 29 | AP57: =IF(SUMIF($AK57:$AO57,AP$6)/AP$6=0,"",SUMIF($AK57:$AO57,AP$6)/AP$6) ->  | AZ57: =IF(SUMIF($AK57:$AO57,AZ$6)/AZ$6=0,"",SUMIF($AK57:$AO57,AZ$6)/AZ$6) ->  | BK57: 51. Brian (52 pts) | BL57: Brian | BM57: (52 pts) | BN57: (52 | BO57: 52 | BP57: 52
AA58: 52 | AB58: Reinikainen | AC58: 46 | AD58: 90.51504975 | AE58: 90.51504975 | AI58: 90.51504975 | AN58: 23 | BK58: 52. Reinikainen (46 pts) | BL58: Reinikainen | BM58: (46 pts) | BN58: (46 | BO58: 46 | BP58: 46
AA59: 53 | AB59: Niksi | AC59: 44 | AD59: 85.91804817 | AE59: 85.3384221 | AG59: 85.91804817 | AI59: 84.75879602 | AL59: 26 | AN59: 26 | BK59: 53. Niksi (44 pts) | BL59: Niksi | BM59: (44 pts) | BN59: (44 | BO59: 44 | BP59: 44
AA60: 54 | AB60: Lavon | AC60: 44 | AD60: 90.07551919 | AE60: 90.07551919 | AH60: 90.07551919 | AM60: 12 | BA60: 1 | BK60: 54. Lavon (44 pts) | BL60: Lavon | BM60: (44 pts) | BN60: (44 | BO60: 44 | BP60: 44
AA61: 55 | AB61: Gol_v8 | AC61: 38 | AD61: 89.09394293 | AE61: 89.09394293 | AJ61: 89.09394293 | AO61: 18 | BG61: 1 | BK61: 55. Gol_v8 (38 pts) | BL61: Gol_v8 | BM61: (38 pts) | BN61: (38 | BO61: 38 | BP61: 38
AA62: 56 | AB62: BIXOMAU | AC62: 37 | AD62: 88.93950318 | AE62: 88.93950318 | AF62: 88.93950318 | AK62: 44 | BK62: 56. BIXOMAU (37 pts) | BL62: BIXOMAU | BM62: (37 pts) | BN62: (37 | BO62: 37 | BP62: 37
AA63: 57 | AB63: Reiska | AC63: 35 | AD63: 88.60362198 | AE63: 88.60362198 | AI63: 88.60362198 | AN63: 24 | BK63: 57. Reiska (35 pts) | BL63: Reiska | BM63: (35 pts) | BN63: (35 | BO63: 35 | BP63: 35
AA64: 58 | AB64: DustyBadSkillz | AC64: 32 | AD64: 88.05749976 | AE64: 88.05749976 | AI64: 88.05749976 | AN64: 25 | BK64: 58. DustyBadSkillz (32 pts) | BL64: DustyBadSkillz | BM64: (32 pts) | BN64: (32 | BO64: 32 | BP64: 32
AA65: 59 | AB65: Kiki | AC65: 25 | AD65: 86.18054397 | AE65: 86.18054397 | AJ65: 86.18054397 | AO65: 22 | BK65: 59. Kiki (25 pts) | BL65: Kiki | BM65: (25 pts) | BN65: (25 | BO65: 25 | BP65: 25
AA66: 60 | AB66: Rahim | AC66: 24 | AD66: 85.96496716 | AE66: 85.96496716 | AG66: 85.96496716 | AL66: 25 | BK66: 60. Rahim (24 pts) | BL66: Rahim | BM66: (24 pts) | BN66: (24 | BO66: 24 | BP66: 24
AA67: 61 | AB67: Iron Man | AC67: 19 | AD67: 82.82882316 | AE67: 69.15383855 | AF67: 71.55076358 | AH67: 82.82882316 | AJ67: 53.08192892 | AK67: 47 | AM67: 15 | AO67: 27 | BD67: 1 | BK67: 61. Iron Man (19 pts) | BL67: Iron Man | BM67: (19 pts) | BN67: (19 | BO67: 19 | BP67: 19
AA68: 62 | AB68: Sig | AC68: 13 | AD68: 81.64191557 | AE68: 81.64191557 | AJ68: 81.64191557 | AO68: 24 | BK68: 62. Sig (13 pts) | BL68: Sig | BM68: (13 pts) | BN68: (13 | BO68: 13 | BP68: 13
AA69: 63 | AB69: Waenoo | AC69: 12 | AD69: 81.06462446 | AE69: 81.06462446 | AI69: 81.06462446 | AN69: 28 | BK69: 63. Waenoo (12 pts) | BL69: Waenoo | BM69: (12 pts) | BN69: (12 | BO69: 12 | BP69: 12
AA70: 64 | AB70: Jukra | AC70: 11 | AD70: =MAX(AF70:AJ70) -> 80.45980607 | AE70: =SUM(AF70:AJ70)/COUNT(AF70:AJ70) -> 80.45980607 | AF70: =IF(SUMIF(C$7:C$998,$AB70,E$7:E$998)=0,"",VLOOKUP($AB70,C$7:E$998,3,FALSE)) ->  | AG70: =IF(SUMIF(H$7:H$998,$AB70,J$7:J$998)=0,"",VLOOKUP($AB70,H$7:J$998,3,FALSE)) -> 80.45980607 | AH70: =IF(SUMIF(M$7:M$998,$AB70,O$7:O$998)=0,"",VLOOKUP($AB70,M$7:O$998,3,FALSE)) ->  | AI70: =IF(SUMIF(R$7:R$998,$AB70,T$7:T$998)=0,"",VLOOKUP($AB70,R$7:T$998,3,FALSE)) ->  | AJ70: =IF(SUMIF(W$7:W$998,$AB70,Y$7:Y$998)=0,"",VLOOKUP($AB70,W$7:Y$998,3,FALSE)) ->  | AL70: 30 | BK70: 64. Jukra (11 pts) | BL70: Jukra | BM70: (11 pts) | BN70: (11 | BO70: 11 | BP70: 11
AA71: 65 | AB71: JJN | AC71: 7 | AD71: 77.49707993 | AE71: 77.49707993 | AJ71: 77.49707993 | AO71: 25 | BK71: 65. JJN (7 pts) | BL71: JJN | BM71: (7 pts) | BN71: (7 | BO71: 7 | BP71: 7
AA72: 66 | AB72: =BL72 -> Storm | AC72: =BP72 -> 7 | AD72: 77.11869961 | AE72: 77.11869961 | AF72: 77.11869961 | AK72: =IF(AF72="","",RANK(AF72,AF$7:AF$999,0)) -> 46 | AL72: =IF(AG72="","",RANK(AG72,AG$7:AG$999,0)) ->  | AM72: =IF(AH72="","",RANK(AH72,AH$7:AH$999,0)) ->  | AN72: =IF(AI72="","",RANK(AI72,AI$7:AI$999,0)) ->  | AO72: =IF(AJ72="","",RANK(AJ72,AJ$7:AJ$999,0)) ->  | BK72: 66. Storm (7 pts) | BL72: =CONCATENATE(LEFT(RIGHT(BK72,LEN(BK72)-4),LEN(RIGHT(BK72,LEN(BK72)-4))-9)," ") -> Storm | BM72: =RIGHT(BK72,10) -> (7 pts) | BN72: =LEFT(BM72,5) -> (7 | BO72: =REPLACE(BN72,SEARCH("(",BN72),1,"") -> 7 | BP72: =TRIM(BO72) -> 7
AA73: 67 | AB73: kikiriki | AC73: 2 | AD73: 69.85149341 | AE73: 69.85149341 | AJ73: 69.85149341 | AO73: 26 | AP73: =IF(SUMIF($AK73:$AO73,AP$6)/AP$6=0,"",SUMIF($AK73:$AO73,AP$6)/AP$6) ->  | BF73: =IF(SUMIF($AK73:$AO73,BF$6)/BF$6=0,"",SUMIF($AK73:$AO73,BF$6)/BF$6) ->  | BK73: 67. kikiriki (2 pts) | BL73: kikiriki | BM73: (2 pts) | BN73: (2 | BO73: 2 | BP73: 2
AA74: 68 | AB74: {l}rard{l} | AC74: 1 | AD74: 65.51091302 | AE74: -7.508853779 | AF74: 65.51091302 | AG74: -80.52862058 | AK74: 48 | AL74: 33 | BK74: 68. {l}rard{l} (1 pts) | BL74: {l}rard{l} | BM74: (1 pts) | BN74: (1 | BO74: 1 | BP74: 1
AA75: 69 | AB75: shamino | AC75: 0 | AD75: 44.5277926 | AE75: 40.36211338 | AG75: 36.19643416 | AI75: 44.5277926 | AL75: 32 | AN75: 30 | BK75: 69. shamino (0 pts) | BL75: shamino | BM75: (0 pts) | BN75: (0 | BO75: 0 | BP75: 0
BK76: 70. rard (0 pts) | BL76: rard | BM76: (0 pts) | BN76: (0 | BO76: 0 | BP76: 0

Sheet week2
B1: *** Weekly Hot Lap Competition Results
B3: Start Time: 2014-12-06 16:13:57
B4: End Time: 2014-12-13 16:13:57
B6: * Results for de_Cazzis, AntiSlider: | G6: * Results for de_Cazzis, EasySlider: | L6: * Results for de_Cazzis, Spinner: | Q6: * Results for de_Cazzis, Slider: | V6: * Results for de_Cazzis, Speeder: | AC6: Pts | AD6: Max | AE6: Av | AF6: Anti | AG6: Easy | AH6: Spin | AI6: Slide | AJ6: Speed | AK6: Ant | AL6: Eas | AM6: Spn | AN6: Sld | AO6: Spd | AP6: 1 | AQ6: 2 | AR6: 3 | AS6: 4 | AT6: 5 | AU6: 6 | AV6: 7 | AW6: 8 | AX6: 9 | AY6: 10 | AZ6: 11 | BA6: 12 | BB6: 13 | BC6: 14 | BD6: 15 | BE6: 16 | BF6: 17 | BG6: 18 | BH6: 19 | BI6: 20 | BK6: Overall Results:
B7: 1. [fS]Palo 30.480 (1000 pts) | C7: =LEFT(RIGHT(B7,LEN(B7)-4),LEN(RIGHT(B7,LEN(B7)-4))-19) -> [fS]Palo | D7: =VALUE(LEFT(RIGHT(B7,19+0),6))/1000 -> 30.48 | E7: 100 | G7: 1. [+] Tinjovic 30.969 (1000 pts) | H7: =LEFT(RIGHT(G7,LEN(G7)-4),LEN(RIGHT(G7,LEN(G7)-4))-19) -> [+] Tinjovic | I7: =VALUE(LEFT(RIGHT(G7,19+0),6))/1000 -> 30.969 | J7: 100 | L7: 1. [x] Mike Nike 30.843 (1000 pts) | M7: =LEFT(RIGHT(L7,LEN(L7)-4),LEN(RIGHT(L7,LEN(L7)-4))-19) -> [x] Mike Nike | N7: =VALUE(LEFT(RIGHT(L7,19+0),6))/1000 -> 30.843 | O7: 100 | Q7: 1. [x] Mike Nike 30.735 (1000 pts) | R7: =LEFT(RIGHT(Q7,LEN(Q7)-4),LEN(RIGHT(Q7,LEN(Q7)-4))-19) -> [x] Mike Nike | S7: =VALUE(LEFT(RIGHT(Q7,19+0),6))/1000 -> 30.735 | T7: 100 | V7: 1. [+] Tinjovic 28.748 (1000 pts) | W7: =LEFT(RIGHT(V7,LEN(V7)-4),LEN(RIGHT(V7,LEN(V7)-4))-19) -> [+] Tinjovic | X7: =VALUE(LEFT(RIGHT(V7,19+0),6))/1000 -> 28.748 | Y7: 100 | AA7: 1 | AB7: =BL7 -> [+] Tinjovic | AC7: =BP7 -> 988 | AD7: =MAX(AF7:AJ7) -> 100 | AE7: =SUM(AF7:AJ7)/COUNT(AF7:AJ7) -> 99.92760897 | AF7: =IF(SUMIF(C$7:C$998,$AB7,E$7:E$998)=0,"",VLOOKUP($AB7,C$7:E$998,3,FALSE)) -> 99.8523622 | AG7: =IF(SUMIF(H$7:H$999,$AB7,J$7:J$999)=0,"",VLOOKUP($AB7,H$7:J$999,3,FALSE)) -> 100 | AH7: =IF(SUMIF(M$7:M$998,$AB7,O$7:O$998)=0,"",VLOOKUP($AB7,M$7:O$998,3,FALSE)) -> 99.88003761 | AI7: =IF(SUMIF(R$7:R$998,$AB7,T$7:T$998)=0,"",VLOOKUP($AB7,R$7:T$998,3,FALSE)) -> 99.90564503 | AJ7: =IF(SUMIF(W$7:W$998,$AB7,Y$7:Y$998)=0,"",VLOOKUP($AB7,W$7:Y$998,3,FALSE)) -> 100 | AK7: =IF(AF7="","",RANK(AF7,AF$7:AF$999,0)) -> 2 | AL7: =IF(AG7="","",RANK(AG7,AG$7:AG$999,0)) -> 1 | AM7: 2 | AN7: 2 | AO7: 1 | AP7: =IF(SUMIF($AK7:$AO7,AP$6)/AP$6=0,"",SUMIF($AK7:$AO7,AP$6)/AP$6) -> 2 | AQ7: 3 | AZ7: =IF(SUMIF($AK7:$AO7,AZ$6)/AZ$6=0,"",SUMIF($AK7:$AO7,AZ$6)/AZ$6) ->  | BK7: 1. [+] Tinjovic (988 pts) | BL7: =CONCATENATE(LEFT(RIGHT(BK7,LEN(BK7)-4),LEN(RIGHT(BK7,LEN(BK7)-4))-9)," ") -> [+] Tinjovic | BM7: =RIGHT(BK7,10) -> (988 pts) | BN7: =LEFT(BM7,5) -> (988 | BO7: =REPLACE(BN7,SEARCH("(",BN7),1,"") -> 988 | BP7: =TRIM(BO7) -> 988
B8: 2. [+] Tinjovic 30.525 (976 pts) | C8: =LEFT(RIGHT(B8,LEN(B8)-4),LEN(RIGHT(B8,LEN(B8)-4))-19) -> [+] Tinjovic | D8: 30.525 | E8: =100-(D8-D$7)/D$7*100 -> 99.8523622 | G8: 2. [x] Mike Nike 31.051 (958 pts) | H8: =LEFT(RIGHT(G8,LEN(G8)-4),LEN(RIGHT(G8,LEN(G8)-4))-19) -> [x] Mike Nike | I8: =VALUE(LEFT(RIGHT(G8,19+0),6))/1000 -> 31.051 | J8: =100-(I8-I$7)/I$7*100 -> 99.73521909 | L8: 2. [+] Tinjovic 30.880 (981 pts) | M8: =LEFT(RIGHT(L8,LEN(L8)-4),LEN(RIGHT(L8,LEN(L8)-4))-19) -> [+] Tinjovic | N8: =VALUE(LEFT(RIGHT(L8,19+0),6))/1000 -> 30.88 | O8: =100-(N8-N$7)/N$7*100 -> 99.88003761 | Q8: 2. [+] Tinjovic 30.764 (985 pts) | R8: =LEFT(RIGHT(Q8,LEN(Q8)-4),LEN(RIGHT(Q8,LEN(Q8)-4))-19) -> [+] Tinjovic | S8: =VALUE(LEFT(RIGHT(Q8,19+0),6))/1000 -> 30.764 | T8: =100-(S8-S$7)/S$7*100 -> 99.90564503 | V8: 2. [x] Mike Nike 28.784 (980 pts) | W8: =LEFT(RIGHT(V8,LEN(V8)-4),LEN(RIGHT(V8,LEN(V8)-4))-19) -> [x] Mike Nike | X8: =VALUE(LEFT(RIGHT(V8,19+0),6))/1000 -> 28.784 | Y8: =100-(X8-X$7)/X$7*100 -> 99.8747739 | AA8: 2 | AB8: =BL8 -> [x] Mike Nike | AC8: =BP8 -> 976 | AD8: 100 | AE8: 99.85113246 | AF8: 99.64566929 | AG8: 99.73521909 | AH8: 100 | AI8: 100 | AJ8: 99.8747739 | AK8: =IF(AF8="","",RANK(AF8,AF$7:AF$999,0)) -> 3 | AL8: =IF(AG8="","",RANK(AG8,AG$7:AG$999,0)) -> 2 | AM8: =IF(AH8="","",RANK(AH8,AH$7:AH$999,0)) -> 1 | AN8: =IF(AI8="","",RANK(AI8,AI$7:AI$999,0)) -> 1 | AO8: =IF(AJ8="","",RANK(AJ8,AJ$7:AJ$999,0)) -> 2 | AP8: 2 | AQ8: 2 | AR8: 1 | BK8: 2. [x] Mike Nike (976 pts) | BL8: =CONCATENATE(LEFT(RIGHT(BK8,LEN(BK8)-4),LEN(RIGHT(BK8,LEN(BK8)-4))-9)," ") -> [x] Mike Nike | BM8: =RIGHT(BK8,10) -> (976 pts) | BN8: =LEFT(BM8,5) -> (976 | BO8: =REPLACE(BN8,SEARCH("(",BN8),1,"") -> 976 | BP8: =TRIM(BO8) -> 976
B9: 3. [x] Mike Nike 30.588 (944 pts) | C9: =LEFT(RIGHT(B9,LEN(B9)-4),LEN(RIGHT(B9,LEN(B9)-4))-19) -> [x] Mike Nike | D9: 30.588 | E9: =100-(D9-D$7)/D$7*100 -> 99.64566929 | G9: 3. [fS]Palo 31.401 (801 pts) | H9: [fS]Palo | I9: 31.401 | J9: =100-(I9-I$7)/I$7*100 -> 98.60505667 | L9: 3. [fS]Palo 31.149 (853 pts) | M9: [fS]Palo | N9: 31.149 | O9: =100-(N9-N$7)/N$7*100 -> 99.00787861 | Q9: 3. [x] Stylus 30.898 (918 pts) | R9: [x] Stylus | S9: 30.898 | T9: =100-(S9-S$7)/S$7*100 -> 99.46966 | V9: 3. [iR] iBlaze² 29.221 (770 pts) | W9: [iR] iBlaze² | X9: 29.221 | Y9: =100-(X9-X$7)/X$7*100 -> 98.35466815 | AA9: 3 | AB9: Kyna_Musti | AC9: 759 | AD9: 99.24841386 | AE9: 98.18485073 | AF9: 99.18963255 | AG9: 97.58468146 | AH9: 98.22001751 | AI9: 99.24841386 | AJ9: 96.68150828 | AK9: 7 | AL9: 6 | AM9: 4 | AN9: 4 | AO9: 6 | AS9: 2 | AU9: 2 | AV9: 1 | BK9: 3. Kyna_Musti (759 pts) | BL9: Kyna_Musti | BM9: (759 pts) | BN9: (759 | BO9: 759 | BP9: 759
B10: 4. [+] Badeend 30.588 (944 pts) | C10: [+] Badeend | D10: 30.588 | E10: 99.64566929 | G10: 4. Sig 31.557 (740 pts) | H10: Sig | I10: 31.557 | J10: 98.10132713 | L10: 4. Kyna_Musti 31.392 (754 pts) | M10: Kyna_Musti | N10: 31.392 | O10: 98.22001751 | Q10: 4. Kyna_Musti 30.966 (887 pts) | R10: Kyna_Musti | S10: 30.966 | T10: 99.24841386 | V10: 4. kikiriki 29.304 (736 pts) | W10: kikiriki | X10: 29.304 | Y10: 98.06595241 | AA10: 4 | AB10: kikiriki | AC10: 720 | AD10: 98.76968504 | AE10: 97.90143657 | AF10: 98.76968504 | AG10: 97.66217831 | AH10: 98.02872613 | AI10: 96.98064096 | AJ10: 98.06595241 | AK10: 12 | AL10: 5 | AM10: 6 | AN10: 8 | AO10: 4 | AS10: 1 | AT10: 1 | AU10: 1 | AW10: 1 | BA10: 1 | BK10: 4. kikiriki (720 pts) | BL10: kikiriki | BM10: (720 pts) | BN10: (720 | BO10: 720 | BP10: 720
B11: 5. [x] Whiplash 30.692 (895 pts) | C11: [x] Whiplash | D11: 30.692 | E11: 99.30446194 | G11: 5. kikiriki 31.693 (690 pts) | H11: kikiriki | I11: 31.693 | J11: 97.66217831 | L11: 5. [iR] iBlaze² 31.450 (732 pts) | M11: [iR] iBlaze² | N11: 31.45 | O11: 98.03196836 | Q11: 5. [fS]Palo 31.217 (779 pts) | R11: [fS]Palo | S11: 31.217 | T11: 98.43175533 | V11: 5. Sig 29.652 (609 pts) | W11: Sig | X11: 29.652 | Y11: 96.85543342 | AA11: 5 | AB11: [fS]Palo | AC11: 686 | AD11: 100 | AE11: 99.01117265 | AF11: 100 | AG11: 98.60505667 | AH11: 99.00787861 | AI11: 98.43175533 | AK11: 1 | AL11: 3 | AM11: 3 | AN11: 5 | AP11: 1 | AR11: 2 | AT11: 1 | BK11: 5. [fS]Palo (686 pts) | BL11: [fS]Palo | BM11: (686 pts) | BN11: (686 | BO11: 686 | BP11: 686
B12: 6. [PahaJori] Ender 30.701 (890 pts) | C12: [PahaJori] Ender | D12: 30.701 | E12: 99.27493438 | G12: 6. Kyna_Musti 31.717 (682 pts) | H12: Kyna_Musti | I12: 31.717 | J12: 97.58468146 | L12: 6. kikiriki 31.451 (731 pts) | M12: kikiriki | N12: 31.451 | O12: 98.02872613 | Q12: 6. AnnicK 31.464 (687 pts) | R12: AnnicK | S12: 31.464 | T12: 97.62811127 | V12: 6. Kyna_Musti 29.702 (593 pts) | W12: Kyna_Musti | X12: 29.702 | Y12: 96.68150828 | AA12: 6 | AB12: [iR] iBlaze² | AC12: 685 | AD12: 98.67125984 | AE12: 97.5235862 | AF12: 98.67125984 | AG12: 96.44160289 | AH12: 98.03196836 | AI12: 96.11843176 | AJ12: 98.35466815 | AK12: 13 | AL12: 10 | AM12: 5 | AN12: 11 | AO12: 3 | AR12: 1 | AT12: 1 | AY12: 1 | AZ12: 1 | BB12: 1 | BK12: 6. [iR] iBlaze² (685 pts) | BL12: [iR] iBlaze² | BM12: (685 pts) | BN12: (685 | BO12: 685 | BP12: 685
B13: 7. Kyna_Musti 30.727 (878 pts) | C13: Kyna_Musti | D13: 30.727 | E13: 99.18963255 | G13: 7. [x] Whiplash 31.778 (661 pts) | H13: [x] Whiplash | I13: 31.778 | J13: 97.38771029 | L13: 7. AnnicK 31.598 (679 pts) | M13: AnnicK | N13: 31.598 | O13: 97.5521188 | Q13: 7. Chukie 31.655 (623 pts) | R13: Chukie | S13: 31.655 | T13: 97.00666992 | V13: 7. Hazard 29.918 (528 pts) | W13: Hazard | X13: 29.918 | Y13: 95.93015166 | AA13: 7 | AB13: AnnicK | AC13: 605 | AD13: 97.62811127 | AE13: 96.7653368 | AF13: 96.89632546 | AG13: 96.33827376 | AH13: 97.5521188 | AI13: 97.62811127 | AJ13: 95.41185474 | AK13: 35 | AL13: 11 | AM13: 7 | AN13: 6 | AO13: 10 | AU13: 1 | AV13: 1 | AY13: 1 | AZ13: 1 | BK13: 7. AnnicK (605 pts) | BL13: AnnicK | BM13: (605 pts) | BN13: (605 | BO13: 605 | BP13: 605
B14: 8. Double O Seven 30.731 (877 pts) | C14: Double O Seven | D14: 30.731 | E14: 99.17650919 | G14: 8. Jurgen-NL 31.951 (606 pts) | H14: Jurgen-NL | I14: 31.951 | J14: 96.82908715 | L14: 8. Ande 31.762 (625 pts) | M14: Ande | N14: 31.762 | O14: 97.02039361 | Q14: 8. kikiriki 31.663 (621 pts) | R14: kikiriki | S14: 31.663 | T14: 96.98064096 | V14: 8. Gol_v8 29.939 (522 pts) | W14: Gol_v8 | X14: 29.939 | Y14: 95.8571031 | AA14: 8 | AB14: Jurgen-NL | AC14: 592 | AD14: 98.91404199 | AE14: 96.48459949 | AF14: 98.91404199 | AG14: 96.82908715 | AH14: 96.83234445 | AI14: 94.9991866 | AJ14: 94.84833728 | AK14: 11 | AL14: 8 | AM14: 9 | AN14: 14 | AO14: 12 | AW14: 1 | AX14: 1 | AZ14: 1 | BA14: 1 | BC14: 1 | BK14: 8. Jurgen-NL (592 pts) | BL14: Jurgen-NL | BM14: (592 pts) | BN14: (592 | BO14: 592 | BP14: 592
B15: 9. [fS]Hevonen 30.748 (869 pts) | C15: [fS]Hevonen | D15: 30.748 | E15: 99.12073491 | G15: 9. [+] xzeal 32.055 (576 pts) | H15: [+] xzeal | I15: 32.055 | J15: 96.49326746 | L15: 9. Jurgen-NL 31.820 (607 pts) | M15: Jurgen-NL | N15: 31.82 | O15: 96.83234445 | Q15: 9. Hengari 31.871 (559 pts) | R15: Hengari | S15: 31.871 | T15: 96.30388808 | V15: 9. [x] Stylus 29.975 (512 pts) | W15: [x] Stylus | X15: 29.975 | Y15: 95.731877 | AA15: 9 | AB15: [+] xzeal | AC15: 557 | AD15: 97.33923885 | AE15: 96.23097119 | AF15: 97.33923885 | AG15: 96.49326746 | AH15: 96.54054405 | AI15: 95.62388157 | AJ15: 95.15792403 | AK15: 30 | AL15: 9 | AM15: 10 | AN15: 12 | AO15: 11 | AX15: 1 | AY15: 1 | AZ15: 1 | BA15: 1 | BK15: 9. [+] xzeal (557 pts) | BL15: [+] xzeal | BM15: (557 pts) | BN15: (557 | BO15: 557 | BP15: 557
B16: 10. Sig 30.753 (867 pts) | C16: Sig | D16: 30.753 | E16: 99.10433071 | G16: 10. [iR] iBlaze² 32.071 (571 pts) | H16: [iR] iBlaze² | I16: 32.071 | J16: 96.44160289 | L16: 10. [+] xzeal 31.910 (580 pts) | M16: [+] xzeal | N16: 31.91 | O16: 96.54054405 | Q16: 10. [fS]Hevonen 31.927 (544 pts) | R16: [fS]Hevonen | S16: 31.927 | T16: 96.12168537 | V16: 10. AnnicK 30.067 (487 pts) | W16: AnnicK | X16: 30.067 | Y16: 95.41185474 | AA16: 10 | AB16: Ande | AC16: 475 | AD16: 97.02039361 | AE16: 95.06308609 | AF16: 95.05249344 | AG16: 95.47612128 | AH16: 97.02039361 | AI16: 95.41564991 | AJ16: 92.35077223 | AK16: 44 | AL16: 13 | AM16: 8 | AN16: 13 | AO16: 15 | AW16: 1 | BB16: 2 | BD16: 1 | BK16: 10. Ande (475 pts) | BL16: Ande | BM16: (475 pts) | BN16: (475 | BO16: 475 | BP16: 475
B17: 11. Jurgen-NL 30.811 (841 pts) | C17: Jurgen-NL | D17: 30.811 | E17: 98.91404199 | G17: 11. AnnicK 32.103 (562 pts) | H17: AnnicK | I17: 32.103 | J17: 96.33827376 | L17: 11. \/\/ | |_ |_ 31.961 (565 pts) | M17: \/\/ | |_ |_ | N17: 31.961 | O17: 96.37519048 | Q17: 11. [iR] iBlaze² 31.928 (543 pts) | R17: [iR] iBlaze² | S17: 31.928 | T17: 96.11843176 | V17: 11. [+] xzeal 30.140 (469 pts) | W17: [+] xzeal | X17: 30.14 | Y17: 95.15792403 | AA17: 11 | AB17: Sig | AC17: 443 | AD17: 99.10433071 | AE17: 98.02036375 | AF17: 99.10433071 | AG17: 98.10132713 | AJ17: 96.85543342 | AK17: 10 | AL17: 4 | AO17: 5 | AP17: =IF(SUMIF($AK17:$AO17,AP$6)/AP$6=0,"",SUMIF($AK17:$AO17,AP$6)/AP$6) ->  | AS17: 1 | AT17: 1 | AY17: 1 | AZ17: =IF(SUMIF($AK17:$AO17,AZ$6)/AZ$6=0,"",SUMIF($AK17:$AO17,AZ$6)/AZ$6) ->  | BK17: 11. Sig (443 pts) | BL17: Sig | BM17: (443 pts) | BN17: (443 | BO17: 443 | BP17: 443
B18: 12. kikiriki 30.855 (822 pts) | C18: kikiriki | D18: 30.855 | E18: 98.76968504 | G18: 12. [+] Badeend 32.131 (554 pts) | H18: [+] Badeend | I18: 32.131 | J18: 96.24786076 | L18: 12. mc65532 32.071 (535 pts) | M18: mc65532 | N18: 32.071 | O18: 96.01854554 | Q18: 12. [+] xzeal 32.080 (503 pts) | R18: [+] xzeal | S18: 32.08 | T18: 95.62388157 | V18: 12. Jurgen-NL 30.229 (447 pts) | W18: Jurgen-NL | X18: 30.229 | Y18: 94.84833728 | AA18: 12 | AB18: [x] Stylus | AC18: 442 | AD18: 99.46966 | AE18: 78.60868553 | AF18: 98.43175853 | AG18: 20.80144661 | AI18: 99.46966 | AJ18: 95.731877 | AK18: 16 | AL18: 32 | AN18: 3 | AO18: 9 | AR18: 1 | AX18: 1 | BE18: 1 | BK18: 12. [x] Stylus (442 pts) | BL18: [x] Stylus | BM18: (442 pts) | BN18: (442 | BO18: 442 | BP18: 442
B19: 13. [iR] iBlaze² 30.885 (809 pts) | C19: [iR] iBlaze² | D19: 30.885 | E19: 98.67125984 | G19: 13. Ande 32.370 (492 pts) | H19: Ande | I19: 32.37 | J19: 95.47612128 | L19: 13. Bubba 33.310 (291 pts) | M19: Bubba | N19: 33.31 | O19: 92.00142658 | Q19: 13. Ande 32.144 (488 pts) | R19: Ande | S19: 32.144 | T19: 95.41564991 | V19: 13. Ninjinha_br 30.651 (358 pts) | W19: Ninjinha_br | X19: 30.651 | Y19: 93.38040907 | AA19: 13 | AB19: mc65532 | AC19: 324 | AD19: 97.84120735 | AE19: 95.84576713 | AF19: 97.84120735 | AG19: 93.67754852 | AH19: 96.01854554 | AK19: 24 | AL19: 16 | AM19: 12 | BA19: 1 | BE19: 1 | BK19: 13. mc65532 (324 pts) | BL19: mc65532 | BM19: (324 pts) | BN19: (324 | BO19: 324 | BP19: 324
B20: 14. Popowitch 30.896 (805 pts) | C20: Popowitch | D20: 30.896 | E20: 98.6351706 | G20: 14. Double O Seven 32.510 (459 pts) | H20: Double O Seven | I20: 32.51 | J20: 95.02405631 | L20: 14. Fama 33.377 (282 pts) | M20: Fama | N20: 33.377 | O20: 91.78419739 | Q20: 14. Jurgen-NL 32.272 (458 pts) | R20: Jurgen-NL | S20: 32.272 | T20: 94.9991866 | V20: 14. Scud 30.843 (324 pts) | W20: Scud | X20: 30.843 | Y20: 92.71253652 | AA20: 14 | AB20: [x] Whiplash | AC20: 311 | AD20: 99.30446194 | AE20: 98.34608612 | AF20: 99.30446194 | AG20: 97.38771029 | AK20: 5 | AL20: 7 | AT20: 1 | AV20: 1 | BK20: 14. [x] Whiplash (311 pts) | BL20: [x] Whiplash | BM20: (311 pts) | BN20: (311 | BO20: 311 | BP20: 311
B21: 15. [FUN] GR8 Arjen! 30.945 (784 pts) | C21: [FUN] GR8 Arjen! | D21: 30.945 | E21: 98.47440945 | G21: 15. Scud 32.889 (381 pts) | H21: Scud | I21: 32.889 | J21: 93.80025186 | L21: 15. fatty 44.999 (2 pts) | M21: fatty | N21: 44.999 | O21: 54.10303797 | Q21: 15. Hazard 32.668 (376 pts) | R21: Hazard | S21: 32.668 | T21: 93.71075321 | V21: 15. Ande 30.947 (307 pts) | W21: Ande | X21: 30.947 | Y21: 92.35077223 | AA21: 15 | AB21: [+] Badeend | AC21: 299 | AD21: 99.64566929 | AE21: 97.94676503 | AF21: 99.64566929 | AG21: 96.24786076 | AK21: 3 | AL21: 12 | AR21: 1 | BA21: 1 | BK21: 15. [+] Badeend (299 pts) | BL21: [+] Badeend | BM21: (299 pts) | BN21: (299 | BO21: 299 | BP21: 299
B22: 16. [x] Stylus 30.958 (779 pts) | C22: [x] Stylus | D22: 30.958 | E22: 98.43175853 | G22: 16. mc65532 32.927 (374 pts) | H22: mc65532 | I22: 32.927 | J22: 93.67754852 | Q22: 16. fatty 33.092 (306 pts) | R22: fatty | S22: 33.092 | T22: 92.33121848 | V22: 16. Qpa 31.113 (282 pts) | W22: Qpa | X22: 31.113 | Y22: 91.77334075 | AA22: 16 | AB22: Hazard | AC22: 290 | AD22: 96.1843832 | AE22: 95.27509603 | AF22: 96.1843832 | AI22: 93.71075321 | AJ22: 95.93015166 | AK22: 39 | AN22: 15 | AO22: 7 | AV22: 1 | BD22: 1 | BK22: 16. Hazard (290 pts) | BL22: Hazard | BM22: (290 pts) | BN22: (290 | BO22: 290 | BP22: 290
B23: 17. Poisonous 30.968 (775 pts) | C23: Poisonous | D23: 30.968 | E23: 98.39895013 | G23: 17. Serif v2.5.3W 33.075 (349 pts) | H23: Serif v2.5.3W | I23: 33.075 | J23: 93.19965126 | Q23: 17. Qpa 34.006 (198 pts) | R23: Qpa | S23: 34.006 | T23: 89.35741012 | V23: 17. fatty 31.285 (258 pts) | W23: fatty | X23: 31.285 | Y23: 91.17503826 | AA23: 17 | AB23: [fS]Hevonen | AC23: 282 | AD23: 99.12073491 | AE23: 97.62121014 | AF23: 99.12073491 | AI23: 96.12168537 | AK23: 9 | AN23: 10 | AX23: 1 | AY23: 1 | BK23: 17. [fS]Hevonen (282 pts) | BL23: [fS]Hevonen | BM23: (282 pts) | BN23: (282 | BO23: 282 | BP23: 282
B24: 18. lds 31.035 (749 pts) | C24: lds | D24: 31.035 | E24: 98.17913386 | G24: 18. Rub 33.162 (334 pts) | H24: Rub | I24: 33.162 | J24: 92.91872518 | Q24: 18. Gol_v8 44.050 (3 pts) | R24: Gol_v8 | S24: 44.05 | T24: 56.67805434 | V24: 18. Poisonous 31.440 (238 pts) | W24: Poisonous | X24: 31.44 | Y24: 90.63587032 | AA24: 18 | AB24: fatty | AC24: 280 | AD24: 96.93569554 | AE24: 84.91474573 | AF24: 96.93569554 | AG24: 90.02873842 | AH24: 54.10303797 | AI24: 92.33121848 | AJ24: 91.17503826 | AK24: 34 | AL24: 25 | AM24: 15 | AN24: 16 | AO24: 17 | BD24: 1 | BE24: 1 | BF24: 1 | BK24: 18. fatty (280 pts) | BL24: fatty | BM24: (280 pts) | BN24: (280 | BO24: 280 | BP24: 280
B25: 19. Poisonous 31.037 (748 pts) | C25: Poisonous | D25: 31.037 | E25: 98.17257218 | G25: 19. lds 33.236 (322 pts) | H25: lds | I25: 33.236 | J25: 92.67977655 | V25: 19. TD Juquinha 31.528 (228 pts) | W25: TD Juquinha | X25: 31.528 | Y25: 90.32976207 | AA25: 19 | AB25: Double O Seven | AC25: 267 | AD25: 99.17650919 | AE25: 97.10028275 | AF25: 99.17650919 | AG25: 95.02405631 | AK25: 8 | AL25: 14 | AW25: 1 | BC25: 1 | BK25: 19. Double O Seven (267 pts) | BL25: Double O Seven | BM25: (267 pts) | BN25: (267 | BO25: 267 | BP25: 267
B26: 20. Diego Armando 31.063 (738 pts) | C26: Diego Armando | D26: 31.063 | E26: 98.08727034 | G26: 20. pozdro600 33.299 (313 pts) | H26: pozdro600 | I26: 33.299 | J26: 92.47634732 | V26: 20. Kooler 34.664 (50 pts) | W26: Kooler | X26: 34.664 | Y26: 79.42117713 | AA26: 20 | AB26: Scud | AC26: 261 | AD26: 96.7847769 | AE26: 94.43252176 | AF26: 96.7847769 | AG26: 93.80025186 | AJ26: 92.71253652 | AK26: 38 | AL26: 15 | AO26: 14 | BC26: 1 | BD26: 1 | BK26: 20. Scud (261 pts) | BL26: Scud | BM26: (261 pts) | BN26: (261 | BO26: 261 | BP26: 261
B27: 21. Qpa 31.075 (733 pts) | C27: Qpa | D27: 31.075 | E27: 98.04790026 | G27: 21. TD Juquinha 33.310 (311 pts) | H27: TD Juquinha | I27: 33.31 | J27: 92.44082792 | AA27: 21 | AB27: Poisonous | AC27: 259 | AD27: 98.39895013 | AE27: 93.82413978 | AF27: 98.39895013 | AG27: 92.43759889 | AJ27: 90.63587032 | AK27: 17 | AL27: 22 | AO27: 18 | AP27: =IF(SUMIF($AK27:$AO27,AP$6)/AP$6=0,"",SUMIF($AK27:$AO27,AP$6)/AP$6) ->  | AZ27: =IF(SUMIF($AK27:$AO27,AZ$6)/AZ$6=0,"",SUMIF($AK27:$AO27,AZ$6)/AZ$6) ->  | BF27: 1 | BG27: 1 | BK27: 21. Poisonous (259 pts) | BL27: Poisonous | BM27: (259 pts) | BN27: (259 | BO27: 259 | BP27: 259
B28: 22. Serif v2.5.3W 31.077 (733 pts) | C28: Serif v2.5.3W | D28: 31.077 | E28: 98.04133858 | G28: 22. Poisonous 33.311 (311 pts) | H28: Poisonous | I28: 33.311 | J28: 92.43759889 | AA28: 22 | AB28: \/\/ | |_ |_ | AC28: 250 | AD28: 97.62467192 | AE28: 96.9999312 | AF28: 97.62467192 | AH28: 96.37519048 | AK28: 28 | AM28: 11 | AZ28: 1 | BK28: 22. \/\/ | |_ |_ (250 pts) | BL28: \/\/ | |_ |_ | BM28: (250 pts) | BN28: (250 | BO28: 250 | BP28: 250
B29: 23. Qri 31.084 (730 pts) | C29: Qri | D29: 31.084 | E29: 98.0183727 | G29: 23. Fama 33.598 (271 pts) | H29: Fama | I29: 33.598 | J29: 91.5108657 | AA29: 23 | AB29: Qpa | AC29: 242 | AD29: 98.04790026 | AE29: 93.05955038 | AF29: 98.04790026 | AI29: 89.35741012 | AJ29: 91.77334075 | AK29: 21 | AN29: 17 | AO29: 16 | BE29: 1 | BF29: 1 | BK29: 23. Qpa (242 pts) | BL29: Qpa | BM29: (242 pts) | BN29: (242 | BO29: 242 | BP29: 242
B30: 24. mc65532 31.138 (710 pts) | C30: mc65532 | D30: 31.138 | E30: 97.84120735 | G30: 24. fatty 34.057 (218 pts) | H30: fatty | I30: 34.057 | J30: 90.02873842 | AA30: 24 | AB30: Serif v2.5.3W | AC30: 216 | AD30: 98.04133858 | AE30: 95.62049492 | AF30: 98.04133858 | AG30: 93.19965126 | AK30: 22 | AL30: 17 | BF30: 1 | BK30: 24. Serif v2.5.3W (216 pts) | BL30: Serif v2.5.3W | BM30: (216 pts) | BN30: (216 | BO30: 216 | BP30: 216
B31: 25. pozdro600 31.172 (698 pts) | C31: pozdro600 | D31: 31.172 | E31: 97.72965879 | G31: 25. Bubba 34.107 (213 pts) | H31: Bubba | I31: 34.107 | J31: 89.86728664 | AA31: 25 | AB31: lds | AC31: 214 | AD31: 98.17913386 | AE31: 95.4294552 | AF31: 98.17913386 | AG31: 92.67977655 | AK31: 19 | AL31: 19 | BH31: 2 | BK31: 25. lds (214 pts) | BL31: lds | BM31: (214 pts) | BN31: (214 | BO31: 214 | BP31: 214
B32: 26. batjunior 31.199 (688 pts) | C32: batjunior | D32: 31.199 | E32: 97.64107612 | G32: 26. R.E.I.R.O.M 34.597 (169 pts) | H32: R.E.I.R.O.M | I32: 34.597 | J32: 88.28505925 | AA32: 26 | AB32: Hengari | AC32: 207 | AD32: 96.30388808 | AE32: 95.78481805 | AF32: 95.26574803 | AI32: 96.30388808 | AK32: 43 | AN32: 9 | AX32: 1 | BK32: 26. Hengari (207 pts) | BL32: Hengari | BM32: (207 pts) | BN32: (207 | BO32: 207 | BP32: 207
B33: 27. CrazybikE 31.203 (687 pts) | C33: CrazybikE | D33: 31.203 | E33: 97.62795276 | G33: 27. NBA 34.813 (153 pts) | H33: NBA | I33: 34.813 | J33: 87.58758759 | AA33: 27 | AB33: pozdro600 | AC33: 202 | AD33: 97.72965879 | AE33: 95.10300305 | AF33: 97.72965879 | AG33: 92.47634732 | AK33: 25 | AL33: 20 | BI33: 1 | BK33: 27. pozdro600 (202 pts) | BL33: pozdro600 | BM33: (202 pts) | BN33: (202 | BO33: 202 | BP33: 202
B34: 28. \/\/ | |_ |_ 31.204 (686 pts) | C34: \/\/ | |_ |_ | D34: 31.204 | E34: 97.62467192 | G34: 28. GoingDillon 36.177 (83 pts) | H34: GoingDillon | I34: 36.177 | J34: 83.18318318 | AA34: 28 | AB34: Gol_v8 | AC34: 193 | AD34: 95.8571031 | AE34: 82.42751092 | AF34: 94.74737533 | AI34: 56.67805434 | AJ34: 95.8571031 | AK34: 45 | AN34: 18 | AO34: 8 | AW34: 1 | BG34: 1 | BK34: 28. Gol_v8 (193 pts) | BL34: Gol_v8 | BM34: (193 pts) | BN34: (193 | BO34: 193 | BP34: 193
B35: 29. Matic 31.273 (663 pts) | C35: Matic | D35: 31.273 | E35: 97.39829396 | G35: 29. stoner 38.796 (27 pts) | H35: stoner | I35: 38.796 | J35: 74.72633924 | AA35: 29 | AB35: Bubba | AC35: 186 | AD35: 94.53740157 | AE35: 92.1353716 | AF35: 94.53740157 | AG35: 89.86728664 | AH35: 92.00142658 | AK35: 47 | AL35: 26 | AM35: 13 | BB35: 1 | BK35: 29. Bubba (186 pts) | BL35: Bubba | BM35: (186 pts) | BN35: (186 | BO35: 186 | BP35: 186
B36: 30. [+] xzeal 31.291 (656 pts) | C36: [+] xzeal | D36: 31.291 | E36: 97.33923885 | G36: 30. [x] Stylus 55.496 (0 pts) | H36: [x] Stylus | I36: 55.496 | J36: 20.80144661 | AA36: 30 | AB36: [PahaJori] Ender | AC36: 178 | AD36: 99.27493438 | AE36: 99.27493438 | AF36: 99.27493438 | AK36: 6 | AU36: 1 | BK36: 30. [PahaJori] Ender (178 pts) | BL36: [PahaJori] Ender | BM36: (178 pts) | BN36: (178 | BO36: 178 | BP36: 178
B37: 31. Delux 31.299 (654 pts) | C37: Delux | D37: 31.299 | E37: 97.31299213 | G37: 31. Diego Armando 2:11.069 (0 pts) | H37: Diego Armando | I37: 131.069 | J37: -223.2264523 | AA37: 31 | AB37: Fama | AC37: 174 | AD37: 92.6312336 | AE37: 91.97543223 | AF37: 92.6312336 | AG37: 91.5108657 | AH37: 91.78419739 | AK37: 53 | AL37: 24 | AM37: 14 | AP37: =IF(SUMIF($AK37:$AO37,AP$6)/AP$6=0,"",SUMIF($AK37:$AO37,AP$6)/AP$6) ->  | AZ37: =IF(SUMIF($AK37:$AO37,AZ$6)/AZ$6=0,"",SUMIF($AK37:$AO37,AZ$6)/AZ$6) ->  | BC37: 1 | BK37: 31. Fama (174 pts) | BL37: Fama | BM37: (174 pts) | BN37: (174 | BO37: 174 | BP37: 174
B38: 32. R.E.I.R.O.M 31.354 (636 pts) | C38: R.E.I.R.O.M | D38: 31.354 | E38: 97.13254593 | AA38: 32 | AB38: R.E.I.R.O.M | AC38: 161 | AD38: 97.13254593 | AE38: 92.70880259 | AF38: 97.13254593 | AG38: 88.28505925 | AK38: 32 | AL38: 27 | BK38: 32. R.E.I.R.O.M (161 pts) | BL38: R.E.I.R.O.M | BM38: (161 pts) | BN38: (161 | BO38: 161 | BP38: 161
B39: 33. power79 31.406 (619 pts) | C39: power79 | D39: 31.406 | E39: 96.96194226 | AA39: 33 | AB39: Popowitch | AC39: 161 | AD39: =MAX(AF39:AJ39) -> 98.6351706 | AE39: =SUM(AF39:AJ39)/COUNT(AF39:AJ39) -> 98.6351706 | AF39: =IF(SUMIF(C$7:C$998,$AB39,E$7:E$998)=0,"",VLOOKUP($AB39,C$7:E$998,3,FALSE)) -> 98.6351706 | AG39: =IF(SUMIF(H$7:H$999,$AB39,J$7:J$999)=0,"",VLOOKUP($AB39,H$7:J$999,3,FALSE)) ->  | AH39: =IF(SUMIF(M$7:M$998,$AB39,O$7:O$998)=0,"",VLOOKUP($AB39,M$7:O$998,3,FALSE)) ->  | AI39: =IF(SUMIF(R$7:R$998,$AB39,T$7:T$998)=0,"",VLOOKUP($AB39,R$7:T$998,3,FALSE)) ->  | AJ39: =IF(SUMIF(W$7:W$998,$AB39,Y$7:Y$998)=0,"",VLOOKUP($AB39,W$7:Y$998,3,FALSE)) ->  | AK39: 14 | BC39: 1 | BK39: 33. Popowitch (161 pts) | BL39: Popowitch | BM39: (161 pts) | BN39: (161 | BO39: 161 | BP39: 161
B40: 34. fatty 31.414 (616 pts) | C40: fatty | D40: 31.414 | E40: 96.93569554 | AA40: 34 | AB40: [FUN] GR8 Arjen! | AC40: 156 | AD40: 98.47440945 | AE40: 98.47440945 | AF40: 98.47440945 | AK40: 15 | BD40: 1 | BK40: 34. [FUN] GR8 Arjen! (156 pts) | BL40: [FUN] GR8 Arjen! | BM40: (156 pts) | BN40: (156 | BO40: 156 | BP40: 156
B41: 35. AnnicK 31.426 (613 pts) | C41: AnnicK | D41: 31.426 | E41: 96.89632546 | AA41: 35 | AB41: Poisonous | AC41: 155 | AD41: 98.39895013 | AE41: 93.82413978 | AF41: 98.39895013 | AG41: 92.43759889 | AJ41: 90.63587032 | AK41: 17 | AL41: 22 | AO41: 18 | BF41: 1 | BG41: 1 | BK41: 35. Poisonous (155 pts) | BL41: Poisonous | BM41: (155 pts) | BN41: (155 | BO41: 155 | BP41: 155
B42: 36. NBA 31.450 (605 pts) | C42: NBA | D42: 31.45 | E42: 96.8175853 | AA42: 36 | AB42: NBA | AC42: 151 | AD42: 96.8175853 | AE42: 92.20258644 | AF42: 96.8175853 | AG42: 87.58758759 | AK42: 36 | AL42: 28 | BK42: 36. NBA (151 pts) | BL42: NBA | BM42: (151 pts) | BN42: (151 | BO42: 151 | BP42: 151
B43: 37. Scud 31.460 (602 pts) | C43: Scud | D43: 31.46 | E43: 96.7847769 | AA43: 37 | AB43: Diego Armando | AC43: 147 | AD43: 98.08727034 | AE43: -62.56959096 | AF43: 98.08727034 | AG43: -223.2264523 | AK43: 20 | AL43: 33 | BI43: 1 | BK43: 37. Diego Armando (147 pts) | BL43: Diego Armando | BM43: (147 pts) | BN43: (147 | BO43: 147 | BP43: 147
B44: 38. NBA 31.622 (555 pts) | C44: NBA | D44: 31.622 | E44: 96.25328084 | AA44: 38 | AB44: Qri | AC44: 146 | AD44: 98.0183727 | AE44: 98.0183727 | AF44: 98.0183727 | AK44: 23 | BK44: 38. Qri (146 pts) | BL44: Qri | BM44: (146 pts) | BN44: (146 | BO44: 146 | BP44: 146
B45: 39. Hazard 31.643 (549 pts) | C45: Hazard | D45: 31.643 | E45: 96.1843832 | AA45: 39 | AB45: batjunior | AC45: 137 | AD45: 97.64107612 | AE45: 97.64107612 | AF45: 97.64107612 | AK45: 26 | BK45: 39. batjunior (137 pts) | BL45: batjunior | BM45: (137 pts) | BN45: (137 | BO45: 137 | BP45: 137
B46: 40. Alukin 31.715 (529 pts) | C46: Alukin | D46: 31.715 | E46: 95.94816273 | AA46: 40 | AB46: CrazybikE | AC46: 137 | AD46: 97.62795276 | AE46: 97.62795276 | AF46: 97.62795276 | AK46: 27 | BK46: 40. CrazybikE (137 pts) | BL46: CrazybikE | BM46: (137 pts) | BN46: (137 | BO46: 137 | BP46: 137
B47: 41. REIROM 31.782 (512 pts) | C47: REIROM | D47: 31.782 | E47: 95.72834646 | AA47: 41 | AB47: Matic | AC47: 132 | AD47: 97.39829396 | AE47: 97.39829396 | AF47: 97.39829396 | AK47: 29 | AP47: =IF(SUMIF($AK47:$AO47,AP$6)/AP$6=0,"",SUMIF($AK47:$AO47,AP$6)/AP$6) ->  | AZ47: =IF(SUMIF($AK47:$AO47,AZ$6)/AZ$6=0,"",SUMIF($AK47:$AO47,AZ$6)/AZ$6) ->  | BK47: 41. Matic (132 pts) | BL47: Matic | BM47: (132 pts) | BN47: (132 | BO47: 132 | BP47: 132
B48: 42. stoner 31.908 (480 pts) | C48: stoner | D48: 31.908 | E48: 95.31496063 | AA48: 42 | AB48: Delux | AC48: 130 | AD48: 97.31299213 | AE48: 97.31299213 | AF48: 97.31299213 | AK48: 31 | BK48: 42. Delux (130 pts) | BL48: Delux | BM48: (130 pts) | BN48: (130 | BO48: 130 | BP48: 130
B49: 43. Hengari 31.923 (477 pts) | C49: Hengari | D49: 31.923 | E49: 95.26574803 | AA49: 43 | AB49: Chukie | AC49: 124 | AD49: 97.00666992 | AE49: 97.00666992 | AI49: 97.00666992 | AN49: 7 | AV49: 1 | BK49: 43. Chukie (124 pts) | BL49: Chukie | BM49: (124 pts) | BN49: (124 | BO49: 124 | BP49: 124
B50: 44. Ande 31.988 (461 pts) | C50: Ande | D50: 31.988 | E50: 95.05249344 | AA50: 44 | AB50: power79 | AC50: 123 | AD50: 96.96194226 | AE50: 96.96194226 | AF50: 96.96194226 | AK50: 33 | BK50: 44. power79 (123 pts) | BL50: power79 | BM50: (123 pts) | BN50: (123 | BO50: 123 | BP50: 123
B51: 45. Gol_v8 32.081 (440 pts) | C51: Gol_v8 | D51: 32.081 | E51: 94.74737533 | AA51: 45 | AB51: NBA | AC51: 111 | AD51: 96.8175853 | AE51: 92.20258644 | AF51: 96.8175853 | AG51: 87.58758759 | AK51: 36 | AL51: 28 | BK51: 45. NBA (111 pts) | BL51: NBA | BM51: (111 pts) | BN51: (111 | BO51: 111 | BP51: 111
B52: 46. [Qc]RSX 32.113 (433 pts) | C52: =LEFT(RIGHT(B52,LEN(B52)-4),LEN(RIGHT(B52,LEN(B52)-4))-19) -> [Qc]RSX | D52: =VALUE(LEFT(RIGHT(B52,19+0),6))/1000 -> 32.113 | E52: 94.64238845 | AA52: 46 | AB52: TD Juquinha | AC52: 107 | AD52: 92.44082792 | AE52: 91.385295 | AG52: 92.44082792 | AJ52: 90.32976207 | AL52: 21 | AO52: 20 | BI52: 1 | BK52: 46. TD Juquinha (107 pts) | BL52: TD Juquinha | BM52: (107 pts) | BN52: (107 | BO52: 107 | BP52: 107
B53: 47. Bubba 32.145 (426 pts) | C53: Bubba | D53: 32.145 | E53: 94.53740157 | AA53: 47 | AB53: Alukin | AC53: 105 | AD53: 95.94816273 | AE53: 95.94816273 | AF53: 95.94816273 | AK53: 40 | BK53: 47. Alukin (105 pts) | BL53: Alukin | BM53: (105 pts) | BN53: (105 | BO53: 105 | BP53: 105
B54: 48. laf 32.158 (424 pts) | C54: laf | D54: 32.158 | E54: 94.49475066 | AA54: 48 | AB54: REIROM | AC54: 102 | AD54: 95.72834646 | AE54: 95.72834646 | AF54: 95.72834646 | AK54: 41 | BK54: 48. REIROM (102 pts) | BL54: REIROM | BM54: (102 pts) | BN54: (102 | BO54: 102 | BP54: 102
B55: 49. GoingDillon 32.184 (418 pts) | C55: GoingDillon | D55: 32.184 | E55: 94.40944882 | AA55: 49 | AB55: stoner | AC55: 101 | AD55: 95.31496063 | AE55: 85.02064994 | AF55: 95.31496063 | AG55: 74.72633924 | AK55: 42 | AL55: 31 | BK55: 49. stoner (101 pts) | BL55: stoner | BM55: (101 pts) | BN55: (101 | BO55: 101 | BP55: 101
B56: 50. dire 32.349 (385 pts) | C56: dire | D56: 32.349 | E56: 93.86811024 | AA56: 50 | AB56: GoingDillon | AC56: 100 | AD56: 94.40944882 | AE56: 88.796316 | AF56: 94.40944882 | AG56: 83.18318318 | AK56: 49 | AL56: 30 | BK56: 50. GoingDillon (100 pts) | BL56: GoingDillon | BM56: (100 pts) | BN56: (100 | BO56: 100 | BP56: 100
B57: 51. cavani 32.429 (370 pts) | C57: cavani | D57: 32.429 | E57: 93.60564304 | AA57: 51 | AB57: [Qc]RSX | AC57: 86 | AD57: 94.64238845 | AE57: 94.64238845 | AF57: 94.64238845 | AK57: 46 | AP57: =IF(SUMIF($AK57:$AO57,AP$6)/AP$6=0,"",SUMIF($AK57:$AO57,AP$6)/AP$6) ->  | AZ57: =IF(SUMIF($AK57:$AO57,AZ$6)/AZ$6=0,"",SUMIF($AK57:$AO57,AZ$6)/AZ$6) ->  | BK57: 51. [Qc]RSX (86 pts) | BL57: [Qc]RSX | BM57: (86 pts) | BN57: (86 | BO57: 86 | BP57: 86
B58: 52. bohun 32.612 (339 pts) | C58: bohun | D58: 32.612 | E58: 93.00524934 | AA58: 52 | AB58: laf | AC58: 84 | AD58: 94.49475066 | AE58: 94.49475066 | AF58: 94.49475066 | AK58: 48 | BK58: 52. laf (84 pts) | BL58: laf | BM58: (84 pts) | BN58: (84 | BO58: 84 | BP58: 84
B59: 53. Fama 32.726 (320 pts) | C59: Fama | D59: 32.726 | E59: 92.6312336 | AA59: 53 | AB59: dire | AC59: 77 | AD59: 93.86811024 | AE59: 93.86811024 | AF59: 93.86811024 | AK59: 50 | BK59: 53. dire (77 pts) | BL59: dire | BM59: (77 pts) | BN59: (77 | BO59: 77 | BP59: 77
B60: 54. KORINGA 37.213 (41 pts) | C60: KORINGA | D60: 37.213 | E60: 77.91010499 | AA60: 54 | AB60: cavani | AC60: 74 | AD60: 93.60564304 | AE60: 93.60564304 | AF60: 93.60564304 | AK60: 51 | BK60: 54. cavani (74 pts) | BL60: cavani | BM60: (74 pts) | BN60: (74 | BO60: 74 | BP60: 74
B61: 55. Oppy 1:00.485 (0 pts) | C61: Oppy | D61: 60.485 | E61: 1.55839895 | AA61: 55 | AB61: Ninjinha_br | AC61: 71 | AD61: 93.38040907 | AE61: 93.38040907 | AJ61: 93.38040907 | AO61: 13 | BB61: 1 | BK61: 55. Ninjinha_br (71 pts) | BL61: Ninjinha_br | BM61: (71 pts) | BN61: (71 | BO61: 71 | BP61: 71
AA62: 56 | AB62: bohun | AC62: 67 | AD62: 93.00524934 | AE62: 93.00524934 | AF62: 93.00524934 | AK62: 52 | BK62: 56. bohun (67 pts) | BL62: bohun | BM62: (67 pts) | BN62: (67 | BO62: 67 | BP62: 67
AA63: 57 | AB63: Rub | AC63: 66 | AD63: 92.91872518 | AE63: 92.91872518 | AG63: 92.91872518 | AL63: 18 | BG63: 1 | BK63: 57. Rub (66 pts) | BL63: Rub | BM63: (66 pts) | BN63: (66 | BO63: 66 | BP63: 66
AA64: 58 | AB64: Kooler | AC64: 10 | AD64: 79.42117713 | AE64: 79.42117713 | AJ64: 79.42117713 | AO64: 21 | BK64: 58. Kooler (10 pts) | BL64: Kooler | BM64: (10 pts) | BN64: (10 | BO64: 10 | BP64: 10
AA65: 59 | AB65: KORINGA | AC65: 8 | AD65: =MAX(AF65:AJ65) -> 77.91010499 | AE65: =SUM(AF65:AJ65)/COUNT(AF65:AJ65) -> 77.91010499 | AF65: =IF(SUMIF(C$7:C$998,$AB65,E$7:E$998)=0,"",VLOOKUP($AB65,C$7:E$998,3,FALSE)) -> 77.91010499 | AG65: =IF(SUMIF(H$7:H$999,$AB65,J$7:J$999)=0,"",VLOOKUP($AB65,H$7:J$999,3,FALSE)) ->  | AH65: =IF(SUMIF(M$7:M$998,$AB65,O$7:O$998)=0,"",VLOOKUP($AB65,M$7:O$998,3,FALSE)) ->  | AI65: =IF(SUMIF(R$7:R$998,$AB65,T$7:T$998)=0,"",VLOOKUP($AB65,R$7:T$998,3,FALSE)) ->  | AJ65: =IF(SUMIF(W$7:W$998,$AB65,Y$7:Y$998)=0,"",VLOOKUP($AB65,W$7:Y$998,3,FALSE)) ->  | AK65: 54 | BK65: 59. KORINGA (8 pts) | BL65: KORINGA | BM65: (8 pts) | BN65: (8 | BO65: 8 | BP65: 8
AA66: 60 | AB66: Oppy | AC66: 0 | AD66: 1.55839895 | AE66: 1.55839895 | AF66: 1.55839895 | AK66: 55 | BK66: 60. Oppy (0 pts) | BL66: Oppy | BM66: (0 pts) | BN66: (0 | BO66: 0 | BP66: 0
BM72: =RIGHT(BK72,10) ->  | BN72: =LEFT(BM72,5) ->  | BO72: =REPLACE(BN72,SEARCH("(",BN72),1,"") ->  | BP72: =TRIM(BO72) -> 

Sheet week3
B1: *** Weekly Hot Lap Competition Results
B3: Start Time: 2014-12-13 16:23:05
B4: End Time: 2014-12-20 16:23:05
B6: * Results for Sc_Aldearing, AntiSlider: | G6: * Results for Sc_Aldearing, EasySlider: | L6: * Results for Sc_Aldearing, Spinner: | Q6: * Results for Sc_Aldearing, Slider: | V6: * Results for Sc_Aldearing, Speeder: | AC6: Pts | AD6: Max | AE6: Av | AF6: Anti | AG6: Easy | AH6: Spin | AI6: Slide | AJ6: Speed | AK6: Ant | AL6: Eas | AM6: Spn | AN6: Sld | AO6: Spd | AP6: 1 | AQ6: 2 | AR6: 3 | AS6: 4 | AT6: 5 | AU6: 6 | AV6: 7 | AW6: 8 | AX6: 9 | AY6: 10 | AZ6: 11 | BA6: 12 | BB6: 13 | BC6: 14 | BD6: 15 | BE6: 16 | BF6: 17 | BG6: 18 | BH6: 19 | BI6: 20 | BK6: Overall Results:
B7: 1. [x] Mike Nike 26.552 (1000 pts) | C7: =LEFT(RIGHT(B7,LEN(B7)-4),LEN(RIGHT(B7,LEN(B7)-4))-19) -> [x] Mike Nike | D7: =VALUE(LEFT(RIGHT(B7,19+0),6))/1000 -> 26.552 | E7: 100 | G7: 1. [+] Tinjovic 26.493 (1000 pts) | H7: =LEFT(RIGHT(G7,LEN(G7)-4),LEN(RIGHT(G7,LEN(G7)-4))-19) -> [+] Tinjovic | I7: =VALUE(LEFT(RIGHT(G7,19+0),6))/1000 -> 26.493 | J7: 100 | L7: 1. [+] Tinjovic 27.144 (1000 pts) | M7: =LEFT(RIGHT(L7,LEN(L7)-4),LEN(RIGHT(L7,LEN(L7)-4))-19) -> [+] Tinjovic | N7: =VALUE(LEFT(RIGHT(L7,19+0),6))/1000 -> 27.144 | O7: 100 | Q7: 1. [x] Mike Nike 26.151 (1000 pts) | R7: =LEFT(RIGHT(Q7,LEN(Q7)-4),LEN(RIGHT(Q7,LEN(Q7)-4))-19) -> [x] Mike Nike | S7: =VALUE(LEFT(RIGHT(Q7,19+0),6))/1000 -> 26.151 | T7: 100 | V7: 1. [+] Tinjovic 24.150 (1000 pts) | W7: =LEFT(RIGHT(V7,LEN(V7)-4),LEN(RIGHT(V7,LEN(V7)-4))-19) -> [+] Tinjovic | X7: =VALUE(LEFT(RIGHT(V7,19+0),6))/1000 -> 24.15 | Y7: 100 | AA7: 1 | AB7: =BL7 -> [+] Tinjovic | AC7: =BP7 -> 992 | AD7: =MAX(AF7:AJ7) -> 100 | AE7: =SUM(AF7:AJ7)/COUNT(AF7:AJ7) -> 99.95508535 | AF7: =IF(SUMIF(C$7:C$998,$AB7,E$7:E$998)=0,"",VLOOKUP($AB7,C$7:E$998,3,FALSE)) -> 99.9322085 | AG7: =IF(SUMIF(H$7:H$999,$AB7,J$7:J$999)=0,"",VLOOKUP($AB7,H$7:J$999,3,FALSE)) -> 100 | AH7: =IF(SUMIF(M$7:M$998,$AB7,O$7:O$998)=0,"",VLOOKUP($AB7,M$7:O$998,3,FALSE)) -> 100 | AI7: =IF(SUMIF(R$7:R$998,$AB7,T$7:T$998)=0,"",VLOOKUP($AB7,R$7:T$998,3,FALSE)) -> 99.84321823 | AJ7: =IF(SUMIF(W$7:W$998,$AB7,Y$7:Y$998)=0,"",VLOOKUP($AB7,W$7:Y$998,3,FALSE)) -> 100 | AK7: =IF(AF7="","",RANK(AF7,AF$7:AF$999,0)) -> 2 | AL7: =IF(AG7="","",RANK(AG7,AG$7:AG$999,0)) -> 1 | AM7: 1 | AN7: 2 | AO7: 1 | AP7: =IF(SUMIF($AK7:$AO7,AP$6)/AP$6=0,"",SUMIF($AK7:$AO7,AP$6)/AP$6) -> 3 | AQ7: 2 | BF7: =IF(SUMIF($AK7:$AO7,BF$6)/BF$6=0,"",SUMIF($AK7:$AO7,BF$6)/BF$6) ->  | BK7: 1. [+] Tinjovic (992 pts) | BL7: =CONCATENATE(LEFT(RIGHT(BK7,LEN(BK7)-4),LEN(RIGHT(BK7,LEN(BK7)-4))-9)," ") -> [+] Tinjovic | BM7: =RIGHT(BK7,10) -> (992 pts) | BN7: =LEFT(BM7,5) -> (992 | BO7: =REPLACE(BN7,SEARCH("(",BN7),1,"") -> 992 | BP7: =TRIM(BO7) -> 992
B8: 2. [+] Tinjovic 26.570 (989 pts) | C8: =LEFT(RIGHT(B8,LEN(B8)-4),LEN(RIGHT(B8,LEN(B8)-4))-19) -> [+] Tinjovic | D8: 26.57 | E8: =100-(D8-D$7)/D$7*100 -> 99.9322085 | G8: 2. [x] Mike Nike 26.536 (974 pts) | H8: =LEFT(RIGHT(G8,LEN(G8)-4),LEN(RIGHT(G8,LEN(G8)-4))-19) -> [x] Mike Nike | I8: =VALUE(LEFT(RIGHT(G8,19+0),6))/1000 -> 26.536 | J8: =100-(I8-I$7)/I$7*100 -> 99.83769298 | L8: 2. [x] Mike Nike 27.263 (932 pts) | M8: =LEFT(RIGHT(L8,LEN(L8)-4),LEN(RIGHT(L8,LEN(L8)-4))-19) -> [x] Mike Nike | N8: =VALUE(LEFT(RIGHT(L8,19+0),6))/1000 -> 27.263 | O8: =100-(N8-N$7)/N$7*100 -> 99.56159741 | Q8: 2. [+] Tinjovic 26.192 (975 pts) | R8: =LEFT(RIGHT(Q8,LEN(Q8)-4),LEN(RIGHT(Q8,LEN(Q8)-4))-19) -> [+] Tinjovic | S8: =VALUE(LEFT(RIGHT(Q8,19+0),6))/1000 -> 26.192 | T8: =100-(S8-S$7)/S$7*100 -> 99.84321823 | V8: 2. [x] Mike Nike 24.295 (908 pts) | W8: =LEFT(RIGHT(V8,LEN(V8)-4),LEN(RIGHT(V8,LEN(V8)-4))-19) -> [x] Mike Nike | X8: =VALUE(LEFT(RIGHT(V8,19+0),6))/1000 -> 24.295 | Y8: =100-(X8-X$7)/X$7*100 -> 99.39958592 | AA8: 2 | AB8: =BL8 -> [x] Mike Nike | AC8: =BP8 -> 963 | AD8: 100 | AE8: 99.75977526 | AF8: 100 | AG8: 99.83769298 | AH8: 99.56159741 | AI8: 100 | AJ8: 99.39958592 | AK8: =IF(AF8="","",RANK(AF8,AF$7:AF$999,0)) -> 1 | AL8: =IF(AG8="","",RANK(AG8,AG$7:AG$999,0)) -> 2 | AM8: =IF(AH8="","",RANK(AH8,AH$7:AH$999,0)) -> 2 | AN8: =IF(AI8="","",RANK(AI8,AI$7:AI$999,0)) -> 1 | AO8: =IF(AJ8="","",RANK(AJ8,AJ$7:AJ$999,0)) -> 2 | AP8: 2 | AQ8: 3 | BK8: 2. [x] Mike Nike (963 pts) | BL8: =CONCATENATE(LEFT(RIGHT(BK8,LEN(BK8)-4),LEN(RIGHT(BK8,LEN(BK8)-4))-9)," ") -> [x] Mike Nike | BM8: =RIGHT(BK8,10) -> (963 pts) | BN8: =LEFT(BM8,5) -> (963 | BO8: =REPLACE(BN8,SEARCH("(",BN8),1,"") -> 963 | BP8: =TRIM(BO8) -> 963
B9: 3. [fS]Hevonen 26.582 (982 pts) | C9: =LEFT(RIGHT(B9,LEN(B9)-4),LEN(RIGHT(B9,LEN(B9)-4))-19) -> [fS]Hevonen | D9: 26.582 | E9: =100-(D9-D$7)/D$7*100 -> 99.88701416 | G9: 3. [x] Stylus 26.683 (891 pts) | H9: [x] Stylus | I9: 26.683 | J9: =100-(I9-I$7)/I$7*100 -> 99.28282943 | L9: 3. [x] Stylus 27.443 (839 pts) | M9: [x] Stylus | N9: 27.443 | O9: =100-(N9-N$7)/N$7*100 -> 98.89846743 | Q9: 3. [x] Stylus 26.296 (915 pts) | R9: [x] Stylus | S9: 26.296 | T9: =100-(S9-S$7)/S$7*100 -> 99.4455279 | V9: 3. kikiriki 24.299 (906 pts) | W9: kikiriki | X9: 24.299 | Y9: =100-(X9-X$7)/X$7*100 -> 99.38302277 | AA9: 3 | AB9: [x] Stylus | AC9: 879 | AD9: 99.55558903 | AE9: 99.18472292 | AF9: 99.55558903 | AG9: 99.28282943 | AH9: 98.89846743 | AI9: 99.4455279 | AJ9: 98.74120083 | AK9: 7 | AL9: 3 | AM9: 3 | AN9: 3 | AO9: 6 | AR9: 3 | AU9: 1 | AV9: 1 | BK9: 3. [x] Stylus (879 pts) | BL9: [x] Stylus | BM9: (879 pts) | BN9: (879 | BO9: 879 | BP9: 879
B10: 4. [+] Badeend 26.584 (980 pts) | C10: [+] Badeend | D10: 26.584 | E10: 99.87948177 | G10: 4. [fS]Palo 26.722 (871 pts) | H10: [fS]Palo | I10: 26.722 | J10: 99.13562073 | L10: 4. [fS]Palo 27.476 (823 pts) | M10: [fS]Palo | N10: 27.476 | O10: 98.7768936 | Q10: 4. Matti 26.298 (914 pts) | R10: Matti | S10: 26.298 | T10: 99.43788 | V10: 4. [fS]Palo 24.387 (855 pts) | W10: [fS]Palo | X10: 24.387 | Y10: 99.01863354 | AA10: 4 | AB10: [fS]Palo | AC10: 879 | AD10: 99.81169027 | AE10: 99.1818436 | AF10: 99.81169027 | AG10: 99.13562073 | AH10: 98.7768936 | AI10: 99.16637987 | AJ10: 99.01863354 | AK10: 5 | AL10: 4 | AM10: 4 | AN10: 6 | AO10: 4 | AS10: 3 | AT10: 1 | AU10: 1 | BK10: 4. [fS]Palo (879 pts) | BL10: [fS]Palo | BM10: (879 pts) | BN10: (879 | BO10: 879 | BP10: 879
B11: 5. [fS]Palo 26.602 (970 pts) | C11: [fS]Palo | D11: 26.602 | E11: 99.81169027 | G11: 5. [+] xzeal 26.765 (849 pts) | H11: [+] xzeal | I11: 26.765 | J11: 98.97331371 | L11: 5. Kyna_Musti 27.504 (809 pts) | M11: Kyna_Musti | N11: 27.504 | O11: 98.67374005 | Q11: 5. Kyna_Musti 26.317 (903 pts) | R11: Kyna_Musti | S11: 26.317 | T11: 99.36522504 | V11: 5. Gol_v8 24.430 (831 pts) | W11: Gol_v8 | X11: 24.43 | Y11: 98.84057971 | AA11: 5 | AB11: Kyna_Musti | AC11: 834 | AD11: 99.52169328 | AE11: 98.83844644 | AF11: 99.52169328 | AG11: 98.44109765 | AH11: 98.67374005 | AI11: 99.36522504 | AJ11: 98.19047619 | AK11: 8 | AL11: 8 | AM11: 5 | AN11: 5 | AO11: 9 | AT11: 2 | AW11: 2 | AX11: 1 | BK11: 5. Kyna_Musti (834 pts) | BL11: Kyna_Musti | BM11: (834 pts) | BN11: (834 | BO11: 834 | BP11: 834
B12: 6. [PahaJori] Ender 26.662 (935 pts) | C12: [PahaJori] Ender | D12: 26.662 | E12: 99.58571859 | G12: 6. [x] Whiplash 26.860 (802 pts) | H12: [x] Whiplash | I12: 26.86 | J12: 98.61472842 | L12: 6. Ku Dern [Ri] 27.524 (800 pts) | M12: Ku Dern [Ri] | N12: 27.524 | O12: 98.60005894 | Q12: 6. [fS]Palo 26.369 (875 pts) | R12: [fS]Palo | S12: 26.369 | T12: 99.16637987 | V12: 6. [x] Stylus 24.454 (818 pts) | W12: [x] Stylus | X12: 24.454 | Y12: 98.74120083 | AA12: 6 | AB12: [x] Whiplash | AC12: 824 | AD12: 99.51416089 | AE12: 98.76573529 | AF12: 99.51416089 | AG12: 98.61472842 | AH12: 98.1579723 | AI12: 98.93311919 | AJ12: 98.60869565 | AK12: 9 | AL12: 6 | AM12: 8 | AN12: 7 | AO12: 7 | AU12: 1 | AV12: 2 | AW12: 1 | AX12: 1 | BK12: 6. [x] Whiplash (824 pts) | BL12: [x] Whiplash | BM12: (824 pts) | BN12: (824 | BO12: 824 | BP12: 824
B13: 7. [x] Stylus 26.670 (931 pts) | C13: [x] Stylus | D13: 26.67 | E13: 99.55558903 | G13: 7. [fS]Hevonen 26.880 (792 pts) | H13: [fS]Hevonen | I13: 26.88 | J13: 98.53923678 | L13: 7. [fS]Hevonen 27.567 (780 pts) | M13: [fS]Hevonen | N13: 27.567 | O13: 98.44164456 | Q13: 7. [x] Whiplash 26.430 (843 pts) | R13: [x] Whiplash | S13: 26.43 | T13: 98.93311919 | V13: 7. [x] Whiplash 24.486 (801 pts) | W13: [x] Whiplash | X13: 24.486 | Y13: 98.60869565 | AA13: 7 | AB13: [fS]Hevonen | AC13: 809 | AD13: 99.88701416 | AE13: 98.62752295 | AF13: 99.88701416 | AG13: 98.53923678 | AH13: 98.44164456 | AI13: 98.39394287 | AJ13: 97.8757764 | AK13: 3 | AL13: 7 | AM13: 7 | AN13: 10 | AO13: 10 | AR13: 1 | AV13: 2 | AY13: 2 | BK13: 7. [fS]Hevonen (809 pts) | BL13: [fS]Hevonen | BM13: (809 pts) | BN13: (809 | BO13: 809 | BP13: 809
B14: 8. Kyna_Musti 26.679 (926 pts) | C14: Kyna_Musti | D14: 26.679 | E14: 99.52169328 | G14: 8. Kyna_Musti 26.906 (780 pts) | H14: Kyna_Musti | I14: 26.906 | J14: 98.44109765 | L14: 8. [x] Whiplash 27.644 (746 pts) | M14: [x] Whiplash | N14: 27.644 | O14: 98.1579723 | Q14: 8. [+] xzeal 26.482 (817 pts) | R14: [+] xzeal | S14: 26.482 | T14: 98.73427402 | V14: 8. Sig 24.533 (777 pts) | W14: Sig | X14: 24.533 | Y14: 98.41407867 | AA14: 8 | AB14: [+] xzeal | AC14: 778 | AD14: 98.97331371 | AE14: 98.38505899 | AF14: 98.90780356 | AG14: 98.97331371 | AH14: 98.01797819 | AI14: 98.73427402 | AJ14: 97.29192547 | AK14: 19 | AL14: 5 | AM14: 9 | AN14: 8 | AO14: 12 | AT14: 1 | AW14: 1 | AX14: 1 | BA14: 1 | BH14: 1 | BK14: 8. [+] xzeal (778 pts) | BL14: [+] xzeal | BM14: (778 pts) | BN14: (778 | BO14: 778 | BP14: 778
B15: 9. [x] Whiplash 26.681 (925 pts) | C15: [x] Whiplash | D15: 26.681 | E15: 99.51416089 | G15: 9. Jurgen-NL 26.952 (759 pts) | H15: Jurgen-NL | I15: 26.952 | J15: 98.26746688 | L15: 9. [+] xzeal 27.682 (730 pts) | M15: [+] xzeal | N15: 27.682 | O15: 98.01797819 | Q15: 9. AnnicK 26.553 (783 pts) | R15: AnnicK | S15: 26.553 | T15: 98.46277389 | V15: 9. Kyna_Musti 24.587 (750 pts) | W15: Kyna_Musti | X15: 24.587 | Y15: 98.19047619 | AA15: 9 | AB15: Jurgen-NL | AC15: 762 | AD15: 99.46143417 | AE15: 98.24596214 | AF15: 99.46143417 | AG15: 98.26746688 | AH15: 97.93324492 | AI15: 98.3212879 | AJ15: 97.24637681 | AK15: 11 | AL15: 9 | AM15: 10 | AN15: 11 | AO15: 13 | AX15: 1 | AY15: 1 | AZ15: 2 | BB15: 1 | BK15: 9. Jurgen-NL (762 pts) | BL15: Jurgen-NL | BM15: (762 pts) | BN15: (762 | BO15: 762 | BP15: 762
B16: 10. mc65532 26.681 (925 pts) | C16: mc65532 | D16: 26.681 | E16: 99.51416089 | G16: 10. Ku Dern [Ri] 26.992 (741 pts) | H16: Ku Dern [Ri] | I16: 26.992 | J16: 98.1164836 | L16: 10. Jurgen-NL 27.705 (720 pts) | M16: Jurgen-NL | N16: 27.705 | O16: 97.93324492 | Q16: 10. [fS]Hevonen 26.571 (774 pts) | R16: [fS]Hevonen | S16: 26.571 | T16: 98.39394287 | V16: 10. [fS]Hevonen 24.663 (714 pts) | W16: [fS]Hevonen | X16: 24.663 | Y16: 97.8757764 | AA16: 10 | AB16: [iR] iBlaze² | AC16: 723 | AD16: 99.1563724 | AE16: 97.9138058 | AF16: 99.1563724 | AG16: 97.82206621 | AH16: 97.89272031 | AI16: 97.07468166 | AJ16: 97.62318841 | AK16: 15 | AL16: 11 | AM16: 11 | AN16: 17 | AO16: 11 | AZ16: 3 | BD16: 1 | BF16: 1 | BK16: 10. [iR] iBlaze² (723 pts) | BL16: [iR] iBlaze² | BM16: (723 pts) | BN16: (723 | BO16: 723 | BP16: 723
B17: 11. Jurgen-NL 26.695 (917 pts) | C17: Jurgen-NL | D17: 26.695 | E17: 99.46143417 | G17: 11. [iR] iBlaze² 27.070 (708 pts) | H17: [iR] iBlaze² | I17: 27.07 | J17: 97.82206621 | L17: 11. [iR] iBlaze² 27.716 (716 pts) | M17: [iR] iBlaze² | N17: 27.716 | O17: 97.89272031 | Q17: 11. Jurgen-NL 26.590 (766 pts) | R17: Jurgen-NL | S17: 26.59 | T17: 98.3212879 | V17: 11. [iR] iBlaze² 24.724 (686 pts) | W17: [iR] iBlaze² | X17: 24.724 | Y17: 97.62318841 | AA17: 11 | AB17: AnnicK | AC17: 664 | AD17: 98.46277389 | AE17: 97.34026043 | AF17: 98.26755047 | AG17: 95.8970294 | AH17: 96.83171235 | AI17: 98.46277389 | AJ17: 97.24223602 | AK17: 28 | AL17: 23 | AM17: 16 | AN17: 9 | AO17: 14 | AX17: 1 | BC17: 1 | BE17: 1 | BK17: 11. AnnicK (664 pts) | BL17: AnnicK | BM17: (664 pts) | BN17: (664 | BO17: 664 | BP17: 664
B18: 12. Double O Seven 26.710 (909 pts) | C18: Double O Seven | D18: 26.71 | E18: 99.40494125 | G18: 12. [+] Badeend 27.149 (676 pts) | H18: [+] Badeend | I18: 27.149 | J18: 97.52387423 | L18: 12. mc65532 27.723 (713 pts) | M18: mc65532 | N18: 27.723 | O18: 97.86693192 | Q18: 12. fatty 26.680 (725 pts) | R18: fatty | S18: 26.68 | T18: 97.97713281 | V18: 12. [+] xzeal 24.804 (652 pts) | W18: [+] xzeal | X18: 24.804 | Y18: 97.29192547 | AA18: 12 | AB18: mc65532 | AC18: 632 | AD18: 99.51416089 | AE18: 96.81638657 | AF18: 99.51416089 | AG18: 95.77624278 | AH18: 97.86693192 | AI18: 96.93701962 | AJ18: 93.98757764 | AK18: 9 | AL18: 25 | AM18: 12 | AN18: 18 | AO18: 26 | AX18: 1 | BA18: 1 | BG18: 1 | BK18: 12. mc65532 (632 pts) | BL18: mc65532 | BM18: (632 pts) | BN18: (632 | BO18: 632 | BP18: 632
B19: 13. Qri 26.745 (890 pts) | C19: Qri | D19: 26.745 | E19: 99.27312444 | G19: 13. [FUN] GR8 Arjen! 27.181 (663 pts) | H19: [FUN] GR8 Arjen! | I19: 27.181 | J19: 97.40308761 | L19: 13. Sig 27.786 (687 pts) | M19: Sig | N19: 27.786 | O19: 97.63483643 | Q19: 13. Chukie 26.690 (721 pts) | R19: Chukie | S19: 26.69 | T19: 97.93889335 | V19: 13. Jurgen-NL 24.815 (647 pts) | W19: Jurgen-NL | X19: 24.815 | Y19: 97.24637681 | AA19: 13 | AB19: fatty | AC19: 586 | AD19: 98.1056041 | AE19: 96.45579614 | AF19: 98.1056041 | AG19: 96.15370098 | AH19: 94.68022399 | AI19: 97.97713281 | AJ19: 95.36231884 | AK19: 30 | AL19: 21 | AM19: 19 | AN19: 12 | AO19: 19 | BA19: 1 | BH19: 2 | BK19: 13. fatty (586 pts) | BL19: fatty | BM19: (586 pts) | BN19: (586 | BO19: 586 | BP19: 586
B20: 14. [FUN] GR8 Arjen! 26.748 (888 pts) | C20: [FUN] GR8 Arjen! | D20: 26.748 | E20: 99.26182585 | G20: 14. [PahaJori] Ender 27.254 (635 pts) | H20: [PahaJori] Ender | I20: 27.254 | J20: 97.12754312 | L20: 14. chill 27.981 (615 pts) | M20: chill | N20: 27.981 | O20: 96.91644562 | Q20: 14. chill 26.724 (706 pts) | R20: chill | S20: 26.724 | T20: 97.8088792 | V20: 14. AnnicK 24.816 (647 pts) | W20: AnnicK | X20: 24.816 | Y20: 97.24223602 | AA20: 14 | AB20: [fS]Jan | AC20: 582 | AD20: 97.65209743 | AE20: 96.46462128 | AF20: 96.97574571 | AG20: 96.51983543 | AH20: 96.86486885 | AI20: 97.65209743 | AJ20: 94.31055901 | AK20: 39 | AL20: 17 | AM20: 15 | AN20: 15 | AO20: 23 | BD20: 2 | BF20: 1 | BK20: 14. [fS]Jan (582 pts) | BL20: [fS]Jan | BM20: (582 pts) | BN20: (582 | BO20: 582 | BP20: 582
B21: 15. [iR] iBlaze² 26.776 (874 pts) | C21: [iR] iBlaze² | D21: 26.776 | E21: 99.1563724 | G21: 15. Chukie 27.257 (634 pts) | H21: Chukie | I21: 27.257 | J21: 97.11621938 | L21: 15. [fS]Jan 27.995 (610 pts) | M21: =LEFT(RIGHT(L21,LEN(L21)-4),LEN(RIGHT(L21,LEN(L21)-4))-19) -> [fS]Jan | N21: =VALUE(LEFT(RIGHT(L21,19+0),6))/1000 -> 27.995 | O21: =100-(N21-N$7)/N$7*100 -> 96.86486885 | Q21: 15. [fS]Jan 26.765 (689 pts) | R21: [fS]Jan | S21: 26.765 | T21: 97.65209743 | V21: 15. Chukie 24.991 (578 pts) | W21: Chukie | X21: 24.991 | Y21: 96.51759834 | AA21: 15 | AB21: pozdro600 | AC21: 559 | AD21: 97.33088601 | AE21: 96.23840707 | AF21: 97.05483579 | AG21: 96.3801759 | AH21: 95.56071323 | AI21: 97.33088601 | AJ21: 94.86542443 | AK21: 37 | AL21: 19 | AM21: 18 | AN21: 16 | AO21: 21 | BE21: 1 | BG21: 1 | BH21: 1 | BK21: 15. pozdro600 (559 pts) | BL21: pozdro600 | BM21: (559 pts) | BN21: (559 | BO21: 559 | BP21: 559
B22: 16. power79 26.797 (863 pts) | C22: power79 | D22: 26.797 | E22: 99.07728231 | G22: 16. koripallo tits 27.358 (598 pts) | H22: koripallo tits | I22: 27.358 | J22: 96.7349866 | L22: 16. AnnicK 28.004 (607 pts) | M22: AnnicK | N22: 28.004 | O22: 96.83171235 | Q22: 16. pozdro600 26.849 (656 pts) | R22: pozdro600 | S22: 26.849 | T22: 97.33088601 | V22: 16. Matic 25.109 (536 pts) | W22: Matic | X22: 25.109 | Y22: 96.02898551 | AA22: 16 | AB22: chill | AC22: 530 | AD22: 98.19599277 | AE22: 97.35651367 | AF22: 98.19599277 | AG22: 96.5047371 | AH22: 96.91644562 | AI22: 97.8088792 | AK22: 29 | AL22: 18 | AM22: 14 | AN22: 14 | BC22: 2 | BG22: 1 | BK22: 16. chill (530 pts) | BL22: chill | BM22: (530 pts) | BN22: (530 | BO22: 530 | BP22: 530
B23: 17. Matti 26.808 (857 pts) | C23: Matti | D23: 26.808 | E23: 99.03585417 | G23: 17. [fS]Jan 27.415 (578 pts) | H23: [fS]Jan | I23: 27.415 | J23: 96.51983543 | L23: 17. Rub 28.126 (566 pts) | M23: Rub | N23: 28.126 | O23: 96.38225759 | Q23: 17. [iR] iBlaze² 26.916 (630 pts) | R23: [iR] iBlaze² | S23: 26.916 | T23: 97.07468166 | V23: 17. \/\/ | |_ |_ 25.171 (515 pts) | W23: \/\/ | |_ |_ | X23: 25.171 | Y23: 95.77225673 | AA23: 17 | AB23: Qpa | AC23: 480 | AD23: 98.88897258 | AE23: 96.56321923 | AF23: 98.88897258 | AG23: 96.02913977 | AI23: 96.7343505 | AJ23: 94.60041408 | AK23: 20 | AL23: 22 | AN23: 19 | AO23: 22 | AP23: =IF(SUMIF($AK23:$AO23,AP$6)/AP$6=0,"",SUMIF($AK23:$AO23,AP$6)/AP$6) ->  | BF23: =IF(SUMIF($AK23:$AO23,BF$6)/BF$6=0,"",SUMIF($AK23:$AO23,BF$6)/BF$6) ->  | BH23: 1 | BI23: 1 | BK23: 17. Qpa (480 pts) | BL23: Qpa | BM23: (480 pts) | BN23: (480 | BO23: 480 | BP23: 480
B24: 18. batjunior 26.830 (846 pts) | C24: batjunior | D24: 26.83 | E24: 98.95299789 | G24: 18. chill 27.419 (577 pts) | H24: chill | I24: 27.419 | J24: 96.5047371 | L24: 18. pozdro600 28.349 (499 pts) | M24: pozdro600 | N24: 28.349 | O24: 95.56071323 | Q24: 18. mc65532 26.952 (617 pts) | R24: =LEFT(RIGHT(Q24,LEN(Q24)-4),LEN(RIGHT(Q24,LEN(Q24)-4))-19) -> mc65532 | S24: =VALUE(LEFT(RIGHT(Q24,19+0),6))/1000 -> 26.952 | T24: =100-(S24-S$7)/S$7*100 -> 96.93701962 | V24: 18. Hazard 25.195 (507 pts) | W24: Hazard | X24: 25.195 | Y24: 95.67287785 | AA24: 18 | AB24: Gol_v8 | AC24: 418 | AD24: 98.84057971 | AE24: 97.50584466 | AF24: 98.58391082 | AG24: 95.09304345 | AJ24: 98.84057971 | AK24: 25 | AL24: 27 | AO24: 5 | AT24: 1 | BK24: 18. Gol_v8 (418 pts) | BL24: Gol_v8 | BM24: (418 pts) | BN24: (418 | BO24: 418 | BP24: 418
B25: 19. [+] xzeal 26.842 (840 pts) | C25: [+] xzeal | D25: 26.842 | E25: 98.90780356 | G25: 19. pozdro600 27.452 (566 pts) | H25: pozdro600 | I25: 27.452 | J25: 96.3801759 | L25: 19. fatty 28.588 (436 pts) | M25: fatty | N25: 28.588 | O25: 94.68022399 | Q25: 19. Qpa 27.005 (598 pts) | R25: Qpa | S25: 27.005 | T25: 96.7343505 | V25: 19. fatty 25.270 (484 pts) | W25: =LEFT(RIGHT(V25,LEN(V25)-4),LEN(RIGHT(V25,LEN(V25)-4))-19) -> fatty | X25: =VALUE(LEFT(RIGHT(V25,19+0),6))/1000 -> 25.27 | Y25: =100-(X25-X$7)/X$7*100 -> 95.36231884 | AA25: 19 | AB25: Rub | AC25: 404 | AD25: 97.6122326 | AE25: 95.28248858 | AF25: 97.6122326 | AG25: 95.46672706 | AH25: 96.38225759 | AJ25: 91.66873706 | AK25: 36 | AL25: 26 | AM25: 17 | AO25: 32 | BF25: 1 | BK25: 19. Rub (404 pts) | BL25: Rub | BM25: (404 pts) | BN25: (404 | BO25: 404 | BP25: 404
B26: 20. Qpa 26.847 (837 pts) | C26: Qpa | D26: 26.847 | E26: 98.88897258 | G26: 20. \/\/ | |_ |_ 27.471 (559 pts) | H26: \/\/ | |_ |_ | I26: 27.471 | J26: 96.30845884 | L26: 20. [LWD] JamsleJ 28.737 (401 pts) | M26: [LWD] JamsleJ | N26: 28.737 | O26: 94.13129973 | Q26: 20. messi 27.192 (535 pts) | R26: messi | S26: 27.192 | T26: 96.01927269 | V26: 20. Ninjinha_br 25.274 (482 pts) | W26: Ninjinha_br | X26: 25.274 | Y26: 95.34575569 | AA26: 20 | AB26: Augusto | AC26: 401 | AD26: 97.93989153 | AE26: 95.29251576 | AF26: 97.93989153 | AG26: 94.85901936 | AI26: 95.82042752 | AJ26: 92.55072464 | AK26: 31 | AL26: 30 | AN26: 21 | AO26: 30 | BK26: 20. Augusto (401 pts) | BL26: Augusto | BM26: (401 pts) | BN26: (401 | BO26: 401 | BP26: 401
B27: 21. Alukin 26.851 (835 pts) | C27: Alukin | D27: 26.851 | E27: 98.8739078 | G27: 21. fatty 27.512 (546 pts) | H27: fatty | I27: 27.512 | J27: 96.15370098 | L27: 21. REIROM 28.962 (354 pts) | M27: REIROM | N27: 28.962 | O27: 93.30238727 | Q27: 21. Augusto 27.244 (519 pts) | R27: Augusto | S27: 27.244 | T27: 95.82042752 | V27: 21. pozdro600 25.390 (448 pts) | W27: pozdro600 | X27: 25.39 | Y27: 94.86542443 | AA27: 21 | AB27: Chukie | AC27: 386 | AD27: 97.93889335 | AE27: 97.19090369 | AG27: 97.11621938 | AI27: 97.93889335 | AJ27: 96.51759834 | AL27: 15 | AN27: 13 | AO27: 15 | BB27: 1 | BD27: 2 | BK27: 21. Chukie (386 pts) | BL27: Chukie | BM27: (386 pts) | BN27: (386 | BO27: 386 | BP27: 386
B28: 22. \/\/ | |_ |_ 26.899 (812 pts) | C28: \/\/ | |_ |_ | D28: 26.899 | E28: 98.69313046 | G28: 22. Qpa 27.545 (536 pts) | H28: Qpa | I28: 27.545 | J28: 96.02913977 | Q28: 22. REIROM 32.380 (32 pts) | R28: REIROM | S28: 32.38 | T28: 76.18064319 | V28: 22. Qpa 25.454 (431 pts) | W28: Qpa | X28: 25.454 | Y28: 94.60041408 | AA28: 22 | AB28: [FUN] GR8 Arjen! | AC28: 383 | AD28: 99.26182585 | AE28: 96.71577171 | AF28: 99.26182585 | AG28: 97.40308761 | AJ28: 93.48240166 | AK28: 14 | AL28: 13 | AO28: 27 | BB28: 1 | BC28: 1 | BK28: 22. [FUN] GR8 Arjen! (383 pts) | BL28: [FUN] GR8 Arjen! | BM28: (383 pts) | BN28: (383 | BO28: 383 | BP28: 383
B29: 23. messi 26.910 (807 pts) | C29: messi | D29: 26.91 | E29: 98.65170232 | G29: 23. AnnicK 27.580 (525 pts) | H29: AnnicK | I29: 27.58 | J29: 95.8970294 | V29: 23. [fS]Jan 25.524 (412 pts) | W29: [fS]Jan | X29: 25.524 | Y29: 94.31055901 | AA29: 23 | AB29: \/\/ | |_ |_ | AC29: 377 | AD29: 98.69313046 | AE29: 96.92461534 | AF29: 98.69313046 | AG29: 96.30845884 | AJ29: 95.77225673 | AK29: 22 | AL29: 20 | AO29: 17 | BF29: 1 | BI29: 1 | BK29: 23. \/\/ | |_ |_ (377 pts) | BL29: \/\/ | |_ |_ | BM29: (377 pts) | BN29: (377 | BO29: 377 | BP29: 377
B30: 24. Serif v2.5.3W 26.926 (799 pts) | C30: Serif v2.5.3W | D30: 26.926 | E30: 98.59144321 | G30: 24. Double O Seven 27.601 (519 pts) | H30: Double O Seven | I30: 27.601 | J30: 95.81776318 | V30: 24. [5] Burnout 25.543 (407 pts) | W30: [5] Burnout | X30: 25.543 | Y30: 94.23188406 | AA30: 24 | AB30: Matti | AC30: 354 | AD30: 99.43788 | AE30: 99.23686709 | AF30: 99.03585417 | AI30: 99.43788 | AK30: 17 | AN30: 4 | AS30: 1 | BF30: 1 | BK30: 24. Matti (354 pts) | BL30: Matti | BM30: (354 pts) | BN30: (354 | BO30: 354 | BP30: 354
B31: 25. Gol_v8 26.928 (798 pts) | C31: Gol_v8 | D31: 26.928 | E31: 98.58391082 | G31: 25. mc65532 27.612 (515 pts) | H31: mc65532 | I31: 27.612 | J31: 95.77624278 | V31: 25. Alukin 25.563 (402 pts) | W31: Alukin | X31: 25.563 | Y31: 94.14906832 | AA31: 25 | AB31: messi | AC31: 353 | AD31: 98.65170232 | AE31: 96.37914595 | AF31: 98.65170232 | AG31: 94.46646284 | AI31: 96.01927269 | AK31: 23 | AL31: 31 | AN31: 20 | BI31: 1 | BK31: 25. messi (353 pts) | BL31: messi | BM31: (353 pts) | BN31: (353 | BO31: 353 | BP31: 353
B32: 26. REIROM 26.959 (783 pts) | C32: REIROM | D32: 26.959 | E32: 98.46715878 | G32: 26. Rub 27.694 (491 pts) | H32: Rub | I32: 27.694 | J32: 95.46672706 | V32: 26. mc65532 25.602 (392 pts) | W32: mc65532 | X32: 25.602 | Y32: 93.98757764 | AA32: 26 | AB32: REIROM | AC32: 350 | AD32: 98.46715878 | AE32: 90.29625988 | AF32: 98.46715878 | AG32: 90.19363605 | AH32: 93.30238727 | AI32: 76.18064319 | AJ32: 93.33747412 | AK32: 26 | AL32: 35 | AM32: 21 | AN32: 22 | AO32: 28 | BK32: 26. REIROM (350 pts) | BL32: REIROM | BM32: (350 pts) | BN32: (350 | BO32: 350 | BP32: 350
B33: 27. lds 26.998 (766 pts) | C33: lds | D33: 26.998 | E33: 98.32027719 | G33: 27. Gol_v8 27.793 (464 pts) | H33: Gol_v8 | I33: 27.793 | J33: 95.09304345 | V33: 27. [FUN] GR8 Arjen! 25.724 (364 pts) | W33: [FUN] GR8 Arjen! | X33: 25.724 | Y33: 93.48240166 | AA33: 27 | AB33: [+] Badeend | AC33: 331 | AD33: 99.87948177 | AE33: 98.701678 | AF33: 99.87948177 | AG33: 97.52387423 | AK33: 4 | AL33: 12 | AS33: 1 | BA33: 1 | BK33: 27. [+] Badeend (331 pts) | BL33: [+] Badeend | BM33: (331 pts) | BN33: (331 | BO33: 331 | BP33: 331
B34: 28. AnnicK 27.012 (759 pts) | C34: AnnicK | D34: 27.012 | E34: 98.26755047 | G34: 28. [$pectre]Jaw$ 27.836 (453 pts) | H34: [$pectre]Jaw$ | I34: 27.836 | J34: 94.93073642 | V34: 28. REIROM 25.759 (356 pts) | W34: REIROM | X34: 25.759 | Y34: 93.33747412 | AA34: 28 | AB34: [PahaJori] Ender | AC34: 314 | AD34: 99.58571859 | AE34: 98.35663086 | AF34: 99.58571859 | AG34: 97.12754312 | AK34: 6 | AL34: 14 | AU34: 1 | BC34: 1 | BK34: 28. [PahaJori] Ender (314 pts) | BL34: [PahaJori] Ender | BM34: (314 pts) | BN34: (314 | BO34: 314 | BP34: 314
B35: 29. chill 27.031 (751 pts) | C35: chill | D35: 27.031 | E35: 98.19599277 | G35: 29. Magnat 27.844 (451 pts) | H35: Magnat | I35: 27.844 | J35: 94.90053977 | V35: 29. Magnat 25.818 (343 pts) | W35: Magnat | X35: 25.818 | Y35: 93.0931677 | AA35: 29 | AB35: Ku Dern [Ri] | AC35: 308 | AD35: 98.60005894 | AE35: 98.35827127 | AG35: 98.1164836 | AH35: 98.60005894 | AL35: 10 | AM35: 6 | AU35: 1 | AY35: 1 | BK35: 29. Ku Dern [Ri] (308 pts) | BL35: Ku Dern [Ri] | BM35: (308 pts) | BN35: (308 | BO35: 308 | BP35: 308
B36: 30. fatty 27.055 (740 pts) | C36: fatty | D36: 27.055 | E36: 98.1056041 | G36: 30. Augusto 27.855 (448 pts) | H36: Augusto | I36: =VALUE(LEFT(RIGHT(G36,19+0),6))/1000 -> 27.855 | J36: =100-(I36-I$7)/I$7*100 -> 94.85901936 | V36: 30. Augusto 25.949 (316 pts) | W36: Augusto | X36: 25.949 | Y36: 92.55072464 | AA36: 30 | AB36: Sig | AC36: 293 | AD36: 98.41407867 | AE36: 98.02445755 | AH36: 97.63483643 | AJ36: 98.41407867 | AM36: 13 | AO36: 8 | AW36: 1 | BB36: 1 | BK36: 30. Sig (293 pts) | BL36: Sig | BM36: (293 pts) | BN36: (293 | BO36: 293 | BP36: 293
B37: 31. Augusto 27.099 (721 pts) | C37: Augusto | D37: 27.099 | E37: 97.93989153 | G37: 31. messi 27.959 (422 pts) | H37: messi | I37: 27.959 | J37: 94.46646284 | V37: 31. laf 26.131 (283 pts) | W37: laf | X37: 26.131 | Y37: 91.79710145 | AA37: 31 | AB37: Double O Seven | AC37: 285 | AD37: 99.40494125 | AE37: 97.61135222 | AF37: 99.40494125 | AG37: 95.81776318 | AK37: 12 | AL37: 24 | BA37: 1 | BK37: 31. Double O Seven (285 pts) | BL37: Double O Seven | BM37: (285 pts) | BN37: (285 | BO37: 285 | BP37: 285
B38: 32. Popowitch 27.122 (711 pts) | C38: Popowitch | D38: 27.122 | E38: 97.85326906 | G38: 32. lds 28.316 (344 pts) | H38: lds | I38: 28.316 | J38: 93.11893708 | V38: 32. Rub 26.162 (277 pts) | W38: Rub | X38: 26.162 | Y38: 91.66873706 | AA38: 32 | AB38: Matic | AC38: 248 | AD38: 97.81184092 | AE38: 96.92041321 | AF38: 97.81184092 | AJ38: 96.02898551 | AK38: 33 | AO38: 16 | BE38: 1 | BK38: 32. Matic (248 pts) | BL38: Matic | BM38: (248 pts) | BN38: (248 | BO38: 248 | BP38: 248
B39: 33. Matic 27.133 (707 pts) | C39: Matic | D39: 27.133 | E39: 97.81184092 | G39: 33. stoner 28.369 (334 pts) | H39: stoner | I39: 28.369 | J39: 92.91888423 | AA39: 33 | AB39: Alukin | AC39: 247 | AD39: 98.8739078 | AE39: 96.51148806 | AF39: 98.8739078 | AJ39: 94.14906832 | AK39: 21 | AO39: 25 | AP39: =IF(SUMIF($AK39:$AO39,AP$6)/AP$6=0,"",SUMIF($AK39:$AO39,AP$6)/AP$6) ->  | BF39: =IF(SUMIF($AK39:$AO39,BF$6)/BF$6=0,"",SUMIF($AK39:$AO39,BF$6)/BF$6) ->  | BK39: 33. Alukin (247 pts) | BL39: Alukin | BM39: (247 pts) | BN39: (247 | BO39: 247 | BP39: 247
B40: 34. straits 27.156 (697 pts) | C40: straits | D40: 27.156 | E40: 97.72521844 | G40: 34. BrunoA 28.563 (300 pts) | H40: BrunoA | I40: 28.563 | J40: 92.18661533 | AA40: 34 | AB40: lds | AC40: 222 | AD40: 98.32027719 | AE40: 95.71960713 | AF40: 98.32027719 | AG40: 93.11893708 | AK40: 27 | AL40: 32 | BK40: 34. lds (222 pts) | BL40: lds | BM40: (222 pts) | BN40: (222 | BO40: 222 | BP40: 222
B41: 35. RiantHoff 27.165 (694 pts) | C41: RiantHoff | D41: 27.165 | E41: 97.69132269 | G41: 35. REIROM 29.091 (223 pts) | H41: REIROM | I41: 29.091 | J41: 90.19363605 | AA41: 35 | AB41: Ninjinha_br | AC41: 217 | AD41: 96.79873456 | AE41: 96.07224513 | AF41: 96.79873456 | AJ41: 95.34575569 | AK41: 42 | AO41: 20 | BI41: 1 | BK41: 35. Ninjinha_br (217 pts) | BL41: Ninjinha_br | BM41: (217 pts) | BN41: (217 | BO41: 217 | BP41: 217
B42: 36. Rub 27.186 (685 pts) | C42: Rub | D42: 27.186 | E42: 97.6122326 | G42: 36. Thunda 30.043 (133 pts) | H42: Thunda | I42: 30.043 | J42: 86.60023402 | AA42: 36 | AB42: [$pectre]Jaw$ | AC42: 211 | AD42: 96.78743597 | AE42: 95.8590862 | AF42: 96.78743597 | AG42: 94.93073642 | AK42: 43 | AL42: 28 | BK42: 36. [$pectre]Jaw$ (211 pts) | BL42: [$pectre]Jaw$ | BM42: (211 pts) | BN42: (211 | BO42: 211 | BP42: 211
B43: 37. pozdro600 27.334 (628 pts) | C43: pozdro600 | D43: 27.334 | E43: 97.05483579 | G43: 37. [ITA]_AIR_GIGI 30.708 (94 pts) | H43: [ITA]_AIR_GIGI | I43: 30.708 | J43: 84.09013702 | AA43: 37 | AB43: stoner | AC43: 191 | AD43: 96.99081049 | AE43: 94.95484736 | AF43: 96.99081049 | AG43: 92.91888423 | AK43: 38 | AL43: 33 | BK43: 37. stoner (191 pts) | BL43: stoner | BM43: (191 pts) | BN43: (191 | BO43: 191 | BP43: 191
B44: 38. stoner 27.351 (622 pts) | C44: stoner | D44: 27.351 | E44: 96.99081049 | G44: 38. RiantHoff 31.498 (62 pts) | H44: RiantHoff | I44: 31.498 | J44: 81.10821726 | AA44: 38 | AB44: kikiriki | AC44: 183 | AD44: 99.38302277 | AE44: 84.17478948 | AF44: 68.96655619 | AJ44: 99.38302277 | AK44: 49 | AO44: 3 | AR44: 1 | BK44: 38. kikiriki (183 pts) | BL44: kikiriki | BM44: (183 pts) | BN44: (183 | BO44: 183 | BP44: 183
B45: 39. [fS]Jan 27.355 (620 pts) | C45: [fS]Jan | D45: 27.355 | E45: 96.97574571 | G45: 39. Broomstig 32.537 (37 pts) | H45: Broomstig | I45: 32.537 | J45: 77.1864266 | AA45: 39 | AB45: Qri | AC45: 178 | AD45: 99.27312444 | AE45: 99.27312444 | AF45: 99.27312444 | AK45: 13 | BB45: 1 | BK45: 39. Qri (178 pts) | BL45: Qri | BM45: (178 pts) | BN45: (178 | BO45: 178 | BP45: 178
B46: 40. CrazybikE 27.357 (620 pts) | C46: CrazybikE | D46: 27.357 | E46: 96.96821332 | AA46: 40 | AB46: power79 | AC46: 172 | AD46: 99.07728231 | AE46: 99.07728231 | AF46: 99.07728231 | AK46: 16 | BE46: 1 | BK46: 40. power79 (172 pts) | BL46: power79 | BM46: (172 pts) | BN46: (172 | BO46: 172 | BP46: 172
B47: 41. Ninjinha_br 27.402 (604 pts) | C47: Ninjinha_br | D47: 27.402 | E47: 96.79873456 | AA47: 41 | AB47: batjunior | AC47: 169 | AD47: 98.95299789 | AE47: 98.95299789 | AF47: 98.95299789 | AK47: 18 | BG47: 1 | BK47: 41. batjunior (169 pts) | BL47: batjunior | BM47: (169 pts) | BN47: (169 | BO47: 169 | BP47: 169
B48: 42. [$pectre]Jaw$ 27.405 (602 pts) | C48: [$pectre]Jaw$ | D48: 27.405 | E48: 96.78743597 | AA48: 42 | AB48: Serif v2.5.3W | AC48: 159 | AD48: 98.59144321 | AE48: 98.59144321 | AF48: 98.59144321 | AK48: 24 | BK48: 42. Serif v2.5.3W (159 pts) | BL48: Serif v2.5.3W | BM48: (159 pts) | BN48: (159 | BO48: 159 | BP48: 159
B49: 43. bohun 27.432 (593 pts) | C49: bohun | D49: 27.432 | E49: 96.68574872 | AA49: 43 | AB49: Magnat | AC49: 158 | AD49: 94.90053977 | AE49: 93.99685373 | AG49: 94.90053977 | AJ49: 93.0931677 | AL49: 29 | AO49: 29 | BK49: 43. Magnat (158 pts) | BL49: Magnat | BM49: (158 pts) | BN49: (158 | BO49: 158 | BP49: 158
B50: 44. Rendy 27.481 (576 pts) | C50: Rendy | D50: 27.481 | E50: 96.50120518 | AA50: 44 | AB50: RiantHoff | AC50: 151 | AD50: 97.69132269 | AE50: 89.39976998 | AF50: 97.69132269 | AG50: 81.10821726 | AK50: 35 | AL50: 38 | BK50: 44. RiantHoff (151 pts) | BL50: RiantHoff | BM50: (151 pts) | BN50: (151 | BO50: 151 | BP50: 151
B51: 45. [ITA]_AIR_GIGI 27.499 (570 pts) | C51: [ITA]_AIR_GIGI | D51: 27.499 | E51: 96.43341368 | AA51: 45 | AB51: Popowitch | AC51: 142 | AD51: 97.85326906 | AE51: 97.85326906 | AF51: 97.85326906 | AK51: 32 | BK51: 45. Popowitch (142 pts) | BL51: Popowitch | BM51: (142 pts) | BN51: (142 | BO51: 142 | BP51: 142
B52: 46. Frank05 27.759 (491 pts) | C52: Frank05 | D52: 27.759 | E52: 95.45420307 | AA52: 46 | AB52: straits | AC52: 139 | AD52: 97.72521844 | AE52: 97.72521844 | AF52: 97.72521844 | AK52: 34 | BK52: 46. straits (139 pts) | BL52: straits | BM52: (139 pts) | BN52: (139 | BO52: 139 | BP52: 139
B53: 47. CrazybikE 28.306 (359 pts) | C53: CrazybikE | D53: 28.306 | E53: 93.39409461 | AA53: 47 | AB53: [ITA]_AIR_GIGI | AC53: 133 | AD53: 96.43341368 | AE53: 90.26177535 | AF53: 96.43341368 | AG53: 84.09013702 | AK53: 46 | AL53: 37 | BK53: 47. [ITA]_AIR_GIGI (133 pts) | BL53: [ITA]_AIR_GIGI | BM53: (133 pts) | BN53: (133 | BO53: 133 | BP53: 133
B54: 48. BrunoA 28.445 (332 pts) | C54: BrunoA | D54: 28.445 | E54: 92.87059355 | AA54: 48 | AB54: BrunoA | AC54: 126 | AD54: 92.87059355 | AE54: 92.52860444 | AF54: 92.87059355 | AG54: 92.18661533 | AK54: 48 | AL54: 34 | BK54: 48. BrunoA (126 pts) | BL54: BrunoA | BM54: (126 pts) | BN54: (126 | BO54: 126 | BP54: 126
B55: 49. kikiriki 34.792 (13 pts) | C55: kikiriki | D55: 34.792 | E55: 68.96655619 | AA55: 49 | AB55: CrazybikE | AC55: 124 | AD55: 96.96821332 | AE55: 96.96821332 | AF55: 96.96821332 | AK55: 40 | AP55: =IF(SUMIF($AK55:$AO55,AP$6)/AP$6=0,"",SUMIF($AK55:$AO55,AP$6)/AP$6) ->  | BF55: =IF(SUMIF($AK55:$AO55,BF$6)/BF$6=0,"",SUMIF($AK55:$AO55,BF$6)/BF$6) ->  | BK55: 49. CrazybikE (124 pts) | BL55: CrazybikE | BM55: (124 pts) | BN55: (124 | BO55: 124 | BP55: 124
AA56: 50 | AB56: koripallo tits | AC56: 119 | AD56: 96.7349866 | AE56: 96.7349866 | AG56: 96.7349866 | AL56: 16 | BE56: 1 | BK56: 50. koripallo tits (119 pts) | BL56: koripallo tits | BM56: (119 pts) | BN56: (119 | BO56: 119 | BP56: 119
AA57: 51 | AB57: bohun | AC57: 118 | AD57: 96.68574872 | AE57: 96.68574872 | AF57: 96.68574872 | AK57: 44 | BK57: 51. bohun (118 pts) | BL57: bohun | BM57: (118 pts) | BN57: (118 | BO57: 118 | BP57: 118
AA58: 52 | AB58: Rendy | AC58: 115 | AD58: 96.50120518 | AE58: 96.50120518 | AF58: 96.50120518 | AK58: 45 | BK58: 52. Rendy (115 pts) | BL58: Rendy | BM58: (115 pts) | BN58: (115 | BO58: 115 | BP58: 115
AA59: 53 | AB59: Hazard | AC59: 101 | AD59: 95.67287785 | AE59: 95.67287785 | AJ59: 95.67287785 | AO59: 18 | BG59: 1 | BK59: 53. Hazard (101 pts) | BL59: Hazard | BM59: (101 pts) | BN59: (101 | BO59: 101 | BP59: 101
AA60: 54 | AB60: Frank05 | AC60: 98 | AD60: 95.45420307 | AE60: 95.45420307 | AF60: 95.45420307 | AK60: 47 | BK60: 54. Frank05 (98 pts) | BL60: Frank05 | BM60: (98 pts) | BN60: (98 | BO60: 98 | BP60: 98
AA61: 55 | AB61: [5] Burnout | AC61: 81 | AD61: 94.23188406 | AE61: 94.23188406 | AJ61: 94.23188406 | AO61: 24 | BK61: 55. [5] Burnout (81 pts) | BL61: [5] Burnout | BM61: (81 pts) | BN61: (81 | BO61: 81 | BP61: 81
AA62: 56 | AB62: [LWD] JamsleJ | AC62: 80 | AD62: 94.13129973 | AE62: 94.13129973 | AH62: 94.13129973 | AM62: 20 | BI62: 1 | BK62: 56. [LWD] JamsleJ (80 pts) | BL62: [LWD] JamsleJ | BM62: (80 pts) | BN62: (80 | BO62: 80 | BP62: 80
AA63: 57 | AB63: CrazybikE | AC63: 71 | AD63: 96.96821332 | AE63: 96.96821332 | AF63: 96.96821332 | AK63: 40 | BK63: 57. CrazybikE (71 pts) | BL63: CrazybikE | BM63: (71 pts) | BN63: (71 | BO63: 71 | BP63: 71
AA64: 58 | AB64: laf | AC64: 56 | AD64: 91.79710145 | AE64: 91.79710145 | AJ64: 91.79710145 | AO64: 31 | BK64: 58. laf (56 pts) | BL64: laf | BM64: (56 pts) | BN64: (56 | BO64: 56 | BP64: 56
AA65: 59 | AB65: Thunda | AC65: 26 | AD65: =MAX(AF65:AJ65) -> 86.60023402 | AE65: =SUM(AF65:AJ65)/COUNT(AF65:AJ65) -> 86.60023402 | AF65: =IF(SUMIF(C$7:C$998,$AB65,E$7:E$998)=0,"",VLOOKUP($AB65,C$7:E$998,3,FALSE)) ->  | AG65: =IF(SUMIF(H$7:H$999,$AB65,J$7:J$999)=0,"",VLOOKUP($AB65,H$7:J$999,3,FALSE)) -> 86.60023402 | AH65: =IF(SUMIF(M$7:M$998,$AB65,O$7:O$998)=0,"",VLOOKUP($AB65,M$7:O$998,3,FALSE)) ->  | AI65: =IF(SUMIF(R$7:R$998,$AB65,T$7:T$998)=0,"",VLOOKUP($AB65,R$7:T$998,3,FALSE)) ->  | AJ65: =IF(SUMIF(W$7:W$998,$AB65,Y$7:Y$998)=0,"",VLOOKUP($AB65,W$7:Y$998,3,FALSE)) ->  | AL65: 36 | BK65: 59. Thunda (26 pts) | BL65: Thunda | BM65: (26 pts) | BN65: (26 | BO65: 26 | BP65: 26
AA66: 60 | AB66: Broomstig | AC66: 7 | AD66: 77.1864266 | AE66: 77.1864266 | AG66: 77.1864266 | AL66: 39 | BK66: 60. Broomstig (7 pts) | BL66: Broomstig | BM66: (7 pts) | BN66: (7 | BO66: 7 | BP66: 7
BM72: =RIGHT(BK72,10) ->  | BN72: =LEFT(BM72,5) ->  | BO72: =REPLACE(BN72,SEARCH("(",BN72),1,"") ->  | BP72: =TRIM(BO72) -> 

Sheet week4
B1: *** Weekly Hot Lap Competition Results
B3: Start Time: 2014-12-20 16:23:27
B4: End Time: 2014-12-27 16:23:27
B6: * Results for Sc_Bonneville, AntiSlider: | G6: * Results for Sc_Bonneville, EasySlider: | L6: * Results for Sc_Bonneville, Spinner: | Q6: * Results for Sc_Bonneville, Slider: | V6: * Results for Sc_Bonneville, Speeder: | AC6: Pts | AD6: Max | AE6: Av | AF6: Anti | AG6: Easy | AH6: Spin | AI6: Slide | AJ6: Speed | AK6: Ant | AL6: Eas | AM6: Spn | AN6: Sld | AO6: Spd | AP6: 1 | AQ6: 2 | AR6: 3 | AS6: 4 | AT6: 5 | AU6: 6 | AV6: 7 | AW6: 8 | AX6: 9 | AY6: 10 | AZ6: 11 | BA6: 12 | BB6: 13 | BC6: 14 | BD6: 15 | BE6: 16 | BF6: 17 | BG6: 18 | BH6: 19 | BI6: 20 | BK6: Overall Results:
B7: 1. [+] Tinjovic 26.786 (1000 pts) | C7: =LEFT(RIGHT(B7,LEN(B7)-4),LEN(RIGHT(B7,LEN(B7)-4))-19) -> [+] Tinjovic | D7: =VALUE(LEFT(RIGHT(B7,19+0),6))/1000 -> 26.786 | E7: 100 | G7: 1. [+] Tinjovic 27.773 (1000 pts) | H7: =LEFT(RIGHT(G7,LEN(G7)-4),LEN(RIGHT(G7,LEN(G7)-4))-19) -> [+] Tinjovic | I7: =VALUE(LEFT(RIGHT(G7,19+0),6))/1000 -> 27.773 | J7: 100 | L7: 1. [+] Tinjovic 27.487 (1000 pts) | M7: =LEFT(RIGHT(L7,LEN(L7)-4),LEN(RIGHT(L7,LEN(L7)-4))-19) -> [+] Tinjovic | N7: =VALUE(LEFT(RIGHT(L7,19+0),6))/1000 -> 27.487 | O7: 100 | Q7: 1. [x] Mike Nike 27.532 (1000 pts) | R7: =LEFT(RIGHT(Q7,LEN(Q7)-4),LEN(RIGHT(Q7,LEN(Q7)-4))-19) -> [x] Mike Nike | S7: =VALUE(LEFT(RIGHT(Q7,19+0),6))/1000 -> 27.532 | T7: 100 | V7: 1. [+] Tinjovic 25.867 (1000 pts) | W7: =LEFT(RIGHT(V7,LEN(V7)-4),LEN(RIGHT(V7,LEN(V7)-4))-19) -> [+] Tinjovic | X7: =VALUE(LEFT(RIGHT(V7,19+0),6))/1000 -> 25.867 | Y7: 100 | AA7: 1 | AB7: =BL7 -> [+] Tinjovic | AC7: =BP7 -> 998 | AD7: =MAX(AF7:AJ7) -> 100 | AE7: =SUM(AF7:AJ7)/COUNT(AF7:AJ7) -> 99.98837716 | AF7: =IF(SUMIF(C$7:C$995,$AB7,E$7:E$995)=0,"",VLOOKUP($AB7,C$7:E$995,3,FALSE)) -> 100 | AG7: =IF(SUMIF(H$7:H$996,$AB7,J$7:J$996)=0,"",VLOOKUP($AB7,H$7:J$996,3,FALSE)) -> 100 | AH7: =IF(SUMIF(M$7:M$995,$AB7,O$7:O$995)=0,"",VLOOKUP($AB7,M$7:O$995,3,FALSE)) -> 100 | AI7: =IF(SUMIF(R$7:R$995,$AB7,T$7:T$995)=0,"",VLOOKUP($AB7,R$7:T$995,3,FALSE)) -> 99.94188581 | AJ7: =IF(SUMIF(W$7:W$995,$AB7,Y$7:Y$995)=0,"",VLOOKUP($AB7,W$7:Y$995,3,FALSE)) -> 100 | AK7: =IF(AF7="","",RANK(AF7,AF$7:AF$999,0)) -> 1 | AL7: =IF(AG7="","",RANK(AG7,AG$7:AG$999,0)) -> 1 | AM7: 1 | AN7: 2 | AO7: 1 | AP7: =IF(SUMIF($AK7:$AO7,AP$6)/AP$6=0,"",SUMIF($AK7:$AO7,AP$6)/AP$6) -> 4 | AQ7: 1 | BF7: =IF(SUMIF($AK7:$AO7,BF$6)/BF$6=0,"",SUMIF($AK7:$AO7,BF$6)/BF$6) ->  | BK7: 1. [+] Tinjovic (998 pts) | BL7: =CONCATENATE(LEFT(RIGHT(BK7,LEN(BK7)-4),LEN(RIGHT(BK7,LEN(BK7)-4))-9)," ") -> [+] Tinjovic | BM7: =RIGHT(BK7,10) -> (998 pts) | BN7: =LEFT(BM7,5) -> (998 | BO7: =REPLACE(BN7,SEARCH("(",BN7),1,"") -> 998 | BP7: =TRIM(BO7) -> 998
B8: 2. [x] Mike Nike 26.801 (991 pts) | C8: =LEFT(RIGHT(B8,LEN(B8)-4),LEN(RIGHT(B8,LEN(B8)-4))-19) -> [x] Mike Nike | D8: 26.801 | E8: =100-(D8-D$7)/D$7*100 -> 99.9440006 | G8: 2. [+] dede 27.832 (966 pts) | H8: =LEFT(RIGHT(G8,LEN(G8)-4),LEN(RIGHT(G8,LEN(G8)-4))-19) -> [+] dede | I8: =VALUE(LEFT(RIGHT(G8,19+0),6))/1000 -> 27.832 | J8: =100-(I8-I$7)/I$7*100 -> 99.78756346 | L8: 2. [x] Mike Nike 27.496 (994 pts) | M8: =LEFT(RIGHT(L8,LEN(L8)-4),LEN(RIGHT(L8,LEN(L8)-4))-19) -> [x] Mike Nike | N8: =VALUE(LEFT(RIGHT(L8,19+0),6))/1000 -> 27.496 | O8: =100-(N8-N$7)/N$7*100 -> 99.96725725 | Q8: 2. [+] Tinjovic 27.548 (990 pts) | R8: =LEFT(RIGHT(Q8,LEN(Q8)-4),LEN(RIGHT(Q8,LEN(Q8)-4))-19) -> [+] Tinjovic | S8: =VALUE(LEFT(RIGHT(Q8,19+0),6))/1000 -> 27.548 | T8: =100-(S8-S$7)/S$7*100 -> 99.94188581 | V8: 2. [x] Mike Nike 25.989 (927 pts) | W8: =LEFT(RIGHT(V8,LEN(V8)-4),LEN(RIGHT(V8,LEN(V8)-4))-19) -> [x] Mike Nike | X8: =VALUE(LEFT(RIGHT(V8,19+0),6))/1000 -> 25.989 | Y8: =100-(X8-X$7)/X$7*100 -> 99.52835659 | AA8: 2 | AB8: =BL8 -> [x] Mike Nike | AC8: =BP8 -> 968 | AD8: 100 | AE8: 99.79502691 | AF8: 99.9440006 | AG8: 99.53552011 | AH8: 99.96725725 | AI8: 100 | AJ8: 99.52835659 | AK8: =IF(AF8="","",RANK(AF8,AF$7:AF$999,0)) -> 2 | AL8: =IF(AG8="","",RANK(AG8,AG$7:AG$999,0)) -> 3 | AM8: =IF(AH8="","",RANK(AH8,AH$7:AH$999,0)) -> 2 | AN8: =IF(AI8="","",RANK(AI8,AI$7:AI$999,0)) -> 1 | AO8: =IF(AJ8="","",RANK(AJ8,AJ$7:AJ$999,0)) -> 2 | AP8: 1 | AQ8: 3 | AR8: 1 | BK8: 2. [x] Mike Nike (968 pts) | BL8: =CONCATENATE(LEFT(RIGHT(BK8,LEN(BK8)-4),LEN(RIGHT(BK8,LEN(BK8)-4))-9)," ") -> [x] Mike Nike | BM8: =RIGHT(BK8,10) -> (968 pts) | BN8: =LEFT(BM8,5) -> (968 | BO8: =REPLACE(BN8,SEARCH("(",BN8),1,"") -> 968 | BP8: =TRIM(BO8) -> 968
B9: 3. [PahaJori] Ender 26.872 (950 pts) | C9: =LEFT(RIGHT(B9,LEN(B9)-4),LEN(RIGHT(B9,LEN(B9)-4))-19) -> [PahaJori] Ender | D9: 26.872 | E9: =100-(D9-D$7)/D$7*100 -> 99.67893676 | G9: 3. [x] Mike Nike 27.902 (928 pts) | H9: [x] Mike Nike | I9: 27.902 | J9: =100-(I9-I$7)/I$7*100 -> 99.53552011 | L9: 3. [+] dede 27.519 (981 pts) | M9: [+] dede | N9: 27.519 | O9: =100-(N9-N$7)/N$7*100 -> 99.88358133 | Q9: 3. Matti 27.781 (865 pts) | R9: Matti | S9: 27.781 | T9: =100-(S9-S$7)/S$7*100 -> 99.09559785 | V9: 3. Sig 26.017 (911 pts) | W9: Sig | X9: 26.017 | Y9: =100-(X9-X$7)/X$7*100 -> 99.42011057 | AA9: 3 | AB9: [x] Stylus | AC9: 840 | AD9: 99.66027029 | AE9: 98.86512618 | AF9: 99.66027029 | AG9: 98.66417024 | AH9: 99.4724779 | AI9: 98.91399099 | AJ9: 97.61472146 | AK9: 4 | AL9: 5 | AM9: 4 | AN9: 6 | AO9: 8 | AS9: 2 | AT9: 1 | AU9: 1 | AW9: 1 | BK9: 3. [x] Stylus (840 pts) | BL9: [x] Stylus | BM9: (840 pts) | BN9: (840 | BO9: 840 | BP9: 840
B10: 4. [x] Stylus 26.877 (947 pts) | C10: [x] Stylus | D10: 26.877 | E10: 99.66027029 | G10: 4. [fS]Palo 28.095 (831 pts) | H10: [fS]Palo | I10: 28.095 | J10: 98.84060058 | L10: 4. [x] Stylus 27.632 (919 pts) | M10: [x] Stylus | N10: 27.632 | O10: 99.4724779 | Q10: 4. [+] dede 27.790 (861 pts) | R10: [+] dede | S10: 27.79 | T10: 99.06290862 | V10: 4. GOl V8 26.021 (909 pts) | W10: GOl V8 | X10: 26.021 | Y10: 99.40464685 | AA10: 4 | AB10: Matti | AC10: 834 | AD10: 99.30187411 | AE10: 98.85077286 | AF10: 99.30187411 | AG10: 98.65336838 | AH10: 98.85764179 | AI10: 99.09559785 | AJ10: 98.34538215 | AK10: 12 | AL10: 6 | AM10: 6 | AN10: 3 | AO10: 7 | AR10: 1 | AU10: 2 | AV10: 1 | BA10: 1 | BK10: 4. Matti (834 pts) | BL10: Matti | BM10: (834 pts) | BN10: (834 | BO10: 834 | BP10: 834
B11: 5. Jurgen-NL 26.886 (942 pts) | C11: Jurgen-NL | D11: 26.886 | E11: 99.62667065 | G11: 5. [x] Stylus 28.144 (808 pts) | H11: [x] Stylus | I11: 28.144 | J11: 98.66417024 | L11: 5. [fS]Palo 27.654 (907 pts) | M11: [fS]Palo | N11: 27.654 | O11: 99.39244006 | Q11: 5. [+] olio 27.792 (860 pts) | R11: [+] olio | S11: 27.792 | T11: 99.05564434 | V11: 5. Gol_V8 ( 17 ) 26.260 (785 pts) | W11: Gol_V8 ( 17 ) | X11: 26.26 | Y11: 98.48068968 | AA11: 5 | AB11: Jurgen-NL | AC11: 688 | AD11: 99.62667065 | AE11: 97.52766357 | AF11: 99.62667065 | AG11: 96.93227235 | AH11: 97.55520792 | AI11: 97.12334738 | AJ11: 96.40081958 | AK11: 5 | AL11: 8 | AM11: 14 | AN11: 14 | AO11: 11 | AT11: 1 | AW11: 1 | AZ11: 1 | BC11: 2 | BK11: 5. Jurgen-NL (688 pts) | BL11: Jurgen-NL | BM11: (688 pts) | BN11: (688 | BO11: 688 | BP11: 688
B12: 6. [fS]Palo 26.908 (929 pts) | C12: [fS]Palo | D12: 26.908 | E12: 99.54453819 | G12: 6. Matti 28.147 (807 pts) | H12: Matti | I12: 28.147 | J12: 98.65336838 | L12: 6. Matti 27.801 (833 pts) | M12: Matti | N12: 27.801 | O12: 98.85764179 | Q12: 6. [x] Stylus 27.831 (841 pts) | R12: [x] Stylus | S12: 27.831 | T12: 98.91399099 | V12: 6. Gol_v8 26.285 (773 pts) | W12: Gol_v8 | X12: 26.285 | Y12: 98.38404144 | AA12: 6 | AB12: [+] xzeal | AC12: 672 | AD12: 98.26401852 | AE12: 97.44898745 | AF12: 98.26401852 | AG12: 96.79904944 | AH12: 97.90446393 | AI12: 97.73354642 | AJ12: 96.54385897 | AK12: 21 | AL12: 10 | AM12: 13 | AN12: 9 | AO12: 10 | AX12: 1 | AY12: 2 | BB12: 1 | BK12: 6. [+] xzeal (672 pts) | BL12: [+] xzeal | BM12: (672 pts) | BN12: (672 | BO12: 672 | BP12: 672
B13: 7. [+] Badeend 26.916 (925 pts) | C13: [+] Badeend | D13: 26.916 | E13: 99.51467184 | G13: 7. Qpa 28.543 (645 pts) | H13: Qpa | I13: 28.543 | J13: 97.22752313 | L13: 7. [iR] iBlaze² 27.848 (811 pts) | M13: [iR] iBlaze² | N13: 27.848 | O13: 98.68665187 | Q13: 7. Kyna_Musti 27.967 (778 pts) | R13: Kyna_Musti | S13: 27.967 | T13: 98.42002034 | V13: 7. Matti 26.295 (769 pts) | W13: Matti | X13: 26.295 | Y13: 98.34538215 | AA13: 7 | AB13: [iR] iBlaze² | AC13: 653 | AD13: 98.68665187 | AE13: 97.20434548 | AF13: 97.84215635 | AG13: 96.56140856 | AH13: 98.68665187 | AI13: 95.45982856 | AJ13: 97.47168207 | AK13: 30 | AL13: 11 | AM13: 7 | AN13: 16 | AO13: 9 | AV13: 1 | AX13: 1 | AZ13: 1 | BE13: 1 | BK13: 7. [iR] iBlaze² (653 pts) | BL13: [iR] iBlaze² | BM13: (653 pts) | BN13: (653 | BO13: 653 | BP13: 653
B14: 8. majstorfantac 26.945 (909 pts) | C14: majstorfantac | D14: 26.945 | E14: 99.40640633 | G14: 8. Jurgen-NL 28.625 (616 pts) | H14: Jurgen-NL | I14: 28.625 | J14: 96.93227235 | L14: 8. majstorfantac 28.014 (737 pts) | M14: majstorfantac | N14: 28.014 | O14: 98.08273002 | Q14: 8. AnnicK 28.074 (732 pts) | R14: AnnicK | S14: 28.074 | T14: 98.03138166 | V14: 8. [x] Stylus 26.484 (685 pts) | W14: [x] Stylus | X14: 26.484 | Y14: 97.61472146 | AA14: 8 | AB14: AnnicK | AC14: 624 | AD14: 98.03138166 | AE14: 96.97169061 | AF14: 97.11789741 | AG14: 95.92049833 | AH14: 97.38785608 | AI14: 98.03138166 | AJ14: 96.40081958 | AK14: 34 | AL14: 19 | AM14: 15 | AN14: 8 | AO14: 11 | AW14: 1 | AZ14: 1 | BD14: 1 | BH14: 1 | BK14: 8. AnnicK (624 pts) | BL14: AnnicK | BM14: (624 pts) | BN14: (624 | BO14: 624 | BP14: 624
B15: 9. majstorfantac 26.963 (899 pts) | C15: majstorfantac | D15: 26.963 | E15: 99.33920705 | G15: 9. [PahaJori] Ender 28.657 (605 pts) | H15: [PahaJori] Ender | I15: 28.657 | J15: 96.81705253 | L15: 9. messi 28.021 (735 pts) | M15: messi | N15: 28.021 | O15: 98.05726343 | Q15: 9. [+] xzeal 28.156 (698 pts) | R15: [+] xzeal | S15: 28.156 | T15: 97.73354642 | V15: 9. [iR] iBlaze² 26.521 (670 pts) | W15: [iR] iBlaze² | X15: 26.521 | Y15: 97.47168207 | AA15: 9 | AB15: [+] dede | AC15: 561 | AD15: 99.88358133 | AE15: 99.5780178 | AG15: 99.78756346 | AH15: 99.88358133 | AI15: 99.06290862 | AL15: 2 | AM15: 3 | AN15: 4 | AQ15: 1 | AR15: 1 | AS15: 1 | BK15: 9. [+] dede (561 pts) | BL15: [+] dede | BM15: (561 pts) | BN15: (561 | BO15: 561 | BP15: 561
B16: 10. Matti 26.973 (894 pts) | C16: Matti | D16: 26.973 | E16: 99.30187411 | G16: 10. [+] xzeal 28.662 (604 pts) | H16: [+] xzeal | I16: 28.662 | J16: 96.79904944 | L16: 10. majstorfantac 28.032 (730 pts) | M16: majstorfantac | N16: 28.032 | O16: 98.01724452 | Q16: 10. majstorfantac 28.267 (656 pts) | R16: majstorfantac | S16: 28.267 | T16: 97.3303792 | V16: 10. [+] xzeal 26.761 (580 pts) | W16: [+] xzeal | X16: 26.761 | Y16: 96.54385897 | AA16: 10 | AB16: GOl V8 | AC16: 554 | AD16: 99.40464685 | AE16: 97.49922709 | AF16: 98.54028224 | AG16: 96.03931876 | AH16: 96.01266053 | AJ16: 99.40464685 | AK16: 18 | AL16: 16 | AM16: 18 | AO16: 4 | AS16: 1 | BE16: 1 | BG16: 2 | BK16: 10. GOl V8 (554 pts) | BL16: GOl V8 | BM16: (554 pts) | BN16: (554 | BO16: 554 | BP16: 554
B17: 11. messi 26.992 (884 pts) | C17: messi | D17: 26.992 | E17: 99.23094154 | G17: 11. [iR] iBlaze² 28.728 (582 pts) | H17: [iR] iBlaze² | I17: 28.728 | J17: 96.56140856 | L17: 11. [+] xzeal 28.063 (717 pts) | M17: [+] xzeal | N17: 28.063 | O17: 97.90446393 | Q17: 11. Jurgen-NL 28.324 (635 pts) | R17: Jurgen-NL | S17: 28.324 | T17: 97.12334738 | V17: 11. Jurgen-NL 26.798 (567 pts) | W17: Jurgen-NL | X17: 26.798 | Y17: 96.40081958 | AA17: 11 | AB17: messi | AC17: 547 | AD17: 99.23094154 | AE17: 95.57846442 | AF17: 99.23094154 | AG17: 94.75029705 | AH17: 98.05726343 | AI17: 93.82536685 | AJ17: 92.02845324 | AK17: 13 | AL17: 21 | AM17: 12 | AN17: 17 | AO17: 20 | BA17: 1 | BB17: 1 | BF17: 1 | BI17: 1 | BK17: 11. messi (547 pts) | BL17: messi | BM17: (547 pts) | BN17: (547 | BO17: 547 | BP17: 547
B18: 12. batjunior 26.999 (880 pts) | C18: batjunior | D18: 26.999 | E18: 99.20480848 | G18: 12. majstorfantac 28.731 (581 pts) | H18: majstorfantac | I18: 28.731 | J18: 96.5506067 | L18: 12. Jurgen-NL 28.159 (679 pts) | M18: Jurgen-NL | N18: 28.159 | O18: 97.55520792 | Q18: 12. majstorfantac 28.353 (624 pts) | R18: majstorfantac | S18: 28.353 | T18: 97.0180154 | V18: 12. AnnicK 26.798 (567 pts) | W18: AnnicK | X18: 26.798 | Y18: 96.40081958 | AA18: 12 | AB18: [fS]Palo | AC18: 533 | AD18: 99.54453819 | AE18: 99.25919295 | AF18: 99.54453819 | AG18: 98.84060058 | AH18: 99.39244006 | AK18: 6 | AL18: 4 | AM18: 5 | AS18: 1 | AT18: 1 | AU18: 1 | BK18: 12. [fS]Palo (533 pts) | BL18: [fS]Palo | BM18: (533 pts) | BN18: (533 | BO18: 533 | BP18: 533
B19: 13. Kyna_Musti 27.034 (862 pts) | C19: Kyna_Musti | D19: 27.034 | E19: 99.07414321 | G19: 13. GOl V8 28.873 (537 pts) | H19: GOl V8 | I19: 28.873 | J19: 96.03931876 | L19: 13. AnnicK 28.205 (661 pts) | M19: AnnicK | N19: 28.205 | O19: 97.38785608 | Q19: 13. pozdro600 28.382 (614 pts) | R19: pozdro600 | S19: 28.382 | T19: 96.91268342 | V19: 13. Ninjinha_br 26.801 (566 pts) | W19: Ninjinha_br | X19: 26.801 | Y19: 96.38922179 | AA19: 13 | AB19: majstorfantac | AC19: 516 | AD19: 99.40640633 | AE19: 97.84253056 | AF19: 99.40640633 | AG19: 96.5506067 | AH19: 98.08273002 | AI19: 97.3303792 | AK19: 8 | AL19: 12 | AM19: 8 | AN19: 10 | AW19: 2 | AY19: 1 | BA19: 1 | BK19: 13. majstorfantac (516 pts) | BL19: majstorfantac | BM19: (516 pts) | BN19: (516 | BO19: 516 | BP19: 516
B20: 14. [x] Whiplash 27.054 (852 pts) | C20: [x] Whiplash | D20: 27.054 | E20: 98.99947734 | G20: 14. majstorfantac 28.886 (533 pts) | H20: majstorfantac | I20: 28.886 | J20: 95.99251071 | L20: 14. JJ Nylander 28.539 (548 pts) | M20: JJ Nylander | N20: 28.539 | O20: 96.1727362 | Q20: 14. majstorfantac 28.564 (555 pts) | R20: majstorfantac | S20: 28.564 | T20: 96.25163446 | V20: 14. [PahaJori] Ender 27.127 (467 pts) | W20: [PahaJori] Ender | X20: 27.127 | Y20: 95.12892875 | AA20: 14 | AB20: pozdro600 | AC20: 489 | AD20: 97.04696483 | AE20: 95.25457695 | AF20: 97.04696483 | AG20: 94.67468405 | AH20: 94.53923673 | AI20: 96.91268342 | AJ20: 93.09931573 | AK20: 35 | AL20: 22 | AM20: 20 | AN20: 15 | AO20: 18 | BD20: 1 | BG20: 1 | BI20: 1 | BK20: 14. pozdro600 (489 pts) | BL20: pozdro600 | BM20: (489 pts) | BN20: (489 | BO20: 489 | BP20: 489
B21: 15. majstorfantac 27.137 (811 pts) | C21: majstorfantac | D21: 27.137 | E21: 98.68961398 | G21: 15. Shaytun 28.898 (529 pts) | H21: Shaytun | I21: 28.898 | J21: 95.94930328 | L21: 15. GOl V8 28.583 (534 pts) | M21: =LEFT(RIGHT(L21,LEN(L21)-4),LEN(RIGHT(L21,LEN(L21)-4))-19) -> GOl V8 | N21: =VALUE(LEFT(RIGHT(L21,19+0),6))/1000 -> 28.583 | O21: =100-(N21-N$7)/N$7*100 -> 96.01266053 | Q21: 15. majstorfantac 28.722 (508 pts) | R21: majstorfantac | S21: 28.722 | T21: 95.67775679 | V21: 15. Fa la la la la 27.156 (459 pts) | W21: =LEFT(RIGHT(V21,LEN(V21)-4),LEN(RIGHT(V21,LEN(V21)-4))-19) -> Fa la la la la | X21: =VALUE(LEFT(RIGHT(V21,19+0),6))/1000 -> 27.156 | Y21: =100-(X21-X$7)/X$7*100 -> 95.01681679 | AA21: 15 | AB21: Shaytun | AC21: 472 | AD21: 98.0437542 | AE21: 94.73389937 | AF21: 98.0437542 | AG21: 95.94930328 | AH21: 95.72889002 | AI21: 92.87011478 | AJ21: 91.07743457 | AK21: 24 | AL21: 17 | AM21: 19 | AN21: 19 | AO21: 21 | BF21: 1 | BH21: 2 | BK21: 15. Shaytun (472 pts) | BL21: Shaytun | BM21: (472 pts) | BN21: (472 | BO21: 472 | BP21: 472
B22: 16. Double O Seven 27.173 (794 pts) | C22: Double O Seven | D22: 27.173 | E22: 98.55521541 | G22: 16. \/\/ | |_ |_ 28.903 (528 pts) | H22: \/\/ | |_ |_ | I22: 28.903 | J22: 95.93130018 | L22: 16. Shaytun 28.661 (512 pts) | M22: Shaytun | N22: 28.661 | O22: 95.72889002 | Q22: 16. [iR] iBlaze² 28.782 (491 pts) | R22: =LEFT(RIGHT(Q22,LEN(Q22)-4),LEN(RIGHT(Q22,LEN(Q22)-4))-19) -> [iR] iBlaze² | S22: =VALUE(LEFT(RIGHT(Q22,19+0),6))/1000 -> 28.782 | T22: =100-(S22-S$7)/S$7*100 -> 95.45982856 | V22: 16. Qpa 27.623 (349 pts) | W22: Qpa | X22: 27.623 | Y22: 93.21142769 | AA22: 16 | AB22: majstorfantac | AC22: 440 | AD22: 99.40640633 | AE22: 97.84253056 | AF22: 99.40640633 | AG22: 96.5506067 | AH22: 98.08273002 | AI22: 97.3303792 | AK22: 8 | AL22: 12 | AM22: 8 | AN22: 10 | AW22: 2 | AY22: 1 | BA22: 1 | BK22: 16. majstorfantac (440 pts) | BL22: majstorfantac | BM22: (440 pts) | BN22: (440 | BO22: 440 | BP22: 440
B23: 17. GOl V8 27.177 (793 pts) | C23: GOl V8 | D23: 27.177 | E23: 98.54028224 | G23: 17. AnnicK 28.906 (527 pts) | H23: AnnicK | I23: 28.906 | J23: 95.92049833 | L23: 17. pozdro600 28.988 (427 pts) | M23: pozdro600 | N23: 28.988 | O23: 94.53923673 | Q23: 17. messi 29.232 (383 pts) | R23: messi | S23: 29.232 | T23: 93.82536685 | V23: 17. \/\/ | |_ |_ 27.629 (348 pts) | W23: \/\/ | |_ |_ | X23: 27.629 | Y23: 93.18823211 | AA23: 17 | AB23: Qpa | AC23: 426 | AD23: 98.37601732 | AE23: 95.58380887 | AF23: 98.37601732 | AG23: 97.22752313 | AI23: 93.52026733 | AJ23: 93.21142769 | AK23: 19 | AL23: 7 | AN23: 18 | AO23: 16 | AP23: =IF(SUMIF($AK23:$AO23,AP$6)/AP$6=0,"",SUMIF($AK23:$AO23,AP$6)/AP$6) ->  | AV23: 1 | BE23: 1 | BF23: =IF(SUMIF($AK23:$AO23,BF$6)/BF$6=0,"",SUMIF($AK23:$AO23,BF$6)/BF$6) ->  | BG23: 1 | BH23: 1 | BK23: 17. Qpa (426 pts) | BL23: Qpa | BM23: (426 pts) | BN23: (426 | BO23: 426 | BP23: 426
B24: 18. Qpa 27.221 (772 pts) | C24: Qpa | D24: 27.221 | E24: 98.37601732 | G24: 18. Bleached Anus 28.932 (519 pts) | H24: Bleached Anus | I24: 28.932 | J24: 95.82688222 | Q24: 18. Qpa 29.316 (366 pts) | R24: Qpa | S24: 29.316 | T24: 93.52026733 | V24: 18. pozdro600 27.652 (343 pts) | W24: pozdro600 | X24: 27.652 | Y24: 93.09931573 | AA24: 18 | AB24: [PahaJori] Ender | AC24: 404 | AD24: 99.67893676 | AE24: 97.20830601 | AF24: 99.67893676 | AG24: 96.81705253 | AJ24: 95.12892875 | AK24: 3 | AL24: 9 | AO24: 14 | AR24: 1 | AX24: 1 | BC24: 1 | BK24: 18. [PahaJori] Ender (404 pts) | BL24: [PahaJori] Ender | BM24: (404 pts) | BN24: (404 | BO24: 404 | BP24: 404
B25: 19. \/\/ | |_ |_ 27.247 (761 pts) | C25: \/\/ | |_ |_ | D25: 27.247 | E25: 98.27895169 | G25: 19. messi 29.231 (441 pts) | H25: messi | I25: 29.231 | J25: 94.75029705 | Q25: 19. Shaytun 29.495 (332 pts) | R25: Shaytun | S25: 29.495 | T25: 92.87011478 | V25: 19. Jaka 27.728 (329 pts) | W25: Jaka | X25: 27.728 | Y25: 92.80550508 | AA25: 19 | AB25: JJ Nylander | AC25: 348 | AD25: 96.1727362 | AE25: 93.66208104 | AF25: 95.63204659 | AG25: 94.67108343 | AH25: 96.1727362 | AI25: 91.28287084 | AJ25: 90.55166815 | AK25: 41 | AL25: 23 | AM25: 16 | AN25: 21 | AO25: 22 | BE25: 1 | BK25: 19. JJ Nylander (348 pts) | BL25: JJ Nylander | BM25: (348 pts) | BN25: (348 | BO25: 348 | BP25: 348
B26: 20. [+] xzeal 27.251 (759 pts) | C26: [+] xzeal | D26: 27.251 | E26: 98.26401852 | G26: 20. pozdro600 29.252 (435 pts) | H26: pozdro600 | I26: 29.252 | J26: 94.67468405 | Q26: 20. Augusto 29.585 (316 pts) | R26: Augusto | S26: 29.585 | T26: 92.54322243 | V26: 20. messi 27.929 (293 pts) | W26: messi | X26: 27.929 | Y26: 92.02845324 | AA26: 20 | AB26: Kyna_Musti | AC26: 328 | AD26: 99.07414321 | AE26: 98.74708177 | AF26: 99.07414321 | AI26: 98.42002034 | AK26: 15 | AN26: 7 | AV26: 1 | BD26: 1 | BK26: 20. Kyna_Musti (328 pts) | BL26: Kyna_Musti | BM26: (328 pts) | BN26: (328 | BO26: 328 | BP26: 328
B27: 21. lds 27.255 (757 pts) | C27: lds | D27: 27.255 | E27: 98.24908534 | G27: 21. JJ Nylander 29.253 (435 pts) | H27: JJ Nylander | I27: 29.253 | J27: 94.67108343 | Q27: 21. JJ Nylander 29.932 (262 pts) | R27: JJ Nylander | S27: 29.932 | T27: 91.28287084 | V27: 21. Shaytun 28.175 (254 pts) | W27: Shaytun | X27: 28.175 | Y27: 91.07743457 | AA27: 21 | AB27: \/\/ | |_ |_ | AC27: 327 | AD27: 98.27895169 | AE27: 95.79949466 | AF27: 98.27895169 | AG27: 95.93130018 | AJ27: 93.18823211 | AK27: 20 | AL27: 18 | AO27: 17 | BF27: 1 | BG27: 1 | BI27: 1 | BK27: 21. \/\/ | |_ |_ (327 pts) | BL27: \/\/ | |_ |_ | BM27: (327 pts) | BN27: (327 | BO27: 327 | BP27: 327
B28: 22. Nico Hulkenberg 27.261 (754 pts) | C28: Nico Hulkenberg | D28: 27.261 | E28: 98.22668558 | G28: 22. Nico Hulkenberg 29.333 (417 pts) | H28: Nico Hulkenberg | I28: 29.333 | J28: 94.38303388 | Q28: 22. FliZeR 30.536 (190 pts) | R28: FliZeR | S28: 30.536 | T28: 89.08906 | V28: 22. JJ Nylander 28.311 (235 pts) | W28: JJ Nylander | X28: 28.311 | Y28: 90.55166815 | AA28: 22 | AB28: Sig | AC28: 321 | AD28: 99.42011057 | AE28: 98.57140076 | AF28: 97.72269096 | AJ28: 99.42011057 | AK28: 31 | AO28: 3 | AR28: 1 | BK28: 22. Sig (321 pts) | BL28: Sig | BM28: (321 pts) | BN28: (321 | BO28: 321 | BP28: 321
B29: 23. Shaytun 27.310 (733 pts) | C29: Shaytun | D29: 27.31 | E29: 98.0437542 | G29: 23. Augusto 29.369 (409 pts) | H29: Augusto | I29: 29.369 | J29: 94.25341159 | Q29: 23. JJ Nylander 32.379 (74 pts) | R29: JJ Nylander | S29: 32.379 | T29: 82.39503124 | V29: 23. laf 28.391 (225 pts) | W29: laf | X29: 28.391 | Y29: 90.24239378 | AA29: 23 | AB29: majstorfantac | AC29: 311 | AD29: 99.40640633 | AE29: 97.84253056 | AF29: 99.40640633 | AG29: 96.5506067 | AH29: 98.08273002 | AI29: 97.3303792 | AK29: 8 | AL29: 12 | AM29: 8 | AN29: 10 | AW29: 2 | AY29: 1 | BA29: 1 | BK29: 23. majstorfantac (311 pts) | BL29: majstorfantac | BM29: (311 pts) | BN29: (311 | BO29: 311 | BP29: 311
B30: 24. ROMREI 27.314 (731 pts) | C30: ROMREI | D30: 27.314 | E30: 98.02882103 | G30: 24. JJ Nylander 29.979 (294 pts) | H30: JJ Nylander | I30: 29.979 | J30: 92.05703381 | Q30: 24. Gol_V8 ( 17 ) 43.290 (0 pts) | R30: Gol_V8 ( 17 ) | S30: 43.29 | T30: 42.7647828 | V30: 24. DEAD FISH 31.207 (49 pts) | W30: DEAD FISH | X30: 31.207 | Y30: 79.35593613 | AA30: 24 | AB30: Gol_v8 | AC30: 263 | AD30: 98.38404144 | AE30: 97.2469748 | AF30: 96.10990816 | AJ30: 98.38404144 | AK30: 39 | AO30: 6 | AU30: 1 | BK30: 24. Gol_v8 (263 pts) | BL30: Gol_v8 | BM30: (263 pts) | BN30: (263 | BO30: 263 | BP30: 263
B31: 25. KLE621 27.317 (730 pts) | C31: KLE621 | D31: 27.317 | E31: 98.01762115 | G31: 25. FliZeR 30.902 (181 pts) | H31: FliZeR | I31: 30.902 | J31: 88.73366219 | Q31: 25. DEAD FISH 2:12.389 (0 pts) | R31: DEAD FISH 2: | S31: 132.389 | T31: =100-(S31-S$7)/S$7*100 -> -280.8550051 | V31: 25. Kooler 31.332 (46 pts) | W31: Kooler | X31: 31.332 | Y31: 78.87269494 | AA31: 25 | AB31: Augusto | AC31: 258 | AD31: 96.40857164 | AE31: 94.40173522 | AF31: 96.40857164 | AG31: 94.25341159 | AI31: 92.54322243 | AK31: 38 | AL31: 26 | AN31: 20 | BI31: 1 | BK31: 25. Augusto (258 pts) | BL31: Augusto | BM31: (258 pts) | BN31: (258 | BO31: 258 | BP31: 258
B32: 26. power79 27.318 (730 pts) | C32: power79 | D32: 27.318 | E32: 98.01388785 | G32: 26. DEAD FISH 32.640 (75 pts) | H32: DEAD FISH | I32: 32.64 | J32: 82.47578584 | V32: 26. FliZeR 33.178 (18 pts) | W32: FliZeR | X32: 33.178 | Y32: 71.73618897 | AA32: 26 | AB32: majstorfantac | AC32: 241 | AD32: 99.40640633 | AE32: 97.84253056 | AF32: 99.40640633 | AG32: 96.5506067 | AH32: 98.08273002 | AI32: 97.3303792 | AK32: 8 | AL32: 12 | AM32: 8 | AN32: 10 | AW32: 2 | AY32: 1 | BA32: 1 | BK32: 26. majstorfantac (241 pts) | BL32: majstorfantac | BM32: (241 pts) | BN32: (241 | BO32: 241 | BP32: 241
B33: 27. Fa la la la la 27.332 (724 pts) | C33: Fa la la la la | D33: 27.332 | E33: 97.96162174 | G33: 27. [iR] Etmil 38.123 (6 pts) | H33: [iR] Etmil | I33: 38.123 | J33: 62.73359018 | AA33: 27 | AB33: Fa la la la la | AC33: 236 | AD33: 97.96162174 | AE33: 96.48921927 | AF33: 97.96162174 | AJ33: 95.01681679 | AK33: 28 | AO33: 15 | BD33: 1 | BK33: 27. Fa la la la la (236 pts) | BL33: Fa la la la la | BM33: (236 pts) | BN33: (236 | BO33: 236 | BP33: 236
B34: 28. [FUN] GR8 Arjen! 27.347 (717 pts) | C34: [FUN] GR8 Arjen! | D34: 27.347 | E34: 97.90562234 | G34: 28. I-IenR!Kubica 42.580 (1 pts) | H34: I-IenR!Kubica | I34: 42.58 | J34: 46.68562993 | AA34: 28 | AB34: Nico Hulkenberg | AC34: 234 | AD34: 98.22668558 | AE34: 96.30485973 | AF34: 98.22668558 | AG34: 94.38303388 | AK34: 23 | AL34: 25 | BK34: 28. Nico Hulkenberg (234 pts) | BL34: Nico Hulkenberg | BM34: (234 pts) | BN34: (234 | BO34: 234 | BP34: 234
B35: 29. [iR] iBlaze² 27.364 (710 pts) | C35: [iR] iBlaze² | D35: 27.364 | E35: 97.84215635 | AA35: 29 | AB35: Bleached Anus | AC35: 226 | AD35: 96.87896662 | AE35: 96.35292442 | AF35: 96.87896662 | AG35: 95.82688222 | AK35: 36 | AL35: 20 | BI35: 1 | BK35: 29. Bleached Anus (226 pts) | BL35: Bleached Anus | BM35: (226 pts) | BN35: (226 | BO35: 226 | BP35: 226
B36: 30. Sig 27.396 (697 pts) | C36: Sig | D36: 27.396 | E36: 97.72269096 | AA36: 30 | AB36: JJ Nylander | AC36: 212 | AD36: 96.1727362 | AE36: 93.66208104 | AF36: 95.63204659 | AG36: 94.67108343 | AH36: 96.1727362 | AI36: 91.28287084 | AJ36: 90.55166815 | AK36: 41 | AL36: 23 | AM36: 16 | AN36: 21 | AO36: 22 | BE36: 1 | BK36: 30. JJ Nylander (212 pts) | BL36: JJ Nylander | BM36: (212 pts) | BN36: (212 | BO36: 212 | BP36: 212
B37: 31. RiantHoff 27.426 (685 pts) | C37: RiantHoff | D37: 27.426 | E37: 97.61069215 | AA37: 31 | AB37: [+] Badeend | AC37: 185 | AD37: 99.51467184 | AE37: 99.51467184 | AF37: 99.51467184 | AK37: 7 | AV37: 1 | BK37: 31. [+] Badeend (185 pts) | BL37: [+] Badeend | BM37: (185 pts) | BN37: (185 | BO37: 185 | BP37: 185
B38: 32. put 27.552 (636 pts) | C38: put | D38: 27.552 | E38: 97.14029717 | AA38: 32 | AB38: batjunior | AC38: 176 | AD38: 99.20480848 | AE38: 99.20480848 | AF38: 99.20480848 | AK38: 14 | BC38: 1 | BK38: 32. batjunior (176 pts) | BL38: batjunior | BM38: (176 pts) | BN38: (176 | BO38: 176 | BP38: 176
B39: 33. AnnicK 27.558 (634 pts) | C39: AnnicK | D39: 27.558 | E39: 97.11789741 | AA39: 33 | AB39: [+] olio | AC39: 172 | AD39: 99.05564434 | AE39: 99.05564434 | AF39: =IF(SUMIF(C$7:C$995,$AB39,E$7:E$995)=0,"",VLOOKUP($AB39,C$7:E$995,3,FALSE)) ->  | AG39: =IF(SUMIF(H$7:H$996,$AB39,J$7:J$996)=0,"",VLOOKUP($AB39,H$7:J$996,3,FALSE)) ->  | AH39: =IF(SUMIF(M$7:M$995,$AB39,O$7:O$995)=0,"",VLOOKUP($AB39,M$7:O$995,3,FALSE)) ->  | AI39: =IF(SUMIF(R$7:R$995,$AB39,T$7:T$995)=0,"",VLOOKUP($AB39,R$7:T$995,3,FALSE)) -> 99.05564434 | AJ39: =IF(SUMIF(W$7:W$995,$AB39,Y$7:Y$995)=0,"",VLOOKUP($AB39,W$7:Y$995,3,FALSE)) ->  | AN39: 5 | AP39: =IF(SUMIF($AK39:$AO39,AP$6)/AP$6=0,"",SUMIF($AK39:$AO39,AP$6)/AP$6) ->  | AT39: 1 | BF39: =IF(SUMIF($AK39:$AO39,BF$6)/BF$6=0,"",SUMIF($AK39:$AO39,BF$6)/BF$6) ->  | BK39: 33. [+] olio (172 pts) | BL39: [+] olio | BM39: (172 pts) | BN39: (172 | BO39: 172 | BP39: 172
B40: 34. pozdro600 27.577 (627 pts) | C40: pozdro600 | D40: 27.577 | E40: 97.04696483 | AA40: 34 | AB40: [x] Whiplash | AC40: 170 | AD40: 98.99947734 | AE40: 98.99947734 | AF40: 98.99947734 | AK40: 16 | BE40: 1 | BK40: 34. [x] Whiplash (170 pts) | BL40: [x] Whiplash | BM40: (170 pts) | BN40: (170 | BO40: 170 | BP40: 170
B41: 35. Bleached Anus 27.622 (611 pts) | C41: Bleached Anus | D41: 27.622 | E41: 96.87896662 | AA41: 35 | AB41: Jaka | AC41: 162 | AD41: 95.35578287 | AE41: 94.08064398 | AF41: 95.35578287 | AJ41: 92.80550508 | AK41: 43 | AO41: 19 | BH41: 1 | BK41: 35. Jaka (162 pts) | BL41: Jaka | BM41: (162 pts) | BN41: (162 | BO41: 162 | BP41: 162
B42: 36. Qri 27.643 (604 pts) | C42: Qri | D42: 27.643 | E42: 96.80056746 | AA42: 36 | AB42: Double O Seven | AC42: 158 | AD42: 98.55521541 | AE42: 98.55521541 | AF42: 98.55521541 | AK42: 17 | BF42: 1 | BK42: 36. Double O Seven (158 pts) | BL42: Double O Seven | BM42: (158 pts) | BN42: (158 | BO42: 158 | BP42: 158
B43: 37. Augusto 27.748 (568 pts) | C43: Augusto | D43: 27.748 | E43: 96.40857164 | AA43: 37 | AB43: Gol_V8 ( 17 ) | AC43: 157 | AD43: 98.48068968 | AE43: 70.62273624 | AI43: 42.7647828 | AJ43: 98.48068968 | AN43: 25 | AO43: 5 | AT43: 1 | BK43: 37. Gol_V8 ( 17 ) (157 pts) | BL43: Gol_V8 ( 17 ) | BM43: (157 pts) | BN43: (157 | BO43: 157 | BP43: 157
B44: 38. Gol_v8 27.828 (543 pts) | C44: Gol_v8 | D44: 27.828 | E44: 96.10990816 | AA44: 38 | AB44: laf | AC44: 152 | AD44: 96.01284253 | AE44: 93.12761816 | AF44: 96.01284253 | AJ44: 90.24239378 | AK44: 40 | AO44: 24 | BK44: 38. laf (152 pts) | BL44: laf | BM44: (152 pts) | BN44: (152 | BO44: 152 | BP44: 152
B45: 39. laf 27.854 (534 pts) | C45: laf | D45: 27.854 | E45: 96.01284253 | AA45: 39 | AB45: lds | AC45: 151 | AD45: 98.24908534 | AE45: 98.24908534 | AF45: 98.24908534 | AK45: 22 | BK45: 39. lds (151 pts) | BL45: lds | BM45: (151 pts) | BN45: (151 | BO45: 151 | BP45: 151
B46: 40. JJ Nylander 27.956 (504 pts) | C46: JJ Nylander | D46: 27.956 | E46: 95.63204659 | AA46: 40 | AB46: ROMREI | AC46: 146 | AD46: 98.02882103 | AE46: 98.02882103 | AF46: 98.02882103 | AK46: 25 | BK46: 40. ROMREI (146 pts) | BL46: ROMREI | BM46: (146 pts) | BN46: (146 | BO46: 146 | BP46: 146
B47: 41. Jaka 28.030 (483 pts) | C47: Jaka | D47: 28.03 | E47: 95.35578287 | AA47: 41 | AB47: KLE621 | AC47: 146 | AD47: 98.01762115 | AE47: 98.01762115 | AF47: 98.01762115 | AK47: 26 | BK47: 41. KLE621 (146 pts) | BL47: KLE621 | BM47: (146 pts) | BN47: (146 | BO47: 146 | BP47: 146
B48: 42. JJ Nylander 28.168 (447 pts) | C48: JJ Nylander | D48: 28.168 | E48: 94.84058837 | AA48: 42 | AB48: power79 | AC48: 146 | AD48: 98.01388785 | AE48: 98.01388785 | AF48: 98.01388785 | AK48: 27 | BK48: 42. power79 (146 pts) | BL48: power79 | BM48: (146 pts) | BN48: (146 | BO48: 146 | BP48: 146
B49: 43. DEAD FISH 28.249 (427 pts) | C49: DEAD FISH | D49: 28.249 | E49: 94.53819159 | AA49: 43 | AB49: [FUN] GR8 Arjen! | AC49: 143 | AD49: 97.90562234 | AE49: 97.90562234 | AF49: 97.90562234 | AK49: 29 | BK49: 43. [FUN] GR8 Arjen! (143 pts) | BL49: [FUN] GR8 Arjen! | BM49: (143 pts) | BN49: (143 | BO49: 143 | BP49: 143
B50: 44. Xenor 29.309 (236 pts) | C50: Xenor | D50: 29.309 | E50: 90.58090047 | AA50: 44 | AB50: RiantHoff | AC50: 137 | AD50: 97.61069215 | AE50: 97.61069215 | AF50: 97.61069215 | AK50: 32 | BK50: 44. RiantHoff (137 pts) | BL50: RiantHoff | BM50: (137 pts) | BN50: (137 | BO50: 137 | BP50: 137
B51: 45. kikiriki 29.844 (177 pts) | C51: kikiriki | D51: 29.844 | E51: 88.58358844 | AA51: 45 | AB51: put | AC51: 127 | AD51: 97.14029717 | AE51: 97.14029717 | AF51: 97.14029717 | AK51: 33 | BK51: 45. put (127 pts) | BL51: put | BM51: (127 pts) | BN51: (127 | BO51: 127 | BP51: 127
B52: 46. FliZeR 29.900 (172 pts) | C52: FliZeR | D52: 29.9 | E52: 88.37452401 | AA52: 46 | AB52: Qri | AC52: 120 | AD52: 96.80056746 | AE52: 96.80056746 | AF52: 96.80056746 | AK52: 37 | BK52: 46. Qri (120 pts) | BL52: Qri | BM52: (120 pts) | BN52: (120 | BO52: 120 | BP52: 120
AA53: 47 | AB53: Ninjinha_br | AC53: 113 | AD53: 96.38922179 | AE53: 96.38922179 | AJ53: 96.38922179 | AO53: 13 | BB53: 1 | BK53: 47. Ninjinha_br (113 pts) | BL53: Ninjinha_br | BM53: (113 pts) | BN53: (113 | BO53: 113 | BP53: 113
AA54: 48 | AB54: DEAD FISH | AC54: 110 | AD54: 94.53819159 | AE54: 85.45663785 | AF54: 94.53819159 | AG54: 82.47578584 | AJ54: 79.35593613 | AK54: 44 | AL54: 29 | AO54: 25 | BK54: 48. DEAD FISH (110 pts) | BL54: DEAD FISH | BM54: (110 pts) | BN54: (110 | BO54: 110 | BP54: 110
AA55: 49 | AB55: FliZeR | AC55: 74 | AD55: 89.08906 | AE55: 84.48335879 | AF55: 88.37452401 | AG55: 88.73366219 | AI55: 89.08906 | AJ55: 71.73618897 | AK55: 47 | AL55: 27 | AN55: 23 | AO55: 27 | AP55: =IF(SUMIF($AK55:$AO55,AP$6)/AP$6=0,"",SUMIF($AK55:$AO55,AP$6)/AP$6) ->  | BF55: =IF(SUMIF($AK55:$AO55,BF$6)/BF$6=0,"",SUMIF($AK55:$AO55,BF$6)/BF$6) ->  | BK55: 49. FliZeR (74 pts) | BL55: FliZeR | BM55: (74 pts) | BN55: (74 | BO55: 74 | BP55: 74
AA56: 50 | AB56: Xenor | AC56: 47 | AD56: 90.58090047 | AE56: 90.58090047 | AF56: 90.58090047 | AK56: 45 | BK56: 50. Xenor (47 pts) | BL56: Xenor | BM56: (47 pts) | BN56: (47 | BO56: 47 | BP56: 47
AA57: 51 | AB57: FliZeR | AC57: 38 | AD57: 89.08906 | AE57: 84.48335879 | AF57: 88.37452401 | AG57: 88.73366219 | AI57: 89.08906 | AJ57: 71.73618897 | AK57: 47 | AL57: 27 | AN57: 23 | AO57: 27 | BK57: 51. FliZeR (38 pts) | BL57: FliZeR | BM57: (38 pts) | BN57: (38 | BO57: 38 | BP57: 38
AA58: 52 | AB58: kikiriki | AC58: 35 | AD58: 88.58358844 | AE58: 88.58358844 | AF58: 88.58358844 | AK58: 46 | BK58: 52. kikiriki (35 pts) | BL58: kikiriki | BM58: (35 pts) | BN58: (35 | BO58: 35 | BP58: 35
AA59: 53 | AB59: Kooler | AC59: 9 | AD59: 78.87269494 | AE59: 78.87269494 | AJ59: 78.87269494 | AO59: 26 | BK59: 53. Kooler (9 pts) | BL59: Kooler | BM59: (9 pts) | BN59: (9 | BO59: 9 | BP59: 9
AA60: 54 | AB60: [iR] Etmil | AC60: 1 | AD60: 62.73359018 | AE60: 62.73359018 | AG60: 62.73359018 | AL60: 30 | BK60: 54. [iR] Etmil (1 pts) | BL60: [iR] Etmil | BM60: (1 pts) | BN60: (1 | BO60: 1 | BP60: 1
AA61: 55 | AB61: I-IenR!Kubica | AC61: 0 | AD61: 46.68562993 | AE61: 46.68562993 | AG61: 46.68562993 | AL61: 31 | BK61: 55. I-IenR!Kubica (0 pts) | BL61: I-IenR!Kubica | BM61: (0 pts) | BN61: (0 | BO61: 0 | BP61: 0
BM72: =RIGHT(BK72,10) ->  | BN72: =LEFT(BM72,5) ->  | BO72: =REPLACE(BN72,SEARCH("(",BN72),1,"") ->  | BP72: =TRIM(BO72) -> 

Sheet week5
B1: *** Weekly Hot Lap Competition Results
B3: Start Time: 2014-12-27 16:39:46
B4: End Time: 2015-01-03 16:39:46
B6: * Results for Sc_Gogobay, AntiSlider: | G6: * Results for Sc_Gogobay, EasySlider: | L6: * Results for Sc_Gogobay, Spinner: | Q6: * Results for Sc_Gogobay, Slider: | V6: * Results for Sc_Gogobay, Speeder: | AC6: Pts | AD6: Max | AE6: Av | AF6: Anti | AG6: Easy | AH6: Spin | AI6: Slide | AJ6: Speed | AK6: Ant | AL6: Eas | AM6: Spn | AN6: Sld | AO6: Spd | AP6: 1 | AQ6: 2 | AR6: 3 | AS6: 4 | AT6: 5 | AU6: 6 | AV6: 7 | AW6: 8 | AX6: 9 | AY6: 10 | AZ6: 11 | BA6: 12 | BB6: 13 | BC6: 14 | BD6: 15 | BE6: 16 | BF6: 17 | BG6: 18 | BH6: 19 | BI6: 20 | BK6: Overall Results:
B7: 1. [x] Mike Nike 27.399 (1000 pts) | C7: =LEFT(RIGHT(B7,LEN(B7)-4),LEN(RIGHT(B7,LEN(B7)-4))-19) -> [x] Mike Nike | D7: =VALUE(LEFT(RIGHT(B7,19+0),6))/1000 -> 27.399 | E7: 100 | G7: 1. [+] Tinjovic 27.936 (1000 pts) | H7: =LEFT(RIGHT(G7,LEN(G7)-4),LEN(RIGHT(G7,LEN(G7)-4))-19) -> [+] Tinjovic | I7: =VALUE(LEFT(RIGHT(G7,19+0),6))/1000 -> 27.936 | J7: 100 | L7: 1. [x] Mike Nike 27.918 (1000 pts) | M7: =LEFT(RIGHT(L7,LEN(L7)-4),LEN(RIGHT(L7,LEN(L7)-4))-19) -> [x] Mike Nike | N7: =VALUE(LEFT(RIGHT(L7,19+0),6))/1000 -> 27.918 | O7: 100 | Q7: 1. [+] dede 27.853 (1000 pts) | R7: =LEFT(RIGHT(Q7,LEN(Q7)-4),LEN(RIGHT(Q7,LEN(Q7)-4))-19) -> [+] dede | S7: =VALUE(LEFT(RIGHT(Q7,19+0),6))/1000 -> 27.853 | T7: 100 | V7: 1. [+] Tinjovic 25.965 (1000 pts) | W7: =LEFT(RIGHT(V7,LEN(V7)-4),LEN(RIGHT(V7,LEN(V7)-4))-19) -> [+] Tinjovic | X7: =VALUE(LEFT(RIGHT(V7,19+0),6))/1000 -> 25.965 | Y7: 100 | AA7: 1 | AB7: =BL7 -> [+] Tinjovic | AC7: =BP7 -> 988 | AD7: =MAX(AF7:AJ7) -> 100 | AE7: =SUM(AF7:AJ7)/COUNT(AF7:AJ7) -> 99.92715662 | AF7: =IF(SUMIF(C$7:C$995,$AB7,E$7:E$995)=0,"",VLOOKUP($AB7,C$7:E$995,3,FALSE)) -> 99.89780649 | AG7: =IF(SUMIF(H$7:H$996,$AB7,J$7:J$996)=0,"",VLOOKUP($AB7,H$7:J$996,3,FALSE)) -> 100 | AH7: =IF(SUMIF(M$7:M$995,$AB7,O$7:O$995)=0,"",VLOOKUP($AB7,M$7:O$995,3,FALSE)) -> 99.97134465 | AI7: =IF(SUMIF(R$7:R$995,$AB7,T$7:T$995)=0,"",VLOOKUP($AB7,R$7:T$995,3,FALSE)) -> 99.76663196 | AJ7: =IF(SUMIF(W$7:W$995,$AB7,Y$7:Y$995)=0,"",VLOOKUP($AB7,W$7:Y$995,3,FALSE)) -> 100 | AK7: =IF(AF7="","",RANK(AF7,AF$7:AF$999,0)) -> 2 | AL7: =IF(AG7="","",RANK(AG7,AG$7:AG$999,0)) -> 1 | AM7: 2 | AN7: 3 | AO7: 1 | AP7: =IF(SUMIF($AK7:$AO7,AP$6)/AP$6=0,"",SUMIF($AK7:$AO7,AP$6)/AP$6) -> 2 | AQ7: 2 | AR7: 1 | BF7: =IF(SUMIF($AK7:$AO7,BF$6)/BF$6=0,"",SUMIF($AK7:$AO7,BF$6)/BF$6) ->  | BK7: 1. [+] Tinjovic (988 pts) | BL7: =CONCATENATE(LEFT(RIGHT(BK7,LEN(BK7)-4),LEN(RIGHT(BK7,LEN(BK7)-4))-9)," ") -> [+] Tinjovic | BM7: =RIGHT(BK7,10) -> (988 pts) | BN7: =LEFT(BM7,5) -> (988 | BO7: =REPLACE(BN7,SEARCH("(",BN7),1,"") -> 988 | BP7: =TRIM(BO7) -> 988
B8: 2. [+] Tinjovic 27.427 (983 pts) | C8: =LEFT(RIGHT(B8,LEN(B8)-4),LEN(RIGHT(B8,LEN(B8)-4))-19) -> [+] Tinjovic | D8: 27.427 | E8: =100-(D8-D$7)/D$7*100 -> 99.89780649 | G8: 2. [+] dede 27.959 (986 pts) | H8: =LEFT(RIGHT(G8,LEN(G8)-4),LEN(RIGHT(G8,LEN(G8)-4))-19) -> [+] dede | I8: =VALUE(LEFT(RIGHT(G8,19+0),6))/1000 -> 27.959 | J8: =100-(I8-I$7)/I$7*100 -> 99.91766896 | L8: 2. [+] Tinjovic 27.926 (995 pts) | M8: =LEFT(RIGHT(L8,LEN(L8)-4),LEN(RIGHT(L8,LEN(L8)-4))-19) -> [+] Tinjovic | N8: =VALUE(LEFT(RIGHT(L8,19+0),6))/1000 -> 27.926 | O8: =100-(N8-N$7)/N$7*100 -> 99.97134465 | Q8: 2. [x] Mike Nike 27.905 (970 pts) | R8: =LEFT(RIGHT(Q8,LEN(Q8)-4),LEN(RIGHT(Q8,LEN(Q8)-4))-19) -> [x] Mike Nike | S8: =VALUE(LEFT(RIGHT(Q8,19+0),6))/1000 -> 27.905 | T8: =100-(S8-S$7)/S$7*100 -> 99.81330557 | V8: 2. [x] Mike Nike 26.048 (950 pts) | W8: =LEFT(RIGHT(V8,LEN(V8)-4),LEN(RIGHT(V8,LEN(V8)-4))-19) -> [x] Mike Nike | X8: =VALUE(LEFT(RIGHT(V8,19+0),6))/1000 -> 26.048 | Y8: =100-(X8-X$7)/X$7*100 -> 99.68033892 | AA8: 2 | AB8: =BL8 -> [x] Mike Nike | AC8: =BP8 -> 961 | AD8: 100 | AE8: 99.74623749 | AF8: 100 | AG8: 99.23754296 | AH8: 100 | AI8: 99.81330557 | AJ8: 99.68033892 | AK8: =IF(AF8="","",RANK(AF8,AF$7:AF$999,0)) -> 1 | AL8: 3 | AM8: 1 | AN8: 2 | AO8: 2 | AP8: 2 | AQ8: 2 | AR8: 1 | BK8: 2. [x] Mike Nike (961 pts) | BL8: =CONCATENATE(LEFT(RIGHT(BK8,LEN(BK8)-4),LEN(RIGHT(BK8,LEN(BK8)-4))-9)," ") -> [x] Mike Nike | BM8: =RIGHT(BK8,10) -> (961 pts) | BN8: =LEFT(BM8,5) -> (961 | BO8: =REPLACE(BN8,SEARCH("(",BN8),1,"") -> 961 | BP8: =TRIM(BO8) -> 961
B9: 3. Kyna_Musti 27.512 (936 pts) | C9: =LEFT(RIGHT(B9,LEN(B9)-4),LEN(RIGHT(B9,LEN(B9)-4))-19) -> Kyna_Musti | D9: 27.512 | E9: =100-(D9-D$7)/D$7*100 -> 99.58757619 | G9: 3. [x] Mike Nike 28.149 (885 pts) | H9: [x] Mike Nike | I9: 28.149 | J9: =100-(I9-I$7)/I$7*100 -> 99.23754296 | L9: 3. [+] dede 27.928 (994 pts) | M9: [+] dede | N9: 27.928 | O9: =100-(N9-N$7)/N$7*100 -> 99.96418082 | Q9: 3. [+] Tinjovic 27.918 (963 pts) | R9: [+] Tinjovic | S9: 27.918 | T9: =100-(S9-S$7)/S$7*100 -> 99.76663196 | V9: 3. [+] dede 26.133 (901 pts) | W9: [+] dede | X9: 26.133 | Y9: =100-(X9-X$7)/X$7*100 -> 99.35297516 | AA9: 3 | AB9: [+] dede | AC9: 960 | AD9: 100 | AE9: 99.74112171 | AF9: 99.47078361 | AG9: 99.91766896 | AH9: 99.96418082 | AI9: 100 | AJ9: 99.35297516 | AK9: 4 | AL9: 2 | AM9: 3 | AN9: 1 | AO9: 3 | AP9: 1 | AQ9: 1 | AR9: 2 | AS9: 1 | BK9: 3. [+] dede (960 pts) | BL9: [+] dede | BM9: (960 pts) | BN9: (960 | BO9: 960 | BP9: 960
B10: 4. [+] dede 27.544 (919 pts) | C10: [+] dede | D10: 27.544 | E10: 99.47078361 | G10: 4. [+] olio 28.358 (786 pts) | H10: [+] olio | I10: 28.358 | J10: 98.48940435 | L10: 4. Kyna_Musti 28.241 (831 pts) | M10: Kyna_Musti | N10: 28.241 | O10: 98.84304033 | Q10: 4. Kyna_Musti 27.990 (924 pts) | R10: Kyna_Musti | S10: 27.99 | T10: 99.50813198 | V10: 4. GOl V8 26.562 (695 pts) | W10: GOl V8 | X10: 26.562 | Y10: 97.70075101 | AA10: 4 | AB10: Kyna_Musti | AC10: 799 | AD10: 99.58757619 | AE10: 98.46914461 | AF10: 99.58757619 | AG10: 98.18513746 | AH10: 98.84304033 | AI10: 99.50813198 | AJ10: 96.22183709 | AK10: 3 | AL10: 6 | AM10: 4 | AN10: 4 | AO10: 8 | AR10: 1 | AS10: 2 | AU10: 1 | AW10: 1 | BK10: 4. Kyna_Musti (799 pts) | BL10: Kyna_Musti | BM10: (799 pts) | BN10: (799 | BO10: 799 | BP10: 799
B11: 5. [+] Badeend 27.552 (914 pts) | C11: [+] Badeend | D11: 27.552 | E11: 99.44158546 | G11: 5. [x] Whiplash 28.368 (782 pts) | H11: [x] Whiplash | I11: 28.368 | J11: 98.45360825 | L11: 5. [x] Stylus 28.527 (708 pts) | M11: [x] Stylus | N11: 28.527 | O11: 97.81861165 | Q11: 5. [+] olio 27.995 (921 pts) | R11: [+] olio | S11: 27.995 | T11: 99.49018059 | V11: 5. AnnicK 26.785 (608 pts) | W11: AnnicK | X11: 26.785 | Y11: 96.84190256 | AA11: 5 | AB11: [+] xzeal | AC11: 671 | AD11: 98.76494453 | AE11: 97.4314633 | AF11: 97.83568743 | AG11: 96.82488545 | AH11: 96.9553693 | AI11: 98.76494453 | AJ11: 96.77642981 | AK11: 21 | AL11: 7 | AM11: 8 | AN11: 6 | AO11: 6 | AU11: 2 | AV11: 1 | AW11: 1 | BK11: 5. [+] xzeal (671 pts) | BL11: [+] xzeal | BM11: (671 pts) | BN11: (671 | BO11: 671 | BP11: 671
B12: 6. [x] Whiplash 27.571 (904 pts) | C12: [x] Whiplash | D12: 27.571 | E12: 99.37223986 | G12: 6. Kyna_Musti 28.443 (749 pts) | H12: Kyna_Musti | I12: 28.443 | J12: 98.18513746 | L12: 6. [iR] iBlaze² 28.615 (673 pts) | M12: [iR] iBlaze² | N12: 28.615 | O12: 97.50340282 | Q12: 6. [+] xzeal 28.197 (821 pts) | R12: [+] xzeal | S12: 28.197 | T12: 98.76494453 | V12: 6. [+] xzeal 26.802 (601 pts) | W12: [+] xzeal | X12: 26.802 | Y12: 96.77642981 | AA12: 6 | AB12: [iR] iBlaze² | AC12: 587 | AD12: 97.50340282 | AE12: 96.56905222 | AF12: 97.43421293 | AG12: 95.60423826 | AH12: 97.50340282 | AI12: 95.99684056 | AJ12: 96.30656653 | AK12: 23 | AL12: 10 | AM12: 6 | AN12: 11 | AO12: 7 | AU12: 1 | AV12: 1 | AY12: 1 | AZ12: 1 | BK12: 6. [iR] iBlaze² (587 pts) | BL12: [iR] iBlaze² | BM12: (587 pts) | BN12: (587 | BO12: 587 | BP12: 587
B13: 7. [PahaJori] Ender 27.597 (891 pts) | C13: [PahaJori] Ender | D13: 27.597 | E13: 99.27734589 | G13: 7. [+] xzeal 28.823 (606 pts) | H13: [+] xzeal | I13: 28.823 | J13: 96.82488545 | L13: 7. Sami 28.717 (636 pts) | M13: Sami | N13: 28.717 | O13: 97.13804714 | Q13: 7. AnnicK 28.363 (748 pts) | R13: AnnicK | S13: 28.363 | T13: 98.16895846 | V13: 7. [iR] iBlaze² 26.924 (559 pts) | W13: [iR] iBlaze² | X13: 26.924 | Y13: 96.30656653 | AA13: 7 | AB13: pozdro600 | AC13: 508 | AD13: 97.3794664 | AE13: 95.55449088 | AF13: 97.3794664 | AG13: 94.82030355 | AH13: 95.70527975 | AI13: 96.12968082 | AJ13: 93.73772386 | AK13: 24 | AL13: 12 | AM13: 9 | AN13: 10 | AO13: 12 | AX13: 1 | AY13: 1 | BA13: 2 | BK13: 7. pozdro600 (508 pts) | BL13: pozdro600 | BM13: (508 pts) | BN13: (508 | BO13: 508 | BP13: 508
B14: 8. Jurgen-NL 27.605 (887 pts) | C14: Jurgen-NL | D14: 27.605 | E14: 99.24814774 | G14: 8. Jurgen-NL 28.889 (584 pts) | H14: Jurgen-NL | I14: 28.889 | J14: 96.58863116 | L14: 8. [+] xzeal 28.768 (618 pts) | M14: [+] xzeal | N14: 28.768 | O14: 96.9553693 | Q14: 8. [x] Stylus 28.619 (647 pts) | R14: [x] Stylus | S14: 28.619 | T14: 97.24984741 | V14: 8. Kyna_Musti 26.946 (552 pts) | W14: Kyna_Musti | X14: 26.946 | Y14: 96.22183709 | AA14: 8 | AB14: Qpa | AC14: 499 | AD14: 98.04372422 | AE14: 95.21453009 | AF14: 98.04372422 | AG14: 95.76174112 | AH14: 93.51672756 | AI14: 96.60718774 | AJ14: 92.14326979 | AK14: 20 | AL14: 9 | AM14: 11 | AN14: 9 | AO14: 15 | AX14: 2 | AZ14: 1 | BD14: 1 | BI14: 1 | BK14: 8. Qpa (499 pts) | BL14: Qpa | BM14: (499 pts) | BN14: (499 | BO14: 499 | BP14: 499
B15: 9. batjunior 27.710 (834 pts) | C15: batjunior | D15: 27.71 | E15: 98.86492208 | G15: 9. Qpa 29.120 (514 pts) | H15: Qpa | I15: 29.12 | J15: 95.76174112 | L15: 9. pozdro600 29.117 (510 pts) | M15: pozdro600 | N15: 29.117 | O15: 95.70527975 | Q15: 9. Qpa 28.798 (586 pts) | R15: Qpa | S15: 28.798 | T15: 96.60718774 | V15: 9. Sig 27.031 (525 pts) | W15: Sig | X15: 27.031 | Y15: 95.89447333 | AA15: 9 | AB15: [x] Stylus | AC15: 432 | AD15: 98.66053506 | AE15: 97.90966471 | AF15: 98.66053506 | AH15: 97.81861165 | AI15: 97.24984741 | AK15: 15 | AM15: 5 | AN15: 8 | AT15: 1 | AW15: 1 | BD15: 1 | BK15: 9. [x] Stylus (432 pts) | BL15: [x] Stylus | BM15: (432 pts) | BN15: (432 | BO15: 432 | BP15: 432
B16: 10. majstorfantac 27.720 (829 pts) | C16: majstorfantac | D16: 27.72 | E16: 98.8284244 | G16: 10. [iR] iBlaze² 29.164 (502 pts) | H16: [iR] iBlaze² | I16: 29.164 | J16: 95.60423826 | L16: 10. Wokinger 29.172 (495 pts) | M16: Wokinger | N16: 29.172 | O16: 95.50827423 | Q16: 10. pozdro600 28.931 (544 pts) | R16: pozdro600 | S16: 28.931 | T16: 96.12968082 | V16: 10. Drax 27.288 (451 pts) | W16: Drax | X16: 27.288 | Y16: 94.90467938 | AA16: 10 | AB16: Sami | AC16: 424 | AD16: 97.13804714 | AE16: 95.80298605 | AF16: 97.02178912 | AG16: 95.4145189 | AH16: 97.13804714 | AJ16: 93.63758906 | AK16: 27 | AL16: 11 | AM16: 7 | AO16: 13 | AV16: 1 | AZ16: 1 | BB16: 1 | BK16: 10. Sami (424 pts) | BL16: Sami | BM16: (424 pts) | BN16: (424 | BO16: 424 | BP16: 424
B17: 11. majstorfantac 27.741 (819 pts) | C17: majstorfantac | D17: 27.741 | E17: 98.75177926 | G17: 11. Sami 29.217 (488 pts) | H17: Sami | I17: 29.217 | J17: 95.4145189 | L17: 11. Qpa 29.728 (366 pts) | M17: Qpa | N17: 29.728 | O17: 93.51672756 | Q17: 11. [iR] iBlaze² 28.968 (533 pts) | R17: [iR] iBlaze² | S17: 28.968 | T17: 95.99684056 | V17: 11. [PahaJori] Ender 27.351 (435 pts) | W17: [PahaJori] Ender | X17: 27.351 | Y17: 94.66204506 | AA17: 11 | AB17: Jurgen-NL | AC17: 387 | AD17: 99.24814774 | AE17: 96.97269956 | AF17: 99.24814774 | AG17: 96.58863116 | AI17: 95.08131979 | AK17: 8 | AL17: 8 | AN17: 12 | AW17: 2 | BA17: 1 | BK17: 11. Jurgen-NL (387 pts) | BL17: Jurgen-NL | BM17: (387 pts) | BN17: (387 | BO17: 387 | BP17: 387
B18: 12. Double O Seven 27.748 (816 pts) | C18: Double O Seven | D18: 27.748 | E18: 98.72623088 | G18: 12. pozdro600 29.383 (445 pts) | H18: pozdro600 | I18: 29.383 | J18: 94.82030355 | L18: 12. GOl V8 31.413 (151 pts) | M18: GOl V8 | N18: 31.413 | O18: 87.48119493 | Q18: 12. Jurgen-NL 29.223 (463 pts) | R18: Jurgen-NL | S18: 29.223 | T18: 95.08131979 | V18: 12. pozdro600 27.591 (378 pts) | W18: pozdro600 | X18: 27.591 | Y18: 93.73772386 | AA18: 12 | AB18: Wokinger | AC18: 371 | AD18: 98.21526333 | AE18: 92.05020974 | AF18: 98.21526333 | AG18: 92.87299542 | AH18: 95.50827423 | AI18: 86.52568844 | AJ18: 87.12882727 | AK18: 18 | AL18: 15 | AM18: 10 | AN18: 15 | AO18: 19 | AY18: 1 | BD18: 2 | BG18: 1 | BH18: 1 | BK18: 12. Wokinger (371 pts) | BL18: Wokinger | BM18: (371 pts) | BN18: (371 | BO18: 371 | BP18: 371
B19: 13. Sig 27.752 (814 pts) | C19: Sig | D19: 27.752 | E19: 98.71163181 | G19: 13. [FUN] GR8 Arjen! 29.531 (411 pts) | H19: [FUN] GR8 Arjen! | I19: 29.531 | J19: 94.29052119 | Q19: 13. Shaytun 29.223 (463 pts) | R19: Shaytun | S19: 29.223 | T19: 95.08131979 | V19: 13. Sami 27.617 (372 pts) | W19: Sami | X19: 27.617 | Y19: 93.63758906 | AA19: 13 | AB19: [+] olio | AC19: 341 | AD19: 99.49018059 | AE19: 98.98979247 | AG19: 98.48940435 | AI19: 99.49018059 | AL19: 4 | AN19: 5 | AS19: 1 | AT19: 1 | BK19: 13. [+] olio (341 pts) | BL19: [+] olio | BM19: (341 pts) | BN19: (341 | BO19: 341 | BP19: 341
B20: 14. [x] Stylus 27.766 (808 pts) | C20: [x] Stylus | D20: 27.766 | E20: 98.66053506 | G20: 14. Simo 29.624 (391 pts) | H20: Simo | I20: 29.624 | J20: 93.95761741 | Q20: 14. Augusto 29.469 (405 pts) | R20: Augusto | S20: 29.469 | T20: 94.19811151 | V20: 14. Shaytun 27.674 (360 pts) | W20: Shaytun | X20: 27.674 | Y20: 93.41806278 | AA20: 14 | AB20: [x] Whiplash | AC20: 337 | AD20: 99.37223986 | AE20: 98.91292406 | AF20: 99.37223986 | AG20: 98.45360825 | AK20: 6 | AL20: 5 | AT20: 1 | AU20: 1 | BK20: 14. [x] Whiplash (337 pts) | BL20: [x] Whiplash | BM20: (337 pts) | BN20: (337 | BO20: 337 | BP20: 337
B21: 15. power79 27.843 (773 pts) | C21: power79 | D21: 27.843 | E21: 98.3795029 | G21: 15. Wokinger 29.927 (332 pts) | H21: Wokinger | I21: 29.927 | J21: 92.87299542 | Q21: 15. Wokinger 31.606 (132 pts) | R21: Wokinger | S21: 31.606 | T21: 86.52568844 | V21: 15. Qpa 28.005 (298 pts) | W21: Qpa | X21: 28.005 | Y21: 92.14326979 | AA21: 15 | AB21: GOl V8 | AC21: 330 | AD21: 98.22621264 | AE21: 90.81642252 | AF21: 98.22621264 | AG21: 79.8575315 | AH21: 87.48119493 | AJ21: 97.70075101 | AK21: 17 | AL21: 20 | AM21: 12 | AO21: 4 | AS21: 1 | BA21: 1 | BF21: 1 | BI21: 1 | BK21: 15. GOl V8 (330 pts) | BL21: GOl V8 | BM21: (330 pts) | BN21: (330 | BO21: 330 | BP21: 330
B22: 16. majstorfantac 27.865 (763 pts) | C22: majstorfantac | D22: 27.865 | E22: 98.299208 | G22: 16. T 30.244 (280 pts) | H22: T | I22: 30.244 | J22: 91.73825888 | V22: 16. Delux 28.037 (292 pts) | W22: Delux | X22: 28.037 | Y22: 92.02002696 | AA22: 16 | AB22: Sig | AC22: 292 | AD22: 98.71163181 | AE22: 93.50797243 | AF22: 98.71163181 | AG22: 85.91781214 | AJ22: 95.89447333 | AK22: 14 | AL22: 19 | AO22: 9 | AX22: 1 | BC22: 1 | BH22: 1 | BK22: 16. Sig (292 pts) | BL22: Sig | BM22: (292 pts) | BN22: (292 | BO22: 292 | BP22: 292
B23: 17. GOl V8 27.885 (754 pts) | C23: GOl V8 | D23: 27.885 | E23: 98.22621264 | G23: 17. ROMREI 30.684 (222 pts) | H23: ROMREI | I23: 30.684 | J23: 90.16323024 | V23: 17. laf 28.370 (242 pts) | W23: laf | X23: 28.37 | Y23: 90.73753129 | AA23: 17 | AB23: AnnicK | AC23: 271 | AD23: 98.16895846 | AE23: 97.50543051 | AI23: 98.16895846 | AJ23: 96.84190256 | AN23: 7 | AO23: 5 | AP23: =IF(SUMIF($AK23:$AO23,AP$6)/AP$6=0,"",SUMIF($AK23:$AO23,AP$6)/AP$6) ->  | AT23: 1 | AV23: 1 | BF23: =IF(SUMIF($AK23:$AO23,BF$6)/BF$6=0,"",SUMIF($AK23:$AO23,BF$6)/BF$6) ->  | BK23: 17. AnnicK (271 pts) | BL23: AnnicK | BM23: (271 pts) | BN23: (271 | BO23: 271 | BP23: 271
B24: 18. Wokinger 27.888 (753 pts) | C24: Wokinger | D24: 27.888 | E24: 98.21526333 | G24: 18. C.Monster 31.095 (180 pts) | H24: C.Monster | I24: 31.095 | J24: 88.69201031 | V24: 18. ROMREI 28.731 (197 pts) | W24: ROMREI | X24: 28.731 | Y24: 89.34719815 | AA24: 18 | AB24: [PahaJori] Ender | AC24: 265 | AD24: 99.27734589 | AE24: 96.96969547 | AF24: 99.27734589 | AJ24: 94.66204506 | AK24: 7 | AO24: 11 | AV24: 1 | AZ24: 1 | BK24: 18. [PahaJori] Ender (265 pts) | BL24: [PahaJori] Ender | BM24: (265 pts) | BN24: (265 | BO24: 265 | BP24: 265
B25: 19. lds 27.913 (742 pts) | C25: lds | D25: 27.913 | E25: 98.12401912 | G25: 19. Sig 31.870 (121 pts) | H25: Sig | I25: 31.87 | J25: 85.91781214 | V25: 19. Wokinger 29.307 (144 pts) | W25: Wokinger | X25: 29.307 | Y25: 87.12882727 | AA25: 19 | AB25: ROMREI | AC25: 223 | AD25: 97.70429578 | AE25: 92.40490806 | AF25: 97.70429578 | AG25: 90.16323024 | AJ25: 89.34719815 | AK25: 22 | AL25: 17 | AO25: 18 | BF25: 1 | BG25: 1 | BK25: 19. ROMREI (223 pts) | BL25: ROMREI | BM25: (223 pts) | BN25: (223 | BO25: 223 | BP25: 223
B26: 20. Qpa 27.935 (733 pts) | C26: Qpa | D26: 27.935 | E26: 98.04372422 | G26: 20. GOl V8 33.563 (53 pts) | H26: GOl V8 | I26: 33.563 | J26: 79.8575315 | V26: 20. [Qc]RSX 2:08.423 (0 pts) | W26: [Qc]RSX | X26: 128.423 | Y26: -294.6004236 | AA26: 20 | AB26: [FUN] GR8 Arjen! | AC26: 214 | AD26: 97.3794664 | AE26: 95.8349938 | AF26: 97.3794664 | AG26: 94.29052119 | AK26: 24 | AL26: 13 | BB26: 1 | BK26: 20. [FUN] GR8 Arjen! (214 pts) | BL26: [FUN] GR8 Arjen! | BM26: (214 pts) | BN26: (214 | BO26: 214 | BP26: 214
B27: 21. [+] xzeal 27.992 (709 pts) | C27: [+] xzeal | D27: 27.992 | E27: 97.83568743 | G27: 21. Baba 35.544 (21 pts) | H27: Baba | I27: 35.544 | J27: 72.76632302 | AA27: 21 | AB27: [+] Badeend | AC27: 182 | AD27: 99.44158546 | AE27: 99.44158546 | AF27: 99.44158546 | AK27: 5 | AT27: 1 | BK27: 21. [+] Badeend (182 pts) | BL27: [+] Badeend | BM27: (182 pts) | BN27: (182 | BO27: 182 | BP27: 182
B28: 22. ROMREI 28.028 (695 pts) | C28: ROMREI | D28: 28.028 | E28: 97.70429578 | G28: 22. [Qc]ghost 41.060 (2 pts) | H28: [Qc]ghost | I28: 41.06 | J28: 53.02119129 | AA28: 22 | AB28: Delux | AC28: 179 | AD28: 96.78090441 | AE28: 94.40046569 | AF28: 96.78090441 | AJ28: 92.02002696 | AK28: 29 | AO28: 16 | BE28: 1 | BK28: 22. Delux (179 pts) | BL28: Delux | BM28: (179 pts) | BN28: (179 | BO28: 179 | BP28: 179
B29: 23. [iR] iBlaze² 28.102 (666 pts) | C29: [iR] iBlaze² | D29: 28.102 | E29: 97.43421293 | G29: 23. Buzzurro 46.469 (0 pts) | H29: Buzzurro | I29: 46.469 | J29: 33.65907789 | AA29: 23 | AB29: T | AC29: 167 | AD29: 96.26263732 | AE29: 94.0004481 | AF29: 96.26263732 | AG29: 91.73825888 | AK29: 30 | AL29: 16 | BE29: 1 | BK29: 23. T (167 pts) | BL29: T | BM29: (167 pts) | BN29: (167 | BO29: 167 | BP29: 167
B30: 24. [FUN] GR8 Arjen! 28.117 (661 pts) | C30: [FUN] GR8 Arjen! | D30: 28.117 | E30: 97.3794664 | G30: 24. max tre 48.264 (0 pts) | H30: max tre | I30: 48.264 | J30: 27.23367698 | AA30: 24 | AB30: batjunior | AC30: 166 | AD30: 98.86492208 | AE30: 98.86492208 | AF30: 98.86492208 | AK30: 9 | AX30: 1 | BK30: 24. batjunior (166 pts) | BL30: batjunior | BM30: (166 pts) | BN30: (166 | BO30: 166 | BP30: 166
B31: 25. pozdro600 28.117 (661 pts) | C31: pozdro600 | D31: 28.117 | E31: 97.3794664 | G31: 25. [Qc]Praline 4:10.501 (0 pts) | H31: [Qc]Praline | I31: 250.501 | J31: -696.6960195 | AA31: 25 | AB31: majstorfantac | AC31: 165 | AD31: 98.8284244 | AE31: 98.8284244 | AF31: 98.8284244 | AK31: 10 | AY31: 1 | BK31: 25. majstorfantac (165 pts) | BL31: majstorfantac | BM31: (165 pts) | BN31: (165 | BO31: 165 | BP31: 165
B32: 26. PEACE 28.146 (650 pts) | C32: PEACE | D32: 28.146 | E32: 97.27362312 | AA32: 26 | AB32: Shaytun | AC32: 164 | AD32: 95.08131979 | AE32: 94.24969128 | AI32: 95.08131979 | AJ32: 93.41806278 | AN32: 12 | AO32: 14 | BA32: 1 | BC32: 1 | BK32: 26. Shaytun (164 pts) | BL32: Shaytun | BM32: (164 pts) | BN32: (164 | BO32: 164 | BP32: 164
B33: 27. Sami 28.215 (625 pts) | C33: Sami | D33: 28.215 | E33: 97.02178912 | AA33: 27 | AB33: majstorfantac | AC33: 163 | AD33: 98.8284244 | AE33: 98.8284244 | AF33: 98.8284244 | AK33: 10 | AY33: 1 | BK33: 27. majstorfantac (163 pts) | BL33: majstorfantac | BM33: (163 pts) | BN33: (163 | BO33: 163 | BP33: 163
B34: 28. |/|/ | |_ |_ | E 28.224 (622 pts) | C34: |/|/ | |_ |_ | E | D34: 28.224 | E34: 96.9889412 | AA34: 28 | AB34: Double O Seven | AC34: 163 | AD34: 98.72623088 | AE34: 98.72623088 | AF34: 98.72623088 | AK34: 13 | BB34: 1 | BK34: 28. Double O Seven (163 pts) | BL34: Double O Seven | BM34: (163 pts) | BN34: (163 | BO34: 163 | BP34: 163
B35: 29. Delux 28.281 (602 pts) | C35: Delux | D35: 28.281 | E35: 96.78090441 | AA35: 29 | AB35: power79 | AC35: 154 | AD35: 98.3795029 | AE35: 98.3795029 | AF35: 98.3795029 | AK35: 16 | BE35: 1 | BK35: 29. power79 (154 pts) | BL35: power79 | BM35: (154 pts) | BN35: (154 | BO35: 154 | BP35: 154
B36: 30. T 28.423 (555 pts) | C36: T | D36: 28.423 | E36: 96.26263732 | AA36: 30 | AB36: majstorfantac | AC36: 152 | AD36: 98.8284244 | AE36: 98.8284244 | AF36: 98.8284244 | AK36: 10 | AY36: 1 | BK36: 30. majstorfantac (152 pts) | BL36: majstorfantac | BM36: (152 pts) | BN36: (152 | BO36: 152 | BP36: 152
B37: 31. JJ Nylander 28.743 (464 pts) | C37: JJ Nylander | D37: 28.743 | E37: 95.09471149 | AA37: 31 | AB37: lds | AC37: 148 | AD37: 98.12401912 | AE37: 98.12401912 | AF37: 98.12401912 | AK37: 19 | BH37: 1 | BK37: 31. lds (148 pts) | BL37: lds | BM37: (148 pts) | BN37: (148 | BO37: 148 | BP37: 148
B38: 32. czk 28.835 (441 pts) | C38: =LEFT(RIGHT(B38,LEN(B38)-4),LEN(RIGHT(B38,LEN(B38)-4))-19) -> czk | D38: =VALUE(LEFT(RIGHT(B38,19+0),6))/1000 -> 28.835 | E38: =100-(D38-D$7)/D$7*100 -> 94.75893281 | AA38: 32 | AB38: PEACE | AC38: 130 | AD38: 97.27362312 | AE38: 97.27362312 | AF38: 97.27362312 | AK38: 26 | BK38: 32. PEACE (130 pts) | BL38: PEACE | BM38: (130 pts) | BN38: (130 | BO38: 130 | BP38: 130
B39: 33. [Qc]RSX 29.156 (369 pts) | C39: [Qc]RSX | D39: 29.156 | E39: 93.5873572 | AA39: 33 | AB39: |/|/ | |_ |_ | E | AC39: 124 | AD39: 96.9889412 | AE39: 96.9889412 | AF39: 96.9889412 | AK39: 28 | AP39: =IF(SUMIF($AK39:$AO39,AP$6)/AP$6=0,"",SUMIF($AK39:$AO39,AP$6)/AP$6) ->  | BF39: =IF(SUMIF($AK39:$AO39,BF$6)/BF$6=0,"",SUMIF($AK39:$AO39,BF$6)/BF$6) ->  | BK39: 33. |/|/ | |_ |_ | E (124 pts) | BL39: |/|/ | |_ |_ | E | BM39: (124 pts) | BN39: (124 | BO39: 124 | BP39: 124
B40: 34. KLE621 30.965 (141 pts) | C40: KLE621 | D40: 30.965 | E40: 86.98492646 | AA40: 34 | AB40: Simo | AC40: 106 | AD40: 93.95761741 | AE40: 90.43842402 | AF40: 86.91923063 | AG40: 93.95761741 | AK40: 35 | AL40: 14 | BC40: 1 | BK40: 34. Simo (106 pts) | BL40: Simo | BM40: (106 pts) | BN40: (106 | BO40: 106 | BP40: 106
B41: 35. Simo 30.983 (139 pts) | C41: Simo | D41: 30.983 | E41: 86.91923063 | AA41: 35 | AB41: JJ Nylander | AC41: 92 | AD41: 95.09471149 | AE41: 95.09471149 | AF41: 95.09471149 | AK41: 31 | BK41: 35. JJ Nylander (92 pts) | BL41: JJ Nylander | BM41: (92 pts) | BN41: (92 | BO41: 92 | BP41: 92
B42: 36. MoCoCa 31.674 (98 pts) | C42: MoCoCa | D42: 31.674 | E42: 84.39724078 | AA42: 36 | AB42: Drax | AC42: 90 | AD42: 94.90467938 | AE42: 94.90467938 | AJ42: 94.90467938 | AO42: 10 | AY42: 1 | BK42: 36. Drax (90 pts) | BL42: Drax | BM42: (90 pts) | BN42: (90 | BO42: 90 | BP42: 90
B43: 37. Nico Hulkenberg 32.425 (67 pts) | C43: Nico Hulkenberg | D43: 32.425 | E43: 81.65626483 | AA43: 37 | AB43: czk | AC43: 88 | AD43: 94.75893281 | AE43: 94.75893281 | AF43: 94.75893281 | AK43: 32 | BK43: 37. czk (88 pts) | BL43: czk | BM43: (88 pts) | BN43: (88 | BO43: 88 | BP43: 88
B44: 38. [Qc]Isaac 32.859 (54 pts) | C44: [Qc]Isaac | D44: 32.859 | E44: 80.07226541 | AA44: 38 | AB44: Augusto | AC44: 81 | AD44: 94.19811151 | AE44: 94.19811151 | AI44: 94.19811151 | AN44: 14 | BC44: 1 | BK44: 38. Augusto (81 pts) | BL44: Augusto | BM44: (81 pts) | BN44: (81 | BO44: 81 | BP44: 81
AA45: 39 | AB45: [Qc]RSX | AC45: 73 | AD45: 93.5873572 | AE45: -100.5065332 | AF45: 93.5873572 | AJ45: -294.6004236 | AK45: 33 | AO45: 20 | BI45: 1 | BK45: 39. [Qc]RSX (73 pts) | BL45: [Qc]RSX | BM45: (73 pts) | BN45: (73 | BO45: 73 | BP45: 73
AA46: 40 | AB46: laf | AC46: 48 | AD46: 90.73753129 | AE46: 90.73753129 | AJ46: 90.73753129 | AO46: 17 | BF46: 1 | BK46: 40. laf (48 pts) | BL46: laf | BM46: (48 pts) | BN46: (48 | BO46: 48 | BP46: 48
AA47: 41 | AB47: C.Monster | AC47: 36 | AD47: 88.69201031 | AE47: 88.69201031 | AG47: 88.69201031 | AL47: 18 | BG47: 1 | BK47: 41. C.Monster (36 pts) | BL47: C.Monster | BM47: (36 pts) | BN47: (36 | BO47: 36 | BP47: 36
AA48: 42 | AB48: KLE621 | AC48: 28 | AD48: 86.98492646 | AE48: 86.98492646 | AF48: 86.98492646 | AK48: 34 | BK48: 42. KLE621 (28 pts) | BL48: KLE621 | BM48: (28 pts) | BN48: (28 | BO48: 28 | BP48: 28
AA49: 43 | AB49: MoCoCa | AC49: 19 | AD49: 84.39724078 | AE49: 84.39724078 | AF49: 84.39724078 | AK49: 36 | BK49: 43. MoCoCa (19 pts) | BL49: MoCoCa | BM49: (19 pts) | BN49: (19 | BO49: 19 | BP49: 19
AA50: 44 | AB50: Nico Hulkenberg | AC50: 13 | AD50: 81.65626483 | AE50: 81.65626483 | AF50: 81.65626483 | AK50: 37 | BK50: 44. Nico Hulkenberg (13 pts) | BL50: Nico Hulkenberg | BM50: (13 pts) | BN50: (13 | BO50: 13 | BP50: 13
AA51: 45 | AB51: [Qc]Isaac | AC51: 10 | AD51: 80.07226541 | AE51: 80.07226541 | AF51: 80.07226541 | AK51: 38 | BK51: 45. [Qc]Isaac (10 pts) | BL51: [Qc]Isaac | BM51: (10 pts) | BN51: (10 | BO51: 10 | BP51: 10
AA52: 46 | AB52: Baba | AC52: 4 | AD52: 72.76632302 | AE52: 72.76632302 | AG52: 72.76632302 | AL52: 21 | BK52: 46. Baba (4 pts) | BL52: Baba | BM52: (4 pts) | BN52: (4 | BO52: 4 | BP52: 4
AA53: 47 | AB53: [Qc]ghost | AC53: 0 | AD53: 53.02119129 | AE53: 53.02119129 | AG53: 53.02119129 | AL53: 22 | BK53: 47. [Qc]ghost (0 pts) | BL53: [Qc]ghost | BM53: (0 pts) | BN53: (0 | BO53: 0 | BP53: 0
AA54: 48 | AB54: =BL54 -> Buzzurro | AC54: =BP54 -> 0 | AD54: =MAX(AF54:AJ54) -> 33.65907789 | AE54: =SUM(AF54:AJ54)/COUNT(AF54:AJ54) -> 33.65907789 | AF54: =IF(SUMIF(C$7:C$995,$AB54,E$7:E$995)=0,"",VLOOKUP($AB54,C$7:E$995,3,FALSE)) ->  | AG54: =IF(SUMIF(H$7:H$996,$AB54,J$7:J$996)=0,"",VLOOKUP($AB54,H$7:J$996,3,FALSE)) -> 33.65907789 | AH54: =IF(SUMIF(M$7:M$995,$AB54,O$7:O$995)=0,"",VLOOKUP($AB54,M$7:O$995,3,FALSE)) ->  | AI54: =IF(SUMIF(R$7:R$995,$AB54,T$7:T$995)=0,"",VLOOKUP($AB54,R$7:T$995,3,FALSE)) ->  | AJ54: =IF(SUMIF(W$7:W$995,$AB54,Y$7:Y$995)=0,"",VLOOKUP($AB54,W$7:Y$995,3,FALSE)) ->  | AK54: =IF(AF54="","",RANK(AF54,AF$7:AF$999,0)) ->  | AL54: =IF(AG54="","",RANK(AG54,AG$7:AG$999,0)) -> 23 | AM54: =IF(AH54="","",RANK(AH54,AH$7:AH$999,0)) ->  | AN54: =IF(AI54="","",RANK(AI54,AI$7:AI$999,0)) ->  | AO54: =IF(AJ54="","",RANK(AJ54,AJ$7:AJ$999,0)) ->  | BK54: 48. Buzzurro (0 pts) | BL54: Buzzurro | BM54: (0 pts) | BN54: (0 | BO54: 0 | BP54: 0
AA55: 49 | AB55: max tre | AC55: 0 | AD55: 27.23367698 | AE55: 27.23367698 | AG55: 27.23367698 | AL55: 24 | AP55: =IF(SUMIF($AK55:$AO55,AP$6)/AP$6=0,"",SUMIF($AK55:$AO55,AP$6)/AP$6) ->  | BF55: =IF(SUMIF($AK55:$AO55,BF$6)/BF$6=0,"",SUMIF($AK55:$AO55,BF$6)/BF$6) ->  | BK55: 49. max tre (0 pts) | BL55: max tre | BM55: (0 pts) | BN55: (0 | BO55: 0 | BP55: 0
AA56: 50 | AB56: [Qc]Praline | AC56: 0 | AD56: -696.6960195 | AE56: -696.6960195 | AG56: -696.6960195 | AL56: 25 | BK56: 50. [Qc]Praline (0 pts) | BL56: [Qc]Praline | BM56: (0 pts) | BN56: (0 | BO56: 0 | BP56: 0
BM72: =RIGHT(BK72,10) ->  | BN72: =LEFT(BM72,5) ->  | BO72: =REPLACE(BN72,SEARCH("(",BN72),1,"") ->  | BP72: =TRIM(BO72) -> 

Sheet week6
B1: *** Weekly Hot Lap Competition Results
B3: Start Time: 2015-01-03 17:12:16
B4: End Time: 2015-01-10 17:12:16
B6: * Results for T_Tiny04, AntiSlider: | G6: * Results for T_Tiny04, EasySlider: | L6: * Results for T_Tiny04, Spinner: | Q6: * Results for T_Tiny04, Slider: | V6: * Results for T_Tiny04, Speeder: | AC6: Pts | AD6: Max | AE6: Av | AF6: Anti | AG6: Easy | AH6: Spin | AI6: Slide | AJ6: Speed | AK6: Ant | AL6: Eas | AM6: Spn | AN6: Sld | AO6: Spd | AP6: 1 | AQ6: 2 | AR6: 3 | AS6: 4 | AT6: 5 | AU6: 6 | AV6: 7 | AW6: 8 | AX6: 9 | AY6: 10 | AZ6: 11 | BA6: 12 | BB6: 13 | BC6: 14 | BD6: 15 | BE6: 16 | BF6: 17 | BG6: 18 | BH6: 19 | BI6: 20 | BK6: Overall Results:
B7: 1. [x] Mike Nike 8.684 (1000 pts) | C7: =LEFT(RIGHT(B7,LEN(B7)-4),LEN(RIGHT(B7,LEN(B7)-4))-19) -> [x] Mike Nike | D7: =VALUE(LEFT(RIGHT(B7,19+0),6))/1000 -> 8.684 | E7: 100 | G7: 1. [+] dede 9.667 (1000 pts) | H7: =LEFT(RIGHT(G7,LEN(G7)-4),LEN(RIGHT(G7,LEN(G7)-4))-19) -> [+] dede | I7: =VALUE(LEFT(RIGHT(G7,19+0),6))/1000 -> 9.667 | J7: 100 | L7: 1. [+] dede 8.983 (1000 pts) | M7: =LEFT(RIGHT(L7,LEN(L7)-4),LEN(RIGHT(L7,LEN(L7)-4))-19) -> [+] dede | N7: =VALUE(LEFT(RIGHT(L7,19+0),6))/1000 -> 8.983 | O7: 100 | Q7: 1. [x] Mike Nike 9.714 (1000 pts) | R7: =LEFT(RIGHT(Q7,LEN(Q7)-4),LEN(RIGHT(Q7,LEN(Q7)-4))-19) -> [x] Mike Nike | S7: =VALUE(LEFT(RIGHT(Q7,19+0),6))/1000 -> 9.714 | T7: 100 | V7: 1. [+] Tinjovic 9.410 (1000 pts) | W7: =LEFT(RIGHT(V7,LEN(V7)-4),LEN(RIGHT(V7,LEN(V7)-4))-19) -> [+] Tinjovic | X7: =VALUE(LEFT(RIGHT(V7,19+0),6))/1000 -> 9.41 | Y7: 100 | AA7: 1 | AB7: =BL7 -> [+] Tinjovic | AC7: =BP7 -> 967 | AD7: =MAX(AF7:AJ7) -> 100 | AE7: =SUM(AF7:AJ7)/COUNT(AF7:AJ7) -> 99.79236287 | AF7: =IF(SUMIF(C$7:C$995,$AB7,E$7:E$995)=0,"",VLOOKUP($AB7,C$7:E$995,3,FALSE)) -> 99.87333026 | AG7: =IF(SUMIF(H$7:H$996,$AB7,J$7:J$996)=0,"",VLOOKUP($AB7,H$7:J$996,3,FALSE)) -> 99.60691011 | AH7: =IF(SUMIF(M$7:M$995,$AB7,O$7:O$995)=0,"",VLOOKUP($AB7,M$7:O$995,3,FALSE)) -> 99.67716798 | AI7: =IF(SUMIF(R$7:R$995,$AB7,T$7:T$995)=0,"",VLOOKUP($AB7,R$7:T$995,3,FALSE)) -> 99.80440601 | AJ7: =IF(SUMIF(W$7:W$995,$AB7,Y$7:Y$995)=0,"",VLOOKUP($AB7,W$7:Y$995,3,FALSE)) -> 100 | AK7: =IF(AF7="","",RANK(AF7,AF$7:AF$999,0)) -> 2 | AL7: =IF(AG7="","",RANK(AG7,AG$7:AG$999,0)) -> 3 | AM7: 3 | AN7: 3 | AO7: 1 | AP7: =IF(SUMIF($AK7:$AO7,AP$6)/AP$6=0,"",SUMIF($AK7:$AO7,AP$6)/AP$6) -> 1 | AQ7: 1 | AR7: 3 | BF7: =IF(SUMIF($AK7:$AO7,BF$6)/BF$6=0,"",SUMIF($AK7:$AO7,BF$6)/BF$6) ->  | BK7: 1. [+] Tinjovic (967 pts) | BL7: =CONCATENATE(LEFT(RIGHT(BK7,LEN(BK7)-4),LEN(RIGHT(BK7,LEN(BK7)-4))-9)," ") -> [+] Tinjovic | BM7: =RIGHT(BK7,10) -> (967 pts) | BN7: =LEFT(BM7,5) -> (967 | BO7: =REPLACE(BN7,SEARCH("(",BN7),1,"") -> 967 | BP7: =TRIM(BO7) -> 967
B8: 2. [+] Tinjovic 8.695 (979 pts) | C8: =LEFT(RIGHT(B8,LEN(B8)-4),LEN(RIGHT(B8,LEN(B8)-4))-19) -> [+] Tinjovic | D8: 8.695 | E8: =100-(D8-D$7)/D$7*100 -> 99.87333026 | G8: 2. [x] Mike Nike 9.704 (940 pts) | H8: =LEFT(RIGHT(G8,LEN(G8)-4),LEN(RIGHT(G8,LEN(G8)-4))-19) -> [x] Mike Nike | I8: =VALUE(LEFT(RIGHT(G8,19+0),6))/1000 -> 9.704 | J8: =100-(I8-I$7)/I$7*100 -> 99.61725458 | L8: 2. [x] Mike Nike 8.996 (977 pts) | M8: =LEFT(RIGHT(L8,LEN(L8)-4),LEN(RIGHT(L8,LEN(L8)-4))-19) -> [x] Mike Nike | N8: =VALUE(LEFT(RIGHT(L8,19+0),6))/1000 -> 8.996 | O8: =100-(N8-N$7)/N$7*100 -> 99.8552822 | Q8: 2. [x] Stylus 9.730 (974 pts) | R8: =LEFT(RIGHT(Q8,LEN(Q8)-4),LEN(RIGHT(Q8,LEN(Q8)-4))-19) -> [x] Stylus | S8: =VALUE(LEFT(RIGHT(Q8,19+0),6))/1000 -> 9.73 | T8: =100-(S8-S$7)/S$7*100 -> 99.83528927 | V8: 2. [x] Mike Nike 9.498 (861 pts) | W8: =LEFT(RIGHT(V8,LEN(V8)-4),LEN(RIGHT(V8,LEN(V8)-4))-19) -> [x] Mike Nike | X8: =VALUE(LEFT(RIGHT(V8,19+0),6))/1000 -> 9.498 | Y8: =100-(X8-X$7)/X$7*100 -> 99.06482465 | AA8: 2 | AB8: =BL8 -> [x] Mike Nike | AC8: =BP8 -> 955 | AD8: 100 | AE8: 99.70747229 | AF8: 100 | AG8: 99.61725458 | AH8: 99.8552822 | AI8: 100 | AJ8: 99.06482465 | AK8: =IF(AF8="","",RANK(AF8,AF$7:AF$999,0)) -> 1 | AL8: 2 | AM8: 2 | AN8: 1 | AO8: 2 | AP8: 2 | AQ8: 3 | BK8: 2. [x] Mike Nike (955 pts) | BL8: =CONCATENATE(LEFT(RIGHT(BK8,LEN(BK8)-4),LEN(RIGHT(BK8,LEN(BK8)-4))-9)," ") -> [x] Mike Nike | BM8: =RIGHT(BK8,10) -> (955 pts) | BN8: =LEFT(BM8,5) -> (955 | BO8: =REPLACE(BN8,SEARCH("(",BN8),1,"") -> 955 | BP8: =TRIM(BO8) -> 955
B9: 3. [fS]Palo 8.705 (962 pts) | C9: =LEFT(RIGHT(B9,LEN(B9)-4),LEN(RIGHT(B9,LEN(B9)-4))-19) -> [fS]Palo | D9: 8.705 | E9: =100-(D9-D$7)/D$7*100 -> 99.75817596 | G9: 3. [+] Tinjovic 9.705 (939 pts) | H9: =LEFT(RIGHT(G9,LEN(G9)-4),LEN(RIGHT(G9,LEN(G9)-4))-19) -> [+] Tinjovic | I9: =VALUE(LEFT(RIGHT(G9,19+0),6))/1000 -> 9.705 | J9: =100-(I9-I$7)/I$7*100 -> 99.60691011 | L9: 3. [+] Tinjovic 9.012 (949 pts) | M9: =LEFT(RIGHT(L9,LEN(L9)-4),LEN(RIGHT(L9,LEN(L9)-4))-19) -> [+] Tinjovic | N9: =VALUE(LEFT(RIGHT(L9,19+0),6))/1000 -> 9.012 | O9: =100-(N9-N$7)/N$7*100 -> 99.67716798 | Q9: 3. [+] Tinjovic 9.733 (969 pts) | R9: =LEFT(RIGHT(Q9,LEN(Q9)-4),LEN(RIGHT(Q9,LEN(Q9)-4))-19) -> [+] Tinjovic | S9: =VALUE(LEFT(RIGHT(Q9,19+0),6))/1000 -> 9.733 | T9: =100-(S9-S$7)/S$7*100 -> 99.80440601 | V9: 3. [+] dede 9.520 (830 pts) | W9: =LEFT(RIGHT(V9,LEN(V9)-4),LEN(RIGHT(V9,LEN(V9)-4))-19) -> [+] dede | X9: =VALUE(LEFT(RIGHT(V9,19+0),6))/1000 -> 9.52 | Y9: =100-(X9-X$7)/X$7*100 -> 98.83103082 | AA9: 3 | AB9: [+] dede | AC9: 910 | AD9: 100 | AE9: 99.38849577 | AF9: 98.79087978 | AG9: 100 | AH9: 100 | AI9: 99.32056825 | AJ9: 98.83103082 | AK9: 11 | AL9: 1 | AM9: 1 | AN9: 4 | AO9: 3 | AP9: 2 | AR9: 1 | AS9: 1 | AZ9: 1 | BK9: 3. [+] dede (910 pts) | BL9: [+] dede | BM9: (910 pts) | BN9: (910 | BO9: 910 | BP9: 910
B10: 4. [PahaJori] Ender 8.719 (937 pts) | C10: [PahaJori] Ender | D10: 8.719 | E10: 99.59695993 | G10: 4. [fS]Palo 9.712 (928 pts) | H10: [fS]Palo | I10: 9.712 | J10: 99.53449881 | L10: 4. [fS]Palo 9.024 (929 pts) | M10: [fS]Palo | N10: 9.024 | O10: 99.54358232 | Q10: 4. [+] dede 9.780 (897 pts) | R10: [+] dede | S10: 9.78 | T10: 99.32056825 | V10: 4. [fS]Palo 9.536 (808 pts) | W10: [fS]Palo | X10: 9.536 | Y10: 98.66099894 | AA10: 4 | AB10: [fS]Palo | AC10: 896 | AD10: 99.75817596 | AE10: 99.30385722 | AF10: 99.75817596 | AG10: 99.53449881 | AH10: 99.54358232 | AI10: 99.02203006 | AJ10: 98.66099894 | AK10: 3 | AL10: 4 | AM10: 4 | AN10: 5 | AO10: 4 | AR10: 1 | AS10: 3 | AT10: 1 | BK10: 4. [fS]Palo (896 pts) | BL10: [fS]Palo | BM10: (896 pts) | BN10: (896 | BO10: 896 | BP10: 896
B11: 5. [x] Stylus 8.739 (903 pts) | C11: [x] Stylus | D11: 8.739 | E11: 99.36665131 | G11: 5. [+] olio 9.782 (827 pts) | H11: [+] olio | I11: 9.782 | J11: 98.81038585 | L11: 5. [x] Stylus 9.071 (855 pts) | M11: [x] Stylus | N11: 9.071 | O11: 99.02037181 | Q11: 5. [fS]Palo 9.809 (855 pts) | R11: [fS]Palo | S11: 9.809 | T11: 99.02203006 | V11: 5. Tinjoypadawan 9.606 (719 pts) | W11: Tinjoypadawan | X11: 9.606 | Y11: 97.91710946 | AA11: 5 | AB11: [x] Stylus | AC11: 833 | AD11: 99.83528927 | AE11: 98.79741961 | AF11: 99.36665131 | AG11: 98.26212889 | AH11: 99.02037181 | AI11: 99.83528927 | AJ11: 97.50265675 | AK11: 5 | AL11: 6 | AM11: 5 | AN11: 2 | AO11: 6 | AQ11: 1 | AT11: 2 | AU11: 2 | BK11: 5. [x] Stylus (833 pts) | BL11: [x] Stylus | BM11: (833 pts) | BN11: (833 | BO11: 833 | BP11: 833
B12: 6. Sig 8.754 (879 pts) | C12: Sig | D12: =VALUE(LEFT(RIGHT(B12,19+0),6))/1000 -> 8.754 | E12: =100-(D12-D$7)/D$7*100 -> 99.19391985 | G12: 6. [x] Stylus 9.835 (759 pts) | H12: [x] Stylus | I12: 9.835 | J12: 98.26212889 | L12: 6. [+] olio 9.135 (764 pts) | M12: [+] olio | N12: 9.135 | O12: 98.30791495 | Q12: 6. Kyna_Musti 9.824 (835 pts) | R12: Kyna_Musti | S12: 9.824 | T12: 98.86761375 | V12: 6. [x] Stylus 9.645 (673 pts) | W12: [x] Stylus | X12: 9.645 | Y12: 97.50265675 | AA12: 6 | AB12: [PahaJori] Ender | AC12: 625 | AD12: 99.59695993 | AE12: 96.76439232 | AF12: 99.59695993 | AG12: 97.58973828 | AH12: 95.82544807 | AI12: 96.31459749 | AJ12: 94.49521785 | AK12: 4 | AL12: 7 | AM12: 16 | AN12: 11 | AO12: 10 | AS12: 1 | AV12: 1 | AY12: 1 | AZ12: 1 | BE12: 1 | BK12: 6. [PahaJori] Ender (625 pts) | BL12: [PahaJori] Ender | BM12: (625 pts) | BN12: (625 | BO12: 625 | BP12: 625
B13: 7. [+] Badeend 8.760 (869 pts) | C13: [+] Badeend | D13: 8.76 | E13: 99.12482727 | G13: 7. [PahaJori] Ender 9.900 (683 pts) | H13: [PahaJori] Ender | I13: 9.9 | J13: 97.58973828 | L13: 7. Sig 9.215 (664 pts) | M13: Sig | N13: 9.215 | O13: 97.41734387 | Q13: 7. [+] olio 9.853 (796 pts) | R13: [+] olio | S13: 9.853 | T13: 98.56907556 | V13: 7. [iR] iBlaze² 9.733 (582 pts) | W13: [iR] iBlaze² | X13: 9.733 | Y13: 96.5674814 | AA13: 7 | AB13: Jurgen-NL | AC13: 586 | AD13: 98.80239521 | AE13: 96.42818652 | AF13: 98.80239521 | AG13: 95.78980035 | AH13: 95.97016587 | AI13: 97.18962322 | AJ13: 94.38894793 | AK13: 10 | AL13: 10 | AM13: 15 | AN13: 9 | AO13: 12 | AX13: 1 | AY13: 2 | BA13: 1 | BD13: 1 | BK13: 7. Jurgen-NL (586 pts) | BL13: Jurgen-NL | BM13: (586 pts) | BN13: (586 | BO13: 586 | BP13: 586
B14: 8. Leftinjo 8.768 (857 pts) | C14: Leftinjo | D14: 8.768 | E14: 99.03270382 | G14: 8. Sig 9.965 (615 pts) | H14: Sig | I14: 9.965 | J14: 96.91734768 | L14: 8. Kyna_Musti 9.236 (641 pts) | M14: Kyna_Musti | N14: 9.236 | O14: 97.18356896 | Q14: 8. Chukie 9.951 (679 pts) | R14: Chukie | S14: 9.951 | T14: 97.56022236 | V14: 8. Sig 9.759 (558 pts) | W14: Sig | X14: 9.759 | Y14: 96.2911796 | AA14: 8 | AB14: [+] Badeend | AC14: 543 | AD14: 99.12482727 | AE14: 95.78018737 | AF14: 99.12482727 | AG14: 95.78980035 | AH14: 96.42658355 | AI14: 93.95717521 | AJ14: 93.60255048 | AK14: 7 | AL14: 10 | AM14: 11 | AN14: 15 | AO14: 14 | AV14: 1 | AY14: 1 | AZ14: 1 | BC14: 1 | BD14: 1 | BK14: 8. [+] Badeend (543 pts) | BL14: [+] Badeend | BM14: (543 pts) | BN14: (543 | BO14: 543 | BP14: 543
B15: 9. GOl V8 8.777 (843 pts) | C15: GOl V8 | D15: 8.777 | E15: 98.92906495 | G15: 9. Chukie 9.985 (595 pts) | H15: Chukie | I15: 9.985 | J15: 96.71045826 | L15: 9. GOl V8 9.273 (601 pts) | M15: GOl V8 | N15: 9.273 | O15: 96.77167984 | Q15: 9. Jurgen-NL 9.987 (641 pts) | R15: Jurgen-NL | S15: 9.987 | T15: 97.18962322 | V15: 9. AnnicK 9.814 (510 pts) | W15: AnnicK | X15: 9.814 | Y15: 95.70669501 | AA15: 9 | AB15: Sig | AC15: 543 | AD15: 99.19391985 | AE15: 97.45494775 | AF15: 99.19391985 | AG15: 96.91734768 | AH15: 97.41734387 | AJ15: 96.2911796 | AK15: 6 | AL15: 8 | AM15: 7 | AO15: 8 | AU15: 1 | AV15: 1 | AW15: 2 | BK15: 9. Sig (543 pts) | BL15: Sig | BM15: (543 pts) | BN15: (543 | BO15: 543 | BP15: 543
B16: 10. Jurgen-NL 8.788 (826 pts) | C16: Jurgen-NL | D16: 8.788 | E16: 98.80239521 | G16: 10. Jurgen-NL 10.074 (516 pts) | H16: Jurgen-NL | I16: 10.074 | J16: 95.78980035 | L16: 10. [iR] iBlaze² 9.297 (577 pts) | M16: [iR] iBlaze² | N16: 9.297 | O16: 96.50450852 | Q16: 10. AnnicK 10.038 (591 pts) | R16: AnnicK | S16: 10.038 | T16: 96.66460778 | V16: 10. [PahaJori] Ender 9.928 (424 pts) | W16: [PahaJori] Ender | X16: 9.928 | Y16: 94.49521785 | AA16: 10 | AB16: Kyna_Musti | AC16: 539 | AD16: 98.86761375 | AE16: 97.27718715 | AF16: 98.58360203 | AH16: 97.18356896 | AI16: 98.86761375 | AJ16: 94.47396387 | AK16: 12 | AM16: 8 | AN16: 6 | AO16: 11 | AU16: 1 | AW16: 1 | AZ16: 1 | BA16: 1 | BK16: 10. Kyna_Musti (539 pts) | BL16: Kyna_Musti | BM16: (539 pts) | BN16: (539 | BO16: 539 | BP16: 539
B17: 11. [+] dede 8.789 (825 pts) | C17: [+] dede | D17: 8.789 | E17: 98.79087978 | G17: 11. [+] Badeend 10.074 (516 pts) | H17: [+] Badeend | I17: 10.074 | J17: 95.78980035 | L17: 11. [+] Badeend 9.304 (570 pts) | M17: [+] Badeend | N17: 9.304 | O17: 96.42658355 | Q17: 11. [PahaJori] Ender 10.072 (560 pts) | R17: [PahaJori] Ender | S17: 10.072 | T17: 96.31459749 | V17: 11. Kyna_Musti 9.930 (422 pts) | W17: Kyna_Musti | X17: 9.93 | Y17: 94.47396387 | AA17: 11 | AB17: pozdro600 | AC17: 515 | AD17: 98.58360203 | AE17: 95.45838337 | AF17: 98.58360203 | AG17: 93.86572877 | AH17: 95.99243015 | AI17: 95.78958205 | AJ17: 93.06057386 | AK17: 12 | AL17: 19 | AM17: 14 | AN17: 12 | AO17: 15 | BA17: 2 | BC17: 1 | BD17: 1 | BH17: 1 | BK17: 11. pozdro600 (515 pts) | BL17: pozdro600 | BM17: (515 pts) | BN17: (515 | BO17: 515 | BP17: 515
B18: 12. Kyna_Musti 8.807 (798 pts) | C18: Kyna_Musti | D18: 8.807 | E18: 98.58360203 | G18: 12. Gol_v8 10.116 (483 pts) | H18: Gol_v8 | I18: 10.116 | J18: 95.35533257 | L18: 12. Chukie 9.324 (550 pts) | M18: Chukie | N18: 9.324 | O18: 96.20394078 | Q18: 12. pozdro600 10.123 (516 pts) | R18: pozdro600 | S18: 10.123 | T18: 95.78958205 | V18: 12. Jurgen-NL 9.938 (417 pts) | W18: Jurgen-NL | X18: 9.938 | Y18: 94.38894793 | AA18: 12 | AB18: [iR] iBlaze² | AC18: 512 | AD18: 96.85628743 | AE18: 95.59993978 | AF18: 96.85628743 | AG18: 94.16571842 | AH18: 96.50450852 | AI18: 93.90570311 | AJ18: 96.5674814 | AK18: 25 | AL18: 15 | AM18: 10 | AN18: 16 | AO18: 7 | AV18: 1 | AY18: 1 | BD18: 1 | BE18: 1 | BK18: 12. [iR] iBlaze² (512 pts) | BL18: [iR] iBlaze² | BM18: (512 pts) | BN18: (512 | BO18: 512 | BP18: 512
B19: 13. pozdro600 8.807 (798 pts) | C19: pozdro600 | D19: 8.807 | E19: 98.58360203 | G19: 13. [+] xzeal 10.118 (482 pts) | H19: [+] xzeal | I19: 10.118 | J19: 95.33464363 | L19: 13. [+] xzeal 9.330 (545 pts) | M19: [+] xzeal | N19: 9.33 | O19: 96.13714795 | Q19: 13. majstorfantac 10.193 (462 pts) | R19: majstorfantac | S19: 10.193 | T19: 95.06897262 | V19: 13. majstorfantac 9.949 (410 pts) | W19: majstorfantac | X19: 9.949 | Y19: 94.27205101 | AA19: 13 | AB19: AnnicK | AC19: 497 | AD19: 96.66460778 | AE19: 95.49069434 | AF19: 95.27867342 | AG19: 94.14502948 | AH19: 95.65846599 | AI19: 96.66460778 | AJ19: 95.70669501 | AK19: 31 | AL19: 16 | AM19: 17 | AN19: 10 | AO19: 9 | AX19: 1 | AY19: 1 | BE19: 1 | BF19: 1 | BK19: 13. AnnicK (497 pts) | BL19: AnnicK | BM19: (497 pts) | BN19: (497 | BO19: 497 | BP19: 497
B20: 14. [x] Whiplash 8.811 (792 pts) | C20: [x] Whiplash | D20: 8.811 | E20: 98.5375403 | G20: 14. GOl V8 10.154 (455 pts) | H20: GOl V8 | I20: 10.154 | J20: 94.96224268 | L20: 14. pozdro600 9.343 (533 pts) | M20: pozdro600 | N20: 9.343 | O20: 95.99243015 | Q20: 14. [+] xzeal 10.277 (405 pts) | R20: [+] xzeal | S20: 10.277 | T20: 94.2042413 | V20: 14. [+] Badeend 10.012 (370 pts) | W20: [+] Badeend | X20: 10.012 | Y20: 93.60255048 | AA20: 14 | AB20: majstorfantac | AC20: 495 | AD20: 98.49147858 | AE20: 95.22997178 | AF20: 98.49147858 | AG20: 93.04851557 | AH20: 95.26884114 | AI20: 95.06897262 | AJ20: 94.27205101 | AK20: 15 | AL20: 20 | AM20: 18 | AN20: 13 | AO20: 13 | BB20: 2 | BD20: 1 | BG20: 1 | BI20: 1 | BK20: 14. majstorfantac (495 pts) | BL20: majstorfantac | BM20: (495 pts) | BN20: (495 | BO20: 495 | BP20: 495
B21: 15. majstorfantac 8.815 (786 pts) | C21: majstorfantac | D21: 8.815 | E21: 98.49147858 | G21: 15. [iR] iBlaze² 10.231 (403 pts) | H21: [iR] iBlaze² | I21: 10.231 | J21: 94.16571842 | L21: 15. Jurgen-NL 9.345 (531 pts) | M21: Jurgen-NL | N21: 9.345 | O21: 95.97016587 | Q21: 15. [+] Badeend 10.301 (391 pts) | R21: [+] Badeend | S21: 10.301 | T21: 93.95717521 | V21: 15. pozdro600 10.063 (341 pts) | W21: pozdro600 | X21: 10.063 | Y21: 93.06057386 | AA21: 15 | AB21: [+] xzeal | AC21: 488 | AD21: 97.83509903 | AE21: 95.14005848 | AF21: 97.83509903 | AG21: 95.33464363 | AH21: 96.13714795 | AI21: 94.2042413 | AJ21: 92.18916047 | AK21: 19 | AL21: 13 | AM21: 13 | AN21: 14 | AO21: 17 | BB21: 2 | BC21: 1 | BF21: 1 | BH21: 1 | BK21: 15. [+] xzeal (488 pts) | BL21: [+] xzeal | BM21: (488 pts) | BN21: (488 | BO21: 488 | BP21: 488
B22: 16. kapa112 8.830 (765 pts) | C22: kapa112 | D22: 8.83 | E22: 98.31874712 | G22: 16. AnnicK 10.233 (402 pts) | H22: AnnicK | I22: 10.233 | J22: 94.14502948 | L22: 16. [PahaJori] Ender 9.358 (519 pts) | M22: [PahaJori] Ender | N22: 9.358 | O22: 95.82544807 | Q22: 16. [iR] iBlaze² 10.306 (388 pts) | R22: [iR] iBlaze² | S22: 10.306 | T22: 93.90570311 | V22: 16. GOl V8 10.065 (340 pts) | W22: GOl V8 | X22: 10.065 | Y22: 93.03931987 | AA22: 16 | AB22: GOl V8 | AC22: 480 | AD22: 98.92906495 | AE22: 94.33774374 | AF22: 98.92906495 | AG22: 94.96224268 | AH22: 96.77167984 | AI22: 87.98641137 | AJ22: 93.03931987 | AK22: 9 | AL22: 14 | AM22: 9 | AN22: 21 | AO22: 16 | AX22: 2 | BC22: 1 | BE22: 1 | BK22: 16. GOl V8 (480 pts) | BL22: GOl V8 | BM22: (480 pts) | BN22: (480 | BO22: 480 | BP22: 480
B23: 17. power79 8.847 (742 pts) | C23: power79 | D23: 8.847 | E23: 98.1229848 | G23: 17. Qpa 10.234 (401 pts) | H23: Qpa | I23: 10.234 | J23: 94.13468501 | L23: 17. AnnicK 9.373 (506 pts) | M23: AnnicK | N23: 9.373 | O23: 95.65846599 | Q23: 17. Lamppu 10.315 (382 pts) | R23: Lamppu | S23: 10.315 | T23: 93.81305333 | V23: 17. [+] xzeal 10.145 (300 pts) | W23: [+] xzeal | X23: 10.145 | Y23: 92.18916047 | AA23: 17 | AB23: [+] olio | AC23: 477 | AD23: 98.81038585 | AE23: 98.56245879 | AG23: 98.81038585 | AH23: 98.30791495 | AI23: 98.56907556 | AL23: 5 | AM23: 6 | AN23: 7 | AP23: =IF(SUMIF($AK23:$AO23,AP$6)/AP$6=0,"",SUMIF($AK23:$AO23,AP$6)/AP$6) ->  | AT23: 1 | AU23: 1 | AV23: 1 | BF23: =IF(SUMIF($AK23:$AO23,BF$6)/BF$6=0,"",SUMIF($AK23:$AO23,BF$6)/BF$6) ->  | BK23: 17. [+] olio (477 pts) | BL23: [+] olio | BM23: (477 pts) | BN23: (477 | BO23: 477 | BP23: 477
B24: 18. Gol_v8 8.857 (729 pts) | C24: Gol_v8 | D24: 8.857 | E24: 98.00783049 | G24: 18. lds 10.254 (389 pts) | H24: lds | I24: 10.254 | J24: 93.92779559 | L24: 18. majstorfantac 9.408 (477 pts) | M24: majstorfantac | N24: 9.408 | O24: 95.26884114 | Q24: 18. kapa112 10.336 (370 pts) | R24: kapa112 | S24: 10.336 | T24: 93.5968705 | V24: 18. Chukie 10.331 (224 pts) | W24: Chukie | X24: 10.331 | Y24: 90.21253985 | AA24: 18 | AB24: Chukie | AC24: 470 | AD24: 97.56022236 | AE24: 94.58515219 | AF24: 92.23859972 | AG24: 96.71045826 | AH24: 96.20394078 | AI24: 97.56022236 | AJ24: 90.21253985 | AK24: 36 | AL24: 9 | AM24: 12 | AN24: 8 | AO24: 18 | AW24: 1 | AX24: 1 | BA24: 1 | BG24: 1 | BK24: 18. Chukie (470 pts) | BL24: Chukie | BM24: (470 pts) | BN24: (470 | BO24: 470 | BP24: 470
B25: 19. [+] xzeal 8.872 (709 pts) | C25: [+] xzeal | D25: 8.872 | E25: 97.83509903 | G25: 19. pozdro600 10.260 (385 pts) | H25: pozdro600 | I25: 10.26 | J25: 93.86572877 | L25: 19. Lamppu 9.565 (366 pts) | M25: Lamppu | N25: 9.565 | O25: 93.5210954 | Q25: 19. Qpa 10.478 (297 pts) | R25: Qpa | S25: 10.478 | T25: 92.1350628 | V25: 19. Lamppu 10.331 (224 pts) | W25: Lamppu | X25: 10.331 | Y25: 90.21253985 | AA25: 19 | AB25: Lamppu | AC25: 335 | AD25: 93.81305333 | AE25: 92.81459614 | AF25: 93.53984339 | AG25: 92.98644874 | AH25: 93.5210954 | AI25: 93.81305333 | AJ25: 90.21253985 | AK25: 33 | AL25: 21 | AM25: 19 | AN25: 17 | AO25: 18 | BF25: 1 | BG25: 1 | BH25: 1 | BK25: 19. Lamppu (335 pts) | BL25: Lamppu | BM25: (335 pts) | BN25: (335 | BO25: 335 | BP25: 335
B26: 20. Johnny 8.873 (708 pts) | C26: Johnny | D26: 8.873 | E26: 97.8235836 | G26: 20. majstorfantac 10.339 (341 pts) | H26: majstorfantac | I26: 10.339 | J26: 93.04851557 | L26: 20. DutchMan 9.729 (279 pts) | M26: DutchMan | N26: 9.729 | O26: 91.69542469 | Q26: 20. Simo 10.704 (211 pts) | R26: Simo | S26: 10.704 | T26: 89.80852378 | V26: 20. Qpa 10.669 (134 pts) | W26: Qpa | X26: 10.669 | Y26: 86.62061637 | AA26: 20 | AB26: Qpa | AC26: 331 | AD26: 96.60294795 | AE26: 92.00842531 | AF26: 96.60294795 | AG26: 94.13468501 | AH26: 90.54881443 | AI26: 92.1350628 | AJ26: 86.62061637 | AK26: 27 | AL26: 17 | AM26: 21 | AN26: 19 | AO26: 20 | BF26: 1 | BH26: 1 | BI26: 1 | BK26: 20. Qpa (331 pts) | BL26: Qpa | BM26: (331 pts) | BN26: (331 | BO26: 331 | BP26: 331
B27: 21. mc65532 8.910 (662 pts) | C27: mc65532 | D27: 8.91 | E27: 97.39751267 | G27: 21. Lamppu 10.345 (338 pts) | H27: Lamppu | I27: 10.345 | J27: 92.98644874 | L27: 21. Qpa 9.832 (235 pts) | M27: Qpa | N27: 9.832 | O27: 90.54881443 | Q27: 21. GOl V8 10.881 (162 pts) | R27: GOl V8 | S27: 10.881 | T27: 87.98641137 | V27: 21. laf 10.697 (128 pts) | W27: laf | X27: 10.697 | Y27: 86.32306057 | AA27: 21 | AB27: ROMREI | AC27: 246 | AD27: 96.57991709 | AE27: 89.48526345 | AF27: 96.57991709 | AG27: 89.17968346 | AH27: 89.91428253 | AI27: 86.21577105 | AJ27: 85.53666312 | AK27: 28 | AL27: 24 | AM27: 22 | AN27: 22 | AO27: 23 | BK27: 21. ROMREI (246 pts) | BL27: ROMREI | BM27: (246 pts) | BN27: (246 | BO27: 246 | BP27: 246
B28: 22. Jaka 8.914 (658 pts) | C28: Jaka | D28: 8.914 | E28: 97.35145094 | G28: 22. Simo 10.656 (210 pts) | H28: Simo | I28: 10.656 | J28: 89.7693183 | L28: 22. ROMREI 9.889 (214 pts) | M28: ROMREI | N28: 9.889 | O28: 89.91428253 | Q28: 22. ROMREI 11.053 (126 pts) | R28: ROMREI | S28: 11.053 | T28: 86.21577105 | V28: 22. [FUN] GR8 Arjen! 10.715 (125 pts) | W28: [FUN] GR8 Arjen! | X28: 10.715 | Y28: 86.13177471 | AA28: 22 | AB28: Gol_v8 | AC28: 242 | AD28: 98.00783049 | AE28: 96.68158153 | AF28: 98.00783049 | AG28: 95.35533257 | AK28: 18 | AL28: 12 | BA28: 1 | BG28: 1 | BK28: 22. Gol_v8 (242 pts) | BL28: Gol_v8 | BM28: (242 pts) | BN28: (242 | BO28: 242 | BP28: 242
B29: 23. [FUN] GR8 Arjen! 8.923 (647 pts) | C29: [FUN] GR8 Arjen! | D29: 8.923 | E29: 97.24781207 | G29: 23. PEACE 10.698 (197 pts) | H29: PEACE | I29: 10.698 | J29: 89.33485052 | L29: 23. Baba 10.130 (146 pts) | M29: Baba | N29: 10.13 | O29: 87.23143716 | Q29: 23. Baba 12.093 (30 pts) | R29: Baba | S29: 12.093 | T29: 75.50957381 | V29: 23. ROMREI 10.771 (115 pts) | W29: ROMREI | X29: 10.771 | Y29: 85.53666312 | AA29: 23 | AB29: kapa112 | AC29: 227 | AD29: 98.31874712 | AE29: 95.95780881 | AF29: 98.31874712 | AI29: 93.5968705 | AK29: 16 | AN29: 18 | BE29: 1 | BG29: 1 | BK29: 23. kapa112 (227 pts) | BL29: kapa112 | BM29: (227 pts) | BN29: (227 | BO29: 227 | BP29: 227
B30: 24. Lost_KiLler 8.923 (647 pts) | C30: Lost_KiLler | D30: 8.923 | E30: 97.24781207 | G30: 24. ROMREI 10.713 (193 pts) | H30: ROMREI | I30: 10.713 | J30: 89.17968346 | V30: 24. Ninjinha_br 10.963 (86 pts) | W30: Ninjinha_br | X30: 10.963 | Y30: 83.49628055 | AA30: 24 | AB30: lds | AC30: 198 | AD30: 96.77567941 | AE30: 95.3517375 | AF30: 96.77567941 | AG30: 93.92779559 | AK30: 26 | AL30: 18 | BG30: 1 | BK30: 24. lds (198 pts) | BL30: lds | BM30: (198 pts) | BN30: (198 | BO30: 198 | BP30: 198
B31: 25. [iR] iBlaze² 8.957 (609 pts) | C31: [iR] iBlaze² | D31: 8.957 | E31: 96.85628743 | G31: 25. Buzzurro 10.885 (149 pts) | H31: Buzzurro | I31: 10.885 | J31: 87.40043447 | V31: 25. Ze Turbo Andre 11.665 (32 pts) | W31: Ze Turbo Andre | X31: 11.665 | Y31: 76.03613177 | AA31: 25 | AB31: Leftinjo | AC31: 171 | AD31: 99.03270382 | AE31: 99.03270382 | AF31: 99.03270382 | AK31: 8 | AW31: 1 | BK31: 25. Leftinjo (171 pts) | BL31: Leftinjo | BM31: (171 pts) | BN31: (171 | BO31: 171 | BP31: 171
B32: 26. lds 8.964 (601 pts) | C32: lds | D32: 8.964 | E32: 96.77567941 | G32: 26. Nocture 10.977 (130 pts) | H32: Nocture | I32: 10.977 | J32: 86.44874315 | V32: 26. Baba 12.218 (15 pts) | W32: Baba | X32: 12.218 | Y32: 70.15940489 | AA32: 26 | AB32: [x] Whiplash | AC32: 158 | AD32: 98.5375403 | AE32: 98.5375403 | AF32: 98.5375403 | AK32: 14 | BC32: 1 | BK32: 26. [x] Whiplash (158 pts) | BL32: [x] Whiplash | BM32: (158 pts) | BN32: (158 | BO32: 158 | BP32: 158
B33: 27. Qpa 8.979 (585 pts) | C33: Qpa | D33: 8.979 | E33: 96.60294795 | G33: 27. Matic 10.984 (129 pts) | H33: Matic | I33: 10.984 | J33: 86.37633185 | AA33: 27 | AB33: [FUN] GR8 Arjen! | AC33: 154 | AD33: 97.24781207 | AE33: 91.68979339 | AF33: 97.24781207 | AJ33: 86.13177471 | AK33: 23 | AO33: 22 | BK33: 27. [FUN] GR8 Arjen! (154 pts) | BL33: [FUN] GR8 Arjen! | BM33: (154 pts) | BN33: (154 | BO33: 154 | BP33: 154
B34: 28. ROMREI 8.981 (583 pts) | C34: ROMREI | D34: 8.981 | E34: 96.57991709 | G34: 28. Air13 10.998 (126 pts) | H34: Air13 | I34: 10.998 | J34: 86.23150926 | AA34: 28 | AB34: power79 | AC34: 148 | AD34: 98.1229848 | AE34: 98.1229848 | AF34: 98.1229848 | AK34: 17 | BF34: 1 | BK34: 28. power79 (148 pts) | BL34: power79 | BM34: (148 pts) | BN34: (148 | BO34: 148 | BP34: 148
B35: 29. PEACE 9.047 (519 pts) | C35: PEACE | D35: 9.047 | E35: 95.81989866 | G35: 29. Jos Verstappen 11.032 (120 pts) | H35: Jos Verstappen | I35: 11.032 | J35: 85.87979725 | AA35: 29 | AB35: Tinjoypadawan | AC35: 143 | AD35: 97.91710946 | AE35: 97.91710946 | AJ35: 97.91710946 | AO35: 5 | AT35: 1 | BK35: 29. Tinjoypadawan (143 pts) | BL35: Tinjoypadawan | BM35: (143 pts) | BN35: (143 | BO35: 143 | BP35: 143
B36: 30. Alukin 9.057 (510 pts) | C36: Alukin | D36: 9.057 | E36: 95.70474436 | G36: 30. Baba 11.289 (83 pts) | H36: Baba | I36: 11.289 | J36: 83.22126823 | AA36: 30 | AB36: PEACE | AC36: 143 | AD36: 95.81989866 | AE36: 92.57737459 | AF36: 95.81989866 | AG36: 89.33485052 | AK36: 29 | AL36: 23 | BK36: 30. PEACE (143 pts) | BL36: PEACE | BM36: (143 pts) | BN36: (143 | BO36: 143 | BP36: 143
B37: 31. AnnicK 9.094 (478 pts) | C37: AnnicK | D37: 9.094 | E37: 95.27867342 | G37: 31. Ze Turbo Andre 11.909 (35 pts) | H37: Ze Turbo Andre | I37: 11.909 | J37: 76.80769629 | AA37: 31 | AB37: Johnny | AC37: 141 | AD37: 97.8235836 | AE37: 97.8235836 | AF37: 97.8235836 | AK37: 20 | BI37: 1 | BK37: 31. Johnny (141 pts) | BL37: Johnny | BM37: (141 pts) | BN37: (141 | BO37: 141 | BP37: 141
B38: 32. [LWD] JamsleJ 9.224 (380 pts) | C38: [LWD] JamsleJ | D38: 9.224 | E38: 93.78166743 | G38: 32. ZakkWylde 11.916 (35 pts) | H38: ZakkWylde | I38: 11.916 | J38: 76.73528499 | AA38: 32 | AB38: mc65532 | AC38: 132 | AD38: 97.39751267 | AE38: 97.39751267 | AF38: 97.39751267 | AK38: 21 | BK38: 32. mc65532 (132 pts) | BL38: mc65532 | BM38: (132 pts) | BN38: (132 | BO38: 132 | BP38: 132
B39: 33. Lamppu 9.245 (367 pts) | C39: Lamppu | D39: 9.245 | E39: 93.53984339 | AA39: 33 | AB39: Jaka | AC39: 131 | AD39: 97.35145094 | AE39: 97.35145094 | AF39: 97.35145094 | AK39: 22 | AP39: =IF(SUMIF($AK39:$AO39,AP$6)/AP$6=0,"",SUMIF($AK39:$AO39,AP$6)/AP$6) ->  | BF39: =IF(SUMIF($AK39:$AO39,BF$6)/BF$6=0,"",SUMIF($AK39:$AO39,BF$6)/BF$6) ->  | BK39: 33. Jaka (131 pts) | BL39: Jaka | BM39: (131 pts) | BN39: (131 | BO39: 131 | BP39: 131
B40: 34. Pro08 9.252 (362 pts) | C40: Pro08 | D40: 9.252 | E40: 93.45923538 | AA40: 34 | AB40: Lost_KiLler | AC40: 129 | AD40: 97.24781207 | AE40: 97.24781207 | AF40: 97.24781207 | AK40: 23 | BK40: 34. Lost_KiLler (129 pts) | BL40: Lost_KiLler | BM40: (129 pts) | BN40: (129 | BO40: 129 | BP40: 129
B41: 35. Rodrigo 9.323 (321 pts) | C41: Rodrigo | D41: 9.323 | E41: 92.6416398 | AA41: 35 | AB41: Alukin | AC41: 102 | AD41: 95.70474436 | AE41: 95.70474436 | AF41: 95.70474436 | AK41: 30 | BK41: 35. Alukin (102 pts) | BL41: Alukin | BM41: (102 pts) | BN41: (102 | BO41: 102 | BP41: 102
B42: 36. Chukie 9.358 (302 pts) | C42: Chukie | D42: 9.358 | E42: 92.23859972 | AA42: 36 | AB42: Baba | AC42: 94 | AD42: 89.33671119 | AE42: 81.09167906 | AF42: 89.33671119 | AG42: 83.22126823 | AH42: 87.23143716 | AI42: 75.50957381 | AJ42: 70.15940489 | AK42: 40 | AL42: 30 | AM42: 23 | AN42: 23 | AO42: 26 | BK42: 36. Baba (94 pts) | BL42: Baba | BM42: (94 pts) | BN42: (94 | BO42: 94 | BP42: 94
B43: 37. Nocture 9.462 (253 pts) | C43: Nocture | D43: 9.462 | E43: 91.04099493 | AA43: 37 | AB43: Simo | AC43: 84 | AD43: 89.80852378 | AE43: 89.78892104 | AG43: 89.7693183 | AI43: 89.80852378 | AL43: 22 | AN43: 20 | BI43: 1 | BK43: 37. Simo (84 pts) | BL43: Simo | BM43: (84 pts) | BN43: (84 | BO43: 84 | BP43: 84
B44: 38. Buzzurro 9.478 (246 pts) | C44: Buzzurro | D44: 9.478 | E44: 90.85674804 | AA44: 38 | AB44: Buzzurro | AC44: 79 | AD44: 90.85674804 | AE44: 89.12859126 | AF44: 90.85674804 | AG44: 87.40043447 | AK44: 38 | AL44: 25 | BK44: 38. Buzzurro (79 pts) | BL44: Buzzurro | BM44: (79 pts) | BN44: (79 | BO44: 79 | BP44: 79
B45: 39. Jos Verstappen 9.510 (233 pts) | C45: Jos Verstappen | D45: 9.51 | E45: 90.48825426 | AA45: 39 | AB45: Nocture | AC45: 76 | AD45: 91.04099493 | AE45: 88.74486904 | AF45: 91.04099493 | AG45: 86.44874315 | AK45: 37 | AL45: 26 | BK45: 39. Nocture (76 pts) | BL45: Nocture | BM45: (76 pts) | BN45: (76 | BO45: 76 | BP45: 76
B46: 40. Baba 9.610 (197 pts) | C46: Baba | D46: 9.61 | E46: 89.33671119 | AA46: 40 | AB46: [LWD] JamsleJ | AC46: 76 | AD46: 93.78166743 | AE46: 93.78166743 | AF46: 93.78166743 | AK46: 32 | BK46: 40. [LWD] JamsleJ (76 pts) | BL46: [LWD] JamsleJ | BM46: (76 pts) | BN46: (76 | BO46: 76 | BP46: 76
B47: 41. Delux 9.692 (172 pts) | C47: Delux | D47: 9.692 | E47: 88.39244588 | AA47: 41 | AB47: Pro08 | AC47: 72 | AD47: 93.45923538 | AE47: 93.45923538 | AF47: 93.45923538 | AK47: 34 | BK47: 41. Pro08 (72 pts) | BL47: Pro08 | BM47: (72 pts) | BN47: (72 | BO47: 72 | BP47: 72
B48: 42. ZakkWylde 10.837 (28 pts) | C48: ZakkWylde | D48: 10.837 | E48: 75.20727775 | AA48: 42 | AB48: Jos Verstappen | AC48: 70 | AD48: 90.48825426 | AE48: 88.18402575 | AF48: 90.48825426 | AG48: 85.87979725 | AK48: 39 | AL48: 29 | BK48: 42. Jos Verstappen (70 pts) | BL48: Jos Verstappen | BM48: (70 pts) | BN48: (70 | BO48: 70 | BP48: 70
AA49: 43 | AB49: Rodrigo | AC49: 64 | AD49: 92.6416398 | AE49: 92.6416398 | AF49: 92.6416398 | AK49: 35 | BK49: 43. Rodrigo (64 pts) | BL49: Rodrigo | BM49: (64 pts) | BN49: (64 | BO49: 64 | BP49: 64
AA50: 44 | AB50: DutchMan | AC50: 55 | AD50: 91.69542469 | AE50: 91.69542469 | AH50: 91.69542469 | AM50: 20 | BI50: 1 | BK50: 44. DutchMan (55 pts) | BL50: DutchMan | BM50: (55 pts) | BN50: (55 | BO50: 55 | BP50: 55
AA51: 45 | AB51: Delux | AC51: 34 | AD51: 88.39244588 | AE51: 88.39244588 | AF51: 88.39244588 | AK51: 41 | BK51: 45. Delux (34 pts) | BL51: Delux | BM51: (34 pts) | BN51: (34 | BO51: 34 | BP51: 34
AA52: 46 | AB52: Matic | AC52: 25 | AD52: 86.37633185 | AE52: 86.37633185 | AG52: 86.37633185 | AL52: 27 | BK52: 46. Matic (25 pts) | BL52: Matic | BM52: (25 pts) | BN52: (25 | BO52: 25 | BP52: 25
AA53: 47 | AB53: =BL53 -> laf | AC53: =BP53 -> 25 | AD53: =MAX(AF53:AJ53) -> 86.32306057 | AE53: =SUM(AF53:AJ53)/COUNT(AF53:AJ53) -> 86.32306057 | AF53: =IF(SUMIF(C$7:C$995,$AB53,E$7:E$995)=0,"",VLOOKUP($AB53,C$7:E$995,3,FALSE)) ->  | AG53: =IF(SUMIF(H$7:H$996,$AB53,J$7:J$996)=0,"",VLOOKUP($AB53,H$7:J$996,3,FALSE)) ->  | AH53: =IF(SUMIF(M$7:M$995,$AB53,O$7:O$995)=0,"",VLOOKUP($AB53,M$7:O$995,3,FALSE)) ->  | AI53: =IF(SUMIF(R$7:R$995,$AB53,T$7:T$995)=0,"",VLOOKUP($AB53,R$7:T$995,3,FALSE)) ->  | AJ53: =IF(SUMIF(W$7:W$995,$AB53,Y$7:Y$995)=0,"",VLOOKUP($AB53,W$7:Y$995,3,FALSE)) -> 86.32306057 | AK53: =IF(AF53="","",RANK(AF53,AF$7:AF$999,0)) ->  | AL53: =IF(AG53="","",RANK(AG53,AG$7:AG$999,0)) ->  | AM53: =IF(AH53="","",RANK(AH53,AH$7:AH$999,0)) ->  | AN53: =IF(AI53="","",RANK(AI53,AI$7:AI$999,0)) ->  | AO53: =IF(AJ53="","",RANK(AJ53,AJ$7:AJ$999,0)) -> 21 | BK53: 47. laf (25 pts) | BL53: laf | BM53: (25 pts) | BN53: (25 | BO53: 25 | BP53: 25
AA54: 48 | AB54: Air13 | AC54: 25 | AD54: 86.23150926 | AE54: 86.23150926 | AG54: 86.23150926 | AL54: 28 | BK54: 48. Air13 (25 pts) | BL54: Air13 | BM54: (25 pts) | BN54: (25 | BO54: 25 | BP54: 25
AA55: 49 | AB55: Ninjinha_br | AC55: 17 | AD55: 83.49628055 | AE55: 83.49628055 | AJ55: 83.49628055 | AO55: 24 | AP55: =IF(SUMIF($AK55:$AO55,AP$6)/AP$6=0,"",SUMIF($AK55:$AO55,AP$6)/AP$6) ->  | BF55: =IF(SUMIF($AK55:$AO55,BF$6)/BF$6=0,"",SUMIF($AK55:$AO55,BF$6)/BF$6) ->  | BK55: 49. Ninjinha_br (17 pts) | BL55: Ninjinha_br | BM55: (17 pts) | BN55: (17 | BO55: 17 | BP55: 17
AA56: 50 | AB56: Ze Turbo Andre | AC56: 13 | AD56: 76.80769629 | AE56: 76.42191403 | AG56: 76.80769629 | AJ56: 76.03613177 | AL56: 31 | AO56: 25 | BK56: 50. Ze Turbo Andre (13 pts) | BL56: Ze Turbo Andre | BM56: (13 pts) | BN56: (13 | BO56: 13 | BP56: 13
AA57: 51 | AB57: ZakkWylde | AC57: 12 | AD57: 76.73528499 | AE57: 75.97128137 | AF57: 75.20727775 | AG57: 76.73528499 | AK57: 42 | AL57: 32 | BK57: 51. ZakkWylde (12 pts) | BL57: ZakkWylde | BM57: (12 pts) | BN57: (12 | BO57: 12 | BP57: 12
BM72: =RIGHT(BK72,10) ->  | BN72: =LEFT(BM72,5) ->  | BO72: =REPLACE(BN72,SEARCH("(",BN72),1,"") ->  | BP72: =TRIM(BO72) -> 

Sheet all_cars
K4: 5 | Q4: 6 | W4: 7 | AC4: 8 | AI4: 9
K5: Antislider | Q5: EasySlider | W5: Spinner | AC5: Slider | AI5: Speeder
F6: Max | G6: Min | I6: Av | K6: Week 1 | L6: Week 2 | M6: Week 3 | N6: Week 4 | O6: Week 5 | Q6: Week 1 | R6: Week 2 | S6: Week 3 | T6: Week 4 | U6: Week 5 | W6: Week 1 | X6: Week 2 | Y6: Week 3 | Z6: Week 4 | AA6: Week 5 | AC6: Week 1 | AD6: Week 2 | AE6: Week 3 | AF6: Week 4 | AG6: Week 5 | AI6: Week 1 | AJ6: Week 2 | AK6: Week 3 | AL6: Week 4 | AM6: Week 5 | AR6: copy from all weeks under/after here..values..and then copy to left and filter out duplicates
C7: 1 | D7: [+] Tinjovic | F7: =IF($I7="",0,MAX($K7:$AM7)) -> 100 | G7: =IF($I7="",0,MIN($K7:$AM7)) -> 99.76663196 | I7: =IF(COUNT(K7:AM7)=0,0,SUM(K7:AM7)/COUNT(K7:AM7)) -> 99.94814148 | K7: =IF(SUMIF(week1!$AB:$AB,all_cars!$D7,week1!$AF:$AF)=0,"",VLOOKUP(all_cars!$D7,week1!$AB:$AJ,5,FALSE)) -> 99.87874418 | L7: =IF(SUMIF(week2!$AB:$AB,all_cars!$D7,week2!$AF:$AF)=0,"",VLOOKUP(all_cars!$D7,week2!$AB:$AJ,5,FALSE)) -> 99.8523622 | M7: =IF(SUMIF(week3!$AB:$AB,all_cars!$D7,week3!$AF:$AF)=0,"",VLOOKUP(all_cars!$D7,week3!$AB:$AJ,5,FALSE)) -> 99.9322085 | N7: =IF(SUMIF(week4!$AB:$AB,all_cars!$D7,week4!$AF:$AF)=0,"",VLOOKUP(all_cars!$D7,week4!$AB:$AJ,5,FALSE)) -> 100 | O7: =IF(SUMIF(week5!$AB:$AB,all_cars!$D7,week5!$AF:$AF)=0,"",VLOOKUP(all_cars!$D7,week5!$AB:$AJ,5,FALSE)) -> 99.89780649 | Q7: =IF(SUMIF(week1!$AB:$AB,all_cars!$D7,week1!$AG:$AG)=0,"",VLOOKUP(all_cars!$D7,week1!$AB:$AJ,6,FALSE)) -> 100 | R7: =IF(SUMIF(week2!$AB:$AB,all_cars!$D7,week2!$AG:$AG)=0,"",VLOOKUP(all_cars!$D7,week2!$AB:$AJ,6,FALSE)) -> 100 | S7: =IF(SUMIF(week3!$AB:$AB,all_cars!$D7,week3!$AG:$AG)=0,"",VLOOKUP(all_cars!$D7,week3!$AB:$AJ,6,FALSE)) -> 100 | T7: =IF(SUMIF(week4!$AB:$AB,all_cars!$D7,week4!$AG:$AG)=0,"",VLOOKUP(all_cars!$D7,week4!$AB:$AJ,6,FALSE)) -> 100 | U7: =IF(SUMIF(week5!$AB:$AB,all_cars!$D7,week5!$AG:$AG)=0,"",VLOOKUP(all_cars!$D7,week5!$AB:$AJ,6,FALSE)) -> 100 | W7: =IF(SUMIF(week1!$AB:$AB,all_cars!$D7,week1!$AH:$AH)=0,"",VLOOKUP(all_cars!$D7,week1!$AB:$AJ,7,FALSE)) -> 100 | X7: =IF(SUMIF(week2!$AB:$AB,all_cars!$D7,week2!$AH:$AH)=0,"",VLOOKUP(all_cars!$D7,week2!$AB:$AJ,7,FALSE)) -> 99.88003761 | Y7: =IF(SUMIF(week3!$AB:$AB,all_cars!$D7,week3!$AH:$AH)=0,"",VLOOKUP(all_cars!$D7,week3!$AB:$AJ,7,FALSE)) -> 100 | Z7: =IF(SUMIF(week4!$AB:$AB,all_cars!$D7,week4!$AH:$AH)=0,"",VLOOKUP(all_cars!$D7,week4!$AB:$AJ,7,FALSE)) -> 100 | AA7: =IF(SUMIF(week5!$AB:$AB,all_cars!$D7,week5!$AH:$AH)=0,"",VLOOKUP(all_cars!$D7,week5!$AB:$AJ,7,FALSE)) -> 99.97134465 | AC7: =IF(SUMIF(week1!$AB:$AB,all_cars!$D7,week1!$AI:$AI)=0,"",VLOOKUP(all_cars!$D7,week1!$AB:$AJ,8,FALSE)) -> 99.83365243 | AD7: =IF(SUMIF(week2!$AB:$AB,all_cars!$D7,week2!$AI:$AI)=0,"",VLOOKUP(all_cars!$D7,week2!$AB:$AJ,8,FALSE)) -> 99.90564503 | AE7: =IF(SUMIF(week3!$AB:$AB,all_cars!$D7,week3!$AI:$AI)=0,"",VLOOKUP(all_cars!$D7,week3!$AB:$AJ,8,FALSE)) -> 99.84321823 | AF7: =IF(SUMIF(week4!$AB:$AB,all_cars!$D7,week4!$AI:$AI)=0,"",VLOOKUP(all_cars!$D7,week4!$AB:$AJ,8,FALSE)) -> 99.94188581 | AG7: =IF(SUMIF(week5!$AB:$AB,all_cars!$D7,week5!$AI:$AI)=0,"",VLOOKUP(all_cars!$D7,week5!$AB:$AJ,8,FALSE)) -> 99.76663196 | AI7: =IF(SUMIF(week1!$AB:$AB,all_cars!$D7,week1!$AJ:$AJ)=0,"",VLOOKUP(all_cars!$D7,week1!$AB:$AJ,9,FALSE)) -> 100 | AJ7: =IF(SUMIF(week2!$AB:$AB,all_cars!$D7,week2!$AJ:$AJ)=0,"",VLOOKUP(all_cars!$D7,week2!$AB:$AJ,9,FALSE)) -> 100 | AK7: =IF(SUMIF(week3!$AB:$AB,all_cars!$D7,week3!$AJ:$AJ)=0,"",VLOOKUP(all_cars!$D7,week3!$AB:$AJ,9,FALSE)) -> 100 | AL7: =IF(SUMIF(week4!$AB:$AB,all_cars!$D7,week4!$AJ:$AJ)=0,"",VLOOKUP(all_cars!$D7,week4!$AB:$AJ,9,FALSE)) -> 100 | AM7: =IF(SUMIF(week5!$AB:$AB,all_cars!$D7,week5!$AJ:$AJ)=0,"",VLOOKUP(all_cars!$D7,week5!$AB:$AJ,9,FALSE)) -> 100 | AQ7: [+] Tinjovic | AR7: [+] Tinjovic
C8: 2 | D8: [x] Mike Nike | F8: 100 | G8: 99.23754296 | I8: 99.81075343 | K8: =IF(SUMIF(week1!$AB:$AB,all_cars!$D8,week1!$AF:$AF)=0,"",VLOOKUP(all_cars!$D8,week1!$AB:$AJ,5,FALSE)) -> 100 | L8: =IF(SUMIF(week2!$AB:$AB,all_cars!$D8,week2!$AF:$AF)=0,"",VLOOKUP(all_cars!$D8,week2!$AB:$AJ,5,FALSE)) -> 99.64566929 | M8: =IF(SUMIF(week3!$AB:$AB,all_cars!$D8,week3!$AF:$AF)=0,"",VLOOKUP(all_cars!$D8,week3!$AB:$AJ,5,FALSE)) -> 100 | N8: =IF(SUMIF(week4!$AB:$AB,all_cars!$D8,week4!$AF:$AF)=0,"",VLOOKUP(all_cars!$D8,week4!$AB:$AJ,5,FALSE)) -> 99.9440006 | O8: =IF(SUMIF(week5!$AB:$AB,all_cars!$D8,week5!$AF:$AF)=0,"",VLOOKUP(all_cars!$D8,week5!$AB:$AJ,5,FALSE)) -> 100 | Q8: =IF(SUMIF(week1!$AB:$AB,all_cars!$D8,week1!$AG:$AG)=0,"",VLOOKUP(all_cars!$D8,week1!$AB:$AJ,6,FALSE)) -> 99.7779168 | R8: =IF(SUMIF(week2!$AB:$AB,all_cars!$D8,week2!$AG:$AG)=0,"",VLOOKUP(all_cars!$D8,week2!$AB:$AJ,6,FALSE)) -> 99.73521909 | S8: =IF(SUMIF(week3!$AB:$AB,all_cars!$D8,week3!$AG:$AG)=0,"",VLOOKUP(all_cars!$D8,week3!$AB:$AJ,6,FALSE)) -> 99.83769298 | T8: =IF(SUMIF(week4!$AB:$AB,all_cars!$D8,week4!$AG:$AG)=0,"",VLOOKUP(all_cars!$D8,week4!$AB:$AJ,6,FALSE)) -> 99.53552011 | U8: =IF(SUMIF(week5!$AB:$AB,all_cars!$D8,week5!$AG:$AG)=0,"",VLOOKUP(all_cars!$D8,week5!$AB:$AJ,6,FALSE)) -> 99.23754296 | W8: =IF(SUMIF(week1!$AB:$AB,all_cars!$D8,week1!$AH:$AH)=0,"",VLOOKUP(all_cars!$D8,week1!$AB:$AJ,7,FALSE)) -> 99.77344242 | X8: =IF(SUMIF(week2!$AB:$AB,all_cars!$D8,week2!$AH:$AH)=0,"",VLOOKUP(all_cars!$D8,week2!$AB:$AJ,7,FALSE)) -> 100 | Y8: =IF(SUMIF(week3!$AB:$AB,all_cars!$D8,week3!$AH:$AH)=0,"",VLOOKUP(all_cars!$D8,week3!$AB:$AJ,7,FALSE)) -> 99.56159741 | Z8: =IF(SUMIF(week4!$AB:$AB,all_cars!$D8,week4!$AH:$AH)=0,"",VLOOKUP(all_cars!$D8,week4!$AB:$AJ,7,FALSE)) -> 99.96725725 | AA8: =IF(SUMIF(week5!$AB:$AB,all_cars!$D8,week5!$AH:$AH)=0,"",VLOOKUP(all_cars!$D8,week5!$AB:$AJ,7,FALSE)) -> 100 | AC8: =IF(SUMIF(week1!$AB:$AB,all_cars!$D8,week1!$AI:$AI)=0,"",VLOOKUP(all_cars!$D8,week1!$AB:$AJ,8,FALSE)) -> 100 | AD8: =IF(SUMIF(week2!$AB:$AB,all_cars!$D8,week2!$AI:$AI)=0,"",VLOOKUP(all_cars!$D8,week2!$AB:$AJ,8,FALSE)) -> 100 | AE8: =IF(SUMIF(week3!$AB:$AB,all_cars!$D8,week3!$AI:$AI)=0,"",VLOOKUP(all_cars!$D8,week3!$AB:$AJ,8,FALSE)) -> 100 | AF8: =IF(SUMIF(week4!$AB:$AB,all_cars!$D8,week4!$AI:$AI)=0,"",VLOOKUP(all_cars!$D8,week4!$AB:$AJ,8,FALSE)) -> 100 | AG8: =IF(SUMIF(week5!$AB:$AB,all_cars!$D8,week5!$AI:$AI)=0,"",VLOOKUP(all_cars!$D8,week5!$AB:$AJ,8,FALSE)) -> 99.81330557 | AI8: =IF(SUMIF(week1!$AB:$AB,all_cars!$D8,week1!$AJ:$AJ)=0,"",VLOOKUP(all_cars!$D8,week1!$AB:$AJ,9,FALSE)) -> 99.95661605 | AJ8: =IF(SUMIF(week2!$AB:$AB,all_cars!$D8,week2!$AJ:$AJ)=0,"",VLOOKUP(all_cars!$D8,week2!$AB:$AJ,9,FALSE)) -> 99.8747739 | AK8: =IF(SUMIF(week3!$AB:$AB,all_cars!$D8,week3!$AJ:$AJ)=0,"",VLOOKUP(all_cars!$D8,week3!$AB:$AJ,9,FALSE)) -> 99.39958592 | AL8: =IF(SUMIF(week4!$AB:$AB,all_cars!$D8,week4!$AJ:$AJ)=0,"",VLOOKUP(all_cars!$D8,week4!$AB:$AJ,9,FALSE)) -> 99.52835659 | AM8: =IF(SUMIF(week5!$AB:$AB,all_cars!$D8,week5!$AJ:$AJ)=0,"",VLOOKUP(all_cars!$D8,week5!$AB:$AJ,9,FALSE)) -> 99.68033892 | AQ8: [x] Mike Nike | AR8: [x] Mike Nike
C9: 3 | D9: [fS]Palo | F9: 100 | G9: 98.43175533 | I9: 99.2468 | K9: =IF(SUMIF(week1!$AB:$AB,all_cars!$D9,week1!$AF:$AF)=0,"",VLOOKUP(all_cars!$D9,week1!$AB:$AJ,5,FALSE)) -> 99.83941797 | L9: =IF(SUMIF(week2!$AB:$AB,all_cars!$D9,week2!$AF:$AF)=0,"",VLOOKUP(all_cars!$D9,week2!$AB:$AJ,5,FALSE)) -> 100 | M9: =IF(SUMIF(week3!$AB:$AB,all_cars!$D9,week3!$AF:$AF)=0,"",VLOOKUP(all_cars!$D9,week3!$AB:$AJ,5,FALSE)) -> 99.81169027 | N9: =IF(SUMIF(week4!$AB:$AB,all_cars!$D9,week4!$AF:$AF)=0,"",VLOOKUP(all_cars!$D9,week4!$AB:$AJ,5,FALSE)) -> 99.54453819 | O9: =IF(SUMIF(week5!$AB:$AB,all_cars!$D9,week5!$AF:$AF)=0,"",VLOOKUP(all_cars!$D9,week5!$AB:$AJ,5,FALSE)) ->  | Q9: =IF(SUMIF(week1!$AB:$AB,all_cars!$D9,week1!$AG:$AG)=0,"",VLOOKUP(all_cars!$D9,week1!$AB:$AJ,6,FALSE)) -> 99.17735377 | R9: =IF(SUMIF(week2!$AB:$AB,all_cars!$D9,week2!$AG:$AG)=0,"",VLOOKUP(all_cars!$D9,week2!$AB:$AJ,6,FALSE)) -> 98.60505667 | S9: =IF(SUMIF(week3!$AB:$AB,all_cars!$D9,week3!$AG:$AG)=0,"",VLOOKUP(all_cars!$D9,week3!$AB:$AJ,6,FALSE)) -> 99.13562073 | T9: =IF(SUMIF(week4!$AB:$AB,all_cars!$D9,week4!$AG:$AG)=0,"",VLOOKUP(all_cars!$D9,week4!$AB:$AJ,6,FALSE)) -> 98.84060058 | U9: =IF(SUMIF(week5!$AB:$AB,all_cars!$D9,week5!$AG:$AG)=0,"",VLOOKUP(all_cars!$D9,week5!$AB:$AJ,6,FALSE)) ->  | W9: =IF(SUMIF(week1!$AB:$AB,all_cars!$D9,week1!$AH:$AH)=0,"",VLOOKUP(all_cars!$D9,week1!$AB:$AJ,7,FALSE)) -> 99.60667086 | X9: =IF(SUMIF(week2!$AB:$AB,all_cars!$D9,week2!$AH:$AH)=0,"",VLOOKUP(all_cars!$D9,week2!$AB:$AJ,7,FALSE)) -> 99.00787861 | Y9: =IF(SUMIF(week3!$AB:$AB,all_cars!$D9,week3!$AH:$AH)=0,"",VLOOKUP(all_cars!$D9,week3!$AB:$AJ,7,FALSE)) -> 98.7768936 | Z9: =IF(SUMIF(week4!$AB:$AB,all_cars!$D9,week4!$AH:$AH)=0,"",VLOOKUP(all_cars!$D9,week4!$AB:$AJ,7,FALSE)) -> 99.39244006 | AA9: =IF(SUMIF(week5!$AB:$AB,all_cars!$D9,week5!$AH:$AH)=0,"",VLOOKUP(all_cars!$D9,week5!$AB:$AJ,7,FALSE)) ->  | AC9: =IF(SUMIF(week1!$AB:$AB,all_cars!$D9,week1!$AI:$AI)=0,"",VLOOKUP(all_cars!$D9,week1!$AB:$AJ,8,FALSE)) -> 99.9152569 | AD9: =IF(SUMIF(week2!$AB:$AB,all_cars!$D9,week2!$AI:$AI)=0,"",VLOOKUP(all_cars!$D9,week2!$AB:$AJ,8,FALSE)) -> 98.43175533 | AE9: =IF(SUMIF(week3!$AB:$AB,all_cars!$D9,week3!$AI:$AI)=0,"",VLOOKUP(all_cars!$D9,week3!$AB:$AJ,8,FALSE)) -> 99.16637987 | AF9: =IF(SUMIF(week4!$AB:$AB,all_cars!$D9,week4!$AI:$AI)=0,"",VLOOKUP(all_cars!$D9,week4!$AB:$AJ,8,FALSE)) ->  | AG9: =IF(SUMIF(week5!$AB:$AB,all_cars!$D9,week5!$AI:$AI)=0,"",VLOOKUP(all_cars!$D9,week5!$AB:$AJ,8,FALSE)) ->  | AI9: =IF(SUMIF(week1!$AB:$AB,all_cars!$D9,week1!$AJ:$AJ)=0,"",VLOOKUP(all_cars!$D9,week1!$AB:$AJ,9,FALSE)) -> 98.92541298 | AJ9: =IF(SUMIF(week2!$AB:$AB,all_cars!$D9,week2!$AJ:$AJ)=0,"",VLOOKUP(all_cars!$D9,week2!$AB:$AJ,9,FALSE)) ->  | AK9: =IF(SUMIF(week3!$AB:$AB,all_cars!$D9,week3!$AJ:$AJ)=0,"",VLOOKUP(all_cars!$D9,week3!$AB:$AJ,9,FALSE)) -> 99.01863354 | AL9: =IF(SUMIF(week4!$AB:$AB,all_cars!$D9,week4!$AJ:$AJ)=0,"",VLOOKUP(all_cars!$D9,week4!$AB:$AJ,9,FALSE)) ->  | AM9: =IF(SUMIF(week5!$AB:$AB,all_cars!$D9,week5!$AJ:$AJ)=0,"",VLOOKUP(all_cars!$D9,week5!$AB:$AJ,9,FALSE)) ->  | AQ9: [fS]Palo | AR9: [fS]Palo
C10: 4 | D10: [x] Whiplash | F10: 99.51825392 | G10: 97.38771029 | I10: 98.66468542 | K10: =IF(SUMIF(week1!$AB:$AB,all_cars!$D10,week1!$AF:$AF)=0,"",VLOOKUP(all_cars!$D10,week1!$AB:$AJ,5,FALSE)) -> 99.51825392 | L10: =IF(SUMIF(week2!$AB:$AB,all_cars!$D10,week2!$AF:$AF)=0,"",VLOOKUP(all_cars!$D10,week2!$AB:$AJ,5,FALSE)) -> 99.30446194 | M10: =IF(SUMIF(week3!$AB:$AB,all_cars!$D10,week3!$AF:$AF)=0,"",VLOOKUP(all_cars!$D10,week3!$AB:$AJ,5,FALSE)) -> 99.51416089 | N10: =IF(SUMIF(week4!$AB:$AB,all_cars!$D10,week4!$AF:$AF)=0,"",VLOOKUP(all_cars!$D10,week4!$AB:$AJ,5,FALSE)) -> 98.99947734 | O10: =IF(SUMIF(week5!$AB:$AB,all_cars!$D10,week5!$AF:$AF)=0,"",VLOOKUP(all_cars!$D10,week5!$AB:$AJ,5,FALSE)) -> 99.37223986 | Q10: =IF(SUMIF(week1!$AB:$AB,all_cars!$D10,week1!$AG:$AG)=0,"",VLOOKUP(all_cars!$D10,week1!$AB:$AJ,6,FALSE)) -> 98.32655615 | R10: =IF(SUMIF(week2!$AB:$AB,all_cars!$D10,week2!$AG:$AG)=0,"",VLOOKUP(all_cars!$D10,week2!$AB:$AJ,6,FALSE)) -> 97.38771029 | S10: =IF(SUMIF(week3!$AB:$AB,all_cars!$D10,week3!$AG:$AG)=0,"",VLOOKUP(all_cars!$D10,week3!$AB:$AJ,6,FALSE)) -> 98.61472842 | T10: =IF(SUMIF(week4!$AB:$AB,all_cars!$D10,week4!$AG:$AG)=0,"",VLOOKUP(all_cars!$D10,week4!$AB:$AJ,6,FALSE)) ->  | U10: =IF(SUMIF(week5!$AB:$AB,all_cars!$D10,week5!$AG:$AG)=0,"",VLOOKUP(all_cars!$D10,week5!$AB:$AJ,6,FALSE)) -> 98.45360825 | W10: =IF(SUMIF(week1!$AB:$AB,all_cars!$D10,week1!$AH:$AH)=0,"",VLOOKUP(all_cars!$D10,week1!$AB:$AJ,7,FALSE)) -> 98.40780365 | X10: =IF(SUMIF(week2!$AB:$AB,all_cars!$D10,week2!$AH:$AH)=0,"",VLOOKUP(all_cars!$D10,week2!$AB:$AJ,7,FALSE)) ->  | Y10: =IF(SUMIF(week3!$AB:$AB,all_cars!$D10,week3!$AH:$AH)=0,"",VLOOKUP(all_cars!$D10,week3!$AB:$AJ,7,FALSE)) -> 98.1579723 | Z10: =IF(SUMIF(week4!$AB:$AB,all_cars!$D10,week4!$AH:$AH)=0,"",VLOOKUP(all_cars!$D10,week4!$AB:$AJ,7,FALSE)) ->  | AA10: =IF(SUMIF(week5!$AB:$AB,all_cars!$D10,week5!$AH:$AH)=0,"",VLOOKUP(all_cars!$D10,week5!$AB:$AJ,7,FALSE)) ->  | AC10: =IF(SUMIF(week1!$AB:$AB,all_cars!$D10,week1!$AI:$AI)=0,"",VLOOKUP(all_cars!$D10,week1!$AB:$AJ,8,FALSE)) -> 98.32710838 | AD10: =IF(SUMIF(week2!$AB:$AB,all_cars!$D10,week2!$AI:$AI)=0,"",VLOOKUP(all_cars!$D10,week2!$AB:$AJ,8,FALSE)) ->  | AE10: =IF(SUMIF(week3!$AB:$AB,all_cars!$D10,week3!$AI:$AI)=0,"",VLOOKUP(all_cars!$D10,week3!$AB:$AJ,8,FALSE)) -> 98.93311919 | AF10: =IF(SUMIF(week4!$AB:$AB,all_cars!$D10,week4!$AI:$AI)=0,"",VLOOKUP(all_cars!$D10,week4!$AB:$AJ,8,FALSE)) ->  | AG10: =IF(SUMIF(week5!$AB:$AB,all_cars!$D10,week5!$AI:$AI)=0,"",VLOOKUP(all_cars!$D10,week5!$AB:$AJ,8,FALSE)) ->  | AI10: =IF(SUMIF(week1!$AB:$AB,all_cars!$D10,week1!$AJ:$AJ)=0,"",VLOOKUP(all_cars!$D10,week1!$AB:$AJ,9,FALSE)) -> 98.04438512 | AJ10: =IF(SUMIF(week2!$AB:$AB,all_cars!$D10,week2!$AJ:$AJ)=0,"",VLOOKUP(all_cars!$D10,week2!$AB:$AJ,9,FALSE)) ->  | AK10: =IF(SUMIF(week3!$AB:$AB,all_cars!$D10,week3!$AJ:$AJ)=0,"",VLOOKUP(all_cars!$D10,week3!$AB:$AJ,9,FALSE)) -> 98.60869565 | AL10: =IF(SUMIF(week4!$AB:$AB,all_cars!$D10,week4!$AJ:$AJ)=0,"",VLOOKUP(all_cars!$D10,week4!$AB:$AJ,9,FALSE)) ->  | AM10: =IF(SUMIF(week5!$AB:$AB,all_cars!$D10,week5!$AJ:$AJ)=0,"",VLOOKUP(all_cars!$D10,week5!$AB:$AJ,9,FALSE)) ->  | AQ10: [x] Whiplash | AR10: [x] Whiplash
C11: 5 | D11: [fS]Hevonen | F11: 99.88701416 | G11: 96.12168537 | I11: 98.31352565 | K11: =IF(SUMIF(week1!$AB:$AB,all_cars!$D11,week1!$AF:$AF)=0,"",VLOOKUP(all_cars!$D11,week1!$AB:$AJ,5,FALSE)) -> 99.11843744 | L11: =IF(SUMIF(week2!$AB:$AB,all_cars!$D11,week2!$AF:$AF)=0,"",VLOOKUP(all_cars!$D11,week2!$AB:$AJ,5,FALSE)) -> 99.12073491 | M11: =IF(SUMIF(week3!$AB:$AB,all_cars!$D11,week3!$AF:$AF)=0,"",VLOOKUP(all_cars!$D11,week3!$AB:$AJ,5,FALSE)) -> 99.88701416 | N11: =IF(SUMIF(week4!$AB:$AB,all_cars!$D11,week4!$AF:$AF)=0,"",VLOOKUP(all_cars!$D11,week4!$AB:$AJ,5,FALSE)) ->  | O11: =IF(SUMIF(week5!$AB:$AB,all_cars!$D11,week5!$AF:$AF)=0,"",VLOOKUP(all_cars!$D11,week5!$AB:$AJ,5,FALSE)) ->  | Q11: =IF(SUMIF(week1!$AB:$AB,all_cars!$D11,week1!$AG:$AG)=0,"",VLOOKUP(all_cars!$D11,week1!$AB:$AJ,6,FALSE)) -> 97.48827025 | R11: =IF(SUMIF(week2!$AB:$AB,all_cars!$D11,week2!$AG:$AG)=0,"",VLOOKUP(all_cars!$D11,week2!$AB:$AJ,6,FALSE)) ->  | S11: =IF(SUMIF(week3!$AB:$AB,all_cars!$D11,week3!$AG:$AG)=0,"",VLOOKUP(all_cars!$D11,week3!$AB:$AJ,6,FALSE)) -> 98.53923678 | T11: =IF(SUMIF(week4!$AB:$AB,all_cars!$D11,week4!$AG:$AG)=0,"",VLOOKUP(all_cars!$D11,week4!$AB:$AJ,6,FALSE)) ->  | U11: =IF(SUMIF(week5!$AB:$AB,all_cars!$D11,week5!$AG:$AG)=0,"",VLOOKUP(all_cars!$D11,week5!$AB:$AJ,6,FALSE)) ->  | W11: =IF(SUMIF(week1!$AB:$AB,all_cars!$D11,week1!$AH:$AH)=0,"",VLOOKUP(all_cars!$D11,week1!$AB:$AJ,7,FALSE)) -> 98.41724355 | X11: =IF(SUMIF(week2!$AB:$AB,all_cars!$D11,week2!$AH:$AH)=0,"",VLOOKUP(all_cars!$D11,week2!$AB:$AJ,7,FALSE)) ->  | Y11: =IF(SUMIF(week3!$AB:$AB,all_cars!$D11,week3!$AH:$AH)=0,"",VLOOKUP(all_cars!$D11,week3!$AB:$AJ,7,FALSE)) -> 98.44164456 | Z11: =IF(SUMIF(week4!$AB:$AB,all_cars!$D11,week4!$AH:$AH)=0,"",VLOOKUP(all_cars!$D11,week4!$AB:$AJ,7,FALSE)) ->  | AA11: =IF(SUMIF(week5!$AB:$AB,all_cars!$D11,week5!$AH:$AH)=0,"",VLOOKUP(all_cars!$D11,week5!$AB:$AJ,7,FALSE)) ->  | AC11: =IF(SUMIF(week1!$AB:$AB,all_cars!$D11,week1!$AI:$AI)=0,"",VLOOKUP(all_cars!$D11,week1!$AB:$AJ,8,FALSE)) -> 99.43190735 | AD11: =IF(SUMIF(week2!$AB:$AB,all_cars!$D11,week2!$AI:$AI)=0,"",VLOOKUP(all_cars!$D11,week2!$AB:$AJ,8,FALSE)) -> 96.12168537 | AE11: =IF(SUMIF(week3!$AB:$AB,all_cars!$D11,week3!$AI:$AI)=0,"",VLOOKUP(all_cars!$D11,week3!$AB:$AJ,8,FALSE)) -> 98.39394287 | AF11: =IF(SUMIF(week4!$AB:$AB,all_cars!$D11,week4!$AI:$AI)=0,"",VLOOKUP(all_cars!$D11,week4!$AB:$AJ,8,FALSE)) ->  | AG11: =IF(SUMIF(week5!$AB:$AB,all_cars!$D11,week5!$AI:$AI)=0,"",VLOOKUP(all_cars!$D11,week5!$AB:$AJ,8,FALSE)) ->  | AI11: =IF(SUMIF(week1!$AB:$AB,all_cars!$D11,week1!$AJ:$AJ)=0,"",VLOOKUP(all_cars!$D11,week1!$AB:$AJ,9,FALSE)) -> 96.92641415 | AJ11: =IF(SUMIF(week2!$AB:$AB,all_cars!$D11,week2!$AJ:$AJ)=0,"",VLOOKUP(all_cars!$D11,week2!$AB:$AJ,9,FALSE)) ->  | AK11: =IF(SUMIF(week3!$AB:$AB,all_cars!$D11,week3!$AJ:$AJ)=0,"",VLOOKUP(all_cars!$D11,week3!$AB:$AJ,9,FALSE)) -> 97.8757764 | AL11: =IF(SUMIF(week4!$AB:$AB,all_cars!$D11,week4!$AJ:$AJ)=0,"",VLOOKUP(all_cars!$D11,week4!$AB:$AJ,9,FALSE)) ->  | AM11: =IF(SUMIF(week5!$AB:$AB,all_cars!$D11,week5!$AJ:$AJ)=0,"",VLOOKUP(all_cars!$D11,week5!$AB:$AJ,9,FALSE)) ->  | AQ11: [fS]Hevonen | AR11: [fS]Hevonen
C12: 6 | D12: Kyna_Musti | F12: 99.58757619 | G12: 96.22183709 | I12: 98.42008362 | K12: =IF(SUMIF(week1!$AB:$AB,all_cars!$D12,week1!$AF:$AF)=0,"",VLOOKUP(all_cars!$D12,week1!$AB:$AJ,5,FALSE)) -> 98.44333748 | L12: =IF(SUMIF(week2!$AB:$AB,all_cars!$D12,week2!$AF:$AF)=0,"",VLOOKUP(all_cars!$D12,week2!$AB:$AJ,5,FALSE)) -> 99.18963255 | M12: =IF(SUMIF(week3!$AB:$AB,all_cars!$D12,week3!$AF:$AF)=0,"",VLOOKUP(all_cars!$D12,week3!$AB:$AJ,5,FALSE)) -> 99.52169328 | N12: =IF(SUMIF(week4!$AB:$AB,all_cars!$D12,week4!$AF:$AF)=0,"",VLOOKUP(all_cars!$D12,week4!$AB:$AJ,5,FALSE)) -> 99.07414321 | O12: =IF(SUMIF(week5!$AB:$AB,all_cars!$D12,week5!$AF:$AF)=0,"",VLOOKUP(all_cars!$D12,week5!$AB:$AJ,5,FALSE)) -> 99.58757619 | Q12: =IF(SUMIF(week1!$AB:$AB,all_cars!$D12,week1!$AG:$AG)=0,"",VLOOKUP(all_cars!$D12,week1!$AB:$AJ,6,FALSE)) -> 97.15045355 | R12: =IF(SUMIF(week2!$AB:$AB,all_cars!$D12,week2!$AG:$AG)=0,"",VLOOKUP(all_cars!$D12,week2!$AB:$AJ,6,FALSE)) -> 97.58468146 | S12: =IF(SUMIF(week3!$AB:$AB,all_cars!$D12,week3!$AG:$AG)=0,"",VLOOKUP(all_cars!$D12,week3!$AB:$AJ,6,FALSE)) -> 98.44109765 | T12: =IF(SUMIF(week4!$AB:$AB,all_cars!$D12,week4!$AG:$AG)=0,"",VLOOKUP(all_cars!$D12,week4!$AB:$AJ,6,FALSE)) ->  | U12: =IF(SUMIF(week5!$AB:$AB,all_cars!$D12,week5!$AG:$AG)=0,"",VLOOKUP(all_cars!$D12,week5!$AB:$AJ,6,FALSE)) -> 98.18513746 | W12: =IF(SUMIF(week1!$AB:$AB,all_cars!$D12,week1!$AH:$AH)=0,"",VLOOKUP(all_cars!$D12,week1!$AB:$AJ,7,FALSE)) ->  | X12: =IF(SUMIF(week2!$AB:$AB,all_cars!$D12,week2!$AH:$AH)=0,"",VLOOKUP(all_cars!$D12,week2!$AB:$AJ,7,FALSE)) -> 98.22001751 | Y12: =IF(SUMIF(week3!$AB:$AB,all_cars!$D12,week3!$AH:$AH)=0,"",VLOOKUP(all_cars!$D12,week3!$AB:$AJ,7,FALSE)) -> 98.67374005 | Z12: =IF(SUMIF(week4!$AB:$AB,all_cars!$D12,week4!$AH:$AH)=0,"",VLOOKUP(all_cars!$D12,week4!$AB:$AJ,7,FALSE)) ->  | AA12: =IF(SUMIF(week5!$AB:$AB,all_cars!$D12,week5!$AH:$AH)=0,"",VLOOKUP(all_cars!$D12,week5!$AB:$AJ,7,FALSE)) -> 98.84304033 | AC12: =IF(SUMIF(week1!$AB:$AB,all_cars!$D12,week1!$AI:$AI)=0,"",VLOOKUP(all_cars!$D12,week1!$AB:$AJ,8,FALSE)) -> 99.37855058 | AD12: =IF(SUMIF(week2!$AB:$AB,all_cars!$D12,week2!$AI:$AI)=0,"",VLOOKUP(all_cars!$D12,week2!$AB:$AJ,8,FALSE)) -> 99.24841386 | AE12: =IF(SUMIF(week3!$AB:$AB,all_cars!$D12,week3!$AI:$AI)=0,"",VLOOKUP(all_cars!$D12,week3!$AB:$AJ,8,FALSE)) -> 99.36522504 | AF12: =IF(SUMIF(week4!$AB:$AB,all_cars!$D12,week4!$AI:$AI)=0,"",VLOOKUP(all_cars!$D12,week4!$AB:$AJ,8,FALSE)) -> 98.42002034 | AG12: =IF(SUMIF(week5!$AB:$AB,all_cars!$D12,week5!$AI:$AI)=0,"",VLOOKUP(all_cars!$D12,week5!$AB:$AJ,8,FALSE)) -> 99.50813198 | AI12: =IF(SUMIF(week1!$AB:$AB,all_cars!$D12,week1!$AJ:$AJ)=0,"",VLOOKUP(all_cars!$D12,week1!$AB:$AJ,9,FALSE)) -> 96.89304188 | AJ12: =IF(SUMIF(week2!$AB:$AB,all_cars!$D12,week2!$AJ:$AJ)=0,"",VLOOKUP(all_cars!$D12,week2!$AB:$AJ,9,FALSE)) -> 96.68150828 | AK12: =IF(SUMIF(week3!$AB:$AB,all_cars!$D12,week3!$AJ:$AJ)=0,"",VLOOKUP(all_cars!$D12,week3!$AB:$AJ,9,FALSE)) -> 98.19047619 | AL12: =IF(SUMIF(week4!$AB:$AB,all_cars!$D12,week4!$AJ:$AJ)=0,"",VLOOKUP(all_cars!$D12,week4!$AB:$AJ,9,FALSE)) ->  | AM12: =IF(SUMIF(week5!$AB:$AB,all_cars!$D12,week5!$AJ:$AJ)=0,"",VLOOKUP(all_cars!$D12,week5!$AB:$AJ,9,FALSE)) -> 96.22183709 | AQ12: Kyna_Musti | AR12: Kyna_Musti
C13: 7 | D13: [+] Iziwýn | F13: 98.95878525 | G13: 94.15076634 | I13: 96.83215527 | K13: =IF(SUMIF(week1!$AB:$AB,all_cars!$D13,week1!$AF:$AF)=0,"",VLOOKUP(all_cars!$D13,week1!$AB:$AJ,5,FALSE)) ->  | L13: =IF(SUMIF(week2!$AB:$AB,all_cars!$D13,week2!$AF:$AF)=0,"",VLOOKUP(all_cars!$D13,week2!$AB:$AJ,5,FALSE)) ->  | M13: =IF(SUMIF(week3!$AB:$AB,all_cars!$D13,week3!$AF:$AF)=0,"",VLOOKUP(all_cars!$D13,week3!$AB:$AJ,5,FALSE)) ->  | N13: =IF(SUMIF(week4!$AB:$AB,all_cars!$D13,week4!$AF:$AF)=0,"",VLOOKUP(all_cars!$D13,week4!$AB:$AJ,5,FALSE)) ->  | O13: =IF(SUMIF(week5!$AB:$AB,all_cars!$D13,week5!$AF:$AF)=0,"",VLOOKUP(all_cars!$D13,week5!$AB:$AJ,5,FALSE)) ->  | Q13: =IF(SUMIF(week1!$AB:$AB,all_cars!$D13,week1!$AG:$AG)=0,"",VLOOKUP(all_cars!$D13,week1!$AB:$AJ,6,FALSE)) -> 94.15076634 | R13: =IF(SUMIF(week2!$AB:$AB,all_cars!$D13,week2!$AG:$AG)=0,"",VLOOKUP(all_cars!$D13,week2!$AB:$AJ,6,FALSE)) ->  | S13: =IF(SUMIF(week3!$AB:$AB,all_cars!$D13,week3!$AG:$AG)=0,"",VLOOKUP(all_cars!$D13,week3!$AB:$AJ,6,FALSE)) ->  | T13: =IF(SUMIF(week4!$AB:$AB,all_cars!$D13,week4!$AG:$AG)=0,"",VLOOKUP(all_cars!$D13,week4!$AB:$AJ,6,FALSE)) ->  | U13: =IF(SUMIF(week5!$AB:$AB,all_cars!$D13,week5!$AG:$AG)=0,"",VLOOKUP(all_cars!$D13,week5!$AB:$AJ,6,FALSE)) ->  | W13: =IF(SUMIF(week1!$AB:$AB,all_cars!$D13,week1!$AH:$AH)=0,"",VLOOKUP(all_cars!$D13,week1!$AB:$AJ,7,FALSE)) -> 96.46633103 | X13: =IF(SUMIF(week2!$AB:$AB,all_cars!$D13,week2!$AH:$AH)=0,"",VLOOKUP(all_cars!$D13,week2!$AB:$AJ,7,FALSE)) ->  | Y13: =IF(SUMIF(week3!$AB:$AB,all_cars!$D13,week3!$AH:$AH)=0,"",VLOOKUP(all_cars!$D13,week3!$AB:$AJ,7,FALSE)) ->  | Z13: =IF(SUMIF(week4!$AB:$AB,all_cars!$D13,week4!$AH:$AH)=0,"",VLOOKUP(all_cars!$D13,week4!$AB:$AJ,7,FALSE)) ->  | AA13: =IF(SUMIF(week5!$AB:$AB,all_cars!$D13,week5!$AH:$AH)=0,"",VLOOKUP(all_cars!$D13,week5!$AB:$AJ,7,FALSE)) ->  | AC13: =IF(SUMIF(week1!$AB:$AB,all_cars!$D13,week1!$AI:$AI)=0,"",VLOOKUP(all_cars!$D13,week1!$AB:$AJ,8,FALSE)) -> 97.75273846 | AD13: =IF(SUMIF(week2!$AB:$AB,all_cars!$D13,week2!$AI:$AI)=0,"",VLOOKUP(all_cars!$D13,week2!$AB:$AJ,8,FALSE)) ->  | AE13: =IF(SUMIF(week3!$AB:$AB,all_cars!$D13,week3!$AI:$AI)=0,"",VLOOKUP(all_cars!$D13,week3!$AB:$AJ,8,FALSE)) ->  | AF13: =IF(SUMIF(week4!$AB:$AB,all_cars!$D13,week4!$AI:$AI)=0,"",VLOOKUP(all_cars!$D13,week4!$AB:$AJ,8,FALSE)) ->  | AG13: =IF(SUMIF(week5!$AB:$AB,all_cars!$D13,week5!$AI:$AI)=0,"",VLOOKUP(all_cars!$D13,week5!$AB:$AJ,8,FALSE)) ->  | AI13: =IF(SUMIF(week1!$AB:$AB,all_cars!$D13,week1!$AJ:$AJ)=0,"",VLOOKUP(all_cars!$D13,week1!$AB:$AJ,9,FALSE)) -> 98.95878525 | AJ13: =IF(SUMIF(week2!$AB:$AB,all_cars!$D13,week2!$AJ:$AJ)=0,"",VLOOKUP(all_cars!$D13,week2!$AB:$AJ,9,FALSE)) ->  | AK13: =IF(SUMIF(week3!$AB:$AB,all_cars!$D13,week3!$AJ:$AJ)=0,"",VLOOKUP(all_cars!$D13,week3!$AB:$AJ,9,FALSE)) ->  | AL13: =IF(SUMIF(week4!$AB:$AB,all_cars!$D13,week4!$AJ:$AJ)=0,"",VLOOKUP(all_cars!$D13,week4!$AB:$AJ,9,FALSE)) ->  | AM13: =IF(SUMIF(week5!$AB:$AB,all_cars!$D13,week5!$AJ:$AJ)=0,"",VLOOKUP(all_cars!$D13,week5!$AB:$AJ,9,FALSE)) ->  | AQ13: [+] Iziwýn | AR13: [+] Iziwýn
C14: 8 | D14: mc65532 | F14: 99.51416089 | G14: 90.81595194 | I14: 95.83908499 | K14: =IF(SUMIF(week1!$AB:$AB,all_cars!$D14,week1!$AF:$AF)=0,"",VLOOKUP(all_cars!$D14,week1!$AB:$AJ,5,FALSE)) -> 96.56551091 | L14: =IF(SUMIF(week2!$AB:$AB,all_cars!$D14,week2!$AF:$AF)=0,"",VLOOKUP(all_cars!$D14,week2!$AB:$AJ,5,FALSE)) -> 97.84120735 | M14: =IF(SUMIF(week3!$AB:$AB,all_cars!$D14,week3!$AF:$AF)=0,"",VLOOKUP(all_cars!$D14,week3!$AB:$AJ,5,FALSE)) -> 99.51416089 | N14: =IF(SUMIF(week4!$AB:$AB,all_cars!$D14,week4!$AF:$AF)=0,"",VLOOKUP(all_cars!$D14,week4!$AB:$AJ,5,FALSE)) ->  | O14: =IF(SUMIF(week5!$AB:$AB,all_cars!$D14,week5!$AF:$AF)=0,"",VLOOKUP(all_cars!$D14,week5!$AB:$AJ,5,FALSE)) ->  | Q14: =IF(SUMIF(week1!$AB:$AB,all_cars!$D14,week1!$AG:$AG)=0,"",VLOOKUP(all_cars!$D14,week1!$AB:$AJ,6,FALSE)) -> 96.40913356 | R14: =IF(SUMIF(week2!$AB:$AB,all_cars!$D14,week2!$AG:$AG)=0,"",VLOOKUP(all_cars!$D14,week2!$AB:$AJ,6,FALSE)) -> 93.67754852 | S14: =IF(SUMIF(week3!$AB:$AB,all_cars!$D14,week3!$AG:$AG)=0,"",VLOOKUP(all_cars!$D14,week3!$AB:$AJ,6,FALSE)) -> 95.77624278 | T14: =IF(SUMIF(week4!$AB:$AB,all_cars!$D14,week4!$AG:$AG)=0,"",VLOOKUP(all_cars!$D14,week4!$AB:$AJ,6,FALSE)) ->  | U14: =IF(SUMIF(week5!$AB:$AB,all_cars!$D14,week5!$AG:$AG)=0,"",VLOOKUP(all_cars!$D14,week5!$AB:$AJ,6,FALSE)) ->  | W14: =IF(SUMIF(week1!$AB:$AB,all_cars!$D14,week1!$AH:$AH)=0,"",VLOOKUP(all_cars!$D14,week1!$AB:$AJ,7,FALSE)) -> 97.10509755 | X14: =IF(SUMIF(week2!$AB:$AB,all_cars!$D14,week2!$AH:$AH)=0,"",VLOOKUP(all_cars!$D14,week2!$AB:$AJ,7,FALSE)) -> 96.01854554 | Y14: =IF(SUMIF(week3!$AB:$AB,all_cars!$D14,week3!$AH:$AH)=0,"",VLOOKUP(all_cars!$D14,week3!$AB:$AJ,7,FALSE)) -> 97.86693192 | Z14: =IF(SUMIF(week4!$AB:$AB,all_cars!$D14,week4!$AH:$AH)=0,"",VLOOKUP(all_cars!$D14,week4!$AB:$AJ,7,FALSE)) ->  | AA14: =IF(SUMIF(week5!$AB:$AB,all_cars!$D14,week5!$AH:$AH)=0,"",VLOOKUP(all_cars!$D14,week5!$AB:$AJ,7,FALSE)) ->  | AC14: =IF(SUMIF(week1!$AB:$AB,all_cars!$D14,week1!$AI:$AI)=0,"",VLOOKUP(all_cars!$D14,week1!$AB:$AJ,8,FALSE)) -> 93.39317661 | AD14: =IF(SUMIF(week2!$AB:$AB,all_cars!$D14,week2!$AI:$AI)=0,"",VLOOKUP(all_cars!$D14,week2!$AB:$AJ,8,FALSE)) ->  | AE14: =IF(SUMIF(week3!$AB:$AB,all_cars!$D14,week3!$AI:$AI)=0,"",VLOOKUP(all_cars!$D14,week3!$AB:$AJ,8,FALSE)) -> 96.93701962 | AF14: =IF(SUMIF(week4!$AB:$AB,all_cars!$D14,week4!$AI:$AI)=0,"",VLOOKUP(all_cars!$D14,week4!$AB:$AJ,8,FALSE)) ->  | AG14: =IF(SUMIF(week5!$AB:$AB,all_cars!$D14,week5!$AI:$AI)=0,"",VLOOKUP(all_cars!$D14,week5!$AB:$AJ,8,FALSE)) ->  | AI14: =IF(SUMIF(week1!$AB:$AB,all_cars!$D14,week1!$AJ:$AJ)=0,"",VLOOKUP(all_cars!$D14,week1!$AB:$AJ,9,FALSE)) -> 90.81595194 | AJ14: =IF(SUMIF(week2!$AB:$AB,all_cars!$D14,week2!$AJ:$AJ)=0,"",VLOOKUP(all_cars!$D14,week2!$AB:$AJ,9,FALSE)) ->  | AK14: =IF(SUMIF(week3!$AB:$AB,all_cars!$D14,week3!$AJ:$AJ)=0,"",VLOOKUP(all_cars!$D14,week3!$AB:$AJ,9,FALSE)) -> 93.98757764 | AL14: =IF(SUMIF(week4!$AB:$AB,all_cars!$D14,week4!$AJ:$AJ)=0,"",VLOOKUP(all_cars!$D14,week4!$AB:$AJ,9,FALSE)) ->  | AM14: =IF(SUMIF(week5!$AB:$AB,all_cars!$D14,week5!$AJ:$AJ)=0,"",VLOOKUP(all_cars!$D14,week5!$AB:$AJ,9,FALSE)) ->  | AQ14: mc65532 | AR14: mc65532
C15: 9 | D15: [+] Badeend | F15: 99.87948177 | G15: 96.24786076 | I15: 98.37619476 | K15: =IF(SUMIF(week1!$AB:$AB,all_cars!$D15,week1!$AF:$AF)=0,"",VLOOKUP(all_cars!$D15,week1!$AB:$AJ,5,FALSE)) -> 99.41338402 | L15: =IF(SUMIF(week2!$AB:$AB,all_cars!$D15,week2!$AF:$AF)=0,"",VLOOKUP(all_cars!$D15,week2!$AB:$AJ,5,FALSE)) -> 99.64566929 | M15: =IF(SUMIF(week3!$AB:$AB,all_cars!$D15,week3!$AF:$AF)=0,"",VLOOKUP(all_cars!$D15,week3!$AB:$AJ,5,FALSE)) -> 99.87948177 | N15: =IF(SUMIF(week4!$AB:$AB,all_cars!$D15,week4!$AF:$AF)=0,"",VLOOKUP(all_cars!$D15,week4!$AB:$AJ,5,FALSE)) -> 99.51467184 | O15: =IF(SUMIF(week5!$AB:$AB,all_cars!$D15,week5!$AF:$AF)=0,"",VLOOKUP(all_cars!$D15,week5!$AB:$AJ,5,FALSE)) -> 99.44158546 | Q15: =IF(SUMIF(week1!$AB:$AB,all_cars!$D15,week1!$AG:$AG)=0,"",VLOOKUP(all_cars!$D15,week1!$AB:$AJ,6,FALSE)) -> 96.85955583 | R15: =IF(SUMIF(week2!$AB:$AB,all_cars!$D15,week2!$AG:$AG)=0,"",VLOOKUP(all_cars!$D15,week2!$AB:$AJ,6,FALSE)) -> 96.24786076 | S15: =IF(SUMIF(week3!$AB:$AB,all_cars!$D15,week3!$AG:$AG)=0,"",VLOOKUP(all_cars!$D15,week3!$AB:$AJ,6,FALSE)) -> 97.52387423 | T15: =IF(SUMIF(week4!$AB:$AB,all_cars!$D15,week4!$AG:$AG)=0,"",VLOOKUP(all_cars!$D15,week4!$AB:$AJ,6,FALSE)) ->  | U15: =IF(SUMIF(week5!$AB:$AB,all_cars!$D15,week5!$AG:$AG)=0,"",VLOOKUP(all_cars!$D15,week5!$AB:$AJ,6,FALSE)) ->  | W15: =IF(SUMIF(week1!$AB:$AB,all_cars!$D15,week1!$AH:$AH)=0,"",VLOOKUP(all_cars!$D15,week1!$AB:$AJ,7,FALSE)) ->  | X15: =IF(SUMIF(week2!$AB:$AB,all_cars!$D15,week2!$AH:$AH)=0,"",VLOOKUP(all_cars!$D15,week2!$AB:$AJ,7,FALSE)) ->  | Y15: =IF(SUMIF(week3!$AB:$AB,all_cars!$D15,week3!$AH:$AH)=0,"",VLOOKUP(all_cars!$D15,week3!$AB:$AJ,7,FALSE)) ->  | Z15: =IF(SUMIF(week4!$AB:$AB,all_cars!$D15,week4!$AH:$AH)=0,"",VLOOKUP(all_cars!$D15,week4!$AB:$AJ,7,FALSE)) ->  | AA15: =IF(SUMIF(week5!$AB:$AB,all_cars!$D15,week5!$AH:$AH)=0,"",VLOOKUP(all_cars!$D15,week5!$AB:$AJ,7,FALSE)) ->  | AC15: =IF(SUMIF(week1!$AB:$AB,all_cars!$D15,week1!$AI:$AI)=0,"",VLOOKUP(all_cars!$D15,week1!$AB:$AJ,8,FALSE)) ->  | AD15: =IF(SUMIF(week2!$AB:$AB,all_cars!$D15,week2!$AI:$AI)=0,"",VLOOKUP(all_cars!$D15,week2!$AB:$AJ,8,FALSE)) ->  | AE15: =IF(SUMIF(week3!$AB:$AB,all_cars!$D15,week3!$AI:$AI)=0,"",VLOOKUP(all_cars!$D15,week3!$AB:$AJ,8,FALSE)) ->  | AF15: =IF(SUMIF(week4!$AB:$AB,all_cars!$D15,week4!$AI:$AI)=0,"",VLOOKUP(all_cars!$D15,week4!$AB:$AJ,8,FALSE)) ->  | AG15: =IF(SUMIF(week5!$AB:$AB,all_cars!$D15,week5!$AI:$AI)=0,"",VLOOKUP(all_cars!$D15,week5!$AB:$AJ,8,FALSE)) ->  | AI15: =IF(SUMIF(week1!$AB:$AB,all_cars!$D15,week1!$AJ:$AJ)=0,"",VLOOKUP(all_cars!$D15,week1!$AB:$AJ,9,FALSE)) -> 96.85966961 | AJ15: =IF(SUMIF(week2!$AB:$AB,all_cars!$D15,week2!$AJ:$AJ)=0,"",VLOOKUP(all_cars!$D15,week2!$AB:$AJ,9,FALSE)) ->  | AK15: =IF(SUMIF(week3!$AB:$AB,all_cars!$D15,week3!$AJ:$AJ)=0,"",VLOOKUP(all_cars!$D15,week3!$AB:$AJ,9,FALSE)) ->  | AL15: =IF(SUMIF(week4!$AB:$AB,all_cars!$D15,week4!$AJ:$AJ)=0,"",VLOOKUP(all_cars!$D15,week4!$AB:$AJ,9,FALSE)) ->  | AM15: =IF(SUMIF(week5!$AB:$AB,all_cars!$D15,week5!$AJ:$AJ)=0,"",VLOOKUP(all_cars!$D15,week5!$AB:$AJ,9,FALSE)) ->  | AQ15: [+] Badeend | AR15: [+] Badeend
C16: 10 | D16: Poisonous | F16: 98.39895013 | G16: 90.63587032 | I16: 94.73202666 | K16: =IF(SUMIF(week1!$AB:$AB,all_cars!$D16,week1!$AF:$AF)=0,"",VLOOKUP(all_cars!$D16,week1!$AB:$AJ,5,FALSE)) -> 97.47329095 | L16: =IF(SUMIF(week2!$AB:$AB,all_cars!$D16,week2!$AF:$AF)=0,"",VLOOKUP(all_cars!$D16,week2!$AB:$AJ,5,FALSE)) -> 98.39895013 | M16: =IF(SUMIF(week3!$AB:$AB,all_cars!$D16,week3!$AF:$AF)=0,"",VLOOKUP(all_cars!$D16,week3!$AB:$AJ,5,FALSE)) ->  | N16: =IF(SUMIF(week4!$AB:$AB,all_cars!$D16,week4!$AF:$AF)=0,"",VLOOKUP(all_cars!$D16,week4!$AB:$AJ,5,FALSE)) ->  | O16: =IF(SUMIF(week5!$AB:$AB,all_cars!$D16,week5!$AF:$AF)=0,"",VLOOKUP(all_cars!$D16,week5!$AB:$AJ,5,FALSE)) ->  | Q16: =IF(SUMIF(week1!$AB:$AB,all_cars!$D16,week1!$AG:$AG)=0,"",VLOOKUP(all_cars!$D16,week1!$AB:$AJ,6,FALSE)) -> 94.49796684 | R16: =IF(SUMIF(week2!$AB:$AB,all_cars!$D16,week2!$AG:$AG)=0,"",VLOOKUP(all_cars!$D16,week2!$AB:$AJ,6,FALSE)) -> 92.43759889 | S16: =IF(SUMIF(week3!$AB:$AB,all_cars!$D16,week3!$AG:$AG)=0,"",VLOOKUP(all_cars!$D16,week3!$AB:$AJ,6,FALSE)) ->  | T16: =IF(SUMIF(week4!$AB:$AB,all_cars!$D16,week4!$AG:$AG)=0,"",VLOOKUP(all_cars!$D16,week4!$AB:$AJ,6,FALSE)) ->  | U16: =IF(SUMIF(week5!$AB:$AB,all_cars!$D16,week5!$AG:$AG)=0,"",VLOOKUP(all_cars!$D16,week5!$AB:$AJ,6,FALSE)) ->  | W16: =IF(SUMIF(week1!$AB:$AB,all_cars!$D16,week1!$AH:$AH)=0,"",VLOOKUP(all_cars!$D16,week1!$AB:$AJ,7,FALSE)) ->  | X16: =IF(SUMIF(week2!$AB:$AB,all_cars!$D16,week2!$AH:$AH)=0,"",VLOOKUP(all_cars!$D16,week2!$AB:$AJ,7,FALSE)) ->  | Y16: =IF(SUMIF(week3!$AB:$AB,all_cars!$D16,week3!$AH:$AH)=0,"",VLOOKUP(all_cars!$D16,week3!$AB:$AJ,7,FALSE)) ->  | Z16: =IF(SUMIF(week4!$AB:$AB,all_cars!$D16,week4!$AH:$AH)=0,"",VLOOKUP(all_cars!$D16,week4!$AB:$AJ,7,FALSE)) ->  | AA16: =IF(SUMIF(week5!$AB:$AB,all_cars!$D16,week5!$AH:$AH)=0,"",VLOOKUP(all_cars!$D16,week5!$AB:$AJ,7,FALSE)) ->  | AC16: =IF(SUMIF(week1!$AB:$AB,all_cars!$D16,week1!$AI:$AI)=0,"",VLOOKUP(all_cars!$D16,week1!$AB:$AJ,8,FALSE)) -> 95.68751765 | AD16: =IF(SUMIF(week2!$AB:$AB,all_cars!$D16,week2!$AI:$AI)=0,"",VLOOKUP(all_cars!$D16,week2!$AB:$AJ,8,FALSE)) ->  | AE16: =IF(SUMIF(week3!$AB:$AB,all_cars!$D16,week3!$AI:$AI)=0,"",VLOOKUP(all_cars!$D16,week3!$AB:$AJ,8,FALSE)) ->  | AF16: =IF(SUMIF(week4!$AB:$AB,all_cars!$D16,week4!$AI:$AI)=0,"",VLOOKUP(all_cars!$D16,week4!$AB:$AJ,8,FALSE)) ->  | AG16: =IF(SUMIF(week5!$AB:$AB,all_cars!$D16,week5!$AI:$AI)=0,"",VLOOKUP(all_cars!$D16,week5!$AB:$AJ,8,FALSE)) ->  | AI16: =IF(SUMIF(week1!$AB:$AB,all_cars!$D16,week1!$AJ:$AJ)=0,"",VLOOKUP(all_cars!$D16,week1!$AB:$AJ,9,FALSE)) -> 93.99299182 | AJ16: =IF(SUMIF(week2!$AB:$AB,all_cars!$D16,week2!$AJ:$AJ)=0,"",VLOOKUP(all_cars!$D16,week2!$AB:$AJ,9,FALSE)) -> 90.63587032 | AK16: =IF(SUMIF(week3!$AB:$AB,all_cars!$D16,week3!$AJ:$AJ)=0,"",VLOOKUP(all_cars!$D16,week3!$AB:$AJ,9,FALSE)) ->  | AL16: =IF(SUMIF(week4!$AB:$AB,all_cars!$D16,week4!$AJ:$AJ)=0,"",VLOOKUP(all_cars!$D16,week4!$AB:$AJ,9,FALSE)) ->  | AM16: =IF(SUMIF(week5!$AB:$AB,all_cars!$D16,week5!$AJ:$AJ)=0,"",VLOOKUP(all_cars!$D16,week5!$AB:$AJ,9,FALSE)) ->  | AQ16: Poisonous | AR16: Poisonous
C17: 11 | D17: Chukie | F17: 98.16389944 | G17: 93.23589172 | I17: 96.57730075 | K17: =IF(SUMIF(week1!$AB:$AB,all_cars!$D17,week1!$AF:$AF)=0,"",VLOOKUP(all_cars!$D17,week1!$AB:$AJ,5,FALSE)) -> 93.23589172 | L17: =IF(SUMIF(week2!$AB:$AB,all_cars!$D17,week2!$AF:$AF)=0,"",VLOOKUP(all_cars!$D17,week2!$AB:$AJ,5,FALSE)) ->  | M17: =IF(SUMIF(week3!$AB:$AB,all_cars!$D17,week3!$AF:$AF)=0,"",VLOOKUP(all_cars!$D17,week3!$AB:$AJ,5,FALSE)) ->  | N17: =IF(SUMIF(week4!$AB:$AB,all_cars!$D17,week4!$AF:$AF)=0,"",VLOOKUP(all_cars!$D17,week4!$AB:$AJ,5,FALSE)) ->  | O17: =IF(SUMIF(week5!$AB:$AB,all_cars!$D17,week5!$AF:$AF)=0,"",VLOOKUP(all_cars!$D17,week5!$AB:$AJ,5,FALSE)) ->  | Q17: =IF(SUMIF(week1!$AB:$AB,all_cars!$D17,week1!$AG:$AG)=0,"",VLOOKUP(all_cars!$D17,week1!$AB:$AJ,6,FALSE)) -> 96.06193306 | R17: =IF(SUMIF(week2!$AB:$AB,all_cars!$D17,week2!$AG:$AG)=0,"",VLOOKUP(all_cars!$D17,week2!$AB:$AJ,6,FALSE)) ->  | S17: =IF(SUMIF(week3!$AB:$AB,all_cars!$D17,week3!$AG:$AG)=0,"",VLOOKUP(all_cars!$D17,week3!$AB:$AJ,6,FALSE)) -> 97.11621938 | T17: =IF(SUMIF(week4!$AB:$AB,all_cars!$D17,week4!$AG:$AG)=0,"",VLOOKUP(all_cars!$D17,week4!$AB:$AJ,6,FALSE)) ->  | U17: =IF(SUMIF(week5!$AB:$AB,all_cars!$D17,week5!$AG:$AG)=0,"",VLOOKUP(all_cars!$D17,week5!$AB:$AJ,6,FALSE)) ->  | W17: =IF(SUMIF(week1!$AB:$AB,all_cars!$D17,week1!$AH:$AH)=0,"",VLOOKUP(all_cars!$D17,week1!$AB:$AJ,7,FALSE)) ->  | X17: =IF(SUMIF(week2!$AB:$AB,all_cars!$D17,week2!$AH:$AH)=0,"",VLOOKUP(all_cars!$D17,week2!$AB:$AJ,7,FALSE)) ->  | Y17: =IF(SUMIF(week3!$AB:$AB,all_cars!$D17,week3!$AH:$AH)=0,"",VLOOKUP(all_cars!$D17,week3!$AB:$AJ,7,FALSE)) ->  | Z17: =IF(SUMIF(week4!$AB:$AB,all_cars!$D17,week4!$AH:$AH)=0,"",VLOOKUP(all_cars!$D17,week4!$AB:$AJ,7,FALSE)) ->  | AA17: =IF(SUMIF(week5!$AB:$AB,all_cars!$D17,week5!$AH:$AH)=0,"",VLOOKUP(all_cars!$D17,week5!$AB:$AJ,7,FALSE)) ->  | AC17: =IF(SUMIF(week1!$AB:$AB,all_cars!$D17,week1!$AI:$AI)=0,"",VLOOKUP(all_cars!$D17,week1!$AB:$AJ,8,FALSE)) -> 98.16389944 | AD17: =IF(SUMIF(week2!$AB:$AB,all_cars!$D17,week2!$AI:$AI)=0,"",VLOOKUP(all_cars!$D17,week2!$AB:$AJ,8,FALSE)) -> 97.00666992 | AE17: =IF(SUMIF(week3!$AB:$AB,all_cars!$D17,week3!$AI:$AI)=0,"",VLOOKUP(all_cars!$D17,week3!$AB:$AJ,8,FALSE)) -> 97.93889335 | AF17: =IF(SUMIF(week4!$AB:$AB,all_cars!$D17,week4!$AI:$AI)=0,"",VLOOKUP(all_cars!$D17,week4!$AB:$AJ,8,FALSE)) ->  | AG17: =IF(SUMIF(week5!$AB:$AB,all_cars!$D17,week5!$AI:$AI)=0,"",VLOOKUP(all_cars!$D17,week5!$AB:$AJ,8,FALSE)) ->  | AI17: =IF(SUMIF(week1!$AB:$AB,all_cars!$D17,week1!$AJ:$AJ)=0,"",VLOOKUP(all_cars!$D17,week1!$AB:$AJ,9,FALSE)) ->  | AJ17: =IF(SUMIF(week2!$AB:$AB,all_cars!$D17,week2!$AJ:$AJ)=0,"",VLOOKUP(all_cars!$D17,week2!$AB:$AJ,9,FALSE)) ->  | AK17: =IF(SUMIF(week3!$AB:$AB,all_cars!$D17,week3!$AJ:$AJ)=0,"",VLOOKUP(all_cars!$D17,week3!$AB:$AJ,9,FALSE)) -> 96.51759834 | AL17: =IF(SUMIF(week4!$AB:$AB,all_cars!$D17,week4!$AJ:$AJ)=0,"",VLOOKUP(all_cars!$D17,week4!$AB:$AJ,9,FALSE)) ->  | AM17: =IF(SUMIF(week5!$AB:$AB,all_cars!$D17,week5!$AJ:$AJ)=0,"",VLOOKUP(all_cars!$D17,week5!$AB:$AJ,9,FALSE)) ->  | AQ17: Chukie | AR17: Chukie
C18: 12 | D18: Jurgen-NL | F18: 99.62667065 | G18: 93.41231437 | I18: 97.09689988 | K18: =IF(SUMIF(week1!$AB:$AB,all_cars!$D18,week1!$AF:$AF)=0,"",VLOOKUP(all_cars!$D18,week1!$AB:$AJ,5,FALSE)) -> 97.20128466 | L18: =IF(SUMIF(week2!$AB:$AB,all_cars!$D18,week2!$AF:$AF)=0,"",VLOOKUP(all_cars!$D18,week2!$AB:$AJ,5,FALSE)) -> 98.91404199 | M18: =IF(SUMIF(week3!$AB:$AB,all_cars!$D18,week3!$AF:$AF)=0,"",VLOOKUP(all_cars!$D18,week3!$AB:$AJ,5,FALSE)) -> 99.46143417 | N18: =IF(SUMIF(week4!$AB:$AB,all_cars!$D18,week4!$AF:$AF)=0,"",VLOOKUP(all_cars!$D18,week4!$AB:$AJ,5,FALSE)) -> 99.62667065 | O18: =IF(SUMIF(week5!$AB:$AB,all_cars!$D18,week5!$AF:$AF)=0,"",VLOOKUP(all_cars!$D18,week5!$AB:$AJ,5,FALSE)) -> 99.24814774 | Q18: =IF(SUMIF(week1!$AB:$AB,all_cars!$D18,week1!$AG:$AG)=0,"",VLOOKUP(all_cars!$D18,week1!$AB:$AJ,6,FALSE)) -> 96.21207382 | R18: =IF(SUMIF(week2!$AB:$AB,all_cars!$D18,week2!$AG:$AG)=0,"",VLOOKUP(all_cars!$D18,week2!$AB:$AJ,6,FALSE)) -> 96.82908715 | S18: =IF(SUMIF(week3!$AB:$AB,all_cars!$D18,week3!$AG:$AG)=0,"",VLOOKUP(all_cars!$D18,week3!$AB:$AJ,6,FALSE)) -> 98.26746688 | T18: =IF(SUMIF(week4!$AB:$AB,all_cars!$D18,week4!$AG:$AG)=0,"",VLOOKUP(all_cars!$D18,week4!$AB:$AJ,6,FALSE)) -> 96.93227235 | U18: =IF(SUMIF(week5!$AB:$AB,all_cars!$D18,week5!$AG:$AG)=0,"",VLOOKUP(all_cars!$D18,week5!$AB:$AJ,6,FALSE)) -> 96.58863116 | W18: =IF(SUMIF(week1!$AB:$AB,all_cars!$D18,week1!$AH:$AH)=0,"",VLOOKUP(all_cars!$D18,week1!$AB:$AJ,7,FALSE)) ->  | X18: =IF(SUMIF(week2!$AB:$AB,all_cars!$D18,week2!$AH:$AH)=0,"",VLOOKUP(all_cars!$D18,week2!$AB:$AJ,7,FALSE)) -> 96.83234445 | Y18: =IF(SUMIF(week3!$AB:$AB,all_cars!$D18,week3!$AH:$AH)=0,"",VLOOKUP(all_cars!$D18,week3!$AB:$AJ,7,FALSE)) -> 97.93324492 | Z18: =IF(SUMIF(week4!$AB:$AB,all_cars!$D18,week4!$AH:$AH)=0,"",VLOOKUP(all_cars!$D18,week4!$AB:$AJ,7,FALSE)) -> 97.55520792 | AA18: =IF(SUMIF(week5!$AB:$AB,all_cars!$D18,week5!$AH:$AH)=0,"",VLOOKUP(all_cars!$D18,week5!$AB:$AJ,7,FALSE)) ->  | AC18: =IF(SUMIF(week1!$AB:$AB,all_cars!$D18,week1!$AI:$AI)=0,"",VLOOKUP(all_cars!$D18,week1!$AB:$AJ,8,FALSE)) ->  | AD18: =IF(SUMIF(week2!$AB:$AB,all_cars!$D18,week2!$AI:$AI)=0,"",VLOOKUP(all_cars!$D18,week2!$AB:$AJ,8,FALSE)) -> 94.9991866 | AE18: =IF(SUMIF(week3!$AB:$AB,all_cars!$D18,week3!$AI:$AI)=0,"",VLOOKUP(all_cars!$D18,week3!$AB:$AJ,8,FALSE)) -> 98.3212879 | AF18: =IF(SUMIF(week4!$AB:$AB,all_cars!$D18,week4!$AI:$AI)=0,"",VLOOKUP(all_cars!$D18,week4!$AB:$AJ,8,FALSE)) -> 97.12334738 | AG18: =IF(SUMIF(week5!$AB:$AB,all_cars!$D18,week5!$AI:$AI)=0,"",VLOOKUP(all_cars!$D18,week5!$AB:$AJ,8,FALSE)) -> 95.08131979 | AI18: =IF(SUMIF(week1!$AB:$AB,all_cars!$D18,week1!$AJ:$AJ)=0,"",VLOOKUP(all_cars!$D18,week1!$AB:$AJ,9,FALSE)) -> 93.41231437 | AJ18: =IF(SUMIF(week2!$AB:$AB,all_cars!$D18,week2!$AJ:$AJ)=0,"",VLOOKUP(all_cars!$D18,week2!$AB:$AJ,9,FALSE)) -> 94.84833728 | AK18: =IF(SUMIF(week3!$AB:$AB,all_cars!$D18,week3!$AJ:$AJ)=0,"",VLOOKUP(all_cars!$D18,week3!$AB:$AJ,9,FALSE)) -> 97.24637681 | AL18: =IF(SUMIF(week4!$AB:$AB,all_cars!$D18,week4!$AJ:$AJ)=0,"",VLOOKUP(all_cars!$D18,week4!$AB:$AJ,9,FALSE)) -> 96.40081958 | AM18: =IF(SUMIF(week5!$AB:$AB,all_cars!$D18,week5!$AJ:$AJ)=0,"",VLOOKUP(all_cars!$D18,week5!$AB:$AJ,9,FALSE)) ->  | AQ18: Jurgen-NL | AR18: Jurgen-NL
C19: 13 | D19: KyNa | F19: 96.81457692 | G19: 93.05856833 | I19: 95.25664523 | K19: =IF(SUMIF(week1!$AB:$AB,all_cars!$D19,week1!$AF:$AF)=0,"",VLOOKUP(all_cars!$D19,week1!$AB:$AJ,5,FALSE)) -> 96.81457692 | L19: =IF(SUMIF(week2!$AB:$AB,all_cars!$D19,week2!$AF:$AF)=0,"",VLOOKUP(all_cars!$D19,week2!$AB:$AJ,5,FALSE)) ->  | M19: =IF(SUMIF(week3!$AB:$AB,all_cars!$D19,week3!$AF:$AF)=0,"",VLOOKUP(all_cars!$D19,week3!$AB:$AJ,5,FALSE)) ->  | N19: =IF(SUMIF(week4!$AB:$AB,all_cars!$D19,week4!$AF:$AF)=0,"",VLOOKUP(all_cars!$D19,week4!$AB:$AJ,5,FALSE)) ->  | O19: =IF(SUMIF(week5!$AB:$AB,all_cars!$D19,week5!$AF:$AF)=0,"",VLOOKUP(all_cars!$D19,week5!$AB:$AJ,5,FALSE)) ->  | Q19: =IF(SUMIF(week1!$AB:$AB,all_cars!$D19,week1!$AG:$AG)=0,"",VLOOKUP(all_cars!$D19,week1!$AB:$AJ,6,FALSE)) ->  | R19: =IF(SUMIF(week2!$AB:$AB,all_cars!$D19,week2!$AG:$AG)=0,"",VLOOKUP(all_cars!$D19,week2!$AB:$AJ,6,FALSE)) ->  | S19: =IF(SUMIF(week3!$AB:$AB,all_cars!$D19,week3!$AG:$AG)=0,"",VLOOKUP(all_cars!$D19,week3!$AB:$AJ,6,FALSE)) ->  | T19: =IF(SUMIF(week4!$AB:$AB,all_cars!$D19,week4!$AG:$AG)=0,"",VLOOKUP(all_cars!$D19,week4!$AB:$AJ,6,FALSE)) ->  | U19: =IF(SUMIF(week5!$AB:$AB,all_cars!$D19,week5!$AG:$AG)=0,"",VLOOKUP(all_cars!$D19,week5!$AB:$AJ,6,FALSE)) ->  | W19: =IF(SUMIF(week1!$AB:$AB,all_cars!$D19,week1!$AH:$AH)=0,"",VLOOKUP(all_cars!$D19,week1!$AB:$AJ,7,FALSE)) -> 95.89679043 | X19: =IF(SUMIF(week2!$AB:$AB,all_cars!$D19,week2!$AH:$AH)=0,"",VLOOKUP(all_cars!$D19,week2!$AB:$AJ,7,FALSE)) ->  | Y19: =IF(SUMIF(week3!$AB:$AB,all_cars!$D19,week3!$AH:$AH)=0,"",VLOOKUP(all_cars!$D19,week3!$AB:$AJ,7,FALSE)) ->  | Z19: =IF(SUMIF(week4!$AB:$AB,all_cars!$D19,week4!$AH:$AH)=0,"",VLOOKUP(all_cars!$D19,week4!$AB:$AJ,7,FALSE)) ->  | AA19: =IF(SUMIF(week5!$AB:$AB,all_cars!$D19,week5!$AH:$AH)=0,"",VLOOKUP(all_cars!$D19,week5!$AB:$AJ,7,FALSE)) ->  | AC19: =IF(SUMIF(week1!$AB:$AB,all_cars!$D19,week1!$AI:$AI)=0,"",VLOOKUP(all_cars!$D19,week1!$AB:$AJ,8,FALSE)) ->  | AD19: =IF(SUMIF(week2!$AB:$AB,all_cars!$D19,week2!$AI:$AI)=0,"",VLOOKUP(all_cars!$D19,week2!$AB:$AJ,8,FALSE)) ->  | AE19: =IF(SUMIF(week3!$AB:$AB,all_cars!$D19,week3!$AI:$AI)=0,"",VLOOKUP(all_cars!$D19,week3!$AB:$AJ,8,FALSE)) ->  | AF19: =IF(SUMIF(week4!$AB:$AB,all_cars!$D19,week4!$AI:$AI)=0,"",VLOOKUP(all_cars!$D19,week4!$AB:$AJ,8,FALSE)) ->  | AG19: =IF(SUMIF(week5!$AB:$AB,all_cars!$D19,week5!$AI:$AI)=0,"",VLOOKUP(all_cars!$D19,week5!$AB:$AJ,8,FALSE)) ->  | AI19: =IF(SUMIF(week1!$AB:$AB,all_cars!$D19,week1!$AJ:$AJ)=0,"",VLOOKUP(all_cars!$D19,week1!$AB:$AJ,9,FALSE)) -> 93.05856833 | AJ19: =IF(SUMIF(week2!$AB:$AB,all_cars!$D19,week2!$AJ:$AJ)=0,"",VLOOKUP(all_cars!$D19,week2!$AB:$AJ,9,FALSE)) ->  | AK19: =IF(SUMIF(week3!$AB:$AB,all_cars!$D19,week3!$AJ:$AJ)=0,"",VLOOKUP(all_cars!$D19,week3!$AB:$AJ,9,FALSE)) ->  | AL19: =IF(SUMIF(week4!$AB:$AB,all_cars!$D19,week4!$AJ:$AJ)=0,"",VLOOKUP(all_cars!$D19,week4!$AB:$AJ,9,FALSE)) ->  | AM19: =IF(SUMIF(week5!$AB:$AB,all_cars!$D19,week5!$AJ:$AJ)=0,"",VLOOKUP(all_cars!$D19,week5!$AB:$AJ,9,FALSE)) ->  | AQ19: KyNa | AR19: KyNa
C20: 14 | D20: fatty | F20: 98.1056041 | G20: 54.10303797 | I20: 90.59310611 | K20: =IF(SUMIF(week1!$AB:$AB,all_cars!$D20,week1!$AF:$AF)=0,"",VLOOKUP(all_cars!$D20,week1!$AB:$AJ,5,FALSE)) -> 97.41102445 | L20: =IF(SUMIF(week2!$AB:$AB,all_cars!$D20,week2!$AF:$AF)=0,"",VLOOKUP(all_cars!$D20,week2!$AB:$AJ,5,FALSE)) -> 96.93569554 | M20: =IF(SUMIF(week3!$AB:$AB,all_cars!$D20,week3!$AF:$AF)=0,"",VLOOKUP(all_cars!$D20,week3!$AB:$AJ,5,FALSE)) -> 98.1056041 | N20: =IF(SUMIF(week4!$AB:$AB,all_cars!$D20,week4!$AF:$AF)=0,"",VLOOKUP(all_cars!$D20,week4!$AB:$AJ,5,FALSE)) ->  | O20: =IF(SUMIF(week5!$AB:$AB,all_cars!$D20,week5!$AF:$AF)=0,"",VLOOKUP(all_cars!$D20,week5!$AB:$AJ,5,FALSE)) ->  | Q20: =IF(SUMIF(week1!$AB:$AB,all_cars!$D20,week1!$AG:$AG)=0,"",VLOOKUP(all_cars!$D20,week1!$AB:$AJ,6,FALSE)) -> 92.29590241 | R20: =IF(SUMIF(week2!$AB:$AB,all_cars!$D20,week2!$AG:$AG)=0,"",VLOOKUP(all_cars!$D20,week2!$AB:$AJ,6,FALSE)) -> 90.02873842 | S20: =IF(SUMIF(week3!$AB:$AB,all_cars!$D20,week3!$AG:$AG)=0,"",VLOOKUP(all_cars!$D20,week3!$AB:$AJ,6,FALSE)) -> 96.15370098 | T20: =IF(SUMIF(week4!$AB:$AB,all_cars!$D20,week4!$AG:$AG)=0,"",VLOOKUP(all_cars!$D20,week4!$AB:$AJ,6,FALSE)) ->  | U20: =IF(SUMIF(week5!$AB:$AB,all_cars!$D20,week5!$AG:$AG)=0,"",VLOOKUP(all_cars!$D20,week5!$AB:$AJ,6,FALSE)) ->  | W20: =IF(SUMIF(week1!$AB:$AB,all_cars!$D20,week1!$AH:$AH)=0,"",VLOOKUP(all_cars!$D20,week1!$AB:$AJ,7,FALSE)) ->  | X20: =IF(SUMIF(week2!$AB:$AB,all_cars!$D20,week2!$AH:$AH)=0,"",VLOOKUP(all_cars!$D20,week2!$AB:$AJ,7,FALSE)) -> 54.10303797 | Y20: =IF(SUMIF(week3!$AB:$AB,all_cars!$D20,week3!$AH:$AH)=0,"",VLOOKUP(all_cars!$D20,week3!$AB:$AJ,7,FALSE)) -> 94.68022399 | Z20: =IF(SUMIF(week4!$AB:$AB,all_cars!$D20,week4!$AH:$AH)=0,"",VLOOKUP(all_cars!$D20,week4!$AB:$AJ,7,FALSE)) ->  | AA20: =IF(SUMIF(week5!$AB:$AB,all_cars!$D20,week5!$AH:$AH)=0,"",VLOOKUP(all_cars!$D20,week5!$AB:$AJ,7,FALSE)) ->  | AC20: =IF(SUMIF(week1!$AB:$AB,all_cars!$D20,week1!$AI:$AI)=0,"",VLOOKUP(all_cars!$D20,week1!$AB:$AJ,8,FALSE)) -> 82.27613697 | AD20: =IF(SUMIF(week2!$AB:$AB,all_cars!$D20,week2!$AI:$AI)=0,"",VLOOKUP(all_cars!$D20,week2!$AB:$AJ,8,FALSE)) -> 92.33121848 | AE20: =IF(SUMIF(week3!$AB:$AB,all_cars!$D20,week3!$AI:$AI)=0,"",VLOOKUP(all_cars!$D20,week3!$AB:$AJ,8,FALSE)) -> 97.97713281 | AF20: =IF(SUMIF(week4!$AB:$AB,all_cars!$D20,week4!$AI:$AI)=0,"",VLOOKUP(all_cars!$D20,week4!$AB:$AJ,8,FALSE)) ->  | AG20: =IF(SUMIF(week5!$AB:$AB,all_cars!$D20,week5!$AI:$AI)=0,"",VLOOKUP(all_cars!$D20,week5!$AB:$AJ,8,FALSE)) ->  | AI20: =IF(SUMIF(week1!$AB:$AB,all_cars!$D20,week1!$AJ:$AJ)=0,"",VLOOKUP(all_cars!$D20,week1!$AB:$AJ,9,FALSE)) -> 89.46771233 | AJ20: =IF(SUMIF(week2!$AB:$AB,all_cars!$D20,week2!$AJ:$AJ)=0,"",VLOOKUP(all_cars!$D20,week2!$AB:$AJ,9,FALSE)) -> 91.17503826 | AK20: =IF(SUMIF(week3!$AB:$AB,all_cars!$D20,week3!$AJ:$AJ)=0,"",VLOOKUP(all_cars!$D20,week3!$AB:$AJ,9,FALSE)) -> 95.36231884 | AL20: =IF(SUMIF(week4!$AB:$AB,all_cars!$D20,week4!$AJ:$AJ)=0,"",VLOOKUP(all_cars!$D20,week4!$AB:$AJ,9,FALSE)) ->  | AM20: =IF(SUMIF(week5!$AB:$AB,all_cars!$D20,week5!$AJ:$AJ)=0,"",VLOOKUP(all_cars!$D20,week5!$AB:$AJ,9,FALSE)) ->  | AQ20: fatty | AR20: Kyna_Musti
C21: 15 | D21: AnnicK | F21: 98.46277389 | G21: 89.02470997 | I21: 96.53852621 | K21: =IF(SUMIF(week1!$AB:$AB,all_cars!$D21,week1!$AF:$AF)=0,"",VLOOKUP(all_cars!$D21,week1!$AB:$AJ,5,FALSE)) -> 89.02470997 | L21: =IF(SUMIF(week2!$AB:$AB,all_cars!$D21,week2!$AF:$AF)=0,"",VLOOKUP(all_cars!$D21,week2!$AB:$AJ,5,FALSE)) -> 96.89632546 | M21: =IF(SUMIF(week3!$AB:$AB,all_cars!$D21,week3!$AF:$AF)=0,"",VLOOKUP(all_cars!$D21,week3!$AB:$AJ,5,FALSE)) -> 98.26755047 | N21: =IF(SUMIF(week4!$AB:$AB,all_cars!$D21,week4!$AF:$AF)=0,"",VLOOKUP(all_cars!$D21,week4!$AB:$AJ,5,FALSE)) -> 97.11789741 | O21: =IF(SUMIF(week5!$AB:$AB,all_cars!$D21,week5!$AF:$AF)=0,"",VLOOKUP(all_cars!$D21,week5!$AB:$AJ,5,FALSE)) ->  | Q21: =IF(SUMIF(week1!$AB:$AB,all_cars!$D21,week1!$AG:$AG)=0,"",VLOOKUP(all_cars!$D21,week1!$AB:$AJ,6,FALSE)) ->  | R21: =IF(SUMIF(week2!$AB:$AB,all_cars!$D21,week2!$AG:$AG)=0,"",VLOOKUP(all_cars!$D21,week2!$AB:$AJ,6,FALSE)) -> 96.33827376 | S21: =IF(SUMIF(week3!$AB:$AB,all_cars!$D21,week3!$AG:$AG)=0,"",VLOOKUP(all_cars!$D21,week3!$AB:$AJ,6,FALSE)) -> 95.8970294 | T21: =IF(SUMIF(week4!$AB:$AB,all_cars!$D21,week4!$AG:$AG)=0,"",VLOOKUP(all_cars!$D21,week4!$AB:$AJ,6,FALSE)) -> 95.92049833 | U21: =IF(SUMIF(week5!$AB:$AB,all_cars!$D21,week5!$AG:$AG)=0,"",VLOOKUP(all_cars!$D21,week5!$AB:$AJ,6,FALSE)) ->  | W21: =IF(SUMIF(week1!$AB:$AB,all_cars!$D21,week1!$AH:$AH)=0,"",VLOOKUP(all_cars!$D21,week1!$AB:$AJ,7,FALSE)) ->  | X21: =IF(SUMIF(week2!$AB:$AB,all_cars!$D21,week2!$AH:$AH)=0,"",VLOOKUP(all_cars!$D21,week2!$AB:$AJ,7,FALSE)) -> 97.5521188 | Y21: =IF(SUMIF(week3!$AB:$AB,all_cars!$D21,week3!$AH:$AH)=0,"",VLOOKUP(all_cars!$D21,week3!$AB:$AJ,7,FALSE)) -> 96.83171235 | Z21: =IF(SUMIF(week4!$AB:$AB,all_cars!$D21,week4!$AH:$AH)=0,"",VLOOKUP(all_cars!$D21,week4!$AB:$AJ,7,FALSE)) -> 97.38785608 | AA21: =IF(SUMIF(week5!$AB:$AB,all_cars!$D21,week5!$AH:$AH)=0,"",VLOOKUP(all_cars!$D21,week5!$AB:$AJ,7,FALSE)) ->  | AC21: =IF(SUMIF(week1!$AB:$AB,all_cars!$D21,week1!$AI:$AI)=0,"",VLOOKUP(all_cars!$D21,week1!$AB:$AJ,8,FALSE)) -> 97.33216158 | AD21: =IF(SUMIF(week2!$AB:$AB,all_cars!$D21,week2!$AI:$AI)=0,"",VLOOKUP(all_cars!$D21,week2!$AB:$AJ,8,FALSE)) -> 97.62811127 | AE21: =IF(SUMIF(week3!$AB:$AB,all_cars!$D21,week3!$AI:$AI)=0,"",VLOOKUP(all_cars!$D21,week3!$AB:$AJ,8,FALSE)) -> 98.46277389 | AF21: =IF(SUMIF(week4!$AB:$AB,all_cars!$D21,week4!$AI:$AI)=0,"",VLOOKUP(all_cars!$D21,week4!$AB:$AJ,8,FALSE)) -> 98.03138166 | AG21: =IF(SUMIF(week5!$AB:$AB,all_cars!$D21,week5!$AI:$AI)=0,"",VLOOKUP(all_cars!$D21,week5!$AB:$AJ,8,FALSE)) -> 98.16895846 | AI21: =IF(SUMIF(week1!$AB:$AB,all_cars!$D21,week1!$AJ:$AJ)=0,"",VLOOKUP(all_cars!$D21,week1!$AB:$AJ,9,FALSE)) -> 94.01635241 | AJ21: =IF(SUMIF(week2!$AB:$AB,all_cars!$D21,week2!$AJ:$AJ)=0,"",VLOOKUP(all_cars!$D21,week2!$AB:$AJ,9,FALSE)) -> 95.41185474 | AK21: =IF(SUMIF(week3!$AB:$AB,all_cars!$D21,week3!$AJ:$AJ)=0,"",VLOOKUP(all_cars!$D21,week3!$AB:$AJ,9,FALSE)) -> 97.24223602 | AL21: =IF(SUMIF(week4!$AB:$AB,all_cars!$D21,week4!$AJ:$AJ)=0,"",VLOOKUP(all_cars!$D21,week4!$AB:$AJ,9,FALSE)) -> 96.40081958 | AM21: =IF(SUMIF(week5!$AB:$AB,all_cars!$D21,week5!$AJ:$AJ)=0,"",VLOOKUP(all_cars!$D21,week5!$AB:$AJ,9,FALSE)) -> 96.84190256 | AQ21: AnnicK | AR21: fatty
C22: 16 | D22: [FN] Pornfest | F22: 98.41712001 | G22: 94.72005005 | I22: 96.56858503 | K22: =IF(SUMIF(week1!$AB:$AB,all_cars!$D22,week1!$AF:$AF)=0,"",VLOOKUP(all_cars!$D22,week1!$AB:$AJ,5,FALSE)) -> 98.41712001 | L22: =IF(SUMIF(week2!$AB:$AB,all_cars!$D22,week2!$AF:$AF)=0,"",VLOOKUP(all_cars!$D22,week2!$AB:$AJ,5,FALSE)) ->  | M22: =IF(SUMIF(week3!$AB:$AB,all_cars!$D22,week3!$AF:$AF)=0,"",VLOOKUP(all_cars!$D22,week3!$AB:$AJ,5,FALSE)) ->  | N22: =IF(SUMIF(week4!$AB:$AB,all_cars!$D22,week4!$AF:$AF)=0,"",VLOOKUP(all_cars!$D22,week4!$AB:$AJ,5,FALSE)) ->  | O22: =IF(SUMIF(week5!$AB:$AB,all_cars!$D22,week5!$AF:$AF)=0,"",VLOOKUP(all_cars!$D22,week5!$AB:$AJ,5,FALSE)) ->  | Q22: =IF(SUMIF(week1!$AB:$AB,all_cars!$D22,week1!$AG:$AG)=0,"",VLOOKUP(all_cars!$D22,week1!$AB:$AJ,6,FALSE)) -> 94.72005005 | R22: =IF(SUMIF(week2!$AB:$AB,all_cars!$D22,week2!$AG:$AG)=0,"",VLOOKUP(all_cars!$D22,week2!$AB:$AJ,6,FALSE)) ->  | S22: =IF(SUMIF(week3!$AB:$AB,all_cars!$D22,week3!$AG:$AG)=0,"",VLOOKUP(all_cars!$D22,week3!$AB:$AJ,6,FALSE)) ->  | T22: =IF(SUMIF(week4!$AB:$AB,all_cars!$D22,week4!$AG:$AG)=0,"",VLOOKUP(all_cars!$D22,week4!$AB:$AJ,6,FALSE)) ->  | U22: =IF(SUMIF(week5!$AB:$AB,all_cars!$D22,week5!$AG:$AG)=0,"",VLOOKUP(all_cars!$D22,week5!$AB:$AJ,6,FALSE)) ->  | W22: =IF(SUMIF(week1!$AB:$AB,all_cars!$D22,week1!$AH:$AH)=0,"",VLOOKUP(all_cars!$D22,week1!$AB:$AJ,7,FALSE)) ->  | X22: =IF(SUMIF(week2!$AB:$AB,all_cars!$D22,week2!$AH:$AH)=0,"",VLOOKUP(all_cars!$D22,week2!$AB:$AJ,7,FALSE)) ->  | Y22: =IF(SUMIF(week3!$AB:$AB,all_cars!$D22,week3!$AH:$AH)=0,"",VLOOKUP(all_cars!$D22,week3!$AB:$AJ,7,FALSE)) ->  | Z22: =IF(SUMIF(week4!$AB:$AB,all_cars!$D22,week4!$AH:$AH)=0,"",VLOOKUP(all_cars!$D22,week4!$AB:$AJ,7,FALSE)) ->  | AA22: =IF(SUMIF(week5!$AB:$AB,all_cars!$D22,week5!$AH:$AH)=0,"",VLOOKUP(all_cars!$D22,week5!$AB:$AJ,7,FALSE)) ->  | AC22: =IF(SUMIF(week1!$AB:$AB,all_cars!$D22,week1!$AI:$AI)=0,"",VLOOKUP(all_cars!$D22,week1!$AB:$AJ,8,FALSE)) ->  | AD22: =IF(SUMIF(week2!$AB:$AB,all_cars!$D22,week2!$AI:$AI)=0,"",VLOOKUP(all_cars!$D22,week2!$AB:$AJ,8,FALSE)) ->  | AE22: =IF(SUMIF(week3!$AB:$AB,all_cars!$D22,week3!$AI:$AI)=0,"",VLOOKUP(all_cars!$D22,week3!$AB:$AJ,8,FALSE)) ->  | AF22: =IF(SUMIF(week4!$AB:$AB,all_cars!$D22,week4!$AI:$AI)=0,"",VLOOKUP(all_cars!$D22,week4!$AB:$AJ,8,FALSE)) ->  | AG22: =IF(SUMIF(week5!$AB:$AB,all_cars!$D22,week5!$AI:$AI)=0,"",VLOOKUP(all_cars!$D22,week5!$AB:$AJ,8,FALSE)) ->  | AI22: =IF(SUMIF(week1!$AB:$AB,all_cars!$D22,week1!$AJ:$AJ)=0,"",VLOOKUP(all_cars!$D22,week1!$AB:$AJ,9,FALSE)) ->  | AJ22: =IF(SUMIF(week2!$AB:$AB,all_cars!$D22,week2!$AJ:$AJ)=0,"",VLOOKUP(all_cars!$D22,week2!$AB:$AJ,9,FALSE)) ->  | AK22: =IF(SUMIF(week3!$AB:$AB,all_cars!$D22,week3!$AJ:$AJ)=0,"",VLOOKUP(all_cars!$D22,week3!$AB:$AJ,9,FALSE)) ->  | AL22: =IF(SUMIF(week4!$AB:$AB,all_cars!$D22,week4!$AJ:$AJ)=0,"",VLOOKUP(all_cars!$D22,week4!$AB:$AJ,9,FALSE)) ->  | AM22: =IF(SUMIF(week5!$AB:$AB,all_cars!$D22,week5!$AJ:$AJ)=0,"",VLOOKUP(all_cars!$D22,week5!$AB:$AJ,9,FALSE)) ->  | AQ22: [FN] Pornfest | AR22: AnnicK
C23: 17 | D23: Double O Seven | F23: 99.51825392 | G23: 91.71723491 | I23: 97.24252563 | K23: =IF(SUMIF(week1!$AB:$AB,all_cars!$D23,week1!$AF:$AF)=0,"",VLOOKUP(all_cars!$D23,week1!$AB:$AJ,5,FALSE)) -> 99.51825392 | L23: =IF(SUMIF(week2!$AB:$AB,all_cars!$D23,week2!$AF:$AF)=0,"",VLOOKUP(all_cars!$D23,week2!$AB:$AJ,5,FALSE)) -> 99.17650919 | M23: =IF(SUMIF(week3!$AB:$AB,all_cars!$D23,week3!$AF:$AF)=0,"",VLOOKUP(all_cars!$D23,week3!$AB:$AJ,5,FALSE)) -> 99.40494125 | N23: =IF(SUMIF(week4!$AB:$AB,all_cars!$D23,week4!$AF:$AF)=0,"",VLOOKUP(all_cars!$D23,week4!$AB:$AJ,5,FALSE)) -> 98.55521541 | O23: =IF(SUMIF(week5!$AB:$AB,all_cars!$D23,week5!$AF:$AF)=0,"",VLOOKUP(all_cars!$D23,week5!$AB:$AJ,5,FALSE)) -> 98.72623088 | Q23: =IF(SUMIF(week1!$AB:$AB,all_cars!$D23,week1!$AG:$AG)=0,"",VLOOKUP(all_cars!$D23,week1!$AB:$AJ,6,FALSE)) -> 91.71723491 | R23: =IF(SUMIF(week2!$AB:$AB,all_cars!$D23,week2!$AG:$AG)=0,"",VLOOKUP(all_cars!$D23,week2!$AB:$AJ,6,FALSE)) -> 95.02405631 | S23: =IF(SUMIF(week3!$AB:$AB,all_cars!$D23,week3!$AG:$AG)=0,"",VLOOKUP(all_cars!$D23,week3!$AB:$AJ,6,FALSE)) -> 95.81776318 | T23: =IF(SUMIF(week4!$AB:$AB,all_cars!$D23,week4!$AG:$AG)=0,"",VLOOKUP(all_cars!$D23,week4!$AB:$AJ,6,FALSE)) ->  | U23: =IF(SUMIF(week5!$AB:$AB,all_cars!$D23,week5!$AG:$AG)=0,"",VLOOKUP(all_cars!$D23,week5!$AB:$AJ,6,FALSE)) ->  | W23: =IF(SUMIF(week1!$AB:$AB,all_cars!$D23,week1!$AH:$AH)=0,"",VLOOKUP(all_cars!$D23,week1!$AB:$AJ,7,FALSE)) ->  | X23: =IF(SUMIF(week2!$AB:$AB,all_cars!$D23,week2!$AH:$AH)=0,"",VLOOKUP(all_cars!$D23,week2!$AB:$AJ,7,FALSE)) ->  | Y23: =IF(SUMIF(week3!$AB:$AB,all_cars!$D23,week3!$AH:$AH)=0,"",VLOOKUP(all_cars!$D23,week3!$AB:$AJ,7,FALSE)) ->  | Z23: =IF(SUMIF(week4!$AB:$AB,all_cars!$D23,week4!$AH:$AH)=0,"",VLOOKUP(all_cars!$D23,week4!$AB:$AJ,7,FALSE)) ->  | AA23: =IF(SUMIF(week5!$AB:$AB,all_cars!$D23,week5!$AH:$AH)=0,"",VLOOKUP(all_cars!$D23,week5!$AB:$AJ,7,FALSE)) ->  | AC23: =IF(SUMIF(week1!$AB:$AB,all_cars!$D23,week1!$AI:$AI)=0,"",VLOOKUP(all_cars!$D23,week1!$AB:$AJ,8,FALSE)) ->  | AD23: =IF(SUMIF(week2!$AB:$AB,all_cars!$D23,week2!$AI:$AI)=0,"",VLOOKUP(all_cars!$D23,week2!$AB:$AJ,8,FALSE)) ->  | AE23: =IF(SUMIF(week3!$AB:$AB,all_cars!$D23,week3!$AI:$AI)=0,"",VLOOKUP(all_cars!$D23,week3!$AB:$AJ,8,FALSE)) ->  | AF23: =IF(SUMIF(week4!$AB:$AB,all_cars!$D23,week4!$AI:$AI)=0,"",VLOOKUP(all_cars!$D23,week4!$AB:$AJ,8,FALSE)) ->  | AG23: =IF(SUMIF(week5!$AB:$AB,all_cars!$D23,week5!$AI:$AI)=0,"",VLOOKUP(all_cars!$D23,week5!$AB:$AJ,8,FALSE)) ->  | AI23: =IF(SUMIF(week1!$AB:$AB,all_cars!$D23,week1!$AJ:$AJ)=0,"",VLOOKUP(all_cars!$D23,week1!$AB:$AJ,9,FALSE)) ->  | AJ23: =IF(SUMIF(week2!$AB:$AB,all_cars!$D23,week2!$AJ:$AJ)=0,"",VLOOKUP(all_cars!$D23,week2!$AB:$AJ,9,FALSE)) ->  | AK23: =IF(SUMIF(week3!$AB:$AB,all_cars!$D23,week3!$AJ:$AJ)=0,"",VLOOKUP(all_cars!$D23,week3!$AB:$AJ,9,FALSE)) ->  | AL23: =IF(SUMIF(week4!$AB:$AB,all_cars!$D23,week4!$AJ:$AJ)=0,"",VLOOKUP(all_cars!$D23,week4!$AB:$AJ,9,FALSE)) ->  | AM23: =IF(SUMIF(week5!$AB:$AB,all_cars!$D23,week5!$AJ:$AJ)=0,"",VLOOKUP(all_cars!$D23,week5!$AB:$AJ,9,FALSE)) ->  | AQ23: Double O Seven | AR23: [FN] Pornfest
C24: 18 | D24: chill | F24: 98.19599277 | G24: 95.10388674 | I24: 97.03142015 | K24: =IF(SUMIF(week1!$AB:$AB,all_cars!$D24,week1!$AF:$AF)=0,"",VLOOKUP(all_cars!$D24,week1!$AB:$AJ,5,FALSE)) -> 95.10388674 | L24: =IF(SUMIF(week2!$AB:$AB,all_cars!$D24,week2!$AF:$AF)=0,"",VLOOKUP(all_cars!$D24,week2!$AB:$AJ,5,FALSE)) ->  | M24: =IF(SUMIF(week3!$AB:$AB,all_cars!$D24,week3!$AF:$AF)=0,"",VLOOKUP(all_cars!$D24,week3!$AB:$AJ,5,FALSE)) -> 98.19599277 | N24: =IF(SUMIF(week4!$AB:$AB,all_cars!$D24,week4!$AF:$AF)=0,"",VLOOKUP(all_cars!$D24,week4!$AB:$AJ,5,FALSE)) ->  | O24: =IF(SUMIF(week5!$AB:$AB,all_cars!$D24,week5!$AF:$AF)=0,"",VLOOKUP(all_cars!$D24,week5!$AB:$AJ,5,FALSE)) ->  | Q24: =IF(SUMIF(week1!$AB:$AB,all_cars!$D24,week1!$AG:$AG)=0,"",VLOOKUP(all_cars!$D24,week1!$AB:$AJ,6,FALSE)) ->  | R24: =IF(SUMIF(week2!$AB:$AB,all_cars!$D24,week2!$AG:$AG)=0,"",VLOOKUP(all_cars!$D24,week2!$AB:$AJ,6,FALSE)) ->  | S24: =IF(SUMIF(week3!$AB:$AB,all_cars!$D24,week3!$AG:$AG)=0,"",VLOOKUP(all_cars!$D24,week3!$AB:$AJ,6,FALSE)) -> 96.5047371 | T24: =IF(SUMIF(week4!$AB:$AB,all_cars!$D24,week4!$AG:$AG)=0,"",VLOOKUP(all_cars!$D24,week4!$AB:$AJ,6,FALSE)) ->  | U24: =IF(SUMIF(week5!$AB:$AB,all_cars!$D24,week5!$AG:$AG)=0,"",VLOOKUP(all_cars!$D24,week5!$AB:$AJ,6,FALSE)) ->  | W24: =IF(SUMIF(week1!$AB:$AB,all_cars!$D24,week1!$AH:$AH)=0,"",VLOOKUP(all_cars!$D24,week1!$AB:$AJ,7,FALSE)) ->  | X24: =IF(SUMIF(week2!$AB:$AB,all_cars!$D24,week2!$AH:$AH)=0,"",VLOOKUP(all_cars!$D24,week2!$AB:$AJ,7,FALSE)) ->  | Y24: =IF(SUMIF(week3!$AB:$AB,all_cars!$D24,week3!$AH:$AH)=0,"",VLOOKUP(all_cars!$D24,week3!$AB:$AJ,7,FALSE)) -> 96.91644562 | Z24: =IF(SUMIF(week4!$AB:$AB,all_cars!$D24,week4!$AH:$AH)=0,"",VLOOKUP(all_cars!$D24,week4!$AB:$AJ,7,FALSE)) ->  | AA24: =IF(SUMIF(week5!$AB:$AB,all_cars!$D24,week5!$AH:$AH)=0,"",VLOOKUP(all_cars!$D24,week5!$AB:$AJ,7,FALSE)) ->  | AC24: =IF(SUMIF(week1!$AB:$AB,all_cars!$D24,week1!$AI:$AI)=0,"",VLOOKUP(all_cars!$D24,week1!$AB:$AJ,8,FALSE)) -> 97.65857945 | AD24: =IF(SUMIF(week2!$AB:$AB,all_cars!$D24,week2!$AI:$AI)=0,"",VLOOKUP(all_cars!$D24,week2!$AB:$AJ,8,FALSE)) ->  | AE24: =IF(SUMIF(week3!$AB:$AB,all_cars!$D24,week3!$AI:$AI)=0,"",VLOOKUP(all_cars!$D24,week3!$AB:$AJ,8,FALSE)) -> 97.8088792 | AF24: =IF(SUMIF(week4!$AB:$AB,all_cars!$D24,week4!$AI:$AI)=0,"",VLOOKUP(all_cars!$D24,week4!$AB:$AJ,8,FALSE)) ->  | AG24: =IF(SUMIF(week5!$AB:$AB,all_cars!$D24,week5!$AI:$AI)=0,"",VLOOKUP(all_cars!$D24,week5!$AB:$AJ,8,FALSE)) ->  | AI24: =IF(SUMIF(week1!$AB:$AB,all_cars!$D24,week1!$AJ:$AJ)=0,"",VLOOKUP(all_cars!$D24,week1!$AB:$AJ,9,FALSE)) ->  | AJ24: =IF(SUMIF(week2!$AB:$AB,all_cars!$D24,week2!$AJ:$AJ)=0,"",VLOOKUP(all_cars!$D24,week2!$AB:$AJ,9,FALSE)) ->  | AK24: =IF(SUMIF(week3!$AB:$AB,all_cars!$D24,week3!$AJ:$AJ)=0,"",VLOOKUP(all_cars!$D24,week3!$AB:$AJ,9,FALSE)) ->  | AL24: =IF(SUMIF(week4!$AB:$AB,all_cars!$D24,week4!$AJ:$AJ)=0,"",VLOOKUP(all_cars!$D24,week4!$AB:$AJ,9,FALSE)) ->  | AM24: =IF(SUMIF(week5!$AB:$AB,all_cars!$D24,week5!$AJ:$AJ)=0,"",VLOOKUP(all_cars!$D24,week5!$AB:$AJ,9,FALSE)) ->  | AQ24: chill | AR24: Double O Seven
C25: 19 | D25: Guillo | F25: 96.53181005 | G25: 96.13619978 | I25: 96.33400491 | K25: =IF(SUMIF(week1!$AB:$AB,all_cars!$D25,week1!$AF:$AF)=0,"",VLOOKUP(all_cars!$D25,week1!$AB:$AJ,5,FALSE)) -> 96.13619978 | L25: =IF(SUMIF(week2!$AB:$AB,all_cars!$D25,week2!$AF:$AF)=0,"",VLOOKUP(all_cars!$D25,week2!$AB:$AJ,5,FALSE)) ->  | M25: =IF(SUMIF(week3!$AB:$AB,all_cars!$D25,week3!$AF:$AF)=0,"",VLOOKUP(all_cars!$D25,week3!$AB:$AJ,5,FALSE)) ->  | N25: =IF(SUMIF(week4!$AB:$AB,all_cars!$D25,week4!$AF:$AF)=0,"",VLOOKUP(all_cars!$D25,week4!$AB:$AJ,5,FALSE)) ->  | O25: =IF(SUMIF(week5!$AB:$AB,all_cars!$D25,week5!$AF:$AF)=0,"",VLOOKUP(all_cars!$D25,week5!$AB:$AJ,5,FALSE)) ->  | Q25: =IF(SUMIF(week1!$AB:$AB,all_cars!$D25,week1!$AG:$AG)=0,"",VLOOKUP(all_cars!$D25,week1!$AB:$AJ,6,FALSE)) ->  | R25: =IF(SUMIF(week2!$AB:$AB,all_cars!$D25,week2!$AG:$AG)=0,"",VLOOKUP(all_cars!$D25,week2!$AB:$AJ,6,FALSE)) ->  | S25: =IF(SUMIF(week3!$AB:$AB,all_cars!$D25,week3!$AG:$AG)=0,"",VLOOKUP(all_cars!$D25,week3!$AB:$AJ,6,FALSE)) ->  | T25: =IF(SUMIF(week4!$AB:$AB,all_cars!$D25,week4!$AG:$AG)=0,"",VLOOKUP(all_cars!$D25,week4!$AB:$AJ,6,FALSE)) ->  | U25: =IF(SUMIF(week5!$AB:$AB,all_cars!$D25,week5!$AG:$AG)=0,"",VLOOKUP(all_cars!$D25,week5!$AB:$AJ,6,FALSE)) ->  | W25: =IF(SUMIF(week1!$AB:$AB,all_cars!$D25,week1!$AH:$AH)=0,"",VLOOKUP(all_cars!$D25,week1!$AB:$AJ,7,FALSE)) ->  | X25: =IF(SUMIF(week2!$AB:$AB,all_cars!$D25,week2!$AH:$AH)=0,"",VLOOKUP(all_cars!$D25,week2!$AB:$AJ,7,FALSE)) ->  | Y25: =IF(SUMIF(week3!$AB:$AB,all_cars!$D25,week3!$AH:$AH)=0,"",VLOOKUP(all_cars!$D25,week3!$AB:$AJ,7,FALSE)) ->  | Z25: =IF(SUMIF(week4!$AB:$AB,all_cars!$D25,week4!$AH:$AH)=0,"",VLOOKUP(all_cars!$D25,week4!$AB:$AJ,7,FALSE)) ->  | AA25: =IF(SUMIF(week5!$AB:$AB,all_cars!$D25,week5!$AH:$AH)=0,"",VLOOKUP(all_cars!$D25,week5!$AB:$AJ,7,FALSE)) ->  | AC25: =IF(SUMIF(week1!$AB:$AB,all_cars!$D25,week1!$AI:$AI)=0,"",VLOOKUP(all_cars!$D25,week1!$AB:$AJ,8,FALSE)) -> 96.53181005 | AD25: =IF(SUMIF(week2!$AB:$AB,all_cars!$D25,week2!$AI:$AI)=0,"",VLOOKUP(all_cars!$D25,week2!$AB:$AJ,8,FALSE)) ->  | AE25: =IF(SUMIF(week3!$AB:$AB,all_cars!$D25,week3!$AI:$AI)=0,"",VLOOKUP(all_cars!$D25,week3!$AB:$AJ,8,FALSE)) ->  | AF25: =IF(SUMIF(week4!$AB:$AB,all_cars!$D25,week4!$AI:$AI)=0,"",VLOOKUP(all_cars!$D25,week4!$AB:$AJ,8,FALSE)) ->  | AG25: =IF(SUMIF(week5!$AB:$AB,all_cars!$D25,week5!$AI:$AI)=0,"",VLOOKUP(all_cars!$D25,week5!$AB:$AJ,8,FALSE)) ->  | AI25: =IF(SUMIF(week1!$AB:$AB,all_cars!$D25,week1!$AJ:$AJ)=0,"",VLOOKUP(all_cars!$D25,week1!$AB:$AJ,9,FALSE)) ->  | AJ25: =IF(SUMIF(week2!$AB:$AB,all_cars!$D25,week2!$AJ:$AJ)=0,"",VLOOKUP(all_cars!$D25,week2!$AB:$AJ,9,FALSE)) ->  | AK25: =IF(SUMIF(week3!$AB:$AB,all_cars!$D25,week3!$AJ:$AJ)=0,"",VLOOKUP(all_cars!$D25,week3!$AB:$AJ,9,FALSE)) ->  | AL25: =IF(SUMIF(week4!$AB:$AB,all_cars!$D25,week4!$AJ:$AJ)=0,"",VLOOKUP(all_cars!$D25,week4!$AB:$AJ,9,FALSE)) ->  | AM25: =IF(SUMIF(week5!$AB:$AB,all_cars!$D25,week5!$AJ:$AJ)=0,"",VLOOKUP(all_cars!$D25,week5!$AB:$AJ,9,FALSE)) ->  | AQ25: Guillo | AR25: chill
C26: 20 | D26: Ande | F26: 97.02039361 | G26: 89.49774737 | I26: 94.30782406 | K26: =IF(SUMIF(week1!$AB:$AB,all_cars!$D26,week1!$AF:$AF)=0,"",VLOOKUP(all_cars!$D26,week1!$AB:$AJ,5,FALSE)) -> 93.70452907 | L26: =IF(SUMIF(week2!$AB:$AB,all_cars!$D26,week2!$AF:$AF)=0,"",VLOOKUP(all_cars!$D26,week2!$AB:$AJ,5,FALSE)) -> 95.05249344 | M26: =IF(SUMIF(week3!$AB:$AB,all_cars!$D26,week3!$AF:$AF)=0,"",VLOOKUP(all_cars!$D26,week3!$AB:$AJ,5,FALSE)) ->  | N26: =IF(SUMIF(week4!$AB:$AB,all_cars!$D26,week4!$AF:$AF)=0,"",VLOOKUP(all_cars!$D26,week4!$AB:$AJ,5,FALSE)) ->  | O26: =IF(SUMIF(week5!$AB:$AB,all_cars!$D26,week5!$AF:$AF)=0,"",VLOOKUP(all_cars!$D26,week5!$AB:$AJ,5,FALSE)) ->  | Q26: =IF(SUMIF(week1!$AB:$AB,all_cars!$D26,week1!$AG:$AG)=0,"",VLOOKUP(all_cars!$D26,week1!$AB:$AJ,6,FALSE)) ->  | R26: =IF(SUMIF(week2!$AB:$AB,all_cars!$D26,week2!$AG:$AG)=0,"",VLOOKUP(all_cars!$D26,week2!$AB:$AJ,6,FALSE)) -> 95.47612128 | S26: =IF(SUMIF(week3!$AB:$AB,all_cars!$D26,week3!$AG:$AG)=0,"",VLOOKUP(all_cars!$D26,week3!$AB:$AJ,6,FALSE)) ->  | T26: =IF(SUMIF(week4!$AB:$AB,all_cars!$D26,week4!$AG:$AG)=0,"",VLOOKUP(all_cars!$D26,week4!$AB:$AJ,6,FALSE)) ->  | U26: =IF(SUMIF(week5!$AB:$AB,all_cars!$D26,week5!$AG:$AG)=0,"",VLOOKUP(all_cars!$D26,week5!$AB:$AJ,6,FALSE)) ->  | W26: =IF(SUMIF(week1!$AB:$AB,all_cars!$D26,week1!$AH:$AH)=0,"",VLOOKUP(all_cars!$D26,week1!$AB:$AJ,7,FALSE)) ->  | X26: =IF(SUMIF(week2!$AB:$AB,all_cars!$D26,week2!$AH:$AH)=0,"",VLOOKUP(all_cars!$D26,week2!$AB:$AJ,7,FALSE)) -> 97.02039361 | Y26: =IF(SUMIF(week3!$AB:$AB,all_cars!$D26,week3!$AH:$AH)=0,"",VLOOKUP(all_cars!$D26,week3!$AB:$AJ,7,FALSE)) ->  | Z26: =IF(SUMIF(week4!$AB:$AB,all_cars!$D26,week4!$AH:$AH)=0,"",VLOOKUP(all_cars!$D26,week4!$AB:$AJ,7,FALSE)) ->  | AA26: =IF(SUMIF(week5!$AB:$AB,all_cars!$D26,week5!$AH:$AH)=0,"",VLOOKUP(all_cars!$D26,week5!$AB:$AJ,7,FALSE)) ->  | AC26: =IF(SUMIF(week1!$AB:$AB,all_cars!$D26,week1!$AI:$AI)=0,"",VLOOKUP(all_cars!$D26,week1!$AB:$AJ,8,FALSE)) -> 95.9448856 | AD26: =IF(SUMIF(week2!$AB:$AB,all_cars!$D26,week2!$AI:$AI)=0,"",VLOOKUP(all_cars!$D26,week2!$AB:$AJ,8,FALSE)) -> 95.41564991 | AE26: =IF(SUMIF(week3!$AB:$AB,all_cars!$D26,week3!$AI:$AI)=0,"",VLOOKUP(all_cars!$D26,week3!$AB:$AJ,8,FALSE)) ->  | AF26: =IF(SUMIF(week4!$AB:$AB,all_cars!$D26,week4!$AI:$AI)=0,"",VLOOKUP(all_cars!$D26,week4!$AB:$AJ,8,FALSE)) ->  | AG26: =IF(SUMIF(week5!$AB:$AB,all_cars!$D26,week5!$AI:$AI)=0,"",VLOOKUP(all_cars!$D26,week5!$AB:$AJ,8,FALSE)) ->  | AI26: =IF(SUMIF(week1!$AB:$AB,all_cars!$D26,week1!$AJ:$AJ)=0,"",VLOOKUP(all_cars!$D26,week1!$AB:$AJ,9,FALSE)) -> 89.49774737 | AJ26: =IF(SUMIF(week2!$AB:$AB,all_cars!$D26,week2!$AJ:$AJ)=0,"",VLOOKUP(all_cars!$D26,week2!$AB:$AJ,9,FALSE)) -> 92.35077223 | AK26: =IF(SUMIF(week3!$AB:$AB,all_cars!$D26,week3!$AJ:$AJ)=0,"",VLOOKUP(all_cars!$D26,week3!$AB:$AJ,9,FALSE)) ->  | AL26: =IF(SUMIF(week4!$AB:$AB,all_cars!$D26,week4!$AJ:$AJ)=0,"",VLOOKUP(all_cars!$D26,week4!$AB:$AJ,9,FALSE)) ->  | AM26: =IF(SUMIF(week5!$AB:$AB,all_cars!$D26,week5!$AJ:$AJ)=0,"",VLOOKUP(all_cars!$D26,week5!$AB:$AJ,9,FALSE)) ->  | AQ26: Ande | AR26: Guillo
C27: 21 | D27: Scud | F27: 96.7847769 | G27: 92.71253652 | I27: 94.86401259 | K27: =IF(SUMIF(week1!$AB:$AB,all_cars!$D27,week1!$AF:$AF)=0,"",VLOOKUP(all_cars!$D27,week1!$AB:$AJ,5,FALSE)) -> 96.48685849 | L27: =IF(SUMIF(week2!$AB:$AB,all_cars!$D27,week2!$AF:$AF)=0,"",VLOOKUP(all_cars!$D27,week2!$AB:$AJ,5,FALSE)) -> 96.7847769 | M27: =IF(SUMIF(week3!$AB:$AB,all_cars!$D27,week3!$AF:$AF)=0,"",VLOOKUP(all_cars!$D27,week3!$AB:$AJ,5,FALSE)) ->  | N27: =IF(SUMIF(week4!$AB:$AB,all_cars!$D27,week4!$AF:$AF)=0,"",VLOOKUP(all_cars!$D27,week4!$AB:$AJ,5,FALSE)) ->  | O27: =IF(SUMIF(week5!$AB:$AB,all_cars!$D27,week5!$AF:$AF)=0,"",VLOOKUP(all_cars!$D27,week5!$AB:$AJ,5,FALSE)) ->  | Q27: =IF(SUMIF(week1!$AB:$AB,all_cars!$D27,week1!$AG:$AG)=0,"",VLOOKUP(all_cars!$D27,week1!$AB:$AJ,6,FALSE)) ->  | R27: =IF(SUMIF(week2!$AB:$AB,all_cars!$D27,week2!$AG:$AG)=0,"",VLOOKUP(all_cars!$D27,week2!$AB:$AJ,6,FALSE)) -> 93.80025186 | S27: =IF(SUMIF(week3!$AB:$AB,all_cars!$D27,week3!$AG:$AG)=0,"",VLOOKUP(all_cars!$D27,week3!$AB:$AJ,6,FALSE)) ->  | T27: =IF(SUMIF(week4!$AB:$AB,all_cars!$D27,week4!$AG:$AG)=0,"",VLOOKUP(all_cars!$D27,week4!$AB:$AJ,6,FALSE)) ->  | U27: =IF(SUMIF(week5!$AB:$AB,all_cars!$D27,week5!$AG:$AG)=0,"",VLOOKUP(all_cars!$D27,week5!$AB:$AJ,6,FALSE)) ->  | W27: =IF(SUMIF(week1!$AB:$AB,all_cars!$D27,week1!$AH:$AH)=0,"",VLOOKUP(all_cars!$D27,week1!$AB:$AJ,7,FALSE)) ->  | X27: =IF(SUMIF(week2!$AB:$AB,all_cars!$D27,week2!$AH:$AH)=0,"",VLOOKUP(all_cars!$D27,week2!$AB:$AJ,7,FALSE)) ->  | Y27: =IF(SUMIF(week3!$AB:$AB,all_cars!$D27,week3!$AH:$AH)=0,"",VLOOKUP(all_cars!$D27,week3!$AB:$AJ,7,FALSE)) ->  | Z27: =IF(SUMIF(week4!$AB:$AB,all_cars!$D27,week4!$AH:$AH)=0,"",VLOOKUP(all_cars!$D27,week4!$AB:$AJ,7,FALSE)) ->  | AA27: =IF(SUMIF(week5!$AB:$AB,all_cars!$D27,week5!$AH:$AH)=0,"",VLOOKUP(all_cars!$D27,week5!$AB:$AJ,7,FALSE)) ->  | AC27: =IF(SUMIF(week1!$AB:$AB,all_cars!$D27,week1!$AI:$AI)=0,"",VLOOKUP(all_cars!$D27,week1!$AB:$AJ,8,FALSE)) -> 94.53563918 | AD27: =IF(SUMIF(week2!$AB:$AB,all_cars!$D27,week2!$AI:$AI)=0,"",VLOOKUP(all_cars!$D27,week2!$AB:$AJ,8,FALSE)) ->  | AE27: =IF(SUMIF(week3!$AB:$AB,all_cars!$D27,week3!$AI:$AI)=0,"",VLOOKUP(all_cars!$D27,week3!$AB:$AJ,8,FALSE)) ->  | AF27: =IF(SUMIF(week4!$AB:$AB,all_cars!$D27,week4!$AI:$AI)=0,"",VLOOKUP(all_cars!$D27,week4!$AB:$AJ,8,FALSE)) ->  | AG27: =IF(SUMIF(week5!$AB:$AB,all_cars!$D27,week5!$AI:$AI)=0,"",VLOOKUP(all_cars!$D27,week5!$AB:$AJ,8,FALSE)) ->  | AI27: =IF(SUMIF(week1!$AB:$AB,all_cars!$D27,week1!$AJ:$AJ)=0,"",VLOOKUP(all_cars!$D27,week1!$AB:$AJ,9,FALSE)) ->  | AJ27: =IF(SUMIF(week2!$AB:$AB,all_cars!$D27,week2!$AJ:$AJ)=0,"",VLOOKUP(all_cars!$D27,week2!$AB:$AJ,9,FALSE)) -> 92.71253652 | AK27: =IF(SUMIF(week3!$AB:$AB,all_cars!$D27,week3!$AJ:$AJ)=0,"",VLOOKUP(all_cars!$D27,week3!$AB:$AJ,9,FALSE)) ->  | AL27: =IF(SUMIF(week4!$AB:$AB,all_cars!$D27,week4!$AJ:$AJ)=0,"",VLOOKUP(all_cars!$D27,week4!$AB:$AJ,9,FALSE)) ->  | AM27: =IF(SUMIF(week5!$AB:$AB,all_cars!$D27,week5!$AJ:$AJ)=0,"",VLOOKUP(all_cars!$D27,week5!$AB:$AJ,9,FALSE)) ->  | AQ27: Scud | AR27: Ande
C28: 22 | D28: Diego Armando | F28: 98.50560399 | G28: -223.2264523 | I28: 15.73369185 | K28: =IF(SUMIF(week1!$AB:$AB,all_cars!$D28,week1!$AF:$AF)=0,"",VLOOKUP(all_cars!$D28,week1!$AB:$AJ,5,FALSE)) -> 98.50560399 | L28: =IF(SUMIF(week2!$AB:$AB,all_cars!$D28,week2!$AF:$AF)=0,"",VLOOKUP(all_cars!$D28,week2!$AB:$AJ,5,FALSE)) -> 98.08727034 | M28: =IF(SUMIF(week3!$AB:$AB,all_cars!$D28,week3!$AF:$AF)=0,"",VLOOKUP(all_cars!$D28,week3!$AB:$AJ,5,FALSE)) ->  | N28: =IF(SUMIF(week4!$AB:$AB,all_cars!$D28,week4!$AF:$AF)=0,"",VLOOKUP(all_cars!$D28,week4!$AB:$AJ,5,FALSE)) ->  | O28: =IF(SUMIF(week5!$AB:$AB,all_cars!$D28,week5!$AF:$AF)=0,"",VLOOKUP(all_cars!$D28,week5!$AB:$AJ,5,FALSE)) ->  | Q28: =IF(SUMIF(week1!$AB:$AB,all_cars!$D28,week1!$AG:$AG)=0,"",VLOOKUP(all_cars!$D28,week1!$AB:$AJ,6,FALSE)) -> 89.56834532 | R28: =IF(SUMIF(week2!$AB:$AB,all_cars!$D28,week2!$AG:$AG)=0,"",VLOOKUP(all_cars!$D28,week2!$AB:$AJ,6,FALSE)) -> -223.2264523 | S28: =IF(SUMIF(week3!$AB:$AB,all_cars!$D28,week3!$AG:$AG)=0,"",VLOOKUP(all_cars!$D28,week3!$AB:$AJ,6,FALSE)) ->  | T28: =IF(SUMIF(week4!$AB:$AB,all_cars!$D28,week4!$AG:$AG)=0,"",VLOOKUP(all_cars!$D28,week4!$AB:$AJ,6,FALSE)) ->  | U28: =IF(SUMIF(week5!$AB:$AB,all_cars!$D28,week5!$AG:$AG)=0,"",VLOOKUP(all_cars!$D28,week5!$AB:$AJ,6,FALSE)) ->  | W28: =IF(SUMIF(week1!$AB:$AB,all_cars!$D28,week1!$AH:$AH)=0,"",VLOOKUP(all_cars!$D28,week1!$AB:$AJ,7,FALSE)) ->  | X28: =IF(SUMIF(week2!$AB:$AB,all_cars!$D28,week2!$AH:$AH)=0,"",VLOOKUP(all_cars!$D28,week2!$AB:$AJ,7,FALSE)) ->  | Y28: =IF(SUMIF(week3!$AB:$AB,all_cars!$D28,week3!$AH:$AH)=0,"",VLOOKUP(all_cars!$D28,week3!$AB:$AJ,7,FALSE)) ->  | Z28: =IF(SUMIF(week4!$AB:$AB,all_cars!$D28,week4!$AH:$AH)=0,"",VLOOKUP(all_cars!$D28,week4!$AB:$AJ,7,FALSE)) ->  | AA28: =IF(SUMIF(week5!$AB:$AB,all_cars!$D28,week5!$AH:$AH)=0,"",VLOOKUP(all_cars!$D28,week5!$AB:$AJ,7,FALSE)) ->  | AC28: =IF(SUMIF(week1!$AB:$AB,all_cars!$D28,week1!$AI:$AI)=0,"",VLOOKUP(all_cars!$D28,week1!$AB:$AJ,8,FALSE)) ->  | AD28: =IF(SUMIF(week2!$AB:$AB,all_cars!$D28,week2!$AI:$AI)=0,"",VLOOKUP(all_cars!$D28,week2!$AB:$AJ,8,FALSE)) ->  | AE28: =IF(SUMIF(week3!$AB:$AB,all_cars!$D28,week3!$AI:$AI)=0,"",VLOOKUP(all_cars!$D28,week3!$AB:$AJ,8,FALSE)) ->  | AF28: =IF(SUMIF(week4!$AB:$AB,all_cars!$D28,week4!$AI:$AI)=0,"",VLOOKUP(all_cars!$D28,week4!$AB:$AJ,8,FALSE)) ->  | AG28: =IF(SUMIF(week5!$AB:$AB,all_cars!$D28,week5!$AI:$AI)=0,"",VLOOKUP(all_cars!$D28,week5!$AB:$AJ,8,FALSE)) ->  | AI28: =IF(SUMIF(week1!$AB:$AB,all_cars!$D28,week1!$AJ:$AJ)=0,"",VLOOKUP(all_cars!$D28,week1!$AB:$AJ,9,FALSE)) ->  | AJ28: =IF(SUMIF(week2!$AB:$AB,all_cars!$D28,week2!$AJ:$AJ)=0,"",VLOOKUP(all_cars!$D28,week2!$AB:$AJ,9,FALSE)) ->  | AK28: =IF(SUMIF(week3!$AB:$AB,all_cars!$D28,week3!$AJ:$AJ)=0,"",VLOOKUP(all_cars!$D28,week3!$AB:$AJ,9,FALSE)) ->  | AL28: =IF(SUMIF(week4!$AB:$AB,all_cars!$D28,week4!$AJ:$AJ)=0,"",VLOOKUP(all_cars!$D28,week4!$AB:$AJ,9,FALSE)) ->  | AM28: =IF(SUMIF(week5!$AB:$AB,all_cars!$D28,week5!$AJ:$AJ)=0,"",VLOOKUP(all_cars!$D28,week5!$AB:$AJ,9,FALSE)) ->  | AQ28: Diego Armando | AR28: Scud
C29: 23 | D29: lds | F29: 98.32027719 | G29: 92.67977655 | I29: 96.36263852 | K29: =IF(SUMIF(week1!$AB:$AB,all_cars!$D29,week1!$AF:$AF)=0,"",VLOOKUP(all_cars!$D29,week1!$AB:$AJ,5,FALSE)) -> 96.35249394 | L29: =IF(SUMIF(week2!$AB:$AB,all_cars!$D29,week2!$AF:$AF)=0,"",VLOOKUP(all_cars!$D29,week2!$AB:$AJ,5,FALSE)) -> 98.17913386 | M29: =IF(SUMIF(week3!$AB:$AB,all_cars!$D29,week3!$AF:$AF)=0,"",VLOOKUP(all_cars!$D29,week3!$AB:$AJ,5,FALSE)) -> 98.32027719 | N29: =IF(SUMIF(week4!$AB:$AB,all_cars!$D29,week4!$AF:$AF)=0,"",VLOOKUP(all_cars!$D29,week4!$AB:$AJ,5,FALSE)) -> 98.24908534 | O29: =IF(SUMIF(week5!$AB:$AB,all_cars!$D29,week5!$AF:$AF)=0,"",VLOOKUP(all_cars!$D29,week5!$AB:$AJ,5,FALSE)) -> 98.12401912 | Q29: =IF(SUMIF(week1!$AB:$AB,all_cars!$D29,week1!$AG:$AG)=0,"",VLOOKUP(all_cars!$D29,week1!$AB:$AJ,6,FALSE)) -> 95.87738505 | R29: =IF(SUMIF(week2!$AB:$AB,all_cars!$D29,week2!$AG:$AG)=0,"",VLOOKUP(all_cars!$D29,week2!$AB:$AJ,6,FALSE)) -> 92.67977655 | S29: =IF(SUMIF(week3!$AB:$AB,all_cars!$D29,week3!$AG:$AG)=0,"",VLOOKUP(all_cars!$D29,week3!$AB:$AJ,6,FALSE)) -> 93.11893708 | T29: =IF(SUMIF(week4!$AB:$AB,all_cars!$D29,week4!$AG:$AG)=0,"",VLOOKUP(all_cars!$D29,week4!$AB:$AJ,6,FALSE)) ->  | U29: =IF(SUMIF(week5!$AB:$AB,all_cars!$D29,week5!$AG:$AG)=0,"",VLOOKUP(all_cars!$D29,week5!$AB:$AJ,6,FALSE)) ->  | W29: =IF(SUMIF(week1!$AB:$AB,all_cars!$D29,week1!$AH:$AH)=0,"",VLOOKUP(all_cars!$D29,week1!$AB:$AJ,7,FALSE)) ->  | X29: =IF(SUMIF(week2!$AB:$AB,all_cars!$D29,week2!$AH:$AH)=0,"",VLOOKUP(all_cars!$D29,week2!$AB:$AJ,7,FALSE)) ->  | Y29: =IF(SUMIF(week3!$AB:$AB,all_cars!$D29,week3!$AH:$AH)=0,"",VLOOKUP(all_cars!$D29,week3!$AB:$AJ,7,FALSE)) ->  | Z29: =IF(SUMIF(week4!$AB:$AB,all_cars!$D29,week4!$AH:$AH)=0,"",VLOOKUP(all_cars!$D29,week4!$AB:$AJ,7,FALSE)) ->  | AA29: =IF(SUMIF(week5!$AB:$AB,all_cars!$D29,week5!$AH:$AH)=0,"",VLOOKUP(all_cars!$D29,week5!$AB:$AJ,7,FALSE)) ->  | AC29: =IF(SUMIF(week1!$AB:$AB,all_cars!$D29,week1!$AI:$AI)=0,"",VLOOKUP(all_cars!$D29,week1!$AB:$AJ,8,FALSE)) ->  | AD29: =IF(SUMIF(week2!$AB:$AB,all_cars!$D29,week2!$AI:$AI)=0,"",VLOOKUP(all_cars!$D29,week2!$AB:$AJ,8,FALSE)) ->  | AE29: =IF(SUMIF(week3!$AB:$AB,all_cars!$D29,week3!$AI:$AI)=0,"",VLOOKUP(all_cars!$D29,week3!$AB:$AJ,8,FALSE)) ->  | AF29: =IF(SUMIF(week4!$AB:$AB,all_cars!$D29,week4!$AI:$AI)=0,"",VLOOKUP(all_cars!$D29,week4!$AB:$AJ,8,FALSE)) ->  | AG29: =IF(SUMIF(week5!$AB:$AB,all_cars!$D29,week5!$AI:$AI)=0,"",VLOOKUP(all_cars!$D29,week5!$AB:$AJ,8,FALSE)) ->  | AI29: =IF(SUMIF(week1!$AB:$AB,all_cars!$D29,week1!$AJ:$AJ)=0,"",VLOOKUP(all_cars!$D29,week1!$AB:$AJ,9,FALSE)) ->  | AJ29: =IF(SUMIF(week2!$AB:$AB,all_cars!$D29,week2!$AJ:$AJ)=0,"",VLOOKUP(all_cars!$D29,week2!$AB:$AJ,9,FALSE)) ->  | AK29: =IF(SUMIF(week3!$AB:$AB,all_cars!$D29,week3!$AJ:$AJ)=0,"",VLOOKUP(all_cars!$D29,week3!$AB:$AJ,9,FALSE)) ->  | AL29: =IF(SUMIF(week4!$AB:$AB,all_cars!$D29,week4!$AJ:$AJ)=0,"",VLOOKUP(all_cars!$D29,week4!$AB:$AJ,9,FALSE)) ->  | AM29: =IF(SUMIF(week5!$AB:$AB,all_cars!$D29,week5!$AJ:$AJ)=0,"",VLOOKUP(all_cars!$D29,week5!$AB:$AJ,9,FALSE)) ->  | AQ29: lds | AR29: Diego Armando
C30: 24 | D30: [PahaJori] Ender | F30: 99.67893676 | G30: 94.66204506 | I30: 97.91277279 | K30: =IF(SUMIF(week1!$AB:$AB,all_cars!$D30,week1!$AF:$AF)=0,"",VLOOKUP(all_cars!$D30,week1!$AB:$AJ,5,FALSE)) -> 99.66245002 | L30: =IF(SUMIF(week2!$AB:$AB,all_cars!$D30,week2!$AF:$AF)=0,"",VLOOKUP(all_cars!$D30,week2!$AB:$AJ,5,FALSE)) -> 99.27493438 | M30: =IF(SUMIF(week3!$AB:$AB,all_cars!$D30,week3!$AF:$AF)=0,"",VLOOKUP(all_cars!$D30,week3!$AB:$AJ,5,FALSE)) -> 99.58571859 | N30: =IF(SUMIF(week4!$AB:$AB,all_cars!$D30,week4!$AF:$AF)=0,"",VLOOKUP(all_cars!$D30,week4!$AB:$AJ,5,FALSE)) -> 99.67893676 | O30: =IF(SUMIF(week5!$AB:$AB,all_cars!$D30,week5!$AF:$AF)=0,"",VLOOKUP(all_cars!$D30,week5!$AB:$AJ,5,FALSE)) -> 99.27734589 | Q30: =IF(SUMIF(week1!$AB:$AB,all_cars!$D30,week1!$AG:$AG)=0,"",VLOOKUP(all_cars!$D30,week1!$AB:$AJ,6,FALSE)) ->  | R30: =IF(SUMIF(week2!$AB:$AB,all_cars!$D30,week2!$AG:$AG)=0,"",VLOOKUP(all_cars!$D30,week2!$AB:$AJ,6,FALSE)) ->  | S30: =IF(SUMIF(week3!$AB:$AB,all_cars!$D30,week3!$AG:$AG)=0,"",VLOOKUP(all_cars!$D30,week3!$AB:$AJ,6,FALSE)) -> 97.12754312 | T30: =IF(SUMIF(week4!$AB:$AB,all_cars!$D30,week4!$AG:$AG)=0,"",VLOOKUP(all_cars!$D30,week4!$AB:$AJ,6,FALSE)) -> 96.81705253 | U30: =IF(SUMIF(week5!$AB:$AB,all_cars!$D30,week5!$AG:$AG)=0,"",VLOOKUP(all_cars!$D30,week5!$AB:$AJ,6,FALSE)) ->  | W30: =IF(SUMIF(week1!$AB:$AB,all_cars!$D30,week1!$AH:$AH)=0,"",VLOOKUP(all_cars!$D30,week1!$AB:$AJ,7,FALSE)) ->  | X30: =IF(SUMIF(week2!$AB:$AB,all_cars!$D30,week2!$AH:$AH)=0,"",VLOOKUP(all_cars!$D30,week2!$AB:$AJ,7,FALSE)) ->  | Y30: =IF(SUMIF(week3!$AB:$AB,all_cars!$D30,week3!$AH:$AH)=0,"",VLOOKUP(all_cars!$D30,week3!$AB:$AJ,7,FALSE)) ->  | Z30: =IF(SUMIF(week4!$AB:$AB,all_cars!$D30,week4!$AH:$AH)=0,"",VLOOKUP(all_cars!$D30,week4!$AB:$AJ,7,FALSE)) ->  | AA30: =IF(SUMIF(week5!$AB:$AB,all_cars!$D30,week5!$AH:$AH)=0,"",VLOOKUP(all_cars!$D30,week5!$AB:$AJ,7,FALSE)) ->  | AC30: =IF(SUMIF(week1!$AB:$AB,all_cars!$D30,week1!$AI:$AI)=0,"",VLOOKUP(all_cars!$D30,week1!$AB:$AJ,8,FALSE)) ->  | AD30: =IF(SUMIF(week2!$AB:$AB,all_cars!$D30,week2!$AI:$AI)=0,"",VLOOKUP(all_cars!$D30,week2!$AB:$AJ,8,FALSE)) ->  | AE30: =IF(SUMIF(week3!$AB:$AB,all_cars!$D30,week3!$AI:$AI)=0,"",VLOOKUP(all_cars!$D30,week3!$AB:$AJ,8,FALSE)) ->  | AF30: =IF(SUMIF(week4!$AB:$AB,all_cars!$D30,week4!$AI:$AI)=0,"",VLOOKUP(all_cars!$D30,week4!$AB:$AJ,8,FALSE)) ->  | AG30: =IF(SUMIF(week5!$AB:$AB,all_cars!$D30,week5!$AI:$AI)=0,"",VLOOKUP(all_cars!$D30,week5!$AB:$AJ,8,FALSE)) ->  | AI30: =IF(SUMIF(week1!$AB:$AB,all_cars!$D30,week1!$AJ:$AJ)=0,"",VLOOKUP(all_cars!$D30,week1!$AB:$AJ,9,FALSE)) ->  | AJ30: =IF(SUMIF(week2!$AB:$AB,all_cars!$D30,week2!$AJ:$AJ)=0,"",VLOOKUP(all_cars!$D30,week2!$AB:$AJ,9,FALSE)) ->  | AK30: =IF(SUMIF(week3!$AB:$AB,all_cars!$D30,week3!$AJ:$AJ)=0,"",VLOOKUP(all_cars!$D30,week3!$AB:$AJ,9,FALSE)) ->  | AL30: =IF(SUMIF(week4!$AB:$AB,all_cars!$D30,week4!$AJ:$AJ)=0,"",VLOOKUP(all_cars!$D30,week4!$AB:$AJ,9,FALSE)) -> 95.12892875 | AM30: =IF(SUMIF(week5!$AB:$AB,all_cars!$D30,week5!$AJ:$AJ)=0,"",VLOOKUP(all_cars!$D30,week5!$AB:$AJ,9,FALSE)) -> 94.66204506 | AQ30: [PahaJori] Ender | AR30: lds
C31: 25 | D31: laf | F31: 96.01284253 | G31: 87.5187719 | I31: 92.25953203 | K31: =IF(SUMIF(week1!$AB:$AB,all_cars!$D31,week1!$AF:$AF)=0,"",VLOOKUP(all_cars!$D31,week1!$AB:$AJ,5,FALSE)) -> 93.38991938 | L31: =IF(SUMIF(week2!$AB:$AB,all_cars!$D31,week2!$AF:$AF)=0,"",VLOOKUP(all_cars!$D31,week2!$AB:$AJ,5,FALSE)) -> 94.49475066 | M31: =IF(SUMIF(week3!$AB:$AB,all_cars!$D31,week3!$AF:$AF)=0,"",VLOOKUP(all_cars!$D31,week3!$AB:$AJ,5,FALSE)) ->  | N31: =IF(SUMIF(week4!$AB:$AB,all_cars!$D31,week4!$AF:$AF)=0,"",VLOOKUP(all_cars!$D31,week4!$AB:$AJ,5,FALSE)) -> 96.01284253 | O31: =IF(SUMIF(week5!$AB:$AB,all_cars!$D31,week5!$AF:$AF)=0,"",VLOOKUP(all_cars!$D31,week5!$AB:$AJ,5,FALSE)) ->  | Q31: =IF(SUMIF(week1!$AB:$AB,all_cars!$D31,week1!$AG:$AG)=0,"",VLOOKUP(all_cars!$D31,week1!$AB:$AJ,6,FALSE)) ->  | R31: =IF(SUMIF(week2!$AB:$AB,all_cars!$D31,week2!$AG:$AG)=0,"",VLOOKUP(all_cars!$D31,week2!$AB:$AJ,6,FALSE)) ->  | S31: =IF(SUMIF(week3!$AB:$AB,all_cars!$D31,week3!$AG:$AG)=0,"",VLOOKUP(all_cars!$D31,week3!$AB:$AJ,6,FALSE)) ->  | T31: =IF(SUMIF(week4!$AB:$AB,all_cars!$D31,week4!$AG:$AG)=0,"",VLOOKUP(all_cars!$D31,week4!$AB:$AJ,6,FALSE)) ->  | U31: =IF(SUMIF(week5!$AB:$AB,all_cars!$D31,week5!$AG:$AG)=0,"",VLOOKUP(all_cars!$D31,week5!$AB:$AJ,6,FALSE)) ->  | W31: =IF(SUMIF(week1!$AB:$AB,all_cars!$D31,week1!$AH:$AH)=0,"",VLOOKUP(all_cars!$D31,week1!$AB:$AJ,7,FALSE)) -> 93.88294525 | X31: =IF(SUMIF(week2!$AB:$AB,all_cars!$D31,week2!$AH:$AH)=0,"",VLOOKUP(all_cars!$D31,week2!$AB:$AJ,7,FALSE)) ->  | Y31: =IF(SUMIF(week3!$AB:$AB,all_cars!$D31,week3!$AH:$AH)=0,"",VLOOKUP(all_cars!$D31,week3!$AB:$AJ,7,FALSE)) ->  | Z31: =IF(SUMIF(week4!$AB:$AB,all_cars!$D31,week4!$AH:$AH)=0,"",VLOOKUP(all_cars!$D31,week4!$AB:$AJ,7,FALSE)) ->  | AA31: =IF(SUMIF(week5!$AB:$AB,all_cars!$D31,week5!$AH:$AH)=0,"",VLOOKUP(all_cars!$D31,week5!$AB:$AJ,7,FALSE)) ->  | AC31: =IF(SUMIF(week1!$AB:$AB,all_cars!$D31,week1!$AI:$AI)=0,"",VLOOKUP(all_cars!$D31,week1!$AB:$AJ,8,FALSE)) ->  | AD31: =IF(SUMIF(week2!$AB:$AB,all_cars!$D31,week2!$AI:$AI)=0,"",VLOOKUP(all_cars!$D31,week2!$AB:$AJ,8,FALSE)) ->  | AE31: =IF(SUMIF(week3!$AB:$AB,all_cars!$D31,week3!$AI:$AI)=0,"",VLOOKUP(all_cars!$D31,week3!$AB:$AJ,8,FALSE)) ->  | AF31: =IF(SUMIF(week4!$AB:$AB,all_cars!$D31,week4!$AI:$AI)=0,"",VLOOKUP(all_cars!$D31,week4!$AB:$AJ,8,FALSE)) ->  | AG31: =IF(SUMIF(week5!$AB:$AB,all_cars!$D31,week5!$AI:$AI)=0,"",VLOOKUP(all_cars!$D31,week5!$AB:$AJ,8,FALSE)) ->  | AI31: =IF(SUMIF(week1!$AB:$AB,all_cars!$D31,week1!$AJ:$AJ)=0,"",VLOOKUP(all_cars!$D31,week1!$AB:$AJ,9,FALSE)) -> 87.5187719 | AJ31: =IF(SUMIF(week2!$AB:$AB,all_cars!$D31,week2!$AJ:$AJ)=0,"",VLOOKUP(all_cars!$D31,week2!$AB:$AJ,9,FALSE)) ->  | AK31: =IF(SUMIF(week3!$AB:$AB,all_cars!$D31,week3!$AJ:$AJ)=0,"",VLOOKUP(all_cars!$D31,week3!$AB:$AJ,9,FALSE)) -> 91.79710145 | AL31: =IF(SUMIF(week4!$AB:$AB,all_cars!$D31,week4!$AJ:$AJ)=0,"",VLOOKUP(all_cars!$D31,week4!$AB:$AJ,9,FALSE)) -> 90.24239378 | AM31: =IF(SUMIF(week5!$AB:$AB,all_cars!$D31,week5!$AJ:$AJ)=0,"",VLOOKUP(all_cars!$D31,week5!$AB:$AJ,9,FALSE)) -> 90.73753129 | AQ31: laf | AR31: [PahaJori] Ender
C32: 26 | D32: REIROM | F32: 98.46715878 | G32: 76.18064319 | I32: 90.89057546 | K32: =IF(SUMIF(week1!$AB:$AB,all_cars!$D32,week1!$AF:$AF)=0,"",VLOOKUP(all_cars!$D32,week1!$AB:$AJ,5,FALSE)) -> 95.51025759 | L32: =IF(SUMIF(week2!$AB:$AB,all_cars!$D32,week2!$AF:$AF)=0,"",VLOOKUP(all_cars!$D32,week2!$AB:$AJ,5,FALSE)) -> 95.72834646 | M32: =IF(SUMIF(week3!$AB:$AB,all_cars!$D32,week3!$AF:$AF)=0,"",VLOOKUP(all_cars!$D32,week3!$AB:$AJ,5,FALSE)) -> 98.46715878 | N32: =IF(SUMIF(week4!$AB:$AB,all_cars!$D32,week4!$AF:$AF)=0,"",VLOOKUP(all_cars!$D32,week4!$AB:$AJ,5,FALSE)) ->  | O32: =IF(SUMIF(week5!$AB:$AB,all_cars!$D32,week5!$AF:$AF)=0,"",VLOOKUP(all_cars!$D32,week5!$AB:$AJ,5,FALSE)) ->  | Q32: =IF(SUMIF(week1!$AB:$AB,all_cars!$D32,week1!$AG:$AG)=0,"",VLOOKUP(all_cars!$D32,week1!$AB:$AJ,6,FALSE)) -> 83.76915859 | R32: =IF(SUMIF(week2!$AB:$AB,all_cars!$D32,week2!$AG:$AG)=0,"",VLOOKUP(all_cars!$D32,week2!$AB:$AJ,6,FALSE)) ->  | S32: =IF(SUMIF(week3!$AB:$AB,all_cars!$D32,week3!$AG:$AG)=0,"",VLOOKUP(all_cars!$D32,week3!$AB:$AJ,6,FALSE)) -> 90.19363605 | T32: =IF(SUMIF(week4!$AB:$AB,all_cars!$D32,week4!$AG:$AG)=0,"",VLOOKUP(all_cars!$D32,week4!$AB:$AJ,6,FALSE)) ->  | U32: =IF(SUMIF(week5!$AB:$AB,all_cars!$D32,week5!$AG:$AG)=0,"",VLOOKUP(all_cars!$D32,week5!$AB:$AJ,6,FALSE)) ->  | W32: =IF(SUMIF(week1!$AB:$AB,all_cars!$D32,week1!$AH:$AH)=0,"",VLOOKUP(all_cars!$D32,week1!$AB:$AJ,7,FALSE)) -> 91.52611705 | X32: =IF(SUMIF(week2!$AB:$AB,all_cars!$D32,week2!$AH:$AH)=0,"",VLOOKUP(all_cars!$D32,week2!$AB:$AJ,7,FALSE)) ->  | Y32: =IF(SUMIF(week3!$AB:$AB,all_cars!$D32,week3!$AH:$AH)=0,"",VLOOKUP(all_cars!$D32,week3!$AB:$AJ,7,FALSE)) -> 93.30238727 | Z32: =IF(SUMIF(week4!$AB:$AB,all_cars!$D32,week4!$AH:$AH)=0,"",VLOOKUP(all_cars!$D32,week4!$AB:$AJ,7,FALSE)) ->  | AA32: =IF(SUMIF(week5!$AB:$AB,all_cars!$D32,week5!$AH:$AH)=0,"",VLOOKUP(all_cars!$D32,week5!$AB:$AJ,7,FALSE)) ->  | AC32: =IF(SUMIF(week1!$AB:$AB,all_cars!$D32,week1!$AI:$AI)=0,"",VLOOKUP(all_cars!$D32,week1!$AB:$AJ,8,FALSE)) ->  | AD32: =IF(SUMIF(week2!$AB:$AB,all_cars!$D32,week2!$AI:$AI)=0,"",VLOOKUP(all_cars!$D32,week2!$AB:$AJ,8,FALSE)) ->  | AE32: =IF(SUMIF(week3!$AB:$AB,all_cars!$D32,week3!$AI:$AI)=0,"",VLOOKUP(all_cars!$D32,week3!$AB:$AJ,8,FALSE)) -> 76.18064319 | AF32: =IF(SUMIF(week4!$AB:$AB,all_cars!$D32,week4!$AI:$AI)=0,"",VLOOKUP(all_cars!$D32,week4!$AB:$AJ,8,FALSE)) ->  | AG32: =IF(SUMIF(week5!$AB:$AB,all_cars!$D32,week5!$AI:$AI)=0,"",VLOOKUP(all_cars!$D32,week5!$AB:$AJ,8,FALSE)) ->  | AI32: =IF(SUMIF(week1!$AB:$AB,all_cars!$D32,week1!$AJ:$AJ)=0,"",VLOOKUP(all_cars!$D32,week1!$AB:$AJ,9,FALSE)) ->  | AJ32: =IF(SUMIF(week2!$AB:$AB,all_cars!$D32,week2!$AJ:$AJ)=0,"",VLOOKUP(all_cars!$D32,week2!$AB:$AJ,9,FALSE)) ->  | AK32: =IF(SUMIF(week3!$AB:$AB,all_cars!$D32,week3!$AJ:$AJ)=0,"",VLOOKUP(all_cars!$D32,week3!$AB:$AJ,9,FALSE)) -> 93.33747412 | AL32: =IF(SUMIF(week4!$AB:$AB,all_cars!$D32,week4!$AJ:$AJ)=0,"",VLOOKUP(all_cars!$D32,week4!$AB:$AJ,9,FALSE)) ->  | AM32: =IF(SUMIF(week5!$AB:$AB,all_cars!$D32,week5!$AJ:$AJ)=0,"",VLOOKUP(all_cars!$D32,week5!$AB:$AJ,9,FALSE)) ->  | AQ32: REIROM | AR32: laf
C33: 27 | D33: Janneosaursrex | F33: 98.98654989 | G33: 98.98654989 | I33: 98.98654989 | K33: =IF(SUMIF(week1!$AB:$AB,all_cars!$D33,week1!$AF:$AF)=0,"",VLOOKUP(all_cars!$D33,week1!$AB:$AJ,5,FALSE)) ->  | L33: =IF(SUMIF(week2!$AB:$AB,all_cars!$D33,week2!$AF:$AF)=0,"",VLOOKUP(all_cars!$D33,week2!$AB:$AJ,5,FALSE)) ->  | M33: =IF(SUMIF(week3!$AB:$AB,all_cars!$D33,week3!$AF:$AF)=0,"",VLOOKUP(all_cars!$D33,week3!$AB:$AJ,5,FALSE)) ->  | N33: =IF(SUMIF(week4!$AB:$AB,all_cars!$D33,week4!$AF:$AF)=0,"",VLOOKUP(all_cars!$D33,week4!$AB:$AJ,5,FALSE)) ->  | O33: =IF(SUMIF(week5!$AB:$AB,all_cars!$D33,week5!$AF:$AF)=0,"",VLOOKUP(all_cars!$D33,week5!$AB:$AJ,5,FALSE)) ->  | Q33: =IF(SUMIF(week1!$AB:$AB,all_cars!$D33,week1!$AG:$AG)=0,"",VLOOKUP(all_cars!$D33,week1!$AB:$AJ,6,FALSE)) -> 98.98654989 | R33: =IF(SUMIF(week2!$AB:$AB,all_cars!$D33,week2!$AG:$AG)=0,"",VLOOKUP(all_cars!$D33,week2!$AB:$AJ,6,FALSE)) ->  | S33: =IF(SUMIF(week3!$AB:$AB,all_cars!$D33,week3!$AG:$AG)=0,"",VLOOKUP(all_cars!$D33,week3!$AB:$AJ,6,FALSE)) ->  | T33: =IF(SUMIF(week4!$AB:$AB,all_cars!$D33,week4!$AG:$AG)=0,"",VLOOKUP(all_cars!$D33,week4!$AB:$AJ,6,FALSE)) ->  | U33: =IF(SUMIF(week5!$AB:$AB,all_cars!$D33,week5!$AG:$AG)=0,"",VLOOKUP(all_cars!$D33,week5!$AB:$AJ,6,FALSE)) ->  | W33: =IF(SUMIF(week1!$AB:$AB,all_cars!$D33,week1!$AH:$AH)=0,"",VLOOKUP(all_cars!$D33,week1!$AB:$AJ,7,FALSE)) ->  | X33: =IF(SUMIF(week2!$AB:$AB,all_cars!$D33,week2!$AH:$AH)=0,"",VLOOKUP(all_cars!$D33,week2!$AB:$AJ,7,FALSE)) ->  | Y33: =IF(SUMIF(week3!$AB:$AB,all_cars!$D33,week3!$AH:$AH)=0,"",VLOOKUP(all_cars!$D33,week3!$AB:$AJ,7,FALSE)) ->  | Z33: =IF(SUMIF(week4!$AB:$AB,all_cars!$D33,week4!$AH:$AH)=0,"",VLOOKUP(all_cars!$D33,week4!$AB:$AJ,7,FALSE)) ->  | AA33: =IF(SUMIF(week5!$AB:$AB,all_cars!$D33,week5!$AH:$AH)=0,"",VLOOKUP(all_cars!$D33,week5!$AB:$AJ,7,FALSE)) ->  | AC33: =IF(SUMIF(week1!$AB:$AB,all_cars!$D33,week1!$AI:$AI)=0,"",VLOOKUP(all_cars!$D33,week1!$AB:$AJ,8,FALSE)) ->  | AD33: =IF(SUMIF(week2!$AB:$AB,all_cars!$D33,week2!$AI:$AI)=0,"",VLOOKUP(all_cars!$D33,week2!$AB:$AJ,8,FALSE)) ->  | AE33: =IF(SUMIF(week3!$AB:$AB,all_cars!$D33,week3!$AI:$AI)=0,"",VLOOKUP(all_cars!$D33,week3!$AB:$AJ,8,FALSE)) ->  | AF33: =IF(SUMIF(week4!$AB:$AB,all_cars!$D33,week4!$AI:$AI)=0,"",VLOOKUP(all_cars!$D33,week4!$AB:$AJ,8,FALSE)) ->  | AG33: =IF(SUMIF(week5!$AB:$AB,all_cars!$D33,week5!$AI:$AI)=0,"",VLOOKUP(all_cars!$D33,week5!$AB:$AJ,8,FALSE)) ->  | AI33: =IF(SUMIF(week1!$AB:$AB,all_cars!$D33,week1!$AJ:$AJ)=0,"",VLOOKUP(all_cars!$D33,week1!$AB:$AJ,9,FALSE)) ->  | AJ33: =IF(SUMIF(week2!$AB:$AB,all_cars!$D33,week2!$AJ:$AJ)=0,"",VLOOKUP(all_cars!$D33,week2!$AB:$AJ,9,FALSE)) ->  | AK33: =IF(SUMIF(week3!$AB:$AB,all_cars!$D33,week3!$AJ:$AJ)=0,"",VLOOKUP(all_cars!$D33,week3!$AB:$AJ,9,FALSE)) ->  | AL33: =IF(SUMIF(week4!$AB:$AB,all_cars!$D33,week4!$AJ:$AJ)=0,"",VLOOKUP(all_cars!$D33,week4!$AB:$AJ,9,FALSE)) ->  | AM33: =IF(SUMIF(week5!$AB:$AB,all_cars!$D33,week5!$AJ:$AJ)=0,"",VLOOKUP(all_cars!$D33,week5!$AB:$AJ,9,FALSE)) ->  | AQ33: Janneosaursrex | AR33: REIROM
C34: 28 | D34: R.E.I.R.O.M | F34: 97.69613948 | G34: 86.92211448 | I34: 92.50896479 | K34: =IF(SUMIF(week1!$AB:$AB,all_cars!$D34,week1!$AF:$AF)=0,"",VLOOKUP(all_cars!$D34,week1!$AB:$AJ,5,FALSE)) -> 97.69613948 | L34: =IF(SUMIF(week2!$AB:$AB,all_cars!$D34,week2!$AF:$AF)=0,"",VLOOKUP(all_cars!$D34,week2!$AB:$AJ,5,FALSE)) -> 97.13254593 | M34: =IF(SUMIF(week3!$AB:$AB,all_cars!$D34,week3!$AF:$AF)=0,"",VLOOKUP(all_cars!$D34,week3!$AB:$AJ,5,FALSE)) ->  | N34: =IF(SUMIF(week4!$AB:$AB,all_cars!$D34,week4!$AF:$AF)=0,"",VLOOKUP(all_cars!$D34,week4!$AB:$AJ,5,FALSE)) ->  | O34: =IF(SUMIF(week5!$AB:$AB,all_cars!$D34,week5!$AF:$AF)=0,"",VLOOKUP(all_cars!$D34,week5!$AB:$AJ,5,FALSE)) ->  | Q34: =IF(SUMIF(week1!$AB:$AB,all_cars!$D34,week1!$AG:$AG)=0,"",VLOOKUP(all_cars!$D34,week1!$AB:$AJ,6,FALSE)) -> 86.92211448 | R34: =IF(SUMIF(week2!$AB:$AB,all_cars!$D34,week2!$AG:$AG)=0,"",VLOOKUP(all_cars!$D34,week2!$AB:$AJ,6,FALSE)) -> 88.28505925 | S34: =IF(SUMIF(week3!$AB:$AB,all_cars!$D34,week3!$AG:$AG)=0,"",VLOOKUP(all_cars!$D34,week3!$AB:$AJ,6,FALSE)) ->  | T34: =IF(SUMIF(week4!$AB:$AB,all_cars!$D34,week4!$AG:$AG)=0,"",VLOOKUP(all_cars!$D34,week4!$AB:$AJ,6,FALSE)) ->  | U34: =IF(SUMIF(week5!$AB:$AB,all_cars!$D34,week5!$AG:$AG)=0,"",VLOOKUP(all_cars!$D34,week5!$AB:$AJ,6,FALSE)) ->  | W34: =IF(SUMIF(week1!$AB:$AB,all_cars!$D34,week1!$AH:$AH)=0,"",VLOOKUP(all_cars!$D34,week1!$AB:$AJ,7,FALSE)) ->  | X34: =IF(SUMIF(week2!$AB:$AB,all_cars!$D34,week2!$AH:$AH)=0,"",VLOOKUP(all_cars!$D34,week2!$AB:$AJ,7,FALSE)) ->  | Y34: =IF(SUMIF(week3!$AB:$AB,all_cars!$D34,week3!$AH:$AH)=0,"",VLOOKUP(all_cars!$D34,week3!$AB:$AJ,7,FALSE)) ->  | Z34: =IF(SUMIF(week4!$AB:$AB,all_cars!$D34,week4!$AH:$AH)=0,"",VLOOKUP(all_cars!$D34,week4!$AB:$AJ,7,FALSE)) ->  | AA34: =IF(SUMIF(week5!$AB:$AB,all_cars!$D34,week5!$AH:$AH)=0,"",VLOOKUP(all_cars!$D34,week5!$AB:$AJ,7,FALSE)) ->  | AC34: =IF(SUMIF(week1!$AB:$AB,all_cars!$D34,week1!$AI:$AI)=0,"",VLOOKUP(all_cars!$D34,week1!$AB:$AJ,8,FALSE)) ->  | AD34: =IF(SUMIF(week2!$AB:$AB,all_cars!$D34,week2!$AI:$AI)=0,"",VLOOKUP(all_cars!$D34,week2!$AB:$AJ,8,FALSE)) ->  | AE34: =IF(SUMIF(week3!$AB:$AB,all_cars!$D34,week3!$AI:$AI)=0,"",VLOOKUP(all_cars!$D34,week3!$AB:$AJ,8,FALSE)) ->  | AF34: =IF(SUMIF(week4!$AB:$AB,all_cars!$D34,week4!$AI:$AI)=0,"",VLOOKUP(all_cars!$D34,week4!$AB:$AJ,8,FALSE)) ->  | AG34: =IF(SUMIF(week5!$AB:$AB,all_cars!$D34,week5!$AI:$AI)=0,"",VLOOKUP(all_cars!$D34,week5!$AB:$AJ,8,FALSE)) ->  | AI34: =IF(SUMIF(week1!$AB:$AB,all_cars!$D34,week1!$AJ:$AJ)=0,"",VLOOKUP(all_cars!$D34,week1!$AB:$AJ,9,FALSE)) ->  | AJ34: =IF(SUMIF(week2!$AB:$AB,all_cars!$D34,week2!$AJ:$AJ)=0,"",VLOOKUP(all_cars!$D34,week2!$AB:$AJ,9,FALSE)) ->  | AK34: =IF(SUMIF(week3!$AB:$AB,all_cars!$D34,week3!$AJ:$AJ)=0,"",VLOOKUP(all_cars!$D34,week3!$AB:$AJ,9,FALSE)) ->  | AL34: =IF(SUMIF(week4!$AB:$AB,all_cars!$D34,week4!$AJ:$AJ)=0,"",VLOOKUP(all_cars!$D34,week4!$AB:$AJ,9,FALSE)) ->  | AM34: =IF(SUMIF(week5!$AB:$AB,all_cars!$D34,week5!$AJ:$AJ)=0,"",VLOOKUP(all_cars!$D34,week5!$AB:$AJ,9,FALSE)) ->  | AQ34: R.E.I.R.O.M | AR34: Janneosaursrex
C35: 29 | D35: Testaaja | F35: 98.71206659 | G35: 98.71206659 | I35: 98.71206659 | K35: =IF(SUMIF(week1!$AB:$AB,all_cars!$D35,week1!$AF:$AF)=0,"",VLOOKUP(all_cars!$D35,week1!$AB:$AJ,5,FALSE)) -> 98.71206659 | L35: =IF(SUMIF(week2!$AB:$AB,all_cars!$D35,week2!$AF:$AF)=0,"",VLOOKUP(all_cars!$D35,week2!$AB:$AJ,5,FALSE)) ->  | M35: =IF(SUMIF(week3!$AB:$AB,all_cars!$D35,week3!$AF:$AF)=0,"",VLOOKUP(all_cars!$D35,week3!$AB:$AJ,5,FALSE)) ->  | N35: =IF(SUMIF(week4!$AB:$AB,all_cars!$D35,week4!$AF:$AF)=0,"",VLOOKUP(all_cars!$D35,week4!$AB:$AJ,5,FALSE)) ->  | O35: =IF(SUMIF(week5!$AB:$AB,all_cars!$D35,week5!$AF:$AF)=0,"",VLOOKUP(all_cars!$D35,week5!$AB:$AJ,5,FALSE)) ->  | Q35: =IF(SUMIF(week1!$AB:$AB,all_cars!$D35,week1!$AG:$AG)=0,"",VLOOKUP(all_cars!$D35,week1!$AB:$AJ,6,FALSE)) ->  | R35: =IF(SUMIF(week2!$AB:$AB,all_cars!$D35,week2!$AG:$AG)=0,"",VLOOKUP(all_cars!$D35,week2!$AB:$AJ,6,FALSE)) ->  | S35: =IF(SUMIF(week3!$AB:$AB,all_cars!$D35,week3!$AG:$AG)=0,"",VLOOKUP(all_cars!$D35,week3!$AB:$AJ,6,FALSE)) ->  | T35: =IF(SUMIF(week4!$AB:$AB,all_cars!$D35,week4!$AG:$AG)=0,"",VLOOKUP(all_cars!$D35,week4!$AB:$AJ,6,FALSE)) ->  | U35: =IF(SUMIF(week5!$AB:$AB,all_cars!$D35,week5!$AG:$AG)=0,"",VLOOKUP(all_cars!$D35,week5!$AB:$AJ,6,FALSE)) ->  | W35: =IF(SUMIF(week1!$AB:$AB,all_cars!$D35,week1!$AH:$AH)=0,"",VLOOKUP(all_cars!$D35,week1!$AB:$AJ,7,FALSE)) ->  | X35: =IF(SUMIF(week2!$AB:$AB,all_cars!$D35,week2!$AH:$AH)=0,"",VLOOKUP(all_cars!$D35,week2!$AB:$AJ,7,FALSE)) ->  | Y35: =IF(SUMIF(week3!$AB:$AB,all_cars!$D35,week3!$AH:$AH)=0,"",VLOOKUP(all_cars!$D35,week3!$AB:$AJ,7,FALSE)) ->  | Z35: =IF(SUMIF(week4!$AB:$AB,all_cars!$D35,week4!$AH:$AH)=0,"",VLOOKUP(all_cars!$D35,week4!$AB:$AJ,7,FALSE)) ->  | AA35: =IF(SUMIF(week5!$AB:$AB,all_cars!$D35,week5!$AH:$AH)=0,"",VLOOKUP(all_cars!$D35,week5!$AB:$AJ,7,FALSE)) ->  | AC35: =IF(SUMIF(week1!$AB:$AB,all_cars!$D35,week1!$AI:$AI)=0,"",VLOOKUP(all_cars!$D35,week1!$AB:$AJ,8,FALSE)) ->  | AD35: =IF(SUMIF(week2!$AB:$AB,all_cars!$D35,week2!$AI:$AI)=0,"",VLOOKUP(all_cars!$D35,week2!$AB:$AJ,8,FALSE)) ->  | AE35: =IF(SUMIF(week3!$AB:$AB,all_cars!$D35,week3!$AI:$AI)=0,"",VLOOKUP(all_cars!$D35,week3!$AB:$AJ,8,FALSE)) ->  | AF35: =IF(SUMIF(week4!$AB:$AB,all_cars!$D35,week4!$AI:$AI)=0,"",VLOOKUP(all_cars!$D35,week4!$AB:$AJ,8,FALSE)) ->  | AG35: =IF(SUMIF(week5!$AB:$AB,all_cars!$D35,week5!$AI:$AI)=0,"",VLOOKUP(all_cars!$D35,week5!$AB:$AJ,8,FALSE)) ->  | AI35: =IF(SUMIF(week1!$AB:$AB,all_cars!$D35,week1!$AJ:$AJ)=0,"",VLOOKUP(all_cars!$D35,week1!$AB:$AJ,9,FALSE)) ->  | AJ35: =IF(SUMIF(week2!$AB:$AB,all_cars!$D35,week2!$AJ:$AJ)=0,"",VLOOKUP(all_cars!$D35,week2!$AB:$AJ,9,FALSE)) ->  | AK35: =IF(SUMIF(week3!$AB:$AB,all_cars!$D35,week3!$AJ:$AJ)=0,"",VLOOKUP(all_cars!$D35,week3!$AB:$AJ,9,FALSE)) ->  | AL35: =IF(SUMIF(week4!$AB:$AB,all_cars!$D35,week4!$AJ:$AJ)=0,"",VLOOKUP(all_cars!$D35,week4!$AB:$AJ,9,FALSE)) ->  | AM35: =IF(SUMIF(week5!$AB:$AB,all_cars!$D35,week5!$AJ:$AJ)=0,"",VLOOKUP(all_cars!$D35,week5!$AB:$AJ,9,FALSE)) ->  | AQ35: Testaaja | AR35: R.E.I.R.O.M
C36: 30 | D36: [FUN] GR8 Arjen! | F36: 99.26182585 | G36: 86.57331655 | I36: 95.78230629 | K36: =IF(SUMIF(week1!$AB:$AB,all_cars!$D36,week1!$AF:$AF)=0,"",VLOOKUP(all_cars!$D36,week1!$AB:$AJ,5,FALSE)) -> 97.27010553 | L36: =IF(SUMIF(week2!$AB:$AB,all_cars!$D36,week2!$AF:$AF)=0,"",VLOOKUP(all_cars!$D36,week2!$AB:$AJ,5,FALSE)) -> 98.47440945 | M36: =IF(SUMIF(week3!$AB:$AB,all_cars!$D36,week3!$AF:$AF)=0,"",VLOOKUP(all_cars!$D36,week3!$AB:$AJ,5,FALSE)) -> 99.26182585 | N36: =IF(SUMIF(week4!$AB:$AB,all_cars!$D36,week4!$AF:$AF)=0,"",VLOOKUP(all_cars!$D36,week4!$AB:$AJ,5,FALSE)) -> 97.90562234 | O36: =IF(SUMIF(week5!$AB:$AB,all_cars!$D36,week5!$AF:$AF)=0,"",VLOOKUP(all_cars!$D36,week5!$AB:$AJ,5,FALSE)) -> 97.3794664 | Q36: =IF(SUMIF(week1!$AB:$AB,all_cars!$D36,week1!$AG:$AG)=0,"",VLOOKUP(all_cars!$D36,week1!$AB:$AJ,6,FALSE)) ->  | R36: =IF(SUMIF(week2!$AB:$AB,all_cars!$D36,week2!$AG:$AG)=0,"",VLOOKUP(all_cars!$D36,week2!$AB:$AJ,6,FALSE)) ->  | S36: =IF(SUMIF(week3!$AB:$AB,all_cars!$D36,week3!$AG:$AG)=0,"",VLOOKUP(all_cars!$D36,week3!$AB:$AJ,6,FALSE)) -> 97.40308761 | T36: =IF(SUMIF(week4!$AB:$AB,all_cars!$D36,week4!$AG:$AG)=0,"",VLOOKUP(all_cars!$D36,week4!$AB:$AJ,6,FALSE)) ->  | U36: =IF(SUMIF(week5!$AB:$AB,all_cars!$D36,week5!$AG:$AG)=0,"",VLOOKUP(all_cars!$D36,week5!$AB:$AJ,6,FALSE)) -> 94.29052119 | W36: =IF(SUMIF(week1!$AB:$AB,all_cars!$D36,week1!$AH:$AH)=0,"",VLOOKUP(all_cars!$D36,week1!$AB:$AJ,7,FALSE)) -> 86.57331655 | X36: =IF(SUMIF(week2!$AB:$AB,all_cars!$D36,week2!$AH:$AH)=0,"",VLOOKUP(all_cars!$D36,week2!$AB:$AJ,7,FALSE)) ->  | Y36: =IF(SUMIF(week3!$AB:$AB,all_cars!$D36,week3!$AH:$AH)=0,"",VLOOKUP(all_cars!$D36,week3!$AB:$AJ,7,FALSE)) ->  | Z36: =IF(SUMIF(week4!$AB:$AB,all_cars!$D36,week4!$AH:$AH)=0,"",VLOOKUP(all_cars!$D36,week4!$AB:$AJ,7,FALSE)) ->  | AA36: =IF(SUMIF(week5!$AB:$AB,all_cars!$D36,week5!$AH:$AH)=0,"",VLOOKUP(all_cars!$D36,week5!$AB:$AJ,7,FALSE)) ->  | AC36: =IF(SUMIF(week1!$AB:$AB,all_cars!$D36,week1!$AI:$AI)=0,"",VLOOKUP(all_cars!$D36,week1!$AB:$AJ,8,FALSE)) ->  | AD36: =IF(SUMIF(week2!$AB:$AB,all_cars!$D36,week2!$AI:$AI)=0,"",VLOOKUP(all_cars!$D36,week2!$AB:$AJ,8,FALSE)) ->  | AE36: =IF(SUMIF(week3!$AB:$AB,all_cars!$D36,week3!$AI:$AI)=0,"",VLOOKUP(all_cars!$D36,week3!$AB:$AJ,8,FALSE)) ->  | AF36: =IF(SUMIF(week4!$AB:$AB,all_cars!$D36,week4!$AI:$AI)=0,"",VLOOKUP(all_cars!$D36,week4!$AB:$AJ,8,FALSE)) ->  | AG36: =IF(SUMIF(week5!$AB:$AB,all_cars!$D36,week5!$AI:$AI)=0,"",VLOOKUP(all_cars!$D36,week5!$AB:$AJ,8,FALSE)) ->  | AI36: =IF(SUMIF(week1!$AB:$AB,all_cars!$D36,week1!$AJ:$AJ)=0,"",VLOOKUP(all_cars!$D36,week1!$AB:$AJ,9,FALSE)) ->  | AJ36: =IF(SUMIF(week2!$AB:$AB,all_cars!$D36,week2!$AJ:$AJ)=0,"",VLOOKUP(all_cars!$D36,week2!$AB:$AJ,9,FALSE)) ->  | AK36: =IF(SUMIF(week3!$AB:$AB,all_cars!$D36,week3!$AJ:$AJ)=0,"",VLOOKUP(all_cars!$D36,week3!$AB:$AJ,9,FALSE)) -> 93.48240166 | AL36: =IF(SUMIF(week4!$AB:$AB,all_cars!$D36,week4!$AJ:$AJ)=0,"",VLOOKUP(all_cars!$D36,week4!$AB:$AJ,9,FALSE)) ->  | AM36: =IF(SUMIF(week5!$AB:$AB,all_cars!$D36,week5!$AJ:$AJ)=0,"",VLOOKUP(all_cars!$D36,week5!$AB:$AJ,9,FALSE)) ->  | AQ36: [FUN] GR8 Arjen! | AR36: Testaaja
C37: 31 | D37: stoner | F37: 96.99081049 | G37: 74.72633924 | I37: 91.17044363 | K37: =IF(SUMIF(week1!$AB:$AB,all_cars!$D37,week1!$AF:$AF)=0,"",VLOOKUP(all_cars!$D37,week1!$AB:$AJ,5,FALSE)) -> 95.36933866 | L37: =IF(SUMIF(week2!$AB:$AB,all_cars!$D37,week2!$AF:$AF)=0,"",VLOOKUP(all_cars!$D37,week2!$AB:$AJ,5,FALSE)) -> 95.31496063 | M37: =IF(SUMIF(week3!$AB:$AB,all_cars!$D37,week3!$AF:$AF)=0,"",VLOOKUP(all_cars!$D37,week3!$AB:$AJ,5,FALSE)) -> 96.99081049 | N37: =IF(SUMIF(week4!$AB:$AB,all_cars!$D37,week4!$AF:$AF)=0,"",VLOOKUP(all_cars!$D37,week4!$AB:$AJ,5,FALSE)) ->  | O37: =IF(SUMIF(week5!$AB:$AB,all_cars!$D37,week5!$AF:$AF)=0,"",VLOOKUP(all_cars!$D37,week5!$AB:$AJ,5,FALSE)) ->  | Q37: =IF(SUMIF(week1!$AB:$AB,all_cars!$D37,week1!$AG:$AG)=0,"",VLOOKUP(all_cars!$D37,week1!$AB:$AJ,6,FALSE)) ->  | R37: =IF(SUMIF(week2!$AB:$AB,all_cars!$D37,week2!$AG:$AG)=0,"",VLOOKUP(all_cars!$D37,week2!$AB:$AJ,6,FALSE)) -> 74.72633924 | S37: =IF(SUMIF(week3!$AB:$AB,all_cars!$D37,week3!$AG:$AG)=0,"",VLOOKUP(all_cars!$D37,week3!$AB:$AJ,6,FALSE)) -> 92.91888423 | T37: =IF(SUMIF(week4!$AB:$AB,all_cars!$D37,week4!$AG:$AG)=0,"",VLOOKUP(all_cars!$D37,week4!$AB:$AJ,6,FALSE)) ->  | U37: =IF(SUMIF(week5!$AB:$AB,all_cars!$D37,week5!$AG:$AG)=0,"",VLOOKUP(all_cars!$D37,week5!$AB:$AJ,6,FALSE)) ->  | W37: =IF(SUMIF(week1!$AB:$AB,all_cars!$D37,week1!$AH:$AH)=0,"",VLOOKUP(all_cars!$D37,week1!$AB:$AJ,7,FALSE)) -> 91.70232851 | X37: =IF(SUMIF(week2!$AB:$AB,all_cars!$D37,week2!$AH:$AH)=0,"",VLOOKUP(all_cars!$D37,week2!$AB:$AJ,7,FALSE)) ->  | Y37: =IF(SUMIF(week3!$AB:$AB,all_cars!$D37,week3!$AH:$AH)=0,"",VLOOKUP(all_cars!$D37,week3!$AB:$AJ,7,FALSE)) ->  | Z37: =IF(SUMIF(week4!$AB:$AB,all_cars!$D37,week4!$AH:$AH)=0,"",VLOOKUP(all_cars!$D37,week4!$AB:$AJ,7,FALSE)) ->  | AA37: =IF(SUMIF(week5!$AB:$AB,all_cars!$D37,week5!$AH:$AH)=0,"",VLOOKUP(all_cars!$D37,week5!$AB:$AJ,7,FALSE)) ->  | AC37: =IF(SUMIF(week1!$AB:$AB,all_cars!$D37,week1!$AI:$AI)=0,"",VLOOKUP(all_cars!$D37,week1!$AB:$AJ,8,FALSE)) ->  | AD37: =IF(SUMIF(week2!$AB:$AB,all_cars!$D37,week2!$AI:$AI)=0,"",VLOOKUP(all_cars!$D37,week2!$AB:$AJ,8,FALSE)) ->  | AE37: =IF(SUMIF(week3!$AB:$AB,all_cars!$D37,week3!$AI:$AI)=0,"",VLOOKUP(all_cars!$D37,week3!$AB:$AJ,8,FALSE)) ->  | AF37: =IF(SUMIF(week4!$AB:$AB,all_cars!$D37,week4!$AI:$AI)=0,"",VLOOKUP(all_cars!$D37,week4!$AB:$AJ,8,FALSE)) ->  | AG37: =IF(SUMIF(week5!$AB:$AB,all_cars!$D37,week5!$AI:$AI)=0,"",VLOOKUP(all_cars!$D37,week5!$AB:$AJ,8,FALSE)) ->  | AI37: =IF(SUMIF(week1!$AB:$AB,all_cars!$D37,week1!$AJ:$AJ)=0,"",VLOOKUP(all_cars!$D37,week1!$AB:$AJ,9,FALSE)) ->  | AJ37: =IF(SUMIF(week2!$AB:$AB,all_cars!$D37,week2!$AJ:$AJ)=0,"",VLOOKUP(all_cars!$D37,week2!$AB:$AJ,9,FALSE)) ->  | AK37: =IF(SUMIF(week3!$AB:$AB,all_cars!$D37,week3!$AJ:$AJ)=0,"",VLOOKUP(all_cars!$D37,week3!$AB:$AJ,9,FALSE)) ->  | AL37: =IF(SUMIF(week4!$AB:$AB,all_cars!$D37,week4!$AJ:$AJ)=0,"",VLOOKUP(all_cars!$D37,week4!$AB:$AJ,9,FALSE)) ->  | AM37: =IF(SUMIF(week5!$AB:$AB,all_cars!$D37,week5!$AJ:$AJ)=0,"",VLOOKUP(all_cars!$D37,week5!$AB:$AJ,9,FALSE)) ->  | AQ37: stoner | AR37: [FUN] GR8 Arjen!
C38: 32 | D38: [+] xzeal | F38: 98.97331371 | G38: 88.93041882 | I38: 96.94179258 | K38: =IF(SUMIF(week1!$AB:$AB,all_cars!$D38,week1!$AF:$AF)=0,"",VLOOKUP(all_cars!$D38,week1!$AB:$AJ,5,FALSE)) -> 96.30661336 | L38: =IF(SUMIF(week2!$AB:$AB,all_cars!$D38,week2!$AF:$AF)=0,"",VLOOKUP(all_cars!$D38,week2!$AB:$AJ,5,FALSE)) -> 97.33923885 | M38: =IF(SUMIF(week3!$AB:$AB,all_cars!$D38,week3!$AF:$AF)=0,"",VLOOKUP(all_cars!$D38,week3!$AB:$AJ,5,FALSE)) -> 98.90780356 | N38: =IF(SUMIF(week4!$AB:$AB,all_cars!$D38,week4!$AF:$AF)=0,"",VLOOKUP(all_cars!$D38,week4!$AB:$AJ,5,FALSE)) -> 98.26401852 | O38: =IF(SUMIF(week5!$AB:$AB,all_cars!$D38,week5!$AF:$AF)=0,"",VLOOKUP(all_cars!$D38,week5!$AB:$AJ,5,FALSE)) -> 97.83568743 | Q38: =IF(SUMIF(week1!$AB:$AB,all_cars!$D38,week1!$AG:$AG)=0,"",VLOOKUP(all_cars!$D38,week1!$AB:$AJ,6,FALSE)) ->  | R38: =IF(SUMIF(week2!$AB:$AB,all_cars!$D38,week2!$AG:$AG)=0,"",VLOOKUP(all_cars!$D38,week2!$AB:$AJ,6,FALSE)) -> 96.49326746 | S38: =IF(SUMIF(week3!$AB:$AB,all_cars!$D38,week3!$AG:$AG)=0,"",VLOOKUP(all_cars!$D38,week3!$AB:$AJ,6,FALSE)) -> 98.97331371 | T38: =IF(SUMIF(week4!$AB:$AB,all_cars!$D38,week4!$AG:$AG)=0,"",VLOOKUP(all_cars!$D38,week4!$AB:$AJ,6,FALSE)) -> 96.79904944 | U38: =IF(SUMIF(week5!$AB:$AB,all_cars!$D38,week5!$AG:$AG)=0,"",VLOOKUP(all_cars!$D38,week5!$AB:$AJ,6,FALSE)) -> 96.82488545 | W38: =IF(SUMIF(week1!$AB:$AB,all_cars!$D38,week1!$AH:$AH)=0,"",VLOOKUP(all_cars!$D38,week1!$AB:$AJ,7,FALSE)) ->  | X38: =IF(SUMIF(week2!$AB:$AB,all_cars!$D38,week2!$AH:$AH)=0,"",VLOOKUP(all_cars!$D38,week2!$AB:$AJ,7,FALSE)) -> 96.54054405 | Y38: =IF(SUMIF(week3!$AB:$AB,all_cars!$D38,week3!$AH:$AH)=0,"",VLOOKUP(all_cars!$D38,week3!$AB:$AJ,7,FALSE)) -> 98.01797819 | Z38: =IF(SUMIF(week4!$AB:$AB,all_cars!$D38,week4!$AH:$AH)=0,"",VLOOKUP(all_cars!$D38,week4!$AB:$AJ,7,FALSE)) -> 97.90446393 | AA38: =IF(SUMIF(week5!$AB:$AB,all_cars!$D38,week5!$AH:$AH)=0,"",VLOOKUP(all_cars!$D38,week5!$AB:$AJ,7,FALSE)) -> 96.9553693 | AC38: =IF(SUMIF(week1!$AB:$AB,all_cars!$D38,week1!$AI:$AI)=0,"",VLOOKUP(all_cars!$D38,week1!$AB:$AJ,8,FALSE)) ->  | AD38: =IF(SUMIF(week2!$AB:$AB,all_cars!$D38,week2!$AI:$AI)=0,"",VLOOKUP(all_cars!$D38,week2!$AB:$AJ,8,FALSE)) -> 95.62388157 | AE38: =IF(SUMIF(week3!$AB:$AB,all_cars!$D38,week3!$AI:$AI)=0,"",VLOOKUP(all_cars!$D38,week3!$AB:$AJ,8,FALSE)) -> 98.73427402 | AF38: =IF(SUMIF(week4!$AB:$AB,all_cars!$D38,week4!$AI:$AI)=0,"",VLOOKUP(all_cars!$D38,week4!$AB:$AJ,8,FALSE)) -> 97.73354642 | AG38: =IF(SUMIF(week5!$AB:$AB,all_cars!$D38,week5!$AI:$AI)=0,"",VLOOKUP(all_cars!$D38,week5!$AB:$AJ,8,FALSE)) -> 98.76494453 | AI38: =IF(SUMIF(week1!$AB:$AB,all_cars!$D38,week1!$AJ:$AJ)=0,"",VLOOKUP(all_cars!$D38,week1!$AB:$AJ,9,FALSE)) -> 88.93041882 | AJ38: =IF(SUMIF(week2!$AB:$AB,all_cars!$D38,week2!$AJ:$AJ)=0,"",VLOOKUP(all_cars!$D38,week2!$AB:$AJ,9,FALSE)) -> 95.15792403 | AK38: =IF(SUMIF(week3!$AB:$AB,all_cars!$D38,week3!$AJ:$AJ)=0,"",VLOOKUP(all_cars!$D38,week3!$AB:$AJ,9,FALSE)) -> 97.29192547 | AL38: =IF(SUMIF(week4!$AB:$AB,all_cars!$D38,week4!$AJ:$AJ)=0,"",VLOOKUP(all_cars!$D38,week4!$AB:$AJ,9,FALSE)) -> 96.54385897 | AM38: =IF(SUMIF(week5!$AB:$AB,all_cars!$D38,week5!$AJ:$AJ)=0,"",VLOOKUP(all_cars!$D38,week5!$AB:$AJ,9,FALSE)) -> 96.77642981 | AQ38: [+] xzeal | AR38: stoner
C39: 33 | D39: Matic | F39: =IF($I39="",0,MAX($K39:$AM39)) -> 97.81184092 | G39: =IF($I39="",0,MIN($K39:$AM39)) -> 96.02898551 | I39: =IF(COUNT(K39:AM39)=0,0,SUM(K39:AM39)/COUNT(K39:AM39)) -> 97.25757455 | K39: =IF(SUMIF(week1!$AB:$AB,all_cars!$D39,week1!$AF:$AF)=0,"",VLOOKUP(all_cars!$D39,week1!$AB:$AJ,5,FALSE)) -> 97.79117782 | L39: =IF(SUMIF(week2!$AB:$AB,all_cars!$D39,week2!$AF:$AF)=0,"",VLOOKUP(all_cars!$D39,week2!$AB:$AJ,5,FALSE)) -> 97.39829396 | M39: =IF(SUMIF(week3!$AB:$AB,all_cars!$D39,week3!$AF:$AF)=0,"",VLOOKUP(all_cars!$D39,week3!$AB:$AJ,5,FALSE)) -> 97.81184092 | N39: =IF(SUMIF(week4!$AB:$AB,all_cars!$D39,week4!$AF:$AF)=0,"",VLOOKUP(all_cars!$D39,week4!$AB:$AJ,5,FALSE)) ->  | O39: =IF(SUMIF(week5!$AB:$AB,all_cars!$D39,week5!$AF:$AF)=0,"",VLOOKUP(all_cars!$D39,week5!$AB:$AJ,5,FALSE)) ->  | Q39: =IF(SUMIF(week1!$AB:$AB,all_cars!$D39,week1!$AG:$AG)=0,"",VLOOKUP(all_cars!$D39,week1!$AB:$AJ,6,FALSE)) ->  | R39: =IF(SUMIF(week2!$AB:$AB,all_cars!$D39,week2!$AG:$AG)=0,"",VLOOKUP(all_cars!$D39,week2!$AB:$AJ,6,FALSE)) ->  | S39: =IF(SUMIF(week3!$AB:$AB,all_cars!$D39,week3!$AG:$AG)=0,"",VLOOKUP(all_cars!$D39,week3!$AB:$AJ,6,FALSE)) ->  | T39: =IF(SUMIF(week4!$AB:$AB,all_cars!$D39,week4!$AG:$AG)=0,"",VLOOKUP(all_cars!$D39,week4!$AB:$AJ,6,FALSE)) ->  | U39: =IF(SUMIF(week5!$AB:$AB,all_cars!$D39,week5!$AG:$AG)=0,"",VLOOKUP(all_cars!$D39,week5!$AB:$AJ,6,FALSE)) ->  | W39: =IF(SUMIF(week1!$AB:$AB,all_cars!$D39,week1!$AH:$AH)=0,"",VLOOKUP(all_cars!$D39,week1!$AB:$AJ,7,FALSE)) ->  | X39: =IF(SUMIF(week2!$AB:$AB,all_cars!$D39,week2!$AH:$AH)=0,"",VLOOKUP(all_cars!$D39,week2!$AB:$AJ,7,FALSE)) ->  | Y39: =IF(SUMIF(week3!$AB:$AB,all_cars!$D39,week3!$AH:$AH)=0,"",VLOOKUP(all_cars!$D39,week3!$AB:$AJ,7,FALSE)) ->  | Z39: =IF(SUMIF(week4!$AB:$AB,all_cars!$D39,week4!$AH:$AH)=0,"",VLOOKUP(all_cars!$D39,week4!$AB:$AJ,7,FALSE)) ->  | AA39: =IF(SUMIF(week5!$AB:$AB,all_cars!$D39,week5!$AH:$AH)=0,"",VLOOKUP(all_cars!$D39,week5!$AB:$AJ,7,FALSE)) ->  | AC39: =IF(SUMIF(week1!$AB:$AB,all_cars!$D39,week1!$AI:$AI)=0,"",VLOOKUP(all_cars!$D39,week1!$AB:$AJ,8,FALSE)) ->  | AD39: =IF(SUMIF(week2!$AB:$AB,all_cars!$D39,week2!$AI:$AI)=0,"",VLOOKUP(all_cars!$D39,week2!$AB:$AJ,8,FALSE)) ->  | AE39: =IF(SUMIF(week3!$AB:$AB,all_cars!$D39,week3!$AI:$AI)=0,"",VLOOKUP(all_cars!$D39,week3!$AB:$AJ,8,FALSE)) ->  | AF39: =IF(SUMIF(week4!$AB:$AB,all_cars!$D39,week4!$AI:$AI)=0,"",VLOOKUP(all_cars!$D39,week4!$AB:$AJ,8,FALSE)) ->  | AG39: =IF(SUMIF(week5!$AB:$AB,all_cars!$D39,week5!$AI:$AI)=0,"",VLOOKUP(all_cars!$D39,week5!$AB:$AJ,8,FALSE)) ->  | AI39: =IF(SUMIF(week1!$AB:$AB,all_cars!$D39,week1!$AJ:$AJ)=0,"",VLOOKUP(all_cars!$D39,week1!$AB:$AJ,9,FALSE)) ->  | AJ39: =IF(SUMIF(week2!$AB:$AB,all_cars!$D39,week2!$AJ:$AJ)=0,"",VLOOKUP(all_cars!$D39,week2!$AB:$AJ,9,FALSE)) ->  | AK39: =IF(SUMIF(week3!$AB:$AB,all_cars!$D39,week3!$AJ:$AJ)=0,"",VLOOKUP(all_cars!$D39,week3!$AB:$AJ,9,FALSE)) -> 96.02898551 | AL39: =IF(SUMIF(week4!$AB:$AB,all_cars!$D39,week4!$AJ:$AJ)=0,"",VLOOKUP(all_cars!$D39,week4!$AB:$AJ,9,FALSE)) ->  | AM39: =IF(SUMIF(week5!$AB:$AB,all_cars!$D39,week5!$AJ:$AJ)=0,"",VLOOKUP(all_cars!$D39,week5!$AB:$AJ,9,FALSE)) ->  | AQ39: Matic | AR39: Chukie
C40: 34 | D40: Serif | F40: 94.71062463 | G40: 90.77241769 | I40: 92.74152116 | K40: =IF(SUMIF(week1!$AB:$AB,all_cars!$D40,week1!$AF:$AF)=0,"",VLOOKUP(all_cars!$D40,week1!$AB:$AJ,5,FALSE)) -> 94.71062463 | L40: =IF(SUMIF(week2!$AB:$AB,all_cars!$D40,week2!$AF:$AF)=0,"",VLOOKUP(all_cars!$D40,week2!$AB:$AJ,5,FALSE)) ->  | M40: =IF(SUMIF(week3!$AB:$AB,all_cars!$D40,week3!$AF:$AF)=0,"",VLOOKUP(all_cars!$D40,week3!$AB:$AJ,5,FALSE)) ->  | N40: =IF(SUMIF(week4!$AB:$AB,all_cars!$D40,week4!$AF:$AF)=0,"",VLOOKUP(all_cars!$D40,week4!$AB:$AJ,5,FALSE)) ->  | O40: =IF(SUMIF(week5!$AB:$AB,all_cars!$D40,week5!$AF:$AF)=0,"",VLOOKUP(all_cars!$D40,week5!$AB:$AJ,5,FALSE)) ->  | Q40: =IF(SUMIF(week1!$AB:$AB,all_cars!$D40,week1!$AG:$AG)=0,"",VLOOKUP(all_cars!$D40,week1!$AB:$AJ,6,FALSE)) ->  | R40: =IF(SUMIF(week2!$AB:$AB,all_cars!$D40,week2!$AG:$AG)=0,"",VLOOKUP(all_cars!$D40,week2!$AB:$AJ,6,FALSE)) ->  | S40: =IF(SUMIF(week3!$AB:$AB,all_cars!$D40,week3!$AG:$AG)=0,"",VLOOKUP(all_cars!$D40,week3!$AB:$AJ,6,FALSE)) ->  | T40: =IF(SUMIF(week4!$AB:$AB,all_cars!$D40,week4!$AG:$AG)=0,"",VLOOKUP(all_cars!$D40,week4!$AB:$AJ,6,FALSE)) ->  | U40: =IF(SUMIF(week5!$AB:$AB,all_cars!$D40,week5!$AG:$AG)=0,"",VLOOKUP(all_cars!$D40,week5!$AB:$AJ,6,FALSE)) ->  | W40: =IF(SUMIF(week1!$AB:$AB,all_cars!$D40,week1!$AH:$AH)=0,"",VLOOKUP(all_cars!$D40,week1!$AB:$AJ,7,FALSE)) ->  | X40: =IF(SUMIF(week2!$AB:$AB,all_cars!$D40,week2!$AH:$AH)=0,"",VLOOKUP(all_cars!$D40,week2!$AB:$AJ,7,FALSE)) ->  | Y40: =IF(SUMIF(week3!$AB:$AB,all_cars!$D40,week3!$AH:$AH)=0,"",VLOOKUP(all_cars!$D40,week3!$AB:$AJ,7,FALSE)) ->  | Z40: =IF(SUMIF(week4!$AB:$AB,all_cars!$D40,week4!$AH:$AH)=0,"",VLOOKUP(all_cars!$D40,week4!$AB:$AJ,7,FALSE)) ->  | AA40: =IF(SUMIF(week5!$AB:$AB,all_cars!$D40,week5!$AH:$AH)=0,"",VLOOKUP(all_cars!$D40,week5!$AB:$AJ,7,FALSE)) ->  | AC40: =IF(SUMIF(week1!$AB:$AB,all_cars!$D40,week1!$AI:$AI)=0,"",VLOOKUP(all_cars!$D40,week1!$AB:$AJ,8,FALSE)) -> 90.77241769 | AD40: =IF(SUMIF(week2!$AB:$AB,all_cars!$D40,week2!$AI:$AI)=0,"",VLOOKUP(all_cars!$D40,week2!$AB:$AJ,8,FALSE)) ->  | AE40: =IF(SUMIF(week3!$AB:$AB,all_cars!$D40,week3!$AI:$AI)=0,"",VLOOKUP(all_cars!$D40,week3!$AB:$AJ,8,FALSE)) ->  | AF40: =IF(SUMIF(week4!$AB:$AB,all_cars!$D40,week4!$AI:$AI)=0,"",VLOOKUP(all_cars!$D40,week4!$AB:$AJ,8,FALSE)) ->  | AG40: =IF(SUMIF(week5!$AB:$AB,all_cars!$D40,week5!$AI:$AI)=0,"",VLOOKUP(all_cars!$D40,week5!$AB:$AJ,8,FALSE)) ->  | AI40: =IF(SUMIF(week1!$AB:$AB,all_cars!$D40,week1!$AJ:$AJ)=0,"",VLOOKUP(all_cars!$D40,week1!$AB:$AJ,9,FALSE)) ->  | AJ40: =IF(SUMIF(week2!$AB:$AB,all_cars!$D40,week2!$AJ:$AJ)=0,"",VLOOKUP(all_cars!$D40,week2!$AB:$AJ,9,FALSE)) ->  | AK40: =IF(SUMIF(week3!$AB:$AB,all_cars!$D40,week3!$AJ:$AJ)=0,"",VLOOKUP(all_cars!$D40,week3!$AB:$AJ,9,FALSE)) ->  | AL40: =IF(SUMIF(week4!$AB:$AB,all_cars!$D40,week4!$AJ:$AJ)=0,"",VLOOKUP(all_cars!$D40,week4!$AB:$AJ,9,FALSE)) ->  | AM40: =IF(SUMIF(week5!$AB:$AB,all_cars!$D40,week5!$AJ:$AJ)=0,"",VLOOKUP(all_cars!$D40,week5!$AB:$AJ,9,FALSE)) ->  | AQ40: Serif | AR40: [+] xzeal
